Workbook

Sheet OX vs delta significant diffe
A1: Proteins | B1: Positions within proteins | C1: Sequence window | D1: Leading proteins | E1: Protein | F1: Fasta headers | G1: Diagnostic peak | H1: Number of Acetyl (K) | I1: Amino acid | J1: Score | K1: Modified sequence | L1: Modification window | M1: Acetyl (K) Probabilities | N1: Acetyl (K) Score diffs | O1: Position in peptide | P1: Charge | Q1: m/z | R1: Mass error [ppm] | S1: Contaminant | T1: Intensity OX-1 | U1: Intensity OX-2 | V1: Intensity OX-3 | W1: average OX | X1: Intensity WT-1 | Y1: Intensity WT-2 | Z1: Intensity WT-3 | AA1: average WT | AB1: OX/WT | AC1: t test p value
A2: >tr|G4NHY9|G4NHY9_MAGO7 Uncharacterized protein OS=Magnaporthe oryzae (strain 70-15 / ATCC MYA-4617 / FGSC 8958) GN=MGG_09395 PE=4 SV=1;>tr|L7HZR7|L7HZR7_MAGOY Uncharacterized protein OS=Magnaporthe oryzae (strain Y34) GN=OOU_Y34scaffold00658g5 PE=4 SV=1;>tr|L7IVV9|L7IVV9_MAGOP Uncharacterized protein OS=Magnaporthe oryzae (strain P131) GN=OOW_P131scaffold01314g9 PE=4 SV=1 | B2: 106;106;106 | C2: IKLKMTHRLFKEPTIKVKLGGLKGYFSVDLA | D2: >tr|G4NHY9|G4NHY9_MAGO7 Uncharacterized protein OS=Magnaporthe oryzae (strain 70-15 / ATCC MYA-4617 / FGSC 8958) GN=MGG_09395 PE=4 SV=1 | E2: >tr|G4NHY9|G4NHY9_MAGO7 Uncharacterized protein OS=Magnaporthe oryzae (strain 70-15 / ATCC MYA-4617 / FGSC 8958) GN=MGG_09395 PE=4 SV=1 | F2: >tr|G4NHY9|G4NHY9_MAGO7 Uncharacterized protein OS=Magnaporthe oryzae (strain 70-15 / ATCC MYA-4617 / FGSC 8958) GN=MGG_09395 PE=4 SV=1;>tr|L7HZR7|L7HZR7_MAGOY Uncharacterized protein OS=Magnaporthe oryzae (strain Y34) GN=OOU_Y34scaffold00658g5 PE=4 SV=1;> | G2: + | H2: 1 | I2: K | J2: 95.618 | K2: _LFKEPTIK(ac)VK_ | L2: X;Acetyl (K);X;X;X;X;X;X;X;X;X;X;X;X;X;Acetyl (K);X;Acetyl (K);X;X;X;X;X;X;X;X;X;X;X;X;X | M2: LFKEPTIK(1)VK | N2: LFK(-70.88)EPTIK(70.88)VK(-82.42) | O2: 8 | P2: 2 | Q2: 622.88428 | R2: -0.36297 | T2: 157070000 | U2: 111570000 | V2: 150690000 | W2: =AVERAGE(T2:V2) -> 139776666.7 | X2: 18207000 | Y2: 9754400 | Z2: 10425000 | AA2: =AVERAGE(X2:Z2) -> 12795466.67 | AB2: =W2/AA2 -> 10.92392097 | AC2: =_xlfn.T.TEST(T2:V2,X2:Z2,2,2) -> 0.0009321035892 | AD2: MGG_09395
A3: >tr|G4MRS8|G4MRS8_MAGO7 Uncharacterized protein OS=Magnaporthe oryzae (strain 70-15 / ATCC MYA-4617 / FGSC 8958) GN=MGG_04582 PE=4 SV=1;>tr|L7HQJ4|L7HQJ4_MAGOY Uncharacterized protein OS=Magnaporthe oryzae (strain Y34) GN=OOU_Y34scaffold01005g5 PE=4 SV=1;>tr|L7J370|L7J370_MAGOP Uncharacterized protein OS=Magnaporthe oryzae (strain P131) GN=OOW_P131scaffold01138g69 PE=4 SV=1 | B3: 310;310;310 | C3: EEVDSDIAKIKAGGFKTVRVYSTDCNTLPNV | D3: >tr|G4MRS8|G4MRS8_MAGO7 Uncharacterized protein OS=Magnaporthe oryzae (strain 70-15 / ATCC MYA-4617 / FGSC 8958) GN=MGG_04582 PE=4 SV=1 | E3: >tr|G4MRS8|G4MRS8_MAGO7 Uncharacterized protein OS=Magnaporthe oryzae (strain 70-15 / ATCC MYA-4617 / FGSC 8958) GN=MGG_04582 PE=4 SV=1 | F3: >tr|G4MRS8|G4MRS8_MAGO7 Uncharacterized protein OS=Magnaporthe oryzae (strain 70-15 / ATCC MYA-4617 / FGSC 8958) GN=MGG_04582 PE=4 SV=1;>tr|L7HQJ4|L7HQJ4_MAGOY Uncharacterized protein OS=Magnaporthe oryzae (strain Y34) GN=OOU_Y34scaffold01005g5 PE=4 SV=1;> | G3: + | H3: 1 | I3: K | J3: 99.139 | K3: _AGGFK(ac)TVR_ | L3: X;X;X;X;X;X;X;X;Acetyl (K);X;X;X;X;X;X;Acetyl (K);X;X;X;X;X;X;X;X;X;X;X;X;X;X;X | M3: AGGFK(1)TVR | N3: AGGFK(88.82)TVR | O3: 5 | P3: 2 | Q3: 439.24815 | R3: 0.25399 | T3: 43796000 | U3: 48012000 | V3: 36588000 | W3: 42798666.67 | X3: 21848000 | Y3: 15470000 | Z3: 14454000 | AA3: 17257333.33 | AB3: 2.480027814 | AC3: =_xlfn.T.TEST(T3:V3,X3:Z3,2,2) -> 0.003260016284 | AD3: MGG_04582
A4: >tr|G4NF57|G4NF57_MAGO7 Hsp70-like protein OS=Magnaporthe oryzae (strain 70-15 / ATCC MYA-4617 / FGSC 8958) GN=MGG_04191 PE=3 SV=1;>tr|L7I5B3|L7I5B3_MAGOY Heat shock protein SSC1 OS=Magnaporthe oryzae (strain Y34) GN=OOU_Y34scaffold00540g9 PE=3 SV=1;>tr|L7IT09|L7IT09_MAGOP Heat shock protein SSC1 OS=Magnaporthe oryzae (strain P131) GN=OOW_P131scaffold01393g49 PE=3 SV=1 | B4: 176;176;176 | C4: GKMKETAEAYLSKNVKNAVVTVPAYFNDSQR | D4: >tr|G4NF57|G4NF57_MAGO7 Hsp70-like protein OS=Magnaporthe oryzae (strain 70-15 / ATCC MYA-4617 / FGSC 8958) GN=MGG_04191 PE=3 SV=1 | E4: >tr|G4NF57|G4NF57_MAGO7 Hsp70-like protein OS=Magnaporthe oryzae (strain 70-15 / ATCC MYA-4617 / FGSC 8958) GN=MGG_04191 PE=3 SV=1 | F4: >tr|G4NF57|G4NF57_MAGO7 Hsp70-like protein OS=Magnaporthe oryzae (strain 70-15 / ATCC MYA-4617 / FGSC 8958) GN=MGG_04191 PE=3 SV=1;>tr|L7I5B3|L7I5B3_MAGOY Heat shock protein SSC1 OS=Magnaporthe oryzae (strain Y34) GN=OOU_Y34scaffold00540g9 PE=3 SV=1;>tr|L7 | G4: + | H4: 1 | I4: K | J4: 131.51 | K4: _NVK(ac)NAVVTVPAYFNDSQR_ | L4: X;X;X;X;X;X;X;X;X;X;X;X;X;X;X;Acetyl (K);X;X;X;X;X;X;X;X;X;X;X;X;X;X;X | M4: NVK(1)NAVVTVPAYFNDSQR | N4: NVK(47.2)NAVVTVPAYFNDSQR | O4: 3 | P4: 2 | Q4: 1032.5291 | R4: -0.24208 | U4: 10974000 | V4: 11407000 | W4: 11190500 | Y4: 5844700 | Z4: 5341400 | AA4: 5593050 | AB4: 2.000786691 | AC4: =_xlfn.T.TEST(T4:V4,X4:Z4,2,2) -> 0.003498783929 | AD4: MGG_04191
A5: >tr|G4MVB0|G4MVB0_MAGO7 Elongation factor 2 OS=Magnaporthe oryzae (strain 70-15 / ATCC MYA-4617 / FGSC 8958) GN=MGG_01742 PE=4 SV=1;>tr|L7I6Y5|L7I6Y5_MAGOY Elongation factor 2 OS=Magnaporthe oryzae (strain Y34) GN=OOU_Y34scaffold00521g3 PE=4 SV=1;>tr|L7IWM0|L7IWM0_MAGOP Elongation factor 2 OS=Magnaporthe oryzae (strain P131) GN=OOW_P131scaffold01324g1 PE=4 SV=1 | B5: 480;480;480 | C5: LKSGTLTTDETAHNLKVMKFSVSPVVQQSVQ | D5: >tr|G4MVB0|G4MVB0_MAGO7 Elongation factor 2 OS=Magnaporthe oryzae (strain 70-15 / ATCC MYA-4617 / FGSC 8958) GN=MGG_01742 PE=4 SV=1 | E5: >tr|G4MVB0|G4MVB0_MAGO7 Elongation factor 2 OS=Magnaporthe oryzae (strain 70-15 / ATCC MYA-4617 / FGSC 8958) GN=MGG_01742 PE=4 SV=1 | F5: >tr|G4MVB0|G4MVB0_MAGO7 Elongation factor 2 OS=Magnaporthe oryzae (strain 70-15 / ATCC MYA-4617 / FGSC 8958) GN=MGG_01742 PE=4 SV=1;>tr|L7I6Y5|L7I6Y5_MAGOY Elongation factor 2 OS=Magnaporthe oryzae (strain Y34) GN=OOU_Y34scaffold00521g3 PE=4 SV=1;>tr|L7IWM | G5: + | H5: 1 | I5: K | J5: 131.24 | K5: _SGTLTTDETAHNLK(ac)VMK_ | L5: X;X;X;X;X;X;X;X;X;X;X;X;X;X;X;Acetyl (K);X;X;X;X;X;X;X;X;X;X;X;X;X;X;X | M5: SGTLTTDETAHNLK(1)VMK | N5: SGTLTTDETAHNLK(38.89)VMK(-38.89) | O5: 14 | P5: 2 | Q5: 944.47767 | R5: 1.097 | T5: 25286000 | U5: 20662000 | V5: 21431000 | W5: 22459666.67 | X5: 8485500 | Z5: 12038000 | AA5: 10261750 | AB5: 2.18867802 | AC5: =_xlfn.T.TEST(T5:V5,X5:Z5,2,2) -> 0.01265466987 | AD5: MGG_01742
A6: >tr|G4MZ61|G4MZ61_MAGO7 U4/U6.U5 tri-snRNP-associated protein 2 OS=Magnaporthe oryzae (strain 70-15 / ATCC MYA-4617 / FGSC 8958) GN=MGG_08169 PE=4 SV=1;>tr|L7IM99|L7IM99_MAGOY U4/U6.U5 tri-snRNP-associated protein 2 OS=Magnaporthe oryzae (strain Y34) GN=OOU_Y34scaffold00094g91 PE=4 SV=1;>tr|L7IZU3|L7IZU3_MAGOP U4/U6.U5 tri-snRNP-associated protein 2 OS=Magnaporthe oryzae (strain P131) GN=OOW_P131scaffold01180g4 PE=4 SV=1 | B6: 206;206;206 | C6: PRYTRDEVARLDRPGKAPMARTLAGKEYAPG | D6: >tr|G4MZ61|G4MZ61_MAGO7 U4/U6.U5 tri-snRNP-associated protein 2 OS=Magnaporthe oryzae (strain 70-15 / ATCC MYA-4617 / FGSC 8958) GN=MGG_08169 PE=4 SV=1 | E6: >tr|G4MZ61|G4MZ61_MAGO7 U4/U6.U5 tri-snRNP-associated protein 2 OS=Magnaporthe oryzae (strain 70-15 / ATCC MYA-4617 / FGSC 8958) GN=MGG_08169 PE=4 SV=1 | F6: >tr|G4MZ61|G4MZ61_MAGO7 U4/U6.U5 tri-snRNP-associated protein 2 OS=Magnaporthe oryzae (strain 70-15 / ATCC MYA-4617 / FGSC 8958) GN=MGG_08169 PE=4 SV=1;>tr|L7IM99|L7IM99_MAGOY U4/U6.U5 tri-snRNP-associated protein 2 OS=Magnaporthe oryzae (strain Y34) GN=OO | G6: + | H6: 1 | I6: K | J6: 98.156 | K6: _LDRPGK(ac)APMAR_ | L6: X;X;X;X;X;X;X;X;X;X;X;X;X;X;X;Acetyl (K);X;X;X;X;X;X;X;X;X;X;X;X;X;X;X | M6: LDRPGK(1)APMAR | N6: LDRPGK(90.61)APMAR | O6: 6 | P6: 3 | Q6: 418.56428 | R6: -0.38352 | T6: 19989000 | U6: 23583000 | V6: 27303000 | W6: 23625000 | X6: 9194900 | Z6: 11128000 | AA6: 10161450 | AB6: 2.324963465 | AC6: =_xlfn.T.TEST(T6:V6,X6:Z6,2,2) -> 0.0174526657 | AD6: MGG_08169
A7: >tr|G4ML82|G4ML82_MAGO7 ATP-citrate synthase subunit 1 OS=Magnaporthe oryzae (strain 70-15 / ATCC MYA-4617 / FGSC 8958) GN=MGG_06719 PE=4 SV=1;>tr|L7JMC4|L7JMC4_MAGOP ATP-citrate synthase subunit 1 OS=Magnaporthe oryzae (strain P131) GN=OOW_P131scaffold00177g8 PE=4 SV=1;>tr|L7I5K1|L7I5K1_MAGOY ATP-citrate synthase subunit 1 OS=Magnaporthe oryzae (strain Y34) GN=OOU_Y34scaffold00534g8 PE=4 SV=1 | B7: 517;517;517 | C7: HDKGLSPREFVDLMRKQNKLIPGIGHRVKSR | D7: >tr|G4ML82|G4ML82_MAGO7 ATP-citrate synthase subunit 1 OS=Magnaporthe oryzae (strain 70-15 / ATCC MYA-4617 / FGSC 8958) GN=MGG_06719 PE=4 SV=1 | E7: >tr|G4ML82|G4ML82_MAGO7 ATP-citrate synthase subunit 1 OS=Magnaporthe oryzae (strain 70-15 / ATCC MYA-4617 / FGSC 8958) GN=MGG_06719 PE=4 SV=1 | F7: >tr|G4ML82|G4ML82_MAGO7 ATP-citrate synthase subunit 1 OS=Magnaporthe oryzae (strain 70-15 / ATCC MYA-4617 / FGSC 8958) GN=MGG_06719 PE=4 SV=1;>tr|L7JMC4|L7JMC4_MAGOP ATP-citrate synthase subunit 1 OS=Magnaporthe oryzae (strain P131) GN=OOW_P131scaffold001 | G7: + | H7: 1 | I7: K | J7: 99.752 | K7: _K(ac)QNKLIPGIGHR_ | L7: X;X;Acetyl (K);X;X;X;X;X;X;X;X;X;X;X;X;Acetyl (K);X;X;Acetyl (K);X;X;X;X;X;X;X;X;X;X;X;X | M7: K(0.973)QNK(0.027)LIPGIGHR | N7: K(15.49)QNK(-15.49)LIPGIGHR | O7: 1 | P7: 3 | Q7: 468.28077 | R7: 0.15808 | T7: 210480000 | U7: 345780000 | V7: 310270000 | W7: 288843333.3 | X7: 117690000 | Y7: 166460000 | Z7: 148130000 | AA7: 144093333.3 | AB7: 2.004557231 | AC7: =_xlfn.T.TEST(T7:V7,X7:Z7,2,2) -> 0.02798792782 | AD7: MGG_06719
A8: >tr|L7HTU6|L7HTU6_MAGOY Autophagy-related protein 7 OS=Magnaporthe oryzae (strain Y34) GN=OOU_Y34scaffold00768g33 PE=4 SV=1;>tr|L7J4X2|L7J4X2_MAGOP Autophagy-related protein 7 OS=Magnaporthe oryzae (strain P131) GN=OOW_P131scaffold01066g20 PE=4 SV=1;>sp|Q52CS0|ATG7_MAGO7 Ubiquitin-like modifier-activating enzyme ATG7 OS=Magnaporthe oryzae (strain 70-15 / ATCC MYA-4617 / FGSC 8958) GN=ATG7 PE=3 SV=2 | B8: 338;338;334 | C8: SEMPKVTGWERHPSSKLQARVISLAEYMDPT | D8: >tr|L7HTU6|L7HTU6_MAGOY Autophagy-related protein 7 OS=Magnaporthe oryzae (strain Y34) GN=OOU_Y34scaffold00768g33 PE=4 SV=1 | E8: >tr|L7HTU6|L7HTU6_MAGOY Autophagy-related protein 7 OS=Magnaporthe oryzae (strain Y34) GN=OOU_Y34scaffold00768g33 PE=4 SV=1 | F8: >tr|L7HTU6|L7HTU6_MAGOY Autophagy-related protein 7 OS=Magnaporthe oryzae (strain Y34) GN=OOU_Y34scaffold00768g33 PE=4 SV=1;>tr|L7J4X2|L7J4X2_MAGOP Autophagy-related protein 7 OS=Magnaporthe oryzae (strain P131) GN=OOW_P131scaffold01066g20 PE=4 SV=1;>sp|Q5 | G8: + | H8: 1 | I8: K | J8: 89.08 | K8: _HPSSK(ac)LQAR_ | L8: X;X;X;X;X;X;X;X;X;X;X;X;X;X;X;Acetyl (K);X;X;X;X;X;X;X;X;X;X;X;X;X;X;X | M8: HPSSK(1)LQAR | N8: HPSSK(89.08)LQAR | O8: 5 | P8: 2 | Q8: 533.29362 | R8: 0.13392 | U8: 74354000 | V8: 60572000 | W8: 67463000 | X8: 20786000 | Z8: 27992000 | AA8: 24389000 | AB8: 2.766124072 | AC8: =_xlfn.T.TEST(T8:V8,X8:Z8,2,2) -> 0.03107920066 | AD8: Atg7
A9: >tr|G4MSC0|G4MSC0_MAGO7 60S ribosomal protein L6 OS=Magnaporthe oryzae (strain 70-15 / ATCC MYA-4617 / FGSC 8958) GN=MGG_04444 PE=3 SV=1;>tr|L7HX47|L7HX47_MAGOY 60S ribosomal protein L6 OS=Magnaporthe oryzae (strain Y34) GN=OOU_Y34scaffold00744g46 PE=3 SV=1;>tr|L7IUW5|L7IUW5_MAGOP 60S ribosomal protein L6 OS=Magnaporthe oryzae (strain P131) GN=OOW_P131scaffold01358g13 PE=3 SV=1 | B9: 25;25;25 | C9: KQFGKASRTVPHHSQKASKWYPATDDNGPKA | D9: >tr|G4MSC0|G4MSC0_MAGO7 60S ribosomal protein L6 OS=Magnaporthe oryzae (strain 70-15 / ATCC MYA-4617 / FGSC 8958) GN=MGG_04444 PE=3 SV=1 | E9: >tr|G4MSC0|G4MSC0_MAGO7 60S ribosomal protein L6 OS=Magnaporthe oryzae (strain 70-15 / ATCC MYA-4617 / FGSC 8958) GN=MGG_04444 PE=3 SV=1 | F9: >tr|G4MSC0|G4MSC0_MAGO7 60S ribosomal protein L6 OS=Magnaporthe oryzae (strain 70-15 / ATCC MYA-4617 / FGSC 8958) GN=MGG_04444 PE=3 SV=1;>tr|L7HX47|L7HX47_MAGOY 60S ribosomal protein L6 OS=Magnaporthe oryzae (strain Y34) GN=OOU_Y34scaffold00744g46 PE=3 SV= | G9: + | H9: 1 | I9: K | J9: 114.02 | K9: _TVPHHSQK(ac)ASK_ | L9: X;X;X;X;Acetyl (K);X;X;X;X;X;X;X;X;X;X;Acetyl (K);X;X;Acetyl (K);X;X;X;X;X;X;X;X;X;X;X;X | M9: TVPHHSQK(1)ASK | N9: TVPHHSQK(91.96)ASK(-91.96) | O9: 8 | P9: 3 | Q9: 421.22644 | R9: -0.030636 | T9: 47435000 | U9: 35412000 | V9: 32254000 | W9: 38367000 | X9: 13884000 | Y9: 15251000 | Z9: 27050000 | AA9: 18728333.33 | AB9: 2.04860728 | AC9: =_xlfn.T.TEST(T9:V9,X9:Z9,2,2) -> 0.03449726356 | AD9: MGG_04444
A10: >tr|L7IF18|L7IF18_MAGOY Fatty acid synthase subunit alpha reductase OS=Magnaporthe oryzae (strain Y34) GN=OOU_Y34scaffold00255g48 PE=3 SV=1;>tr|L7J9L1|L7J9L1_MAGOP Fatty acid synthase subunit alpha reductase OS=Magnaporthe oryzae (strain P131) GN=OOW_P131scaffold00606g1 PE=3 SV=1;>tr|G4NIU0|G4NIU0_MAGO7 Fatty acid synthase subunit alpha OS=Magnaporthe oryzae (strain 70-15 / ATCC MYA-4617 / FGSC 8958) GN=MGG_12154 PE=3 SV=1 | B10: 946;946;946 | C10: IEDKIVNGANSENLYKKKFIDPRANIKFDFP | D10: >tr|L7IF18|L7IF18_MAGOY Fatty acid synthase subunit alpha reductase OS=Magnaporthe oryzae (strain Y34) GN=OOU_Y34scaffold00255g48 PE=3 SV=1 | E10: >tr|L7IF18|L7IF18_MAGOY Fatty acid synthase subunit alpha reductase OS=Magnaporthe oryzae (strain Y34) GN=OOU_Y34scaffold00255g48 PE=3 SV=1 | F10: >tr|L7IF18|L7IF18_MAGOY Fatty acid synthase subunit alpha reductase OS=Magnaporthe oryzae (strain Y34) GN=OOU_Y34scaffold00255g48 PE=3 SV=1;>tr|L7J9L1|L7J9L1_MAGOP Fatty acid synthase subunit alpha reductase OS=Magnaporthe oryzae (strain P131) GN=OOW_P131s | G10: + | H10: 1 | I10: K | J10: 99.531 | K10: _IVNGANSENLYK(ac)K_ | L10: X;X;X;X;X;X;X;X;X;X;X;X;X;X;X;Acetyl (K);X;X;X;X;X;X;X;X;X;X;X;X;X;X;X | M10: IVNGANSENLYK(1)K | N10: IVNGANSENLYK(99.53)K(-99.53) | O10: 12 | P10: 2 | Q10: 746.39373 | R10: 0.92073 | T10: 15636000 | U10: 22425000 | V10: 24855000 | W10: 20972000 | X10: 10129000 | Z10: 3540500 | AA10: 6834750 | AB10: 3.068437031 | AC10: =_xlfn.T.TEST(T10:V10,X10:Z10,2,2) -> 0.0468439735 | AD10: Fatty acid synthase subunit alpha reductase
A11: >tr|G5EHG0|G5EHG0_MAGO7 Uncharacterized protein OS=Magnaporthe oryzae (strain 70-15 / ATCC MYA-4617 / FGSC 8958) GN=MGCH7_ch7g390 PE=4 SV=1;>tr|L7I014|L7I014_MAGOY Uncharacterized protein OS=Magnaporthe oryzae (strain Y34) GN=OOU_Y34scaffold00666g147 PE=4 SV=1;>tr|L7JM64|L7JM64_MAGOP Uncharacterized protein OS=Magnaporthe oryzae (strain P131) GN=OOW_P131scaffold00223g2 PE=4 SV=1 | B11: 40;40;40 | C11: EQAIIFRKLNSDSWSKPLTLAQYMEAGELLS | D11: >tr|G5EHG0|G5EHG0_MAGO7 Uncharacterized protein OS=Magnaporthe oryzae (strain 70-15 / ATCC MYA-4617 / FGSC 8958) GN=MGCH7_ch7g390 PE=4 SV=1 | E11: >tr|G5EHG0|G5EHG0_MAGO7 Uncharacterized protein OS=Magnaporthe oryzae (strain 70-15 / ATCC MYA-4617 / FGSC 8958) GN=MGCH7_ch7g390 PE=4 SV=1 | F11: >tr|G5EHG0|G5EHG0_MAGO7 Uncharacterized protein OS=Magnaporthe oryzae (strain 70-15 / ATCC MYA-4617 / FGSC 8958) GN=MGCH7_ch7g390 PE=4 SV=1;>tr|L7I014|L7I014_MAGOY Uncharacterized protein OS=Magnaporthe oryzae (strain Y34) GN=OOU_Y34scaffold00666g147 PE=4 | G11: + | H11: 1 | I11: K | J11: 68.934 | K11: _KLNSDSWSK(ac)PLTLAQYMEAGELLSHTELAR_ | L11: X;X;X;X;X;X;X;X;X;X;X;X;X;X;X;Acetyl (K);X;X;X;X;X;X;X;X;X;X;X;X;X;X;X | M11: K(0.039)LNSDSWSK(0.961)PLTLAQYMEAGELLSHTELAR | N11: K(-13.89)LNSDSWSK(13.89)PLTLAQYMEAGELLSHTELAR | O11: 9 | P11: 4 | Q11: 858.43824 | R11: -0.44682 | U11: 4619300 | V11: 4109300 | W11: 4364300 | Y11: 14109000 | Z11: 15637000 | AA11: 14873000 | AB11: 0.2934377731 | AC11: =_xlfn.T.TEST(T11:V11,X11:Z11,2,2) -> 0.005823091637 | AD11: MGCH7_ch7g390
A12: >tr|L7IKZ6|L7IKZ6_MAGOY Glyceraldehyde-3-phosphate dehydrogenase OS=Magnaporthe oryzae (strain Y34) GN=OOU_Y34scaffold00125g3 PE=3 SV=1;>tr|L7IWE7|L7IWE7_MAGOP Glyceraldehyde-3-phosphate dehydrogenase OS=Magnaporthe oryzae (strain P131) GN=OOW_P131scaffold01325g16 PE=3 SV=1;>tr|G4NCH2|G4NCH2_MAGO7 Glyceraldehyde-3-phosphate dehydrogenase OS=Magnaporthe oryzae (strain 70-15 / ATCC MYA-4617 / FGSC 8958) GN=MGG_01084 PE=3 SV=1 | B12: 125;125;105 | C12: AEYVVESTGVFTTTDKASAHLKGGAKKVIIS | D12: >tr|L7IKZ6|L7IKZ6_MAGOY Glyceraldehyde-3-phosphate dehydrogenase OS=Magnaporthe oryzae (strain Y34) GN=OOU_Y34scaffold00125g3 PE=3 SV=1 | E12: >tr|L7IKZ6|L7IKZ6_MAGOY Glyceraldehyde-3-phosphate dehydrogenase OS=Magnaporthe oryzae (strain Y34) GN=OOU_Y34scaffold00125g3 PE=3 SV=1 | F12: >tr|L7IKZ6|L7IKZ6_MAGOY Glyceraldehyde-3-phosphate dehydrogenase OS=Magnaporthe oryzae (strain Y34) GN=OOU_Y34scaffold00125g3 PE=3 SV=1;>tr|L7IWE7|L7IWE7_MAGOP Glyceraldehyde-3-phosphate dehydrogenase OS=Magnaporthe oryzae (strain P131) GN=OOW_P131scaffold | H12: 1 | I12: K | J12: 99.663 | K12: _FYTERDPANIPWSETGAEYVVESTGVFTTTDK(ac)ASAHLK_ | L12: X;X;X;X;X;X;X;X;X;X;X;X;X;X;X;Acetyl (K);X;X;X;X;X;Acetyl (K);X;X;X;X;X;X;X;X;X | M12: FYTERDPANIPWSETGAEYVVESTGVFTTTDK(1)ASAHLK | N12: FYTERDPANIPWSETGAEYVVESTGVFTTTDK(88.57)ASAHLK(-88.57) | O12: 32 | P12: 4 | Q12: 1065.7657 | R12: -0.99322 | T12: 18329000 | V12: 15309000 | W12: 16819000 | X12: 49464000 | Z12: 54978000 | AA12: 52221000 | AB12: 0.3220734953 | AC12: =_xlfn.T.TEST(T12:V12,X12:Z12,2,2) -> 0.00779206514 | AD12: Glyceraldehyde-3-phosphate dehydrogenase (GAPDH)
A13: >tr|G4MQB8|G4MQB8_MAGO7 Uncharacterized protein OS=Magnaporthe oryzae (strain 70-15 / ATCC MYA-4617 / FGSC 8958) GN=MGG_10619 PE=4 SV=1;>tr|L7I880|L7I880_MAGOY Uncharacterized protein OS=Magnaporthe oryzae (strain Y34) GN=OOU_Y34scaffold00498g22 PE=4 SV=1;>tr|L7IR84|L7IR84_MAGOP Uncharacterized protein OS=Magnaporthe oryzae (strain P131) GN=OOW_P131scaffold01697g22 PE=4 SV=1 | B13: 104;104;104 | C13: VQAKDAPSGDYWKDDKAKELSDYFWWEFTRR | D13: >tr|G4MQB8|G4MQB8_MAGO7 Uncharacterized protein OS=Magnaporthe oryzae (strain 70-15 / ATCC MYA-4617 / FGSC 8958) GN=MGG_10619 PE=4 SV=1 | E13: >tr|G4MQB8|G4MQB8_MAGO7 Uncharacterized protein OS=Magnaporthe oryzae (strain 70-15 / ATCC MYA-4617 / FGSC 8958) GN=MGG_10619 PE=4 SV=1 | F13: >tr|G4MQB8|G4MQB8_MAGO7 Uncharacterized protein OS=Magnaporthe oryzae (strain 70-15 / ATCC MYA-4617 / FGSC 8958) GN=MGG_10619 PE=4 SV=1;>tr|L7I880|L7I880_MAGOY Uncharacterized protein OS=Magnaporthe oryzae (strain Y34) GN=OOU_Y34scaffold00498g22 PE=4 SV=1; | G13: + | H13: 1 | I13: K | J13: 180.11 | K13: _DAPSGDYWKDDK(ac)AK_ | L13: X;X;X;X;X;X;X;X;X;X;X;X;X;X;X;Acetyl (K);X;X;X;X;X;X;X;X;X;X;X;X;X;X;X | M13: DAPSGDYWKDDK(1)AK | N13: DAPSGDYWK(-42.23)DDK(42.23)AK(-154.65) | O13: 12 | P13: 2 | Q13: 819.37573 | R13: -0.063988 | T13: 17611000 | U13: 10722000 | V13: 16043000 | W13: 14792000 | X13: 27676000 | Y13: 26225000 | Z13: 35858000 | AA13: 29919666.67 | AB13: 0.4943905347 | AC13: =_xlfn.T.TEST(T13:V13,X13:Z13,2,2) -> 0.01435046404 | AD13: MGG_10619
A14: >tr|G4MQB8|G4MQB8_MAGO7 Uncharacterized protein OS=Magnaporthe oryzae (strain 70-15 / ATCC MYA-4617 / FGSC 8958) GN=MGG_10619 PE=4 SV=1;>tr|L7I880|L7I880_MAGOY Uncharacterized protein OS=Magnaporthe oryzae (strain Y34) GN=OOU_Y34scaffold00498g22 PE=4 SV=1;>tr|L7IR84|L7IR84_MAGOP Uncharacterized protein OS=Magnaporthe oryzae (strain P131) GN=OOW_P131scaffold01697g22 PE=4 SV=1 | B14: 101;101;101 | C14: PADVQAKDAPSGDYWKDDKAKELSDYFWWEF | D14: >tr|G4MQB8|G4MQB8_MAGO7 Uncharacterized protein OS=Magnaporthe oryzae (strain 70-15 / ATCC MYA-4617 / FGSC 8958) GN=MGG_10619 PE=4 SV=1 | E14: >tr|G4MQB8|G4MQB8_MAGO7 Uncharacterized protein OS=Magnaporthe oryzae (strain 70-15 / ATCC MYA-4617 / FGSC 8958) GN=MGG_10619 PE=4 SV=1 | F14: >tr|G4MQB8|G4MQB8_MAGO7 Uncharacterized protein OS=Magnaporthe oryzae (strain 70-15 / ATCC MYA-4617 / FGSC 8958) GN=MGG_10619 PE=4 SV=1;>tr|L7I880|L7I880_MAGOY Uncharacterized protein OS=Magnaporthe oryzae (strain Y34) GN=OOU_Y34scaffold00498g22 PE=4 SV=1; | G14: + | H14: 1 | I14: K | J14: 77.078 | K14: _DAPSGDYWK(ac)DDK_ | L14: X;X;X;X;X;X;X;X;X;X;X;X;X;X;X;Acetyl (K);X;X;X;X;X;X;X;X;X;X;X;X;X;X;X | M14: DAPSGDYWK(1)DDK | N14: DAPSGDYWK(57.8)DDK(-57.8) | O14: 9 | P14: 2 | Q14: 719.8097 | R14: 1.2339 | T14: 10059000 | U14: 7949300 | V14: 16433000 | W14: 11480433.33 | X14: 21148000 | Y14: 22496000 | Z14: 26426000 | AA14: 23356666.67 | AB14: 0.4915270444 | AC14: =_xlfn.T.TEST(T14:V14,X14:Z14,2,2) -> 0.01672444308 | AD14: MGG_10619
A15: >tr|G4ML75|G4ML75_MAGO7 5-methyltetrahydropteroyltriglutamate-homocysteine S-methyltransferase OS=Magnaporthe oryzae (strain 70-15 / ATCC MYA-4617 / FGSC 8958) GN=MGG_06712 PE=3 SV=1;>tr|L7I6D4|L7I6D4_MAGOY Cobalamin-independent synthase OS=Magnaporthe oryzae (strain Y34) GN=OOU_Y34scaffold00534g1 PE=3 SV=1;>tr|L7JLU1|L7JLU1_MAGOP Cobalamin-independent synthase OS=Magnaporthe oryzae (strain P131) GN=OOW_P131scaffold00177g1 PE=3 SV=1 | B15: 685;685;685 | C15: DVLSIENSKSDAKLLKVFVDSAYPRHIGPGV | D15: >tr|G4ML75|G4ML75_MAGO7 5-methyltetrahydropteroyltriglutamate-homocysteine S-methyltransferase OS=Magnaporthe oryzae (strain 70-15 / ATCC MYA-4617 / FGSC 8958) GN=MGG_06712 PE=3 SV=1 | E15: >tr|G4ML75|G4ML75_MAGO7 5-methyltetrahydropteroyltriglutamate-homocysteine S-methyltransferase OS=Magnaporthe oryzae (strain 70-15 / ATCC MYA-4617 / FGSC 8958) GN=MGG_06712 PE=3 SV=1 | F15: >tr|G4ML75|G4ML75_MAGO7 5-methyltetrahydropteroyltriglutamate-homocysteine S-methyltransferase OS=Magnaporthe oryzae (strain 70-15 / ATCC MYA-4617 / FGSC 8958) GN=MGG_06712 PE=3 SV=1;>tr|L7I6D4|L7I6D4_MAGOY Cobalamin-independent synthase OS=Magnaporthe ory | G15: + | H15: 1 | I15: K | J15: 78.324 | K15: _LLK(ac)VFVDSAYPR_ | L15: X;X;X;X;X;X;X;X;X;X;X;X;X;X;X;Acetyl (K);X;X;X;X;X;X;X;X;X;X;X;X;X;X;X | M15: LLK(1)VFVDSAYPR | N15: LLK(73.47)VFVDSAYPR | O15: 3 | P15: 2 | Q15: 725.40865 | R15: 2.1662 | T15: 3291800 | U15: 3856000 | V15: 2390900 | W15: 3179566.667 | X15: 6418500 | Z15: 8486400 | AA15: 7452450 | AB15: 0.4266471652 | AC15: =_xlfn.T.TEST(T15:V15,X15:Z15,2,2) -> 0.02035877405 | AD15: MGG_06712
A16: >tr|G4NHF4|G4NHF4_MAGO7 Alpha,alpha-trehalose-phosphate synthase (UDP-forming) OS=Magnaporthe oryzae (strain 70-15 / ATCC MYA-4617 / FGSC 8958) GN=MGG_03860 PE=3 SV=1;>tr|L7IAU6|L7IAU6_MAGOY Alpha,alpha-trehalose-phosphate synthase (UDP-forming) OS=Magnaporthe oryzae (strain Y34) GN=OOU_Y34scaffold00487g17 PE=3 SV=1;>tr|L7IW45|L7IW45_MAGOP Alpha,alpha-trehalose-phosphate synthase (UDP-forming) OS=Magnaporthe oryzae (strain P131) GN=OOW_P131scaffold01331g25 PE=3 SV=1 | B16: 257;257;257 | C16: RFVTVGAFPIGIDPEKFVEGLQKPKVQQRIA | D16: >tr|G4NHF4|G4NHF4_MAGO7 Alpha,alpha-trehalose-phosphate synthase (UDP-forming) OS=Magnaporthe oryzae (strain 70-15 / ATCC MYA-4617 / FGSC 8958) GN=MGG_03860 PE=3 SV=1 | E16: >tr|G4NHF4|G4NHF4_MAGO7 Alpha,alpha-trehalose-phosphate synthase (UDP-forming) OS=Magnaporthe oryzae (strain 70-15 / ATCC MYA-4617 / FGSC 8958) GN=MGG_03860 PE=3 SV=1 | F16: >tr|G4NHF4|G4NHF4_MAGO7 Alpha,alpha-trehalose-phosphate synthase (UDP-forming) OS=Magnaporthe oryzae (strain 70-15 / ATCC MYA-4617 / FGSC 8958) GN=MGG_03860 PE=3 SV=1;>tr|L7IAU6|L7IAU6_MAGOY Alpha,alpha-trehalose-phosphate synthase (UDP-forming) OS=Magnapo | G16: + | H16: 1 | I16: K | J16: 182.77 | K16: _FVTVGAFPIGIDPEK(ac)FVEGLQKPK_ | L16: X;X;X;X;X;X;X;X;X;X;X;X;X;X;X;Acetyl (K);X;X;X;X;X;X;X;X;X;X;X;X;X;X;X | M16: FVTVGAFPIGIDPEK(1)FVEGLQKPK | N16: FVTVGAFPIGIDPEK(35.06)FVEGLQK(-35.06)PK(-162.86) | O16: 15 | P16: 3 | Q16: 886.8229 | R16: 0.5282 | T16: 67001000 | V16: 96346000 | W16: 81673500 | X16: 246220000 | Y16: 247550000 | Z16: 345880000 | AA16: 279883333.3 | AB16: 0.29181266 | AC16: =_xlfn.T.TEST(T16:V16,X16:Z16,2,2) -> 0.02041319546 | AD16: MGG_03860
A17: >tr|G4MKB4|G4MKB4_MAGO7 Juvenile hormone epoxide hydrolase 2 OS=Magnaporthe oryzae (strain 70-15 / ATCC MYA-4617 / FGSC 8958) GN=MGG_02509 PE=4 SV=1;>tr|L7JFJ5|L7JFJ5_MAGOP Juvenile hormone epoxide hydrolase 2 OS=Magnaporthe oryzae (strain P131) GN=OOW_P131scaffold00343g2 PE=4 SV=1 | B17: 19;23 | C17: EVRPFKIAVPEGELTKLKCKLNAASFPPDTA | D17: >tr|G4MKB4|G4MKB4_MAGO7 Juvenile hormone epoxide hydrolase 2 OS=Magnaporthe oryzae (strain 70-15 / ATCC MYA-4617 / FGSC 8958) GN=MGG_02509 PE=4 SV=1 | E17: >tr|G4MKB4|G4MKB4_MAGO7 Juvenile hormone epoxide hydrolase 2 OS=Magnaporthe oryzae (strain 70-15 / ATCC MYA-4617 / FGSC 8958) GN=MGG_02509 PE=4 SV=1 | F17: >tr|G4MKB4|G4MKB4_MAGO7 Juvenile hormone epoxide hydrolase 2 OS=Magnaporthe oryzae (strain 70-15 / ATCC MYA-4617 / FGSC 8958) GN=MGG_02509 PE=4 SV=1;>tr|L7JFJ5|L7JFJ5_MAGOP Juvenile hormone epoxide hydrolase 2 OS=Magnaporthe oryzae (strain P131) GN=OOW_P13 | G17: + | H17: 1 | I17: K | J17: 67.519 | K17: _IAVPEGELTK(ac)LK_ | L17: X;X;X;X;X;X;X;X;X;X;X;X;X;X;X;Acetyl (K);X;X;X;X;X;X;X;X;X;X;X;X;X;X;X | M17: IAVPEGELTK(1)LK | N17: IAVPEGELTK(67.52)LK(-67.52) | O17: 10 | P17: 2 | Q17: 670.39521 | R17: -0.86064 | U17: 1984700 | V17: 3695100 | W17: 2839900 | X17: 7356000 | Z17: 7434900 | AA17: 7395450 | AB17: 0.3840063823 | AC17: =_xlfn.T.TEST(T17:V17,X17:Z17,2,2) -> 0.03354928516 | AD17: MGG_02509
A18: >tr|G4NAD9|G4NAD9_MAGO7 1,4-alpha-glucan-branching enzyme OS=Magnaporthe oryzae (strain 70-15 / ATCC MYA-4617 / FGSC 8958) GN=MGG_03186 PE=4 SV=1;>tr|L7IJK7|L7IJK7_MAGOY 1,4-alpha-glucan-branching enzyme OS=Magnaporthe oryzae (strain Y34) GN=OOU_Y34scaffold00155g9 PE=4 SV=1;>tr|L7IZ23|L7IZ23_MAGOP 1,4-alpha-glucan-branching enzyme OS=Magnaporthe oryzae (strain P131) GN=OOW_P131scaffold01199g39 PE=4 SV=1 | B18: 648;648;648 | C18: VDVSGTYKVALTTDDKEFGGHGRIDSSTRFF | D18: >tr|G4NAD9|G4NAD9_MAGO7 1,4-alpha-glucan-branching enzyme OS=Magnaporthe oryzae (strain 70-15 / ATCC MYA-4617 / FGSC 8958) GN=MGG_03186 PE=4 SV=1 | E18: >tr|G4NAD9|G4NAD9_MAGO7 1,4-alpha-glucan-branching enzyme OS=Magnaporthe oryzae (strain 70-15 / ATCC MYA-4617 / FGSC 8958) GN=MGG_03186 PE=4 SV=1 | F18: >tr|G4NAD9|G4NAD9_MAGO7 1,4-alpha-glucan-branching enzyme OS=Magnaporthe oryzae (strain 70-15 / ATCC MYA-4617 / FGSC 8958) GN=MGG_03186 PE=4 SV=1;>tr|L7IJK7|L7IJK7_MAGOY 1,4-alpha-glucan-branching enzyme OS=Magnaporthe oryzae (strain Y34) GN=OOU_Y34scaffol | G18: + | H18: 1 | I18: K | J18: 113.72 | K18: _VALTTDDK(ac)EFGGHGR_ | L18: X;X;X;X;X;X;X;X;X;X;X;X;X;X;X;Acetyl (K);X;X;X;X;X;X;X;X;X;X;X;X;X;X;X | M18: VALTTDDK(1)EFGGHGR | N18: VALTTDDK(97.8)EFGGHGR | O18: 8 | P18: 3 | Q18: 548.93739 | R18: 1.0458 | T18: 19977000 | V18: 18942000 | W18: 19459500 | X18: 10058000 | Y18: 9636800 | Z18: 11188000 | AA18: 10294266.67 | AB18: 1.890324064 | AC18: =_xlfn.T.TEST(T18:V18,X18:Z18,2,2) -> 0.001009785607
A19: >tr|L7I8S9|L7I8S9_MAGOY Vacuolar ATP synthase catalytic subunit A OS=Magnaporthe oryzae (strain Y34) GN=OOU_Y34scaffold00492g4 PE=3 SV=1;>tr|L7JK26|L7JK26_MAGOP Vacuolar ATP synthase catalytic subunit A OS=Magnaporthe oryzae (strain P131) GN=OOW_P131scaffold00264g4 PE=3 SV=1;>tr|G4MYA0|G4MYA0_MAGO7 V-type proton ATPase catalytic subunit A OS=Magnaporthe oryzae (strain 70-15 / ATCC MYA-4617 / FGSC 8958) GN=MGG_08087 PE=3 SV=1 | B19: 787;787;589 | C19: SLKFEVPTDGEEVICKKYEAIRNEMLEKFAS | D19: >tr|L7I8S9|L7I8S9_MAGOY Vacuolar ATP synthase catalytic subunit A OS=Magnaporthe oryzae (strain Y34) GN=OOU_Y34scaffold00492g4 PE=3 SV=1 | E19: >tr|L7I8S9|L7I8S9_MAGOY Vacuolar ATP synthase catalytic subunit A OS=Magnaporthe oryzae (strain Y34) GN=OOU_Y34scaffold00492g4 PE=3 SV=1 | F19: >tr|L7I8S9|L7I8S9_MAGOY Vacuolar ATP synthase catalytic subunit A OS=Magnaporthe oryzae (strain Y34) GN=OOU_Y34scaffold00492g4 PE=3 SV=1;>tr|L7JK26|L7JK26_MAGOP Vacuolar ATP synthase catalytic subunit A OS=Magnaporthe oryzae (strain P131) GN=OOW_P131scaffo | G19: + | H19: 1 | I19: K | J19: 77.776 | K19: _FEVPTDGEEVICK(ac)K_ | L19: X;X;X;X;X;X;X;X;X;X;X;X;X;X;X;Acetyl (K);X;X;X;X;X;X;X;X;X;X;X;X;X;X;X | M19: FEVPTDGEEVICK(1)K | N19: FEVPTDGEEVICK(58.07)K(-58.07) | O19: 13 | P19: 2 | Q19: 846.9111 | R19: -0.015825 | T19: 7613600 | U19: 7274400 | V19: 7330900 | W19: 7406300 | X19: 9780900 | Y19: 9405000 | Z19: 10322000 | AA19: 9835966.667 | AB19: 0.752981405 | AC19: =_xlfn.T.TEST(T19:V19,X19:Z19,2,2) -> 0.00105390522
A20: >tr|G4NIB2|G4NIB2_MAGO7 Uncharacterized protein OS=Magnaporthe oryzae (strain 70-15 / ATCC MYA-4617 / FGSC 8958) GN=MGG_10704 PE=4 SV=1;>tr|L7IK99|L7IK99_MAGOY Uncharacterized protein OS=Magnaporthe oryzae (strain Y34) GN=OOU_Y34scaffold00180g9 PE=4 SV=1;>tr|L7JB90|L7JB90_MAGOP Uncharacterized protein OS=Magnaporthe oryzae (strain P131) GN=OOW_P131scaffold00489g11 PE=4 SV=1 | B20: 50;50;50 | C20: IFPQHLQQPGVDAQAKWRAWRKTCRLQDDPN | D20: >tr|G4NIB2|G4NIB2_MAGO7 Uncharacterized protein OS=Magnaporthe oryzae (strain 70-15 / ATCC MYA-4617 / FGSC 8958) GN=MGG_10704 PE=4 SV=1 | E20: >tr|G4NIB2|G4NIB2_MAGO7 Uncharacterized protein OS=Magnaporthe oryzae (strain 70-15 / ATCC MYA-4617 / FGSC 8958) GN=MGG_10704 PE=4 SV=1 | F20: >tr|G4NIB2|G4NIB2_MAGO7 Uncharacterized protein OS=Magnaporthe oryzae (strain 70-15 / ATCC MYA-4617 / FGSC 8958) GN=MGG_10704 PE=4 SV=1;>tr|L7IK99|L7IK99_MAGOY Uncharacterized protein OS=Magnaporthe oryzae (strain Y34) GN=OOU_Y34scaffold00180g9 PE=4 SV=1;> | G20: + | H20: 1 | I20: K | J20: 268.21 | K20: _RIFPQHLQQPGVDAQAK(ac)WR_ | L20: X;X;X;X;X;X;X;X;X;X;X;X;X;X;X;Acetyl (K);X;X;X;X;X;X;X;X;X;X;X;X;X;X;X | M20: RIFPQHLQQPGVDAQAK(1)WR | N20: RIFPQHLQQPGVDAQAK(175.69)WR | O20: 17 | P20: 3 | Q20: 773.08193 | R20: -0.17654 | T20: 987930000 | U20: 847570000 | V20: 829510000 | W20: 888336666.7 | X20: 1385300000 | Y20: 1343700000 | Z20: 1308300000 | AA20: 1345766667 | AB20: 0.6600970946 | AC20: =_xlfn.T.TEST(T20:V20,X20:Z20,2,2) -> 0.001125245315
A21: >tr|G4NLC8|G4NLC8_MAGO7 40S ribosomal protein S9 OS=Magnaporthe oryzae (strain 70-15 / ATCC MYA-4617 / FGSC 8958) GN=MGG_02952 PE=3 SV=1;>tr|L7I5L4|L7I5L4_MAGOY 40S ribosomal protein S9 OS=Magnaporthe oryzae (strain Y34) GN=OOU_Y34scaffold00575g2 PE=4 SV=1;>tr|L7JE22|L7JE22_MAGOP 40S ribosomal protein S9 OS=Magnaporthe oryzae (strain P131) GN=OOW_P131scaffold00388g7 PE=4 SV=1;>tr|Q2KFG1|Q2KFG1_MAGO7 Putative uncharacterized protein OS=Magnaporthe oryzae (strain 70-15 / ATCC MYA-4617 / FGSC 8958) GN=MGCH7_ch7g725 PE=4 SV=1 | B21: 118;107;107;107 | C21: LERRLQTCVYKLGLAKSIHHARVLIRQRHIR | D21: >tr|G4NLC8|G4NLC8_MAGO7 40S ribosomal protein S9 OS=Magnaporthe oryzae (strain 70-15 / ATCC MYA-4617 / FGSC 8958) GN=MGG_02952 PE=3 SV=1 | E21: >tr|G4NLC8|G4NLC8_MAGO7 40S ribosomal protein S9 OS=Magnaporthe oryzae (strain 70-15 / ATCC MYA-4617 / FGSC 8958) GN=MGG_02952 PE=3 SV=1 | F21: >tr|G4NLC8|G4NLC8_MAGO7 40S ribosomal protein S9 OS=Magnaporthe oryzae (strain 70-15 / ATCC MYA-4617 / FGSC 8958) GN=MGG_02952 PE=3 SV=1;>tr|L7I5L4|L7I5L4_MAGOY 40S ribosomal protein S9 OS=Magnaporthe oryzae (strain Y34) GN=OOU_Y34scaffold00575g2 PE=4 SV=1 | G21: + | H21: 1 | I21: K | J21: 95.618 | K21: _LGLAK(ac)SIHHAR_ | L21: X;X;X;X;X;X;X;X;X;X;X;X;X;X;X;Acetyl (K);X;X;X;X;X;X;X;X;X;X;X;X;X;X;X | M21: LGLAK(1)SIHHAR | N21: LGLAK(78.55)SIHHAR | O21: 5 | P21: 2 | Q21: 622.86475 | R21: -0.069448 | T21: 33385000 | U21: 27785000 | V21: 30934000 | W21: 30701333.33 | X21: 54679000 | Z21: 54196000 | AA21: 54437500 | AB21: 0.5639739763 | AC21: =_xlfn.T.TEST(T21:V21,X21:Z21,2,2) -> 0.001485480048
A22: >tr|D4NXC5|D4NXC5_MAGOR Eukaryotic translation initiation factor 5A OS=Magnaporthe oryzae PE=2 SV=1;>tr|G4N4U7|G4N4U7_MAGO7 Eukaryotic translation initiation factor 5A OS=Magnaporthe oryzae (strain 70-15 / ATCC MYA-4617 / FGSC 8958) GN=MGG_16739 PE=3 SV=1;>tr|L7I9L1|L7I9L1_MAGOY Eukaryotic translation initiation factor 5A OS=Magnaporthe oryzae (strain Y34) GN=OOU_Y34scaffold00464g25 PE=3 SV=1;>tr|L7JEL2|L7JEL2_MAGOP Eukaryotic translation initiation factor 5A OS=Magnaporthe oryzae (strain P131) GN=OOW_P131scaffold00439g7 PE=3 SV=1 | B22: 50;50;50;50 | C22: VIKGRPCKIVDMSTSKTGKHGHAKVHLVAID | D22: >tr|D4NXC5|D4NXC5_MAGOR Eukaryotic translation initiation factor 5A OS=Magnaporthe oryzae PE=2 SV=1 | E22: >tr|D4NXC5|D4NXC5_MAGOR Eukaryotic translation initiation factor 5A OS=Magnaporthe oryzae PE=2 SV=1 | F22: >tr|D4NXC5|D4NXC5_MAGOR Eukaryotic translation initiation factor 5A OS=Magnaporthe oryzae PE=2 SV=1;>tr|G4N4U7|G4N4U7_MAGO7 Eukaryotic translation initiation factor 5A OS=Magnaporthe oryzae (strain 70-15 / ATCC MYA-4617 / FGSC 8958) GN=MGG_16739 PE=3 SV=1; | G22: + | H22: 1 | I22: K | J22: 131.43 | K22: _IVDMSTSK(ac)TGK_ | L22: X;X;Acetyl (K);X;X;X;X;X;X;X;X;X;X;X;X;Acetyl (K);X;X;X;X;X;X;X;X;X;X;X;X;X;X;X | M22: IVDMSTSK(1)TGK | N22: IVDMSTSK(85.84)TGK(-85.84) | O22: 8 | P22: 2 | Q22: 604.8132 | R22: -1.0096 | T22: 85054000 | U22: 90752000 | V22: 74327000 | W22: 83377666.67 | X22: 43558000 | Y22: 50746000 | Z22: 46558000 | AA22: 46954000 | AB22: 1.775730857 | AC22: =_xlfn.T.TEST(T22:V22,X22:Z22,2,2) -> 0.002261456546
A23: >tr|G4ML82|G4ML82_MAGO7 ATP-citrate synthase subunit 1 OS=Magnaporthe oryzae (strain 70-15 / ATCC MYA-4617 / FGSC 8958) GN=MGG_06719 PE=4 SV=1;>tr|L7JMC4|L7JMC4_MAGOP ATP-citrate synthase subunit 1 OS=Magnaporthe oryzae (strain P131) GN=OOW_P131scaffold00177g8 PE=4 SV=1;>tr|L7I5K1|L7I5K1_MAGOY ATP-citrate synthase subunit 1 OS=Magnaporthe oryzae (strain Y34) GN=OOU_Y34scaffold00534g8 PE=4 SV=1 | B23: 520;520;520 | C23: GLSPREFVDLMRKQNKLIPGIGHRVKSRNNP | D23: >tr|G4ML82|G4ML82_MAGO7 ATP-citrate synthase subunit 1 OS=Magnaporthe oryzae (strain 70-15 / ATCC MYA-4617 / FGSC 8958) GN=MGG_06719 PE=4 SV=1 | E23: >tr|G4ML82|G4ML82_MAGO7 ATP-citrate synthase subunit 1 OS=Magnaporthe oryzae (strain 70-15 / ATCC MYA-4617 / FGSC 8958) GN=MGG_06719 PE=4 SV=1 | F23: >tr|G4ML82|G4ML82_MAGO7 ATP-citrate synthase subunit 1 OS=Magnaporthe oryzae (strain 70-15 / ATCC MYA-4617 / FGSC 8958) GN=MGG_06719 PE=4 SV=1;>tr|L7JMC4|L7JMC4_MAGOP ATP-citrate synthase subunit 1 OS=Magnaporthe oryzae (strain P131) GN=OOW_P131scaffold001 | G23: + | H23: 1 | I23: K | J23: 154.15 | K23: _QNK(ac)LIPGIGHR_ | L23: X;X;X;X;X;X;X;X;X;X;X;X;X;X;X;Acetyl (K);X;X;X;X;X;X;X;X;X;X;X;X;X;X;X | M23: QNK(1)LIPGIGHR | N23: QNK(113.93)LIPGIGHR | O23: 3 | P23: 2 | Q23: 637.87003 | R23: 0.41669 | T23: 138650000 | U23: 155020000 | V23: 147000000 | W23: 146890000 | X23: 99894000 | Y23: 102080000 | Z23: 80242000 | AA23: 94072000 | AB23: 1.56146356 | AC23: =_xlfn.T.TEST(T23:V23,X23:Z23,2,2) -> 0.003266834581
A24: >tr|L7IKZ6|L7IKZ6_MAGOY Glyceraldehyde-3-phosphate dehydrogenase OS=Magnaporthe oryzae (strain Y34) GN=OOU_Y34scaffold00125g3 PE=3 SV=1;>tr|L7IWE7|L7IWE7_MAGOP Glyceraldehyde-3-phosphate dehydrogenase OS=Magnaporthe oryzae (strain P131) GN=OOW_P131scaffold01325g16 PE=3 SV=1;>tr|G4NCH2|G4NCH2_MAGO7 Glyceraldehyde-3-phosphate dehydrogenase OS=Magnaporthe oryzae (strain 70-15 / ATCC MYA-4617 / FGSC 8958) GN=MGG_01084 PE=3 SV=1 | B24: 237;237;217 | C24: QNIIPSSTGAAKAVGKVIPALNGKLTGMSMR | D24: >tr|L7IKZ6|L7IKZ6_MAGOY Glyceraldehyde-3-phosphate dehydrogenase OS=Magnaporthe oryzae (strain Y34) GN=OOU_Y34scaffold00125g3 PE=3 SV=1 | E24: >tr|L7IKZ6|L7IKZ6_MAGOY Glyceraldehyde-3-phosphate dehydrogenase OS=Magnaporthe oryzae (strain Y34) GN=OOU_Y34scaffold00125g3 PE=3 SV=1 | F24: >tr|L7IKZ6|L7IKZ6_MAGOY Glyceraldehyde-3-phosphate dehydrogenase OS=Magnaporthe oryzae (strain Y34) GN=OOU_Y34scaffold00125g3 PE=3 SV=1;>tr|L7IWE7|L7IWE7_MAGOP Glyceraldehyde-3-phosphate dehydrogenase OS=Magnaporthe oryzae (strain P131) GN=OOW_P131scaffold | G24: + | H24: 1 | I24: K | J24: 110.86 | K24: _AVGK(ac)VIPALNGK_ | L24: X;X;X;X;X;X;X;X;X;X;X;X;X;X;X;Acetyl (K);X;X;X;X;X;X;X;Acetyl (K);X;X;X;X;X;X;X | M24: AVGK(1)VIPALNGK | N24: AVGK(67.38)VIPALNGK(-67.38) | O24: 4 | P24: 2 | Q24: 604.87171 | R24: -1.3656 | T24: 11818000 | V24: 12589000 | W24: 12203500 | X24: 8236100 | Y24: 7371500 | Z24: 6658700 | AA24: 7422100 | AB24: 1.644211207 | AC24: =_xlfn.T.TEST(T24:V24,X24:Z24,2,2) -> 0.005311410905
A25: >tr|L7INF4|L7INF4_MAGOY Valyl-tRNA synthetase OS=Magnaporthe oryzae (strain Y34) GN=OOU_Y34scaffold00058g12 PE=3 SV=1;>tr|L7J0N1|L7J0N1_MAGOP Valyl-tRNA synthetase OS=Magnaporthe oryzae (strain P131) GN=OOW_P131scaffold01159g29 PE=3 SV=1;>tr|G4MKM5|G4MKM5_MAGO7 Valyl-tRNA synthetase OS=Magnaporthe oryzae (strain 70-15 / ATCC MYA-4617 / FGSC 8958) GN=MGG_04396 PE=3 SV=1 | B25: 635;635;542 | C25: AVEDGSIKIRPQSSEKSFKHWMRNIQDWCIS | D25: >tr|L7INF4|L7INF4_MAGOY Valyl-tRNA synthetase OS=Magnaporthe oryzae (strain Y34) GN=OOU_Y34scaffold00058g12 PE=3 SV=1 | E25: >tr|L7INF4|L7INF4_MAGOY Valyl-tRNA synthetase OS=Magnaporthe oryzae (strain Y34) GN=OOU_Y34scaffold00058g12 PE=3 SV=1 | F25: >tr|L7INF4|L7INF4_MAGOY Valyl-tRNA synthetase OS=Magnaporthe oryzae (strain Y34) GN=OOU_Y34scaffold00058g12 PE=3 SV=1;>tr|L7J0N1|L7J0N1_MAGOP Valyl-tRNA synthetase OS=Magnaporthe oryzae (strain P131) GN=OOW_P131scaffold01159g29 PE=3 SV=1;>tr|G4MKM5|G4MKM5_ | G25: + | H25: 1 | I25: K | J25: 126.76 | K25: _IRPQSSEK(ac)SFK_ | L25: X;X;X;X;X;X;X;X;X;X;X;X;X;X;X;Acetyl (K);X;X;X;X;X;X;X;X;X;X;X;X;X;X;X | M25: IRPQSSEK(1)SFK | N25: IRPQSSEK(103.88)SFK(-103.88) | O25: 8 | P25: 2 | Q25: 674.86461 | R25: -0.26589 | T25: 31766000 | U25: 29522000 | V25: 30992000 | W25: 30760000 | X25: 21570000 | Y25: 13526000 | Z25: 14718000 | AA25: 16604666.67 | AB25: 1.852491268 | AC25: =_xlfn.T.TEST(T25:V25,X25:Z25,2,2) -> 0.005461146743
A26: >tr|L7HUT5|L7HUT5_MAGOY Translationally controlled tumor protein OS=Magnaporthe oryzae (strain Y34) GN=OOU_Y34scaffold00748g14 PE=4 SV=1;>tr|D4NXD4|D4NXD4_MAGOR Translationally controlled tumor protein OS=Magnaporthe oryzae PE=2 SV=1;>tr|G4N8H7|G4N8H7_MAGO7 Translationally controlled tumor protein OS=Magnaporthe oryzae (strain 70-15 / ATCC MYA-4617 / FGSC 8958) GN=MGG_06249 PE=4 SV=1;>tr|L7JSG9|L7JSG9_MAGOP Translationally controlled tumor protein OS=Magnaporthe oryzae (strain P131) GN=OOW_P131scaffold00027g6 PE=4 SV=1;>tr|S5FHL9|S5FHL9_MAGOR Translationally controlled tumor protein-like protein OS=Magnaporthe oryzae GN=TCTP PE=2 SV=1 | B26: 129;122;122;122;122 | C26: DVKAWEKKAGDYVKNKLLPNFKDFEFYIGEE | D26: >tr|L7HUT5|L7HUT5_MAGOY Translationally controlled tumor protein OS=Magnaporthe oryzae (strain Y34) GN=OOU_Y34scaffold00748g14 PE=4 SV=1 | E26: >tr|L7HUT5|L7HUT5_MAGOY Translationally controlled tumor protein OS=Magnaporthe oryzae (strain Y34) GN=OOU_Y34scaffold00748g14 PE=4 SV=1 | F26: >tr|L7HUT5|L7HUT5_MAGOY Translationally controlled tumor protein OS=Magnaporthe oryzae (strain Y34) GN=OOU_Y34scaffold00748g14 PE=4 SV=1;>tr|D4NXD4|D4NXD4_MAGOR Translationally controlled tumor protein OS=Magnaporthe oryzae PE=2 SV=1;>tr|G4N8H7|G4N8H7_MAGO | G26: + | H26: 1 | I26: K | J26: 98.009 | K26: _NK(ac)LLPNFK_ | L26: X;X;Acetyl (K);X;X;X;X;X;X;X;X;X;X;X;X;Acetyl (K);X;X;X;X;X;X;X;X;X;X;X;X;X;X;X | M26: NK(1)LLPNFK | N26: NK(93.99)LLPNFK(-93.99) | O26: 2 | P26: 2 | Q26: 508.30038 | R26: -0.81427 | U26: 10503000 | V26: 10753000 | W26: 10628000 | X26: 8075500 | Y26: 8713900 | Z26: 8741400 | AA26: 8510266.667 | AB26: 1.248844533 | AC26: =_xlfn.T.TEST(T26:V26,X26:Z26,2,2) -> 0.005616877145
A27: >tr|G4NJF8|G4NJF8_MAGO7 ATP synthase subunit D OS=Magnaporthe oryzae (strain 70-15 / ATCC MYA-4617 / FGSC 8958) GN=MGG_18003 PE=4 SV=1;>tr|Q2KGE3|Q2KGE3_MAGO7 Nascent polypeptide-associated complex subunit beta OS=Magnaporthe oryzae (strain 70-15 / ATCC MYA-4617 / FGSC 8958) GN=MGCH7_ch7g392 PE=3 SV=1;>tr|L7JKQ2|L7JKQ2_MAGOP Uncharacterized protein OS=Magnaporthe oryzae (strain P131) GN=OOW_P131scaffold00223g5 PE=4 SV=1;>tr|L7HZ78|L7HZ78_MAGOY Uncharacterized protein OS=Magnaporthe oryzae (strain Y34) GN=OOU_Y34scaffold00666g144 PE=4 SV=1 | B27: 148;342;148;148 | C27: LTVDEVAAAEPSIDEKTAKLVSKGRWQVPGY | D27: >tr|G4NJF8|G4NJF8_MAGO7 ATP synthase subunit D OS=Magnaporthe oryzae (strain 70-15 / ATCC MYA-4617 / FGSC 8958) GN=MGG_18003 PE=4 SV=1;>tr|Q2KGE3|Q2KGE3_MAGO7 Nascent polypeptide-associated complex subunit beta OS=Magnaporthe oryzae (strain 70-15 / ATCC MYA-4617 / FGSC 8958) GN=MGCH7_ch7g392 PE=3 SV=1 | E27: >tr|Q2KGE3|Q2KGE3_MAGO7 Nascent polypeptide-associated complex subunit beta OS=Magnaporthe oryzae (strain 70-15 / ATCC MYA-4617 / FGSC 8958) GN=MGCH7_ch7g392 PE=3 SV=1 | F27: >tr|G4NJF8|G4NJF8_MAGO7 ATP synthase subunit D OS=Magnaporthe oryzae (strain 70-15 / ATCC MYA-4617 / FGSC 8958) GN=MGG_18003 PE=4 SV=1;>tr|Q2KGE3|Q2KGE3_MAGO7 Nascent polypeptide-associated complex subunit beta OS=Magnaporthe oryzae (strain 70-15 / ATCC MY | G27: + | H27: 1 | I27: K | J27: 118.61 | K27: _TLENIETARPFEDLTVDEVAAAEPSIDEK(ac)TAK_ | L27: X;X;X;X;X;X;X;X;X;X;X;X;X;X;X;Acetyl (K);X;X;X;X;X;X;X;X;X;X;X;X;X;X;X | M27: TLENIETARPFEDLTVDEVAAAEPSIDEK(1)TAK | N27: TLENIETARPFEDLTVDEVAAAEPSIDEK(118.61)TAK(-118.61) | O27: 29 | P27: 3 | Q27: 1182.2562 | R27: 0.34884 | U27: 9016200 | V27: 9649400 | W27: 9332800 | X27: 16360000 | Z27: 17325000 | AA27: 16842500 | AB27: 0.5541220128 | AC27: =_xlfn.T.TEST(T27:V27,X27:Z27,2,2) -> 0.005853655918
A28: >tr|G4MUP6|G4MUP6_MAGO7 Bromodomain containing 1 OS=Magnaporthe oryzae (strain 70-15 / ATCC MYA-4617 / FGSC 8958) GN=MGG_10196 PE=4 SV=1;>tr|L7IPD3|L7IPD3_MAGOY NuA3 HAT complex component NTO1 OS=Magnaporthe oryzae (strain Y34) GN=OOU_Y34scaffold00087g10 PE=4 SV=1;>tr|L7JND2|L7JND2_MAGOP NuA3 HAT complex component NTO1 OS=Magnaporthe oryzae (strain P131) GN=OOW_P131scaffold00195g17 PE=4 SV=1 | B28: 88;88;88 | C28: SAPRPRAAAGTPSTGKPRRSLAAGSTAVYPR | D28: >tr|G4MUP6|G4MUP6_MAGO7 Bromodomain containing 1 OS=Magnaporthe oryzae (strain 70-15 / ATCC MYA-4617 / FGSC 8958) GN=MGG_10196 PE=4 SV=1 | E28: >tr|G4MUP6|G4MUP6_MAGO7 Bromodomain containing 1 OS=Magnaporthe oryzae (strain 70-15 / ATCC MYA-4617 / FGSC 8958) GN=MGG_10196 PE=4 SV=1 | F28: >tr|G4MUP6|G4MUP6_MAGO7 Bromodomain containing 1 OS=Magnaporthe oryzae (strain 70-15 / ATCC MYA-4617 / FGSC 8958) GN=MGG_10196 PE=4 SV=1;>tr|L7IPD3|L7IPD3_MAGOY NuA3 HAT complex component NTO1 OS=Magnaporthe oryzae (strain Y34) GN=OOU_Y34scaffold00087g10 P | G28: + | H28: 1 | I28: K | J28: 165.66 | K28: _AAAGTPSTGK(ac)PR_ | L28: X;X;X;X;X;X;X;X;X;X;X;X;X;X;X;Acetyl (K);X;X;X;X;X;X;X;X;X;X;X;X;X;X;X | M28: AAAGTPSTGK(1)PR | N28: AAAGTPSTGK(165.66)PR | O28: 10 | P28: 2 | Q28: 578.30947 | R28: 0.23236 | T28: 72934000 | U28: 70802000 | V28: 86507000 | W28: 76747666.67 | X28: 116680000 | Y28: 120510000 | Z28: 103660000 | AA28: 113616666.7 | AB28: 0.6754965527 | AC28: =_xlfn.T.TEST(T28:V28,X28:Z28,2,2) -> 0.006498884753
A29: >tr|G4MLM8|G4MLM8_MAGO7 Heat shock protein 90 OS=Magnaporthe oryzae (strain 70-15 / ATCC MYA-4617 / FGSC 8958) GN=MGG_06759 PE=3 SV=1;>tr|L7I7P6|L7I7P6_MAGOY Heat shock protein 80 OS=Magnaporthe oryzae (strain Y34) GN=OOU_Y34scaffold00534g52 PE=3 SV=1;>tr|L7JM28|L7JM28_MAGOP Heat shock protein 80 OS=Magnaporthe oryzae (strain P131) GN=OOW_P131scaffold00177g52 PE=3 SV=1 | B29: 69;69;69 | C29: KLDSGKDLRIDIIPDKANKTLTIKDTGIGMT | D29: >tr|G4MLM8|G4MLM8_MAGO7 Heat shock protein 90 OS=Magnaporthe oryzae (strain 70-15 / ATCC MYA-4617 / FGSC 8958) GN=MGG_06759 PE=3 SV=1 | E29: >tr|G4MLM8|G4MLM8_MAGO7 Heat shock protein 90 OS=Magnaporthe oryzae (strain 70-15 / ATCC MYA-4617 / FGSC 8958) GN=MGG_06759 PE=3 SV=1 | F29: >tr|G4MLM8|G4MLM8_MAGO7 Heat shock protein 90 OS=Magnaporthe oryzae (strain 70-15 / ATCC MYA-4617 / FGSC 8958) GN=MGG_06759 PE=3 SV=1;>tr|L7I7P6|L7I7P6_MAGOY Heat shock protein 80 OS=Magnaporthe oryzae (strain Y34) GN=OOU_Y34scaffold00534g52 PE=3 SV=1;>tr| | G29: + | H29: 1 | I29: K | J29: 68.786 | K29: _IDIIPDK(ac)ANK_ | L29: X;X;X;X;X;X;X;X;X;X;X;X;X;X;X;Acetyl (K);X;X;X;X;X;X;X;X;X;X;X;X;X;X;X | M29: IDIIPDK(1)ANK | N29: IDIIPDK(68.79)ANK(-68.79) | O29: 7 | P29: 2 | Q29: 584.83225 | R29: 0.65733 | T29: 21460000 | U29: 21637000 | V29: 23080000 | W29: 22059000 | X29: 11826000 | Y29: 16788000 | Z29: 14174000 | AA29: 14262666.67 | AB29: 1.546625222 | AC29: =_xlfn.T.TEST(T29:V29,X29:Z29,2,2) -> 0.006877121514
A30: >tr|L7I8Q4|L7I8Q4_MAGOY Glycerophosphoryl diester phosphodiesterase family protein OS=Magnaporthe oryzae (strain Y34) GN=OOU_Y34scaffold00492g48 PE=4 SV=1;>tr|L7IS80|L7IS80_MAGOP Glycerophosphoryl diester phosphodiesterase family protein OS=Magnaporthe oryzae (strain P131) GN=OOW_P131scaffold01519g15 PE=4 SV=1;>tr|G4MXQ5|G4MXQ5_MAGO7 Glycerophosphoryl diester phosphodiesterase OS=Magnaporthe oryzae (strain 70-15 / ATCC MYA-4617 / FGSC 8958) GN=MGG_08047 PE=4 SV=1 | B30: 254;254;214 | C30: YSNECAKVLTHKESIKLIDSLGLKFTPELKT | D30: >tr|L7I8Q4|L7I8Q4_MAGOY Glycerophosphoryl diester phosphodiesterase family protein OS=Magnaporthe oryzae (strain Y34) GN=OOU_Y34scaffold00492g48 PE=4 SV=1 | E30: >tr|L7I8Q4|L7I8Q4_MAGOY Glycerophosphoryl diester phosphodiesterase family protein OS=Magnaporthe oryzae (strain Y34) GN=OOU_Y34scaffold00492g48 PE=4 SV=1 | F30: >tr|L7I8Q4|L7I8Q4_MAGOY Glycerophosphoryl diester phosphodiesterase family protein OS=Magnaporthe oryzae (strain Y34) GN=OOU_Y34scaffold00492g48 PE=4 SV=1;>tr|L7IS80|L7IS80_MAGOP Glycerophosphoryl diester phosphodiesterase family protein OS=Magnaporthe ory | G30: + | H30: 1 | I30: K | J30: 123.95 | K30: _ESIK(ac)LIDSLGLK_ | L30: X;X;X;X;X;X;X;X;X;X;X;X;X;X;X;Acetyl (K);X;X;X;X;X;X;X;X;X;X;X;X;X;X;X | M30: ESIK(1)LIDSLGLK | N30: ESIK(62.89)LIDSLGLK(-62.89) | O30: 4 | P30: 2 | Q30: 679.40049 | R30: 0.30698 | T30: 13379000 | U30: 16145000 | V30: 14247000 | W30: 14590333.33 | X30: 21407000 | Y30: 23611000 | Z30: 19647000 | AA30: 21555000 | AB30: 0.6768885796 | AC30: =_xlfn.T.TEST(T30:V30,X30:Z30,2,2) -> 0.007777062628
A31: >tr|L7IHJ6|L7IHJ6_MAGOY Hydrophobin OS=Magnaporthe oryzae (strain Y34) GN=OOU_Y34scaffold00213g2 PE=4 SV=1;>tr|L7J2H5|L7J2H5_MAGOP Hydrophobin OS=Magnaporthe oryzae (strain P131) GN=OOW_P131scaffold01128g4 PE=4 SV=1;>sp|P52751|MPG1_MAGO7 Hydrophobin-like protein MPG1 OS=Magnaporthe oryzae (strain 70-15 / ATCC MYA-4617 / FGSC 8958) GN=MPG1 PE=3 SV=1;>tr|D4NXF2|D4NXF2_MAGOR MPG1 OS=Magnaporthe oryzae PE=2 SV=1;>tr|V5RCZ0|V5RCZ0_MAGOR Hydrophobin-like protein (Fragment) OS=Magnaporthe oryzae GN=MPG1 PE=4 SV=1;>tr|V5RDW0|V5RDW0_MAGOR Hydrophobin-like protein (Fragment) OS=Magnaporthe oryzae GN=MPG1 PE=4 SV=1 | B31: 48;48;48;48;48;48 | C31: QQKCGAEKVVSCCNSKELKNSKSGAEIPIDV | D31: >tr|L7IHJ6|L7IHJ6_MAGOY Hydrophobin OS=Magnaporthe oryzae (strain Y34) GN=OOU_Y34scaffold00213g2 PE=4 SV=1 | E31: >tr|L7IHJ6|L7IHJ6_MAGOY Hydrophobin OS=Magnaporthe oryzae (strain Y34) GN=OOU_Y34scaffold00213g2 PE=4 SV=1 | F31: >tr|L7IHJ6|L7IHJ6_MAGOY Hydrophobin OS=Magnaporthe oryzae (strain Y34) GN=OOU_Y34scaffold00213g2 PE=4 SV=1;>tr|L7J2H5|L7J2H5_MAGOP Hydrophobin OS=Magnaporthe oryzae (strain P131) GN=OOW_P131scaffold01128g4 PE=4 SV=1;>sp|P52751|MPG1_MAGO7 Hydrophobin-like p | G31: + | H31: 1 | I31: K | J31: 145.91 | K31: _VVSCCNSK(ac)ELK_ | L31: X;X;X;X;X;X;X;X;X;X;X;X;X;X;X;Acetyl (K);X;X;X;X;X;X;X;X;X;X;X;X;X;X;X | M31: VVSCCNSK(1)ELK | N31: VVSCCNSK(123.67)ELK(-123.67) | O31: 8 | P31: 2 | Q31: 683.32869 | R31: -0.79156 | T31: 40550000 | U31: 49834000 | V31: 45650000 | W31: 45344666.67 | X31: 79635000 | Y31: 94358000 | Z31: 65672000 | AA31: 79888333.33 | AB31: 0.5676006092 | AC31: =_xlfn.T.TEST(T31:V31,X31:Z31,2,2) -> 0.01656969178
A32: >tr|G4N1F2|G4N1F2_MAGO7 3-ketoacyl-CoA thiolase OS=Magnaporthe oryzae (strain 70-15 / ATCC MYA-4617 / FGSC 8958) GN=MGG_09512 PE=3 SV=1;>tr|L7I4R0|L7I4R0_MAGOY 3-ketoacyl-CoA thiolase OS=Magnaporthe oryzae (strain Y34) GN=OOU_Y34scaffold00548g15 PE=3 SV=1;>tr|L7JGW7|L7JGW7_MAGOP 3-ketoacyl-CoA thiolase OS=Magnaporthe oryzae (strain P131) GN=OOW_P131scaffold00321g11 PE=3 SV=1 | B32: 363;363;363 | C32: SQCLWCADELKIPHEKINPKGGAIAFGHPLG | D32: >tr|G4N1F2|G4N1F2_MAGO7 3-ketoacyl-CoA thiolase OS=Magnaporthe oryzae (strain 70-15 / ATCC MYA-4617 / FGSC 8958) GN=MGG_09512 PE=3 SV=1 | E32: >tr|G4N1F2|G4N1F2_MAGO7 3-ketoacyl-CoA thiolase OS=Magnaporthe oryzae (strain 70-15 / ATCC MYA-4617 / FGSC 8958) GN=MGG_09512 PE=3 SV=1 | F32: >tr|G4N1F2|G4N1F2_MAGO7 3-ketoacyl-CoA thiolase OS=Magnaporthe oryzae (strain 70-15 / ATCC MYA-4617 / FGSC 8958) GN=MGG_09512 PE=3 SV=1;>tr|L7I4R0|L7I4R0_MAGOY 3-ketoacyl-CoA thiolase OS=Magnaporthe oryzae (strain Y34) GN=OOU_Y34scaffold00548g15 PE=3 SV=1; | G32: + | H32: 1 | I32: K | J32: 75.197 | K32: _IPHEK(ac)INPK_ | L32: X;X;X;X;X;X;X;X;X;X;X;X;X;X;X;Acetyl (K);X;X;X;X;X;X;X;X;X;X;X;X;X;X;X | M32: IPHEK(1)INPK | N32: IPHEK(75.2)INPK(-75.2) | O32: 5 | P32: 2 | Q32: 559.32185 | R32: -1.0424 | U32: 11652000 | V32: 8908300 | W32: 10280150 | X32: 17158000 | Y32: 15282000 | Z32: 16426000 | AA32: 16288666.67 | AB32: 0.6311228666 | AC32: =_xlfn.T.TEST(T32:V32,X32:Z32,2,2) -> 0.01683921722
A33: >tr|A4R6R9|A4R6R9_MAGO7 60S ribosomal protein L13 OS=Magnaporthe oryzae (strain 70-15 / ATCC MYA-4617 / FGSC 8958) GN=MGG_13645 PE=3 SV=1;>tr|L7HWA1|L7HWA1_MAGOY 60S ribosomal protein L13 OS=Magnaporthe oryzae (strain Y34) GN=OOU_Y34scaffold00720g3 PE=3 SV=1;>tr|L7J8B3|L7J8B3_MAGOP 60S ribosomal protein L13 OS=Magnaporthe oryzae (strain P131) GN=OOW_P131scaffold00943g19 PE=3 SV=1 | B33: 138;138;138 | C33: LVVMPKKGKKPEVADKTAHKISAVVPIVPPV | D33: >tr|A4R6R9|A4R6R9_MAGO7 60S ribosomal protein L13 OS=Magnaporthe oryzae (strain 70-15 / ATCC MYA-4617 / FGSC 8958) GN=MGG_13645 PE=3 SV=1 | E33: >tr|A4R6R9|A4R6R9_MAGO7 60S ribosomal protein L13 OS=Magnaporthe oryzae (strain 70-15 / ATCC MYA-4617 / FGSC 8958) GN=MGG_13645 PE=3 SV=1 | F33: >tr|A4R6R9|A4R6R9_MAGO7 60S ribosomal protein L13 OS=Magnaporthe oryzae (strain 70-15 / ATCC MYA-4617 / FGSC 8958) GN=MGG_13645 PE=3 SV=1;>tr|L7HWA1|L7HWA1_MAGOY 60S ribosomal protein L13 OS=Magnaporthe oryzae (strain Y34) GN=OOU_Y34scaffold00720g3 PE=3 SV | G33: + | H33: 1 | I33: K | J33: 233.28 | K33: _KPEVADK(ac)TAHK_ | L33: X;X;X;X;X;X;X;X;X;X;X;X;X;X;X;Acetyl (K);X;X;X;Acetyl (K);X;X;X;X;X;X;X;X;X;X;X | M33: KPEVADK(1)TAHK | N33: K(-89.11)PEVADK(89.11)TAHK(-144.92) | O33: 7 | P33: 3 | Q33: 422.56646 | R33: -0.22293 | T33: 310960000 | U33: 347250000 | V33: 348730000 | W33: 335646666.7 | X33: 273840000 | Y33: 197490000 | Z33: 238080000 | AA33: 236470000 | AB33: 1.419404858 | AC33: =_xlfn.T.TEST(T33:V33,X33:Z33,2,2) -> 0.0171972484
A34: >sp|A4QYM6|DRS1_MAGO7 ATP-dependent RNA helicase DRS1 OS=Magnaporthe oryzae (strain 70-15 / ATCC MYA-4617 / FGSC 8958) GN=DRS1 PE=3 SV=1;>tr|L7IGN0|L7IGN0_MAGOY ATP-dependent RNA helicase drs-1 OS=Magnaporthe oryzae (strain Y34) GN=OOU_Y34scaffold00257g17 PE=3 SV=1;>tr|L7J6D4|L7J6D4_MAGOP ATP-dependent RNA helicase drs-1 OS=Magnaporthe oryzae (strain P131) GN=OOW_P131scaffold00984g36 PE=3 SV=1 | B34: 466;466;466 | C34: RVGLNKPVRLMVDSQKKTVVTLTQEFVRLRP | D34: >sp|A4QYM6|DRS1_MAGO7 ATP-dependent RNA helicase DRS1 OS=Magnaporthe oryzae (strain 70-15 / ATCC MYA-4617 / FGSC 8958) GN=DRS1 PE=3 SV=1 | E34: >sp|A4QYM6|DRS1_MAGO7 ATP-dependent RNA helicase DRS1 OS=Magnaporthe oryzae (strain 70-15 / ATCC MYA-4617 / FGSC 8958) GN=DRS1 PE=3 SV=1 | F34: >sp|A4QYM6|DRS1_MAGO7 ATP-dependent RNA helicase DRS1 OS=Magnaporthe oryzae (strain 70-15 / ATCC MYA-4617 / FGSC 8958) GN=DRS1 PE=3 SV=1;>tr|L7IGN0|L7IGN0_MAGOY ATP-dependent RNA helicase drs-1 OS=Magnaporthe oryzae (strain Y34) GN=OOU_Y34scaffold00257g17 | G34: + | H34: 1 | I34: K | J34: 89.698 | K34: _LMVDSQK(ac)K_ | L34: X;X;X;X;X;X;X;X;X;X;X;X;X;X;X;Acetyl (K);X;X;X;X;X;X;X;X;X;X;X;X;X;X;X | M34: LMVDSQK(1)K | N34: LMVDSQK(58.23)K(-58.23) | O34: 7 | P34: 2 | Q34: 495.76806 | R34: -0.35742 | T34: 17261000 | U34: 15520000 | W34: 16390500 | X34: 10180000 | Z34: 10116000 | AA34: 10148000 | AB34: 1.615145842 | AC34: =_xlfn.T.TEST(T34:V34,X34:Z34,2,2) -> 0.01892095784
A35: >tr|G4N4N6|G4N4N6_MAGO7 S-(hydroxymethyl)glutathione dehydrogenase OS=Magnaporthe oryzae (strain 70-15 / ATCC MYA-4617 / FGSC 8958) GN=MGG_06011 PE=3 SV=1;>tr|L7I9U8|L7I9U8_MAGOY S-(hydroxymethyl)glutathione dehydrogenase OS=Magnaporthe oryzae (strain Y34) GN=OOU_Y34scaffold00464g17 PE=3 SV=1;>tr|L7JBT2|L7JBT2_MAGOP S-(hydroxymethyl)glutathione dehydrogenase OS=Magnaporthe oryzae (strain P131) GN=OOW_P131scaffold00463g17 PE=3 SV=1 | B35: 355;355;355 | C35: LQGRLKVDEFITHRKKLVEINNAFETMKQGD | D35: >tr|G4N4N6|G4N4N6_MAGO7 S-(hydroxymethyl)glutathione dehydrogenase OS=Magnaporthe oryzae (strain 70-15 / ATCC MYA-4617 / FGSC 8958) GN=MGG_06011 PE=3 SV=1 | E35: >tr|G4N4N6|G4N4N6_MAGO7 S-(hydroxymethyl)glutathione dehydrogenase OS=Magnaporthe oryzae (strain 70-15 / ATCC MYA-4617 / FGSC 8958) GN=MGG_06011 PE=3 SV=1 | F35: >tr|G4N4N6|G4N4N6_MAGO7 S-(hydroxymethyl)glutathione dehydrogenase OS=Magnaporthe oryzae (strain 70-15 / ATCC MYA-4617 / FGSC 8958) GN=MGG_06011 PE=3 SV=1;>tr|L7I9U8|L7I9U8_MAGOY S-(hydroxymethyl)glutathione dehydrogenase OS=Magnaporthe oryzae (strain Y34) | G35: + | H35: 1 | I35: K | J35: 99.991 | K35: _KK(ac)LVEINNAFETMK_ | L35: X;X;X;X;X;X;X;X;X;X;X;X;X;X;X;Acetyl (K);X;X;X;X;X;X;X;X;X;X;X;X;X;X;X | M35: K(0.11)K(0.89)LVEINNAFETMK | N35: K(-9.08)K(9.08)LVEINNAFETMK(-90.71) | O35: 2 | P35: 2 | Q35: 853.96092 | R35: 2.1739 | T35: 16399000 | U35: 21059000 | V35: 18337000 | W35: 18598333.33 | X35: 13391000 | Y35: 9719700 | Z35: 12686000 | AA35: 11932233.33 | AB35: 1.558663229 | AC35: =_xlfn.T.TEST(T35:V35,X35:Z35,2,2) -> 0.01925203545
A36: >tr|L7IA43|L7IA43_MAGOY Eukaryotic translation initiation factor 3 subunit I OS=Magnaporthe oryzae (strain Y34) GN=TIF34 PE=3 SV=1;>tr|L7J1D1|L7J1D1_MAGOP Eukaryotic translation initiation factor 3 subunit I OS=Magnaporthe oryzae (strain P131) GN=TIF34 PE=3 SV=1;>sp|A4RDD7|EIF3I_MAGO7 Eukaryotic translation initiation factor 3 subunit I OS=Magnaporthe oryzae (strain 70-15 / ATCC MYA-4617 / FGSC 8958) GN=TIF34 PE=3 SV=1 | B36: 123;123;114 | C36: VEFSPDGTRLLGVTEKRMGHLGTIVVLDVKL | D36: >tr|L7IA43|L7IA43_MAGOY Eukaryotic translation initiation factor 3 subunit I OS=Magnaporthe oryzae (strain Y34) GN=TIF34 PE=3 SV=1 | E36: >tr|L7IA43|L7IA43_MAGOY Eukaryotic translation initiation factor 3 subunit I OS=Magnaporthe oryzae (strain Y34) GN=TIF34 PE=3 SV=1 | F36: >tr|L7IA43|L7IA43_MAGOY Eukaryotic translation initiation factor 3 subunit I OS=Magnaporthe oryzae (strain Y34) GN=TIF34 PE=3 SV=1;>tr|L7J1D1|L7J1D1_MAGOP Eukaryotic translation initiation factor 3 subunit I OS=Magnaporthe oryzae (strain P131) GN=TIF34 PE= | G36: + | H36: 1 | I36: K | J36: 101.72 | K36: _LLGVTEK(ac)R_ | L36: X;X;X;X;X;X;X;X;X;X;X;X;X;X;X;Acetyl (K);X;X;X;X;X;X;X;X;X;X;X;X;X;X;X | M36: LLGVTEK(1)R | N36: LLGVTEK(87.64)R | O36: 7 | P36: 2 | Q36: 479.29002 | R36: -0.099829 | T36: 22244000 | U36: 22588000 | V36: 16130000 | W36: 20320666.67 | X36: 9724200 | Y36: 10944000 | Z36: 13425000 | AA36: 11364400 | AB36: 1.788098506 | AC36: =_xlfn.T.TEST(T36:V36,X36:Z36,2,2) -> 0.01927679846
A37: >tr|G4NDN8|G4NDN8_MAGO7 2,3-bisphosphoglycerate-independent phosphoglycerate mutase OS=Magnaporthe oryzae (strain 70-15 / ATCC MYA-4617 / FGSC 8958) GN=MGG_00901 PE=3 SV=1;>tr|L7IL20|L7IL20_MAGOY 2,3-bisphosphoglycerate-independent phosphoglycerate mutase OS=Magnaporthe oryzae (strain Y34) GN=OOU_Y34scaffold00126g88 PE=3 SV=1;>tr|L7JGE1|L7JGE1_MAGOP 2,3-bisphosphoglycerate-independent phosphoglycerate mutase OS=Magnaporthe oryzae (strain P131) GN=OOW_P131scaffold00345g57 PE=3 SV=1 | B37: 299;287;287 | C37: DFPYPKIKLATMTRYKLDYPFDVAFEPQKMG | D37: >tr|G4NDN8|G4NDN8_MAGO7 2,3-bisphosphoglycerate-independent phosphoglycerate mutase OS=Magnaporthe oryzae (strain 70-15 / ATCC MYA-4617 / FGSC 8958) GN=MGG_00901 PE=3 SV=1 | E37: >tr|G4NDN8|G4NDN8_MAGO7 2,3-bisphosphoglycerate-independent phosphoglycerate mutase OS=Magnaporthe oryzae (strain 70-15 / ATCC MYA-4617 / FGSC 8958) GN=MGG_00901 PE=3 SV=1 | F37: >tr|G4NDN8|G4NDN8_MAGO7 2,3-bisphosphoglycerate-independent phosphoglycerate mutase OS=Magnaporthe oryzae (strain 70-15 / ATCC MYA-4617 / FGSC 8958) GN=MGG_00901 PE=3 SV=1;>tr|L7IL20|L7IL20_MAGOY 2,3-bisphosphoglycerate-independent phosphoglycerate mutase | G37: + | H37: 1 | I37: K | J37: 120.66 | K37: _YK(ac)LDYPFDVAFEPQK_ | L37: X;X;X;X;X;X;X;X;X;X;X;X;X;X;X;Acetyl (K);X;X;X;X;X;X;X;X;X;X;X;X;X;Oxidation (M);X | M37: YK(1)LDYPFDVAFEPQK | N37: YK(120.66)LDYPFDVAFEPQK(-120.66) | O37: 2 | P37: 2 | Q37: 951.46963 | R37: 0.090223 | T37: 6639200 | U37: 8159000 | W37: 7399100 | X37: 14297000 | Y37: 12686000 | Z37: 11527000 | AA37: 12836666.67 | AB37: 0.5764035316 | AC37: =_xlfn.T.TEST(T37:V37,X37:Z37,2,2) -> 0.01928690898
A38: >tr|G5EHA8|G5EHA8_MAGO7 Alpha-amylase 1 OS=Magnaporthe oryzae (strain 70-15 / ATCC MYA-4617 / FGSC 8958) GN=MGCH7_ch7g65 PE=4 SV=1;>tr|L7IBK1|L7IBK1_MAGOY Alpha-amylase 1 OS=Magnaporthe oryzae (strain Y34) GN=OOU_Y34scaffold00412g17 PE=4 SV=1;>tr|L7JDZ3|L7JDZ3_MAGOP Alpha-amylase 1 OS=Magnaporthe oryzae (strain P131) GN=OOW_P131scaffold00390g4 PE=4 SV=1 | B38: 464;464;464 | C38: KGFGSGDDIVEILTCKTAKADGSGVVTMPMS | D38: >tr|G5EHA8|G5EHA8_MAGO7 Alpha-amylase 1 OS=Magnaporthe oryzae (strain 70-15 / ATCC MYA-4617 / FGSC 8958) GN=MGCH7_ch7g65 PE=4 SV=1 | E38: >tr|G5EHA8|G5EHA8_MAGO7 Alpha-amylase 1 OS=Magnaporthe oryzae (strain 70-15 / ATCC MYA-4617 / FGSC 8958) GN=MGCH7_ch7g65 PE=4 SV=1 | F38: >tr|G5EHA8|G5EHA8_MAGO7 Alpha-amylase 1 OS=Magnaporthe oryzae (strain 70-15 / ATCC MYA-4617 / FGSC 8958) GN=MGCH7_ch7g65 PE=4 SV=1;>tr|L7IBK1|L7IBK1_MAGOY Alpha-amylase 1 OS=Magnaporthe oryzae (strain Y34) GN=OOU_Y34scaffold00412g17 PE=4 SV=1;>tr|L7JDZ3|L7 | G38: + | H38: 1 | I38: K | J38: 118.53 | K38: _GFGSGDDIVEILTCK(ac)TAK_ | L38: X;X;X;X;X;X;X;X;X;X;X;X;X;X;X;Acetyl (K);X;X;X;X;X;X;X;X;X;X;X;X;X;X;X | M38: GFGSGDDIVEILTCK(1)TAK | N38: GFGSGDDIVEILTCK(118.53)TAK(-118.53) | O38: 15 | P38: 2 | Q38: 976.98532 | R38: 1.0969 | U38: 9474800 | V38: 10641000 | W38: 10057900 | X38: 14583000 | Y38: 13611000 | Z38: 12826000 | AA38: 13673333.33 | AB38: 0.7355850804 | AC38: =_xlfn.T.TEST(T38:V38,X38:Z38,2,2) -> 0.01937697769
A39: >tr|G4MP11|G4MP11_MAGO7 40S ribosomal protein S3 OS=Magnaporthe oryzae (strain 70-15 / ATCC MYA-4617 / FGSC 8958) GN=MGG_05673 PE=3 SV=1;>tr|L7I112|L7I112_MAGOY 40S ribosomal protein S3 OS=Magnaporthe oryzae (strain Y34) GN=OOU_Y34scaffold00624g5 PE=3 SV=1;>tr|L7J162|L7J162_MAGOP 40S ribosomal protein S3 OS=Magnaporthe oryzae (strain P131) GN=OOW_P131scaffold01194g18 PE=3 SV=1 | B39: 112;112;112 | C39: NRGLSAVAQCESLRYKLLNGLAVRRACYGVL | D39: >tr|G4MP11|G4MP11_MAGO7 40S ribosomal protein S3 OS=Magnaporthe oryzae (strain 70-15 / ATCC MYA-4617 / FGSC 8958) GN=MGG_05673 PE=3 SV=1 | E39: >tr|G4MP11|G4MP11_MAGO7 40S ribosomal protein S3 OS=Magnaporthe oryzae (strain 70-15 / ATCC MYA-4617 / FGSC 8958) GN=MGG_05673 PE=3 SV=1 | F39: >tr|G4MP11|G4MP11_MAGO7 40S ribosomal protein S3 OS=Magnaporthe oryzae (strain 70-15 / ATCC MYA-4617 / FGSC 8958) GN=MGG_05673 PE=3 SV=1;>tr|L7I112|L7I112_MAGOY 40S ribosomal protein S3 OS=Magnaporthe oryzae (strain Y34) GN=OOU_Y34scaffold00624g5 PE=3 SV=1 | G39: + | H39: 1 | I39: K | J39: 102.06 | K39: _YK(ac)LLNGLAVR_ | L39: X;X;X;X;X;X;X;X;X;X;X;X;X;X;X;Acetyl (K);X;X;X;X;X;X;X;X;X;X;X;X;X;X;X | M39: YK(1)LLNGLAVR | N39: YK(59.43)LLNGLAVR | O39: 2 | P39: 2 | Q39: 594.8586 | R39: 0.024139 | T39: 117510000 | U39: 106240000 | V39: 103450000 | W39: 109066666.7 | X39: 69630000 | Y39: 91883000 | Z39: 77353000 | AA39: 79622000 | AB39: 1.369805665 | AC39: =_xlfn.T.TEST(T39:V39,X39:Z39,2,2) -> 0.01961728626
A40: >tr|L7II24|L7II24_MAGOY Hydrolase OS=Magnaporthe oryzae (strain Y34) GN=OOU_Y34scaffold00192g60 PE=4 SV=1;>tr|L7JDB2|L7JDB2_MAGOP Hydrolase OS=Magnaporthe oryzae (strain P131) GN=OOW_P131scaffold00455g62 PE=4 SV=1 | B40: 40;40 | C40: ASGADKAANLSHARDKVIEASRAGAKIILLP | D40: >tr|L7II24|L7II24_MAGOY Hydrolase OS=Magnaporthe oryzae (strain Y34) GN=OOU_Y34scaffold00192g60 PE=4 SV=1 | E40: >tr|L7II24|L7II24_MAGOY Hydrolase OS=Magnaporthe oryzae (strain Y34) GN=OOU_Y34scaffold00192g60 PE=4 SV=1 | F40: >tr|L7II24|L7II24_MAGOY Hydrolase OS=Magnaporthe oryzae (strain Y34) GN=OOU_Y34scaffold00192g60 PE=4 SV=1;>tr|L7JDB2|L7JDB2_MAGOP Hydrolase OS=Magnaporthe oryzae (strain P131) GN=OOW_P131scaffold00455g62 PE=4 SV=1 | G40: + | H40: 1 | I40: K | J40: 99.136 | K40: _DK(ac)VIEASR_ | L40: X;X;X;X;X;Acetyl (K);X;X;X;X;X;X;X;X;X;Acetyl (K);X;X;X;X;X;X;X;X;X;X;X;X;X;X;X | M40: DK(1)VIEASR | N40: DK(64.04)VIEASR | O40: 2 | P40: 2 | Q40: 480.26146 | R40: -0.95064 | U40: 7461500 | V40: 9090300 | W40: 8275900 | X40: 15318000 | Z40: 16822000 | AA40: 16070000 | AB40: 0.5149906658 | AC40: =_xlfn.T.TEST(T40:V40,X40:Z40,2,2) -> 0.01963331074
A41: >sp|A4RK52|MTNB_MAGO7 Methylthioribulose-1-phosphate dehydratase OS=Magnaporthe oryzae (strain 70-15 / ATCC MYA-4617 / FGSC 8958) GN=MDE1 PE=3 SV=2;>tr|L7IL49|L7IL49_MAGOY Methylthioribulose-1-phosphate dehydratase OS=Magnaporthe oryzae (strain Y34) GN=MDE1 PE=3 SV=1;>tr|L7IX51|L7IX51_MAGOP Methylthioribulose-1-phosphate dehydratase OS=Magnaporthe oryzae (strain P131) GN=MDE1 PE=3 SV=1 | B41: 161;161;161 | C41: INNIEQIKGFGKGFEKSGNLGYHDTLRIPVI | D41: >sp|A4RK52|MTNB_MAGO7 Methylthioribulose-1-phosphate dehydratase OS=Magnaporthe oryzae (strain 70-15 / ATCC MYA-4617 / FGSC 8958) GN=MDE1 PE=3 SV=2 | E41: >sp|A4RK52|MTNB_MAGO7 Methylthioribulose-1-phosphate dehydratase OS=Magnaporthe oryzae (strain 70-15 / ATCC MYA-4617 / FGSC 8958) GN=MDE1 PE=3 SV=2 | F41: >sp|A4RK52|MTNB_MAGO7 Methylthioribulose-1-phosphate dehydratase OS=Magnaporthe oryzae (strain 70-15 / ATCC MYA-4617 / FGSC 8958) GN=MDE1 PE=3 SV=2;>tr|L7IL49|L7IL49_MAGOY Methylthioribulose-1-phosphate dehydratase OS=Magnaporthe oryzae (strain Y34) GN=MDE | G41: + | H41: 1 | I41: K | J41: 105.46 | K41: _GFEK(ac)SGNLGYHDTLR_ | L41: X;X;X;X;X;X;X;X;X;X;X;X;X;X;X;Acetyl (K);X;X;X;X;X;X;X;X;X;X;X;X;X;X;X | M41: GFEK(1)SGNLGYHDTLR | N41: GFEK(79.77)SGNLGYHDTLR | O41: 4 | P41: 2 | Q41: 868.42355 | R41: -3.7636 | T41: 3785500 | U41: 3968700 | W41: 3877100 | X41: 5048900 | Z41: 4794900 | AA41: 4921900 | AB41: 0.7877242528 | AC41: =_xlfn.T.TEST(T41:V41,X41:Z41,2,2) -> 0.02173234927
A42: >tr|G4N4N6|G4N4N6_MAGO7 S-(hydroxymethyl)glutathione dehydrogenase OS=Magnaporthe oryzae (strain 70-15 / ATCC MYA-4617 / FGSC 8958) GN=MGG_06011 PE=3 SV=1;>tr|L7I9U8|L7I9U8_MAGOY S-(hydroxymethyl)glutathione dehydrogenase OS=Magnaporthe oryzae (strain Y34) GN=OOU_Y34scaffold00464g17 PE=3 SV=1;>tr|L7JBT2|L7JBT2_MAGOP S-(hydroxymethyl)glutathione dehydrogenase OS=Magnaporthe oryzae (strain P131) GN=OOW_P131scaffold00463g17 PE=3 SV=1 | B42: 354;354;354 | C42: YLQGRLKVDEFITHRKKLVEINNAFETMKQG | D42: >tr|G4N4N6|G4N4N6_MAGO7 S-(hydroxymethyl)glutathione dehydrogenase OS=Magnaporthe oryzae (strain 70-15 / ATCC MYA-4617 / FGSC 8958) GN=MGG_06011 PE=3 SV=1 | E42: >tr|G4N4N6|G4N4N6_MAGO7 S-(hydroxymethyl)glutathione dehydrogenase OS=Magnaporthe oryzae (strain 70-15 / ATCC MYA-4617 / FGSC 8958) GN=MGG_06011 PE=3 SV=1 | F42: >tr|G4N4N6|G4N4N6_MAGO7 S-(hydroxymethyl)glutathione dehydrogenase OS=Magnaporthe oryzae (strain 70-15 / ATCC MYA-4617 / FGSC 8958) GN=MGG_06011 PE=3 SV=1;>tr|L7I9U8|L7I9U8_MAGOY S-(hydroxymethyl)glutathione dehydrogenase OS=Magnaporthe oryzae (strain Y34) | G42: + | H42: 1 | I42: K | J42: 99.991 | K42: _K(ac)KLVEINNAFETMK_ | L42: X;X;X;X;X;X;X;X;X;X;X;X;X;X;X;Acetyl (K);X;X;X;X;X;X;X;X;X;X;X;X;Acetyl (K);X;X | M42: K(0.5)K(0.5)LVEINNAFETMK | N42: K(0)K(0)LVEINNAFETMK(-78.51) | O42: 1 | P42: 3 | Q42: 569.64304 | R42: 0.379 | U42: 21059000 | V42: 18337000 | W42: 19698000 | X42: 13391000 | Y42: 9719700 | Z42: 12686000 | AA42: 11932233.33 | AB42: 1.650822562 | AC42: =_xlfn.T.TEST(T42:V42,X42:Z42,2,2) -> 0.02197619826
A43: >tr|G5EHA8|G5EHA8_MAGO7 Alpha-amylase 1 OS=Magnaporthe oryzae (strain 70-15 / ATCC MYA-4617 / FGSC 8958) GN=MGCH7_ch7g65 PE=4 SV=1;>tr|L7IBK1|L7IBK1_MAGOY Alpha-amylase 1 OS=Magnaporthe oryzae (strain Y34) GN=OOU_Y34scaffold00412g17 PE=4 SV=1;>tr|L7JDZ3|L7JDZ3_MAGOP Alpha-amylase 1 OS=Magnaporthe oryzae (strain P131) GN=OOW_P131scaffold00390g4 PE=4 SV=1 | B43: 164;164;164 | C43: IPPKVDYSKFNPFNDKKYFHPYCNVTQWDSP | D43: >tr|G5EHA8|G5EHA8_MAGO7 Alpha-amylase 1 OS=Magnaporthe oryzae (strain 70-15 / ATCC MYA-4617 / FGSC 8958) GN=MGCH7_ch7g65 PE=4 SV=1 | E43: >tr|G5EHA8|G5EHA8_MAGO7 Alpha-amylase 1 OS=Magnaporthe oryzae (strain 70-15 / ATCC MYA-4617 / FGSC 8958) GN=MGCH7_ch7g65 PE=4 SV=1 | F43: >tr|G5EHA8|G5EHA8_MAGO7 Alpha-amylase 1 OS=Magnaporthe oryzae (strain 70-15 / ATCC MYA-4617 / FGSC 8958) GN=MGCH7_ch7g65 PE=4 SV=1;>tr|L7IBK1|L7IBK1_MAGOY Alpha-amylase 1 OS=Magnaporthe oryzae (strain Y34) GN=OOU_Y34scaffold00412g17 PE=4 SV=1;>tr|L7JDZ3|L7 | G43: + | H43: 1 | I43: K | J43: 93.143 | K43: _FNPFNDK(ac)K_ | L43: X;X;X;X;X;X;X;X;X;X;X;X;X;X;X;Acetyl (K);X;X;X;X;X;X;X;X;X;X;X;X;X;X;X | M43: FNPFNDK(1)K | N43: FNPFNDK(75.82)K(-75.82) | O43: 7 | P43: 2 | Q43: 526.264 | R43: -1.3301 | T43: 50978000 | U43: 47125000 | V43: 41744000 | W43: 46615666.67 | X43: 31942000 | Y43: 26978000 | Z43: 37412000 | AA43: 32110666.67 | AB43: 1.451719055 | AC43: =_xlfn.T.TEST(T43:V43,X43:Z43,2,2) -> 0.0227934357
A44: >tr|G4ML82|G4ML82_MAGO7 ATP-citrate synthase subunit 1 OS=Magnaporthe oryzae (strain 70-15 / ATCC MYA-4617 / FGSC 8958) GN=MGG_06719 PE=4 SV=1;>tr|L7JMC4|L7JMC4_MAGOP ATP-citrate synthase subunit 1 OS=Magnaporthe oryzae (strain P131) GN=OOW_P131scaffold00177g8 PE=4 SV=1;>tr|L7I5K1|L7I5K1_MAGOY ATP-citrate synthase subunit 1 OS=Magnaporthe oryzae (strain Y34) GN=OOU_Y34scaffold00534g8 PE=4 SV=1 | B44: 504;504;504 | C44: GALDGAAEEFTKAHDKGLSPREFVDLMRKQN | D44: >tr|G4ML82|G4ML82_MAGO7 ATP-citrate synthase subunit 1 OS=Magnaporthe oryzae (strain 70-15 / ATCC MYA-4617 / FGSC 8958) GN=MGG_06719 PE=4 SV=1 | E44: >tr|G4ML82|G4ML82_MAGO7 ATP-citrate synthase subunit 1 OS=Magnaporthe oryzae (strain 70-15 / ATCC MYA-4617 / FGSC 8958) GN=MGG_06719 PE=4 SV=1 | F44: >tr|G4ML82|G4ML82_MAGO7 ATP-citrate synthase subunit 1 OS=Magnaporthe oryzae (strain 70-15 / ATCC MYA-4617 / FGSC 8958) GN=MGG_06719 PE=4 SV=1;>tr|L7JMC4|L7JMC4_MAGOP ATP-citrate synthase subunit 1 OS=Magnaporthe oryzae (strain P131) GN=OOW_P131scaffold001 | G44: + | H44: 1 | I44: K | J44: 164.97 | K44: _AHDK(ac)GLSPR_ | L44: X;X;X;X;X;X;X;X;X;X;X;X;X;X;X;Acetyl (K);X;X;X;X;X;X;X;X;X;X;X;X;Acetyl (K);X;X | M44: AHDK(1)GLSPR | N44: AHDK(70.55)GLSPR | O44: 4 | P44: 3 | Q44: 341.51744 | R44: 0.20717 | T44: 253270000 | U44: 260440000 | V44: 285500000 | W44: 266403333.3 | X44: 211050000 | Y44: 207380000 | Z44: 146070000 | AA44: 188166666.7 | AB44: 1.41578388 | AC44: =_xlfn.T.TEST(T44:V44,X44:Z44,2,2) -> 0.02809602944
A45: >tr|G4N4N6|G4N4N6_MAGO7 S-(hydroxymethyl)glutathione dehydrogenase OS=Magnaporthe oryzae (strain 70-15 / ATCC MYA-4617 / FGSC 8958) GN=MGG_06011 PE=3 SV=1;>tr|L7I9U8|L7I9U8_MAGOY S-(hydroxymethyl)glutathione dehydrogenase OS=Magnaporthe oryzae (strain Y34) GN=OOU_Y34scaffold00464g17 PE=3 SV=1;>tr|L7JBT2|L7JBT2_MAGOP S-(hydroxymethyl)glutathione dehydrogenase OS=Magnaporthe oryzae (strain P131) GN=OOW_P131scaffold00463g17 PE=3 SV=1 | B45: 236;236;236 | C45: IIVVDVNPAKEEWARKFGATDFVNPTKLPEG | D45: >tr|G4N4N6|G4N4N6_MAGO7 S-(hydroxymethyl)glutathione dehydrogenase OS=Magnaporthe oryzae (strain 70-15 / ATCC MYA-4617 / FGSC 8958) GN=MGG_06011 PE=3 SV=1 | E45: >tr|G4N4N6|G4N4N6_MAGO7 S-(hydroxymethyl)glutathione dehydrogenase OS=Magnaporthe oryzae (strain 70-15 / ATCC MYA-4617 / FGSC 8958) GN=MGG_06011 PE=3 SV=1 | F45: >tr|G4N4N6|G4N4N6_MAGO7 S-(hydroxymethyl)glutathione dehydrogenase OS=Magnaporthe oryzae (strain 70-15 / ATCC MYA-4617 / FGSC 8958) GN=MGG_06011 PE=3 SV=1;>tr|L7I9U8|L7I9U8_MAGOY S-(hydroxymethyl)glutathione dehydrogenase OS=Magnaporthe oryzae (strain Y34) | G45: + | H45: 1 | I45: K | J45: 195.97 | K45: _K(ac)FGATDFVNPTKLPEGK_ | L45: X;X;X;X;X;X;X;X;X;X;X;X;X;X;X;Acetyl (K);X;X;X;X;X;X;X;X;X;X;X;X;X;X;X | M45: K(1)FGATDFVNPTKLPEGK | N45: K(103.15)FGATDFVNPTK(-103.15)LPEGK(-117.2) | O45: 1 | P45: 3 | Q45: 631.00351 | R45: 0.55283 | T45: 49227000 | U45: 57249000 | V45: 55086000 | W45: 53854000 | Y45: 25952000 | Z45: 38132000 | AA45: 32042000 | AB45: 1.68073154 | AC45: =_xlfn.T.TEST(T45:V45,X45:Z45,2,2) -> 0.02855101752
A46: >tr|G4NJB0|G4NJB0_MAGO7 Woronin body major protein OS=Magnaporthe oryzae (strain 70-15 / ATCC MYA-4617 / FGSC 8958) GN=MGG_02696 PE=4 SV=1;>tr|L7HZD1|L7HZD1_MAGOY Woronin body major protein OS=Magnaporthe oryzae (strain Y34) GN=OOU_Y34scaffold00666g96 PE=4 SV=1;>tr|L7JEJ0|L7JEJ0_MAGOP Woronin body major protein OS=Magnaporthe oryzae (strain P131) GN=OOW_P131scaffold00372g11 PE=4 SV=1;>tr|Q2KGA0|Q2KGA0_MAGO7 Putative uncharacterized protein OS=Magnaporthe oryzae (strain 70-15 / ATCC MYA-4617 / FGSC 8958) GN=MGCH7_ch7g435 PE=4 SV=1 | B46: 345;396;397;378 | C46: PSPSVVVQTMCGPVFKQYRVLDMQAGHIVAM | D46: >tr|G4NJB0|G4NJB0_MAGO7 Woronin body major protein OS=Magnaporthe oryzae (strain 70-15 / ATCC MYA-4617 / FGSC 8958) GN=MGG_02696 PE=4 SV=1;>tr|L7HZD1|L7HZD1_MAGOY Woronin body major protein OS=Magnaporthe oryzae (strain Y34) GN=OOU_Y34scaffold00666g96 PE=4 SV=1 | E46: >tr|L7HZD1|L7HZD1_MAGOY Woronin body major protein OS=Magnaporthe oryzae (strain Y34) GN=OOU_Y34scaffold00666g96 PE=4 SV=1 | F46: >tr|G4NJB0|G4NJB0_MAGO7 Woronin body major protein OS=Magnaporthe oryzae (strain 70-15 / ATCC MYA-4617 / FGSC 8958) GN=MGG_02696 PE=4 SV=1;>tr|L7HZD1|L7HZD1_MAGOY Woronin body major protein OS=Magnaporthe oryzae (strain Y34) GN=OOU_Y34scaffold00666g96 PE=4 | H46: 1 | I46: K | J46: 121.35 | K46: _EESSSISTPSPSVVVQTM(ox)CGPVFK(ac)QYR_ | L46: X;X;X;X;X;X;X;X;X;Oxidation (M);X;X;X;X;X;Acetyl (K);X;X;X;X;X;X;Oxidation (M);X;X;X;X;X;X;X;Oxidation (M) | M46: EESSSISTPSPSVVVQTMCGPVFK(1)QYR | N46: EESSSISTPSPSVVVQTMCGPVFK(55.06)QYR | O46: 24 | P46: 3 | Q46: 1020.1547 | R46: -0.056585 | T46: 149750000 | U46: 201650000 | V46: 137010000 | W46: 162803333.3 | X46: 289230000 | Y46: 219650000 | Z46: 299030000 | AA46: 269303333.3 | AB46: 0.6045351586 | AC46: =_xlfn.T.TEST(T46:V46,X46:Z46,2,2) -> 0.02876643322
A47: >tr|D4NXH7|D4NXH7_MAGOR Probable ribosomal protein L26 OS=Magnaporthe oryzae PE=2 SV=1;>tr|G4NH22|G4NH22_MAGO7 60S ribosomal protein L26 OS=Magnaporthe oryzae (strain 70-15 / ATCC MYA-4617 / FGSC 8958) GN=MGG_03965 PE=4 SV=1;>tr|L7I784|L7I784_MAGOY 60S ribosomal protein L26 OS=Magnaporthe oryzae (strain Y34) GN=OOU_Y34scaffold00514g11 PE=4 SV=1;>tr|L7IYS9|L7IYS9_MAGOP 60S ribosomal protein L26 OS=Magnaporthe oryzae (strain P131) GN=OOW_P131scaffold01204g7 PE=4 SV=1 | B47: 109;109;148;148 | C47: ASVPLGIHPSNVVITKLKLDKDREDILARIK | D47: >tr|D4NXH7|D4NXH7_MAGOR Probable ribosomal protein L26 OS=Magnaporthe oryzae PE=2 SV=1 | E47: >tr|D4NXH7|D4NXH7_MAGOR Probable ribosomal protein L26 OS=Magnaporthe oryzae PE=2 SV=1 | F47: >tr|D4NXH7|D4NXH7_MAGOR Probable ribosomal protein L26 OS=Magnaporthe oryzae PE=2 SV=1;>tr|G4NH22|G4NH22_MAGO7 60S ribosomal protein L26 OS=Magnaporthe oryzae (strain 70-15 / ATCC MYA-4617 / FGSC 8958) GN=MGG_03965 PE=4 SV=1;>tr|L7I784|L7I784_MAGOY 60S rib | G47: + | H47: 1 | I47: K | J47: 119.02 | K47: _TTGASVPLGIHPSNVVITK(ac)LK_ | L47: X;X;X;X;X;X;X;X;X;X;X;X;X;X;X;Acetyl (K);X;Acetyl (K);X;X;X;X;X;X;X;X;X;X;X;X;X | M47: TTGASVPLGIHPSNVVITK(1)LK | N47: TTGASVPLGIHPSNVVITK(76.3)LK(-76.3) | O47: 19 | P47: 3 | Q47: 725.42296 | R47: -0.32396 | T47: 14854000 | U47: 22955000 | V47: 26676000 | W47: 21495000 | X47: 38774000 | Y47: 36711000 | Z47: 30485000 | AA47: 35323333.33 | AB47: 0.6085212796 | AC47: =_xlfn.T.TEST(T47:V47,X47:Z47,2,2) -> 0.03212992356
A48: >tr|L7ILD2|L7ILD2_MAGOY Uncharacterized protein OS=Magnaporthe oryzae (strain Y34) GN=OOU_Y34scaffold00103g7 PE=4 SV=1;>tr|L7J1U2|L7J1U2_MAGOP Uncharacterized protein OS=Magnaporthe oryzae (strain P131) GN=OOW_P131scaffold01099g8 PE=4 SV=1;>tr|G4MYJ6|G4MYJ6_MAGO7 Uncharacterized protein OS=Magnaporthe oryzae (strain 70-15 / ATCC MYA-4617 / FGSC 8958) GN=MGG_01305 PE=4 SV=1 | B48: 89;89;89 | C48: TVDPKDKFEEDCKNSKQCAPAKHHYDECVER | D48: >tr|L7ILD2|L7ILD2_MAGOY Uncharacterized protein OS=Magnaporthe oryzae (strain Y34) GN=OOU_Y34scaffold00103g7 PE=4 SV=1 | E48: >tr|L7ILD2|L7ILD2_MAGOY Uncharacterized protein OS=Magnaporthe oryzae (strain Y34) GN=OOU_Y34scaffold00103g7 PE=4 SV=1 | F48: >tr|L7ILD2|L7ILD2_MAGOY Uncharacterized protein OS=Magnaporthe oryzae (strain Y34) GN=OOU_Y34scaffold00103g7 PE=4 SV=1;>tr|L7J1U2|L7J1U2_MAGOP Uncharacterized protein OS=Magnaporthe oryzae (strain P131) GN=OOW_P131scaffold01099g8 PE=4 SV=1;>tr|G4MYJ6|G4MYJ | G48: + | H48: 1 | I48: K | J48: 146.88 | K48: _NSK(ac)QCAPAK_ | L48: X;X;X;X;X;X;X;X;X;X;X;X;X;X;X;Acetyl (K);X;X;X;X;X;X;X;X;X;X;X;X;X;X;X | M48: NSK(1)QCAPAK | N48: NSK(113.1)QCAPAK(-113.1) | O48: 3 | P48: 2 | Q48: 523.25839 | R48: -1.9905 | T48: 27997000 | U48: 18640000 | V48: 23766000 | W48: 23467666.67 | X48: 12027000 | Y48: 13687000 | Z48: 16234000 | AA48: 13982666.67 | AB48: 1.678339849 | AC48: =_xlfn.T.TEST(T48:V48,X48:Z48,2,2) -> 0.03306918858
A49: >tr|L7IP35|L7IP35_MAGOY Integral membrane protein OS=Magnaporthe oryzae (strain Y34) GN=OOU_Y34scaffold00033g5 PE=4 SV=1;>tr|L7JP88|L7JP88_MAGOP Integral membrane protein OS=Magnaporthe oryzae (strain P131) GN=OOW_P131scaffold00095g53 PE=4 SV=1;>tr|G4N5Q6|G4N5Q6_MAGO7 Integral membrane protein OS=Magnaporthe oryzae (strain 70-15 / ATCC MYA-4617 / FGSC 8958) GN=MGG_05292 PE=4 SV=1 | B49: 86;86;42 | C49: KLSEARDAPLPGTSGKHPVSAAVGTVLTGGK | D49: >tr|L7IP35|L7IP35_MAGOY Integral membrane protein OS=Magnaporthe oryzae (strain Y34) GN=OOU_Y34scaffold00033g5 PE=4 SV=1 | E49: >tr|L7IP35|L7IP35_MAGOY Integral membrane protein OS=Magnaporthe oryzae (strain Y34) GN=OOU_Y34scaffold00033g5 PE=4 SV=1 | F49: >tr|L7IP35|L7IP35_MAGOY Integral membrane protein OS=Magnaporthe oryzae (strain Y34) GN=OOU_Y34scaffold00033g5 PE=4 SV=1;>tr|L7JP88|L7JP88_MAGOP Integral membrane protein OS=Magnaporthe oryzae (strain P131) GN=OOW_P131scaffold00095g53 PE=4 SV=1;>tr|G4N5Q6| | G49: + | H49: 1 | I49: K | J49: 66.793 | K49: _DAPLPGTSGK(ac)HPVSAAVGTVLTGGK_ | L49: Acetyl (K);X;X;X;X;X;X;X;X;X;X;X;X;X;X;Acetyl (K);X;X;X;X;X;X;X;X;X;X;X;X;X;X;X | M49: DAPLPGTSGK(1)HPVSAAVGTVLTGGK | N49: DAPLPGTSGK(66.79)HPVSAAVGTVLTGGK(-66.79) | O49: 10 | P49: 3 | Q49: 787.09205 | R49: 1.6627 | T49: 37994000 | U49: 28915000 | V49: 30752000 | W49: 32553666.67 | X49: 24737000 | Y49: 13950000 | Z49: 19367000 | AA49: 19351333.33 | AB49: 1.682244118 | AC49: =_xlfn.T.TEST(T49:V49,X49:Z49,2,2) -> 0.03395225878
A50: >tr|G4MTI8|G4MTI8_MAGO7 Minor allergen Alt a 7 OS=Magnaporthe oryzae (strain 70-15 / ATCC MYA-4617 / FGSC 8958) GN=MGG_01569 PE=4 SV=1;>tr|L7I937|L7I937_MAGOY Uncharacterized protein OS=Magnaporthe oryzae (strain Y34) GN=OOU_Y34scaffold00497g19 PE=4 SV=1;>tr|L7ISK3|L7ISK3_MAGOP Uncharacterized protein OS=Magnaporthe oryzae (strain P131) GN=OOW_P131scaffold01457g26 PE=4 SV=1 | B50: 201;201;201 | C50: ELARIQGEEFYNHVSKATN____________ | D50: >tr|G4MTI8|G4MTI8_MAGO7 Minor allergen Alt a 7 OS=Magnaporthe oryzae (strain 70-15 / ATCC MYA-4617 / FGSC 8958) GN=MGG_01569 PE=4 SV=1 | E50: >tr|G4MTI8|G4MTI8_MAGO7 Minor allergen Alt a 7 OS=Magnaporthe oryzae (strain 70-15 / ATCC MYA-4617 / FGSC 8958) GN=MGG_01569 PE=4 SV=1 | F50: >tr|G4MTI8|G4MTI8_MAGO7 Minor allergen Alt a 7 OS=Magnaporthe oryzae (strain 70-15 / ATCC MYA-4617 / FGSC 8958) GN=MGG_01569 PE=4 SV=1;>tr|L7I937|L7I937_MAGOY Uncharacterized protein OS=Magnaporthe oryzae (strain Y34) GN=OOU_Y34scaffold00497g19 PE=4 SV=1;> | G50: + | H50: 1 | I50: K | J50: 61.265 | K50: _IQGEEFYNHVSK(ac)ATN_ | L50: X;X;X;X;X;X;X;X;X;X;X;X;X;X;X;Acetyl (K);X;X;X;X;X;X;X;X;X;X;X;X;X;X;X | M50: IQGEEFYNHVSK(1)ATN | N50: IQGEEFYNHVSK(61.26)ATN | O50: 12 | P50: 2 | Q50: 889.92084 | R50: -0.21171 | T50: 23739000 | U50: 10100000 | V50: 16061000 | W50: 16633333.33 | X50: 28127000 | Y50: 31787000 | Z50: 28379000 | AA50: 29431000 | AB50: 0.5651637163 | AC50: =_xlfn.T.TEST(T50:V50,X50:Z50,2,2) -> 0.03601051623
A51: >tr|G4N4B9|G4N4B9_MAGO7 Glutamyl-tRNA synthetase OS=Magnaporthe oryzae (strain 70-15 / ATCC MYA-4617 / FGSC 8958) GN=MGG_05956 PE=3 SV=1;>tr|L7IC84|L7IC84_MAGOY Glutamyl-tRNA synthetase OS=Magnaporthe oryzae (strain Y34) GN=OOU_Y34scaffold00325g8 PE=3 SV=1;>tr|L7IVT3|L7IVT3_MAGOP Glutamyl-tRNA synthetase OS=Magnaporthe oryzae (strain P131) GN=OOW_P131scaffold01322g43 PE=3 SV=1 | B51: 559;559;559 | C51: IPAELWDFDYLITKDKLEEDDDLEKFLTPVT | D51: >tr|G4N4B9|G4N4B9_MAGO7 Glutamyl-tRNA synthetase OS=Magnaporthe oryzae (strain 70-15 / ATCC MYA-4617 / FGSC 8958) GN=MGG_05956 PE=3 SV=1 | E51: >tr|G4N4B9|G4N4B9_MAGO7 Glutamyl-tRNA synthetase OS=Magnaporthe oryzae (strain 70-15 / ATCC MYA-4617 / FGSC 8958) GN=MGG_05956 PE=3 SV=1 | F51: >tr|G4N4B9|G4N4B9_MAGO7 Glutamyl-tRNA synthetase OS=Magnaporthe oryzae (strain 70-15 / ATCC MYA-4617 / FGSC 8958) GN=MGG_05956 PE=3 SV=1;>tr|L7IC84|L7IC84_MAGOY Glutamyl-tRNA synthetase OS=Magnaporthe oryzae (strain Y34) GN=OOU_Y34scaffold00325g8 PE=3 SV=1 | G51: + | H51: 1 | I51: K | J51: 94.191 | K51: _DK(ac)LEEDDDLEK_ | L51: X;X;X;X;X;X;X;X;X;X;X;X;X;X;X;Acetyl (K);X;X;X;X;X;X;X;X;X;X;X;X;X;X;X | M51: DK(1)LEEDDDLEK | N51: DK(94.19)LEEDDDLEK(-94.19) | O51: 2 | P51: 2 | Q51: 695.81464 | R51: 0.21527 | T51: 19354000 | U51: 16456000 | V51: 13614000 | W51: 16474666.67 | X51: 20759000 | Y51: 22586000 | Z51: 24645000 | AA51: 22663333.33 | AB51: 0.7269304309 | AC51: =_xlfn.T.TEST(T51:V51,X51:Z51,2,2) -> 0.03649778941
A52: >tr|G4N014|G4N014_MAGO7 Uncharacterized protein (Fragment) OS=Magnaporthe oryzae (strain 70-15 / ATCC MYA-4617 / FGSC 8958) GN=MGG_06177 PE=4 SV=1;>tr|L7IHW3|L7IHW3_MAGOY Uncharacterized protein OS=Magnaporthe oryzae (strain Y34) GN=OOU_Y34scaffold00192g39 PE=4 SV=1;>tr|L7JCI2|L7JCI2_MAGOP Uncharacterized protein OS=Magnaporthe oryzae (strain P131) GN=OOW_P131scaffold00455g41 PE=4 SV=1 | B52: 76;17;17 | C52: APAQSEAFQKAIVDSKKLLKKPSNEELLELY | D52: >tr|G4N014|G4N014_MAGO7 Uncharacterized protein (Fragment) OS=Magnaporthe oryzae (strain 70-15 / ATCC MYA-4617 / FGSC 8958) GN=MGG_06177 PE=4 SV=1 | E52: >tr|G4N014|G4N014_MAGO7 Uncharacterized protein (Fragment) OS=Magnaporthe oryzae (strain 70-15 / ATCC MYA-4617 / FGSC 8958) GN=MGG_06177 PE=4 SV=1 | F52: >tr|G4N014|G4N014_MAGO7 Uncharacterized protein (Fragment) OS=Magnaporthe oryzae (strain 70-15 / ATCC MYA-4617 / FGSC 8958) GN=MGG_06177 PE=4 SV=1;>tr|L7IHW3|L7IHW3_MAGOY Uncharacterized protein OS=Magnaporthe oryzae (strain Y34) GN=OOU_Y34scaffold00192g39 | G52: + | H52: 1 | I52: K | J52: 111.65 | K52: _AIVDSK(ac)K_ | L52: X;X;X;X;X;X;X;X;X;X;X;X;X;X;X;Acetyl (K);X;X;X;X;X;X;X;X;X;X;X;X;X;X;X | M52: AIVDSK(1)K | N52: AIVDSK(89.3)K(-89.3) | O52: 6 | P52: 2 | Q52: 401.73709 | R52: -0.25909 | T52: 859580000 | U52: 706470000 | V52: 904950000 | W52: 823666666.7 | X52: 689180000 | Y52: 544430000 | Z52: 566090000 | AA52: 599900000 | AB52: 1.373006612 | AC52: =_xlfn.T.TEST(T52:V52,X52:Z52,2,2) -> 0.04072498777
A53: >tr|G4N716|G4N716_MAGO7 Elongation factor 1-alpha OS=Magnaporthe oryzae (strain 70-15 / ATCC MYA-4617 / FGSC 8958) GN=MGG_03641 PE=3 SV=1;>tr|L7IN78|L7IN78_MAGOY Elongation factor 1-alpha OS=Magnaporthe oryzae (strain Y34) GN=OOU_Y34scaffold00108g10 PE=3 SV=1;>tr|L7JCY9|L7JCY9_MAGOP Elongation factor 1-alpha OS=Magnaporthe oryzae (strain P131) GN=OOW_P131scaffold00429g15 PE=3 SV=1 | B53: 171;171;171 | C53: MDTAKWAQSRYDEIVKETSNFLKKIGFNPDS | D53: >tr|G4N716|G4N716_MAGO7 Elongation factor 1-alpha OS=Magnaporthe oryzae (strain 70-15 / ATCC MYA-4617 / FGSC 8958) GN=MGG_03641 PE=3 SV=1 | E53: >tr|G4N716|G4N716_MAGO7 Elongation factor 1-alpha OS=Magnaporthe oryzae (strain 70-15 / ATCC MYA-4617 / FGSC 8958) GN=MGG_03641 PE=3 SV=1 | F53: >tr|G4N716|G4N716_MAGO7 Elongation factor 1-alpha OS=Magnaporthe oryzae (strain 70-15 / ATCC MYA-4617 / FGSC 8958) GN=MGG_03641 PE=3 SV=1;>tr|L7IN78|L7IN78_MAGOY Elongation factor 1-alpha OS=Magnaporthe oryzae (strain Y34) GN=OOU_Y34scaffold00108g10 PE=3 S | G53: + | H53: 1 | I53: K | J53: 175.74 | K53: _YDEIVK(ac)ETSNFLK_ | L53: Oxidation (M);X;X;X;X;X;X;X;X;X;X;X;X;X;X;Acetyl (K);X;X;X;X;X;X;Acetyl (K);X;X;X;X;X;X;X;X | M53: YDEIVK(1)ETSNFLK | N53: YDEIVK(175.74)ETSNFLK(-175.74) | O53: 6 | P53: 2 | Q53: 814.41433 | R53: -1.2154 | T53: 55139000 | U53: 57059000 | V53: 52732000 | W53: 54976666.67 | X53: 34519000 | Y53: 43496000 | Z53: 48555000 | AA53: 42190000 | AB53: 1.303073398 | AC53: =_xlfn.T.TEST(T53:V53,X53:Z53,2,2) -> 0.04073717842
A54: >tr|G4N561|G4N561_MAGO7 Hsp10-like protein OS=Magnaporthe oryzae (strain 70-15 / ATCC MYA-4617 / FGSC 8958) GN=MGG_13221 PE=3 SV=1;>tr|L7IAN0|L7IAN0_MAGOY 10 kDa heat shock protein, mitochondrial OS=Magnaporthe oryzae (strain Y34) GN=OOU_Y34scaffold00464g83 PE=3 SV=1;>tr|L7JKE6|L7JKE6_MAGOP 10 kDa heat shock protein, mitochondrial OS=Magnaporthe oryzae (strain P131) GN=OOW_P131scaffold00270g5 PE=3 SV=1 | B54: 61;61;61 | C54: AKVLAVGPGGLDKDGKRTPMGVAIGDRVLIP | D54: >tr|G4N561|G4N561_MAGO7 Hsp10-like protein OS=Magnaporthe oryzae (strain 70-15 / ATCC MYA-4617 / FGSC 8958) GN=MGG_13221 PE=3 SV=1 | E54: >tr|G4N561|G4N561_MAGO7 Hsp10-like protein OS=Magnaporthe oryzae (strain 70-15 / ATCC MYA-4617 / FGSC 8958) GN=MGG_13221 PE=3 SV=1 | F54: >tr|G4N561|G4N561_MAGO7 Hsp10-like protein OS=Magnaporthe oryzae (strain 70-15 / ATCC MYA-4617 / FGSC 8958) GN=MGG_13221 PE=3 SV=1;>tr|L7IAN0|L7IAN0_MAGOY 10 kDa heat shock protein, mitochondrial OS=Magnaporthe oryzae (strain Y34) GN=OOU_Y34scaffold00464g8 | G54: + | H54: 1 | I54: K | J54: 82.908 | K54: _VLAVGPGGLDKDGK(ac)R_ | L54: X;X;X;X;X;X;X;X;X;X;X;X;X;X;X;Acetyl (K);X;X;X;Oxidation (M);X;X;X;X;X;X;X;X;X;X;X | M54: VLAVGPGGLDK(0.053)DGK(0.947)R | N54: VLAVGPGGLDK(-12.54)DGK(12.54)R | O54: 14 | P54: 3 | Q54: 508.62286 | R54: -1.0829 | T54: 16017000 | U54: 14104000 | V54: 20081000 | W54: 16734000 | X54: 9878200 | Y54: 5192700 | Z54: 11794000 | AA54: 8954966.667 | AB54: 1.868683673 | AC54: =_xlfn.T.TEST(T54:V54,X54:Z54,2,2) -> 0.04193860828
A55: >tr|G4MND5|G4MND5_MAGO7 D-3-phosphoglycerate dehydrogenase 2 OS=Magnaporthe oryzae (strain 70-15 / ATCC MYA-4617 / FGSC 8958) GN=MGG_11794 PE=3 SV=1;>tr|L7IK14|L7IK14_MAGOY D-3-phosphoglycerate dehydrogenase 1 OS=Magnaporthe oryzae (strain Y34) GN=OOU_Y34scaffold00140g11 PE=3 SV=1;>tr|L7JG36|L7JG36_MAGOP D-3-phosphoglycerate dehydrogenase 1 OS=Magnaporthe oryzae (strain P131) GN=OOW_P131scaffold00328g11 PE=3 SV=1 | B55: 90;90;90 | C55: GQDILREQGYQVEAHKTSLPEDQLIEKIRSV | D55: >tr|G4MND5|G4MND5_MAGO7 D-3-phosphoglycerate dehydrogenase 2 OS=Magnaporthe oryzae (strain 70-15 / ATCC MYA-4617 / FGSC 8958) GN=MGG_11794 PE=3 SV=1 | E55: >tr|G4MND5|G4MND5_MAGO7 D-3-phosphoglycerate dehydrogenase 2 OS=Magnaporthe oryzae (strain 70-15 / ATCC MYA-4617 / FGSC 8958) GN=MGG_11794 PE=3 SV=1 | F55: >tr|G4MND5|G4MND5_MAGO7 D-3-phosphoglycerate dehydrogenase 2 OS=Magnaporthe oryzae (strain 70-15 / ATCC MYA-4617 / FGSC 8958) GN=MGG_11794 PE=3 SV=1;>tr|L7IK14|L7IK14_MAGOY D-3-phosphoglycerate dehydrogenase 1 OS=Magnaporthe oryzae (strain Y34) GN=OOU_Y34s | G55: + | H55: 1 | I55: K | J55: 80.303 | K55: _EQGYQVEAHK(ac)TSLPEDQLIEK_ | L55: X;X;X;X;X;X;X;X;X;X;X;X;X;X;X;Acetyl (K);X;X;X;X;X;X;X;X;X;X;X;X;X;X;X | M55: EQGYQVEAHK(1)TSLPEDQLIEK | N55: EQGYQVEAHK(80.3)TSLPEDQLIEK(-80.3) | O55: 10 | P55: 3 | Q55: 828.74661 | R55: -0.36525 | U55: 12245000 | V55: 11264000 | W55: 11754500 | X55: 25500000 | Y55: 19731000 | Z55: 18440000 | AA55: 21223666.67 | AB55: 0.5538392675 | AC55: =_xlfn.T.TEST(T55:V55,X55:Z55,2,2) -> 0.044024409
A56: >sp|A4QVR2|H2AZ_MAGO7 Histone H2A.Z OS=Magnaporthe oryzae (strain 70-15 / ATCC MYA-4617 / FGSC 8958) GN=HTZ1 PE=3 SV=1;>tr|L7IPA4|L7IPA4_MAGOY Histone H2A OS=Magnaporthe oryzae (strain Y34) GN=OOU_Y34scaffold00062g13 PE=3 SV=1;>tr|L7JGN1|L7JGN1_MAGOP Histone H2A OS=Magnaporthe oryzae (strain P131) GN=OOW_P131scaffold00365g4 PE=3 SV=1 | B56: 47;47;47 | C56: RAGLQFPCGRVKRFLKQNTQNKMRVGAKAAV | D56: >sp|A4QVR2|H2AZ_MAGO7 Histone H2A.Z OS=Magnaporthe oryzae (strain 70-15 / ATCC MYA-4617 / FGSC 8958) GN=HTZ1 PE=3 SV=1 | E56: >sp|A4QVR2|H2AZ_MAGO7 Histone H2A.Z OS=Magnaporthe oryzae (strain 70-15 / ATCC MYA-4617 / FGSC 8958) GN=HTZ1 PE=3 SV=1 | F56: >sp|A4QVR2|H2AZ_MAGO7 Histone H2A.Z OS=Magnaporthe oryzae (strain 70-15 / ATCC MYA-4617 / FGSC 8958) GN=HTZ1 PE=3 SV=1;>tr|L7IPA4|L7IPA4_MAGOY Histone H2A OS=Magnaporthe oryzae (strain Y34) GN=OOU_Y34scaffold00062g13 PE=3 SV=1;>tr|L7JGN1|L7JGN1_MAGOP Histo | G56: + | H56: 1 | I56: K | J56: 128.27 | K56: _FLK(ac)QNTQNK_ | L56: X;X;X;X;X;X;X;X;X;X;X;X;X;X;X;Acetyl (K);X;X;X;X;X;X;X;X;X;X;X;X;X;X;X | M56: FLK(1)QNTQNK | N56: FLK(128.27)QNTQNK(-128.27) | O56: 3 | P56: 2 | Q56: 581.81439 | R56: 0.45193 | T56: 9634400 | U56: 10580000 | V56: 10134000 | W56: 10116133.33 | X56: 11589000 | Z56: 11197000 | AA56: 11393000 | AB56: 0.8879253343 | AC56: =_xlfn.T.TEST(T56:V56,X56:Z56,2,2) -> 0.04420423628
A57: >tr|L7HTF4|L7HTF4_MAGOY Fructose-bisphosphate aldolase OS=Magnaporthe oryzae (strain Y34) GN=OOU_Y34scaffold00782g1 PE=4 SV=1;>tr|L7JRU2|L7JRU2_MAGOP Fructose-bisphosphate aldolase OS=Magnaporthe oryzae (strain P131) GN=OOW_P131scaffold00057g1 PE=4 SV=1;>tr|G4NDL4|G4NDL4_MAGO7 Fructose-bisphosphate aldolase 1 OS=Magnaporthe oryzae (strain 70-15 / ATCC MYA-4617 / FGSC 8958) GN=MGG_00223 PE=4 SV=1 | B57: 345;345;327 | C57: LNSQVGNPDGADKPNKKYYDPRVWVREGEKT | D57: >tr|L7HTF4|L7HTF4_MAGOY Fructose-bisphosphate aldolase OS=Magnaporthe oryzae (strain Y34) GN=OOU_Y34scaffold00782g1 PE=4 SV=1 | E57: >tr|L7HTF4|L7HTF4_MAGOY Fructose-bisphosphate aldolase OS=Magnaporthe oryzae (strain Y34) GN=OOU_Y34scaffold00782g1 PE=4 SV=1 | F57: >tr|L7HTF4|L7HTF4_MAGOY Fructose-bisphosphate aldolase OS=Magnaporthe oryzae (strain Y34) GN=OOU_Y34scaffold00782g1 PE=4 SV=1;>tr|L7JRU2|L7JRU2_MAGOP Fructose-bisphosphate aldolase OS=Magnaporthe oryzae (strain P131) GN=OOW_P131scaffold00057g1 PE=4 SV=1;>t | G57: + | H57: 1 | I57: K | J57: 119.23 | K57: _IEYLNSQVGNPDGADKPNK(ac)K_ | L57: X;X;X;X;X;X;X;X;X;X;X;X;X;X;X;Acetyl (K);X;X;X;X;X;X;X;X;X;X;X;X;X;X;X | M57: IEYLNSQVGNPDGADK(0.001)PNK(0.999)K | N57: IEYLNSQVGNPDGADK(-30.68)PNK(30.68)K(-119.23) | O57: 19 | P57: 2 | Q57: 1115.0609 | R57: 0.033033 | T57: 256230000 | U57: 204010000 | V57: 195780000 | W57: 218673333.3 | X57: 352500000 | Y57: 263550000 | Z57: 375510000 | AA57: 330520000 | AB57: 0.6616039372 | AC57: =_xlfn.T.TEST(T57:V57,X57:Z57,2,2) -> 0.04568084721
A58: >tr|G4MSU7|G4MSU7_MAGO7 Phosphoacetylglucosamine mutase OS=Magnaporthe oryzae (strain 70-15 / ATCC MYA-4617 / FGSC 8958) GN=MGG_11383 PE=4 SV=1;>tr|L7I1H4|L7I1H4_MAGOY Phosphoacetylglucosamine mutase OS=Magnaporthe oryzae (strain Y34) GN=OOU_Y34scaffold00619g48 PE=4 SV=1;>tr|L7IW06|L7IW06_MAGOP Phosphoacetylglucosamine mutase OS=Magnaporthe oryzae (strain P131) GN=OOW_P131scaffold01358g86 PE=4 SV=1 | B58: 470;470;470 | C58: RDWAMTYTDLPNRLVKVEVNDKDAFRTTDAE | D58: >tr|G4MSU7|G4MSU7_MAGO7 Phosphoacetylglucosamine mutase OS=Magnaporthe oryzae (strain 70-15 / ATCC MYA-4617 / FGSC 8958) GN=MGG_11383 PE=4 SV=1 | E58: >tr|G4MSU7|G4MSU7_MAGO7 Phosphoacetylglucosamine mutase OS=Magnaporthe oryzae (strain 70-15 / ATCC MYA-4617 / FGSC 8958) GN=MGG_11383 PE=4 SV=1 | F58: >tr|G4MSU7|G4MSU7_MAGO7 Phosphoacetylglucosamine mutase OS=Magnaporthe oryzae (strain 70-15 / ATCC MYA-4617 / FGSC 8958) GN=MGG_11383 PE=4 SV=1;>tr|L7I1H4|L7I1H4_MAGOY Phosphoacetylglucosamine mutase OS=Magnaporthe oryzae (strain Y34) GN=OOU_Y34scaffold006 | G58: + | H58: 1 | I58: K | J58: 141.13 | K58: _LVK(ac)VEVNDKDAFR_ | L58: X;X;X;X;X;X;X;X;X;X;X;X;X;X;X;Acetyl (K);X;X;X;X;X;Acetyl (K);X;X;X;X;X;X;X;X;X | M58: LVK(1)VEVNDKDAFR | N58: LVK(94.11)VEVNDK(-94.11)DAFR | O58: 3 | P58: 2 | Q58: 787.93048 | R58: 1.1422 | T58: 26598000 | U58: 29672000 | V58: 24624000 | W58: 26964666.67 | X58: 40777000 | Y58: 30637000 | Z58: 42148000 | AA58: 37854000 | AB58: 0.7123333509 | AC58: =_xlfn.T.TEST(T58:V58,X58:Z58,2,2) -> 0.04978135439
A59: >sp|A4QQN1|M2DH_MAGO7 Mannitol 2-dehydrogenase OS=Magnaporthe oryzae (strain 70-15 / ATCC MYA-4617 / FGSC 8958) GN=MGCH7_ch7g1113 PE=3 SV=1;>tr|L7IJT6|L7IJT6_MAGOY Mannitol 2-dehydrogenase OS=Magnaporthe oryzae (strain Y34) GN=OOU_Y34scaffold00167g2 PE=4 SV=1;>tr|L7IQT2|L7IQT2_MAGOP Mannitol 2-dehydrogenase OS=Magnaporthe oryzae (strain P131) GN=OOW_P131scaffold01657g2 PE=4 SV=1 | B59: 303;303;303 | C59: GVQVVKDVKDVEQFEKHKLRLLNASHSAMGY | D59: >sp|A4QQN1|M2DH_MAGO7 Mannitol 2-dehydrogenase OS=Magnaporthe oryzae (strain 70-15 / ATCC MYA-4617 / FGSC 8958) GN=MGCH7_ch7g1113 PE=3 SV=1 | E59: >sp|A4QQN1|M2DH_MAGO7 Mannitol 2-dehydrogenase OS=Magnaporthe oryzae (strain 70-15 / ATCC MYA-4617 / FGSC 8958) GN=MGCH7_ch7g1113 PE=3 SV=1 | F59: >sp|A4QQN1|M2DH_MAGO7 Mannitol 2-dehydrogenase OS=Magnaporthe oryzae (strain 70-15 / ATCC MYA-4617 / FGSC 8958) GN=MGCH7_ch7g1113 PE=3 SV=1;>tr|L7IJT6|L7IJT6_MAGOY Mannitol 2-dehydrogenase OS=Magnaporthe oryzae (strain Y34) GN=OOU_Y34scaffold00167g2 PE=4 S | G59: + | H59: 1 | I59: K | J59: 106.2 | K59: _DVEQFEK(ac)HK_ | L59: X;X;X;X;X;Acetyl (K);X;X;X;X;X;X;X;X;X;Acetyl (K);X;X;X;X;X;X;X;X;X;X;X;X;X;X;X | M59: DVEQFEK(1)HK | N59: DVEQFEK(101.65)HK(-101.65) | O59: 7 | P59: 2 | Q59: 601.29603 | R59: 0.12312 | T59: 15227000 | V59: 14033000 | W59: 14630000 | X59: 11928000 | Z59: 12146000 | AA59: 12037000 | AB59: 1.215419124 | AC59: =_xlfn.T.TEST(T59:V59,X59:Z59,2,2) -> 0.05064981938
A60: >tr|L7IF18|L7IF18_MAGOY Fatty acid synthase subunit alpha reductase OS=Magnaporthe oryzae (strain Y34) GN=OOU_Y34scaffold00255g48 PE=3 SV=1;>tr|L7J9L1|L7J9L1_MAGOP Fatty acid synthase subunit alpha reductase OS=Magnaporthe oryzae (strain P131) GN=OOW_P131scaffold00606g1 PE=3 SV=1;>tr|G4NIU0|G4NIU0_MAGO7 Fatty acid synthase subunit alpha OS=Magnaporthe oryzae (strain 70-15 / ATCC MYA-4617 / FGSC 8958) GN=MGG_12154 PE=3 SV=1 | B60: 1403;1403;1403 | C60: APGQGVLTTAKEHAGKLPSPLLDINYRRRQI | D60: >tr|L7IF18|L7IF18_MAGOY Fatty acid synthase subunit alpha reductase OS=Magnaporthe oryzae (strain Y34) GN=OOU_Y34scaffold00255g48 PE=3 SV=1 | E60: >tr|L7IF18|L7IF18_MAGOY Fatty acid synthase subunit alpha reductase OS=Magnaporthe oryzae (strain Y34) GN=OOU_Y34scaffold00255g48 PE=3 SV=1 | F60: >tr|L7IF18|L7IF18_MAGOY Fatty acid synthase subunit alpha reductase OS=Magnaporthe oryzae (strain Y34) GN=OOU_Y34scaffold00255g48 PE=3 SV=1;>tr|L7J9L1|L7J9L1_MAGOP Fatty acid synthase subunit alpha reductase OS=Magnaporthe oryzae (strain P131) GN=OOW_P131s | G60: + | H60: 1 | I60: K | J60: 83.106 | K60: _EHAGK(ac)LPSPLLDINYR_ | L60: X;X;X;X;X;X;X;X;X;X;X;X;X;X;X;Acetyl (K);X;X;X;X;X;X;X;X;X;X;X;X;X;X;X | M60: EHAGK(1)LPSPLLDINYR | N60: EHAGK(68.48)LPSPLLDINYR | O60: 5 | P60: 3 | Q60: 622.33538 | R60: 0.37543 | T60: 7615200 | U60: 8317400 | V60: 10383000 | W60: 8771866.667 | X60: 6613700 | Y60: 4980900 | Z60: 6543500 | AA60: 6046033.333 | AB60: 1.450846561 | AC60: =_xlfn.T.TEST(T60:V60,X60:Z60,2,2) -> 0.05075154874
A61: >tr|G4N700|G4N700_MAGO7 40S ribosomal protein S12 OS=Magnaporthe oryzae (strain 70-15 / ATCC MYA-4617 / FGSC 8958) GN=MGG_06480 PE=3 SV=1;>tr|L7IFB4|L7IFB4_MAGOY 40S ribosomal protein S12 OS=Magnaporthe oryzae (strain Y34) GN=OOU_Y34scaffold00247g53 PE=3 SV=1;>tr|L7IV14|L7IV14_MAGOP 40S ribosomal protein S12 OS=Magnaporthe oryzae (strain P131) GN=OOW_P131scaffold01381g20 PE=3 SV=1 | B61: 88;88;88 | C61: EEAYKKLVIALCSEHKIPLIKVPDGKQLGEW | D61: >tr|G4N700|G4N700_MAGO7 40S ribosomal protein S12 OS=Magnaporthe oryzae (strain 70-15 / ATCC MYA-4617 / FGSC 8958) GN=MGG_06480 PE=3 SV=1 | E61: >tr|G4N700|G4N700_MAGO7 40S ribosomal protein S12 OS=Magnaporthe oryzae (strain 70-15 / ATCC MYA-4617 / FGSC 8958) GN=MGG_06480 PE=3 SV=1 | F61: >tr|G4N700|G4N700_MAGO7 40S ribosomal protein S12 OS=Magnaporthe oryzae (strain 70-15 / ATCC MYA-4617 / FGSC 8958) GN=MGG_06480 PE=3 SV=1;>tr|L7IFB4|L7IFB4_MAGOY 40S ribosomal protein S12 OS=Magnaporthe oryzae (strain Y34) GN=OOU_Y34scaffold00247g53 PE=3 S | G61: + | H61: 1 | I61: K | J61: 129.93 | K61: _LVIALCSEHK(ac)IPLIK_ | L61: X;X;X;X;X;X;X;X;X;X;X;X;X;X;X;Acetyl (K);X;X;X;X;X;X;X;X;X;X;X;X;X;X;X | M61: LVIALCSEHK(1)IPLIK | N61: LVIALCSEHK(102.73)IPLIK(-102.73) | O61: 10 | P61: 2 | Q61: 888.52623 | R61: -0.27632 | T61: 7550400 | U61: 69828000 | V61: 40507000 | W61: 39295133.33 | X61: 95768000 | Y61: 79893000 | Z61: 131220000 | AA61: 102293666.7 | AB61: 0.3841404323 | AC61: =_xlfn.T.TEST(T61:V61,X61:Z61,2,2) -> 0.05539351667
A62: >tr|G4N028|G4N028_MAGO7 Uncharacterized protein OS=Magnaporthe oryzae (strain 70-15 / ATCC MYA-4617 / FGSC 8958) GN=MGG_06189 PE=4 SV=1;>tr|L7IIZ6|L7IIZ6_MAGOY Uncharacterized protein OS=Magnaporthe oryzae (strain Y34) GN=OOU_Y34scaffold00192g52 PE=4 SV=1;>tr|L7JC85|L7JC85_MAGOP Uncharacterized protein OS=Magnaporthe oryzae (strain P131) GN=OOW_P131scaffold00455g54 PE=4 SV=1 | B62: 87;87;87 | C62: MVDNKKIVSLSSTSLKKITGKMTLERDELLS | D62: >tr|G4N028|G4N028_MAGO7 Uncharacterized protein OS=Magnaporthe oryzae (strain 70-15 / ATCC MYA-4617 / FGSC 8958) GN=MGG_06189 PE=4 SV=1 | E62: >tr|G4N028|G4N028_MAGO7 Uncharacterized protein OS=Magnaporthe oryzae (strain 70-15 / ATCC MYA-4617 / FGSC 8958) GN=MGG_06189 PE=4 SV=1 | F62: >tr|G4N028|G4N028_MAGO7 Uncharacterized protein OS=Magnaporthe oryzae (strain 70-15 / ATCC MYA-4617 / FGSC 8958) GN=MGG_06189 PE=4 SV=1;>tr|L7IIZ6|L7IIZ6_MAGOY Uncharacterized protein OS=Magnaporthe oryzae (strain Y34) GN=OOU_Y34scaffold00192g52 PE=4 SV=1; | G62: + | H62: 1 | I62: K | J62: 108.37 | K62: _IVSLSSTSLK(ac)K_ | L62: X;X;X;X;X;X;X;X;X;X;X;X;X;X;X;Acetyl (K);X;X;X;X;X;X;X;X;X;X;X;X;X;X;X | M62: IVSLSSTSLK(1)K | N62: IVSLSSTSLK(52.55)K(-52.55) | O62: 10 | P62: 2 | Q62: 602.861 | R62: 0.0016957 | T62: 33075000 | U62: 32300000 | V62: 33672000 | W62: 33015666.67 | X62: 31289000 | Y62: 23883000 | Z62: 23955000 | AA62: 26375666.67 | AB62: 1.251747191 | AC62: =_xlfn.T.TEST(T62:V62,X62:Z62,2,2) -> 0.05591583142
A63: >tr|L7I2M0|L7I2M0_MAGOY Alpha-1,4 glucan phosphorylase OS=Magnaporthe oryzae (strain Y34) GN=OOU_Y34scaffold00641g56 PE=3 SV=1;>tr|L7JJE8|L7JJE8_MAGOP Alpha-1,4 glucan phosphorylase OS=Magnaporthe oryzae (strain P131) GN=OOW_P131scaffold00254g11 PE=3 SV=1;>tr|G4MW66|G4MW66_MAGO7 Alpha-1,4 glucan phosphorylase OS=Magnaporthe oryzae (strain 70-15 / ATCC MYA-4617 / FGSC 8958) GN=MGG_01819 PE=3 SV=1 | B63: 905;905;795 | C63: AHTYGKTHAIDPELLKVFDAIQAGKFGEPQN | D63: >tr|L7I2M0|L7I2M0_MAGOY Alpha-1,4 glucan phosphorylase OS=Magnaporthe oryzae (strain Y34) GN=OOU_Y34scaffold00641g56 PE=3 SV=1 | E63: >tr|L7I2M0|L7I2M0_MAGOY Alpha-1,4 glucan phosphorylase OS=Magnaporthe oryzae (strain Y34) GN=OOU_Y34scaffold00641g56 PE=3 SV=1 | F63: >tr|L7I2M0|L7I2M0_MAGOY Alpha-1,4 glucan phosphorylase OS=Magnaporthe oryzae (strain Y34) GN=OOU_Y34scaffold00641g56 PE=3 SV=1;>tr|L7JJE8|L7JJE8_MAGOP Alpha-1,4 glucan phosphorylase OS=Magnaporthe oryzae (strain P131) GN=OOW_P131scaffold00254g11 PE=3 SV=1; | G63: + | H63: 1 | I63: K | J63: 147.92 | K63: _THAIDPELLK(ac)VFDAIQAGK_ | L63: X;X;X;X;X;X;X;X;X;X;X;X;X;X;X;Acetyl (K);X;X;X;X;X;X;X;X;Acetyl (K);X;X;X;X;X;X | M63: THAIDPELLK(1)VFDAIQAGK | N63: THAIDPELLK(147.92)VFDAIQAGK(-147.92) | O63: 10 | P63: 3 | Q63: 703.38439 | R63: -0.74659 | T63: 4686400 | U63: 6766400 | V63: 5983000 | W63: 5811933.333 | X63: 21502000 | Y63: 9419700 | Z63: 14800000 | AA63: 15240566.67 | AB63: 0.3813462754 | AC63: =_xlfn.T.TEST(T63:V63,X63:Z63,2,2) -> 0.0564983786
A64: >tr|L7HTQ2|L7HTQ2_MAGOY Uncharacterized protein OS=Magnaporthe oryzae (strain Y34) GN=OOU_Y34scaffold00771g9 PE=4 SV=1;>tr|L7IVQ0|L7IVQ0_MAGOP Uncharacterized protein OS=Magnaporthe oryzae (strain P131) GN=OOW_P131scaffold01321g9 PE=4 SV=1;>tr|G4MM74|G4MM74_MAGO7 Uncharacterized protein OS=Magnaporthe oryzae (strain 70-15 / ATCC MYA-4617 / FGSC 8958) GN=MGG_05500 PE=4 SV=1 | B64: 579;579;571 | C64: PPATLSMEKLRISLVKHVVKELEALLRIVKS | D64: >tr|L7HTQ2|L7HTQ2_MAGOY Uncharacterized protein OS=Magnaporthe oryzae (strain Y34) GN=OOU_Y34scaffold00771g9 PE=4 SV=1 | E64: >tr|L7HTQ2|L7HTQ2_MAGOY Uncharacterized protein OS=Magnaporthe oryzae (strain Y34) GN=OOU_Y34scaffold00771g9 PE=4 SV=1 | F64: >tr|L7HTQ2|L7HTQ2_MAGOY Uncharacterized protein OS=Magnaporthe oryzae (strain Y34) GN=OOU_Y34scaffold00771g9 PE=4 SV=1;>tr|L7IVQ0|L7IVQ0_MAGOP Uncharacterized protein OS=Magnaporthe oryzae (strain P131) GN=OOW_P131scaffold01321g9 PE=4 SV=1;>tr|G4MM74|G4MM7 | G64: + | H64: 1 | I64: K | J64: 81.099 | K64: _ISLVK(ac)HVVK_ | L64: X;X;X;X;X;X;X;X;X;X;X;X;X;X;X;Acetyl (K);X;X;X;X;X;X;X;X;X;X;X;X;X;X;X | M64: ISLVK(1)HVVK | N64: ISLVK(77.14)HVVK(-77.14) | O64: 5 | P64: 2 | Q64: 532.84496 | R64: -0.46932 | T64: 9831500 | U64: 6983200 | W64: 8407350 | Y64: 14148000 | Z64: 13977000 | AA64: 14062500 | AB64: 0.597856 | AC64: =_xlfn.T.TEST(T64:V64,X64:Z64,2,2) -> 0.05815169033
A65: >tr|L7I538|L7I538_MAGOY Histone acetyltransferase GCN5 OS=Magnaporthe oryzae (strain Y34) GN=OOU_Y34scaffold00542g11 PE=4 SV=1;>tr|L7J0A9|L7J0A9_MAGOP Histone acetyltransferase GCN5 OS=Magnaporthe oryzae (strain P131) GN=OOW_P131scaffold01168g24 PE=4 SV=1;>tr|G4N6S1|G4N6S1_MAGO7 Histone acetyltransferase GCN5 OS=Magnaporthe oryzae (strain 70-15 / ATCC MYA-4617 / FGSC 8958) GN=MGG_03677 PE=4 SV=1 | B65: 85;85;26 | C65: GKRKATEDPASPVSAKRPKHESPDSPEKKKP | D65: >tr|L7I538|L7I538_MAGOY Histone acetyltransferase GCN5 OS=Magnaporthe oryzae (strain Y34) GN=OOU_Y34scaffold00542g11 PE=4 SV=1 | E65: >tr|L7I538|L7I538_MAGOY Histone acetyltransferase GCN5 OS=Magnaporthe oryzae (strain Y34) GN=OOU_Y34scaffold00542g11 PE=4 SV=1 | F65: >tr|L7I538|L7I538_MAGOY Histone acetyltransferase GCN5 OS=Magnaporthe oryzae (strain Y34) GN=OOU_Y34scaffold00542g11 PE=4 SV=1;>tr|L7J0A9|L7J0A9_MAGOP Histone acetyltransferase GCN5 OS=Magnaporthe oryzae (strain P131) GN=OOW_P131scaffold01168g24 PE=4 SV=1; | G65: + | H65: 1 | I65: K | J65: 127.83 | K65: _KATEDPASPVSAK(ac)RPK_ | L65: X;X;X;X;X;X;X;X;X;X;X;X;X;X;X;Acetyl (K);X;X;X;X;X;X;X;X;X;X;X;X;X;X;X | M65: KATEDPASPVSAK(1)RPK | N65: K(-123.74)ATEDPASPVSAK(123.74)RPK(-127.83) | O65: 13 | P65: 3 | Q65: 575.31609 | R65: 0.21372 | T65: 80377000 | U65: 130040000 | V65: 69779000 | W65: 93398666.67 | X65: 50803000 | Y65: 46255000 | Z65: 22152000 | AA65: 39736666.67 | AB65: 2.350440399 | AC65: =_xlfn.T.TEST(T65:V65,X65:Z65,2,2) -> 0.05967358597 | AD65: MGG_03677
A66: >tr|G4MSU7|G4MSU7_MAGO7 Phosphoacetylglucosamine mutase OS=Magnaporthe oryzae (strain 70-15 / ATCC MYA-4617 / FGSC 8958) GN=MGG_11383 PE=4 SV=1;>tr|L7I1H4|L7I1H4_MAGOY Phosphoacetylglucosamine mutase OS=Magnaporthe oryzae (strain Y34) GN=OOU_Y34scaffold00619g48 PE=4 SV=1;>tr|L7IW06|L7IW06_MAGOP Phosphoacetylglucosamine mutase OS=Magnaporthe oryzae (strain P131) GN=OOW_P131scaffold01358g86 PE=4 SV=1 | B66: 231;231;231 | C66: DCANGVGGPKLSEFLKHLRKLEQEQGLEKLI | D66: >tr|G4MSU7|G4MSU7_MAGO7 Phosphoacetylglucosamine mutase OS=Magnaporthe oryzae (strain 70-15 / ATCC MYA-4617 / FGSC 8958) GN=MGG_11383 PE=4 SV=1 | E66: >tr|G4MSU7|G4MSU7_MAGO7 Phosphoacetylglucosamine mutase OS=Magnaporthe oryzae (strain 70-15 / ATCC MYA-4617 / FGSC 8958) GN=MGG_11383 PE=4 SV=1 | F66: >tr|G4MSU7|G4MSU7_MAGO7 Phosphoacetylglucosamine mutase OS=Magnaporthe oryzae (strain 70-15 / ATCC MYA-4617 / FGSC 8958) GN=MGG_11383 PE=4 SV=1;>tr|L7I1H4|L7I1H4_MAGOY Phosphoacetylglucosamine mutase OS=Magnaporthe oryzae (strain Y34) GN=OOU_Y34scaffold006 | G66: + | H66: 1 | I66: K | J66: 86.67 | K66: _LSEFLK(ac)HLR_ | L66: X;X;X;X;X;X;X;X;X;X;X;X;X;X;X;Acetyl (K);X;X;X;X;X;X;X;X;X;X;X;X;Acetyl (K);X;X | M66: LSEFLK(1)HLR | N66: LSEFLK(76.22)HLR | O66: 6 | P66: 3 | Q66: 395.56439 | R66: -0.13938 | U66: 8994900 | V66: 7464400 | W66: =AVERAGE(T66:V66) -> 8229650 | X66: 17171000 | Z66: 13761000 | AA66: =AVERAGE(X66:Z66) -> 15466000 | AB66: =W66/AA66 -> 0.5321123755 | AC66: =_xlfn.T.TEST(T66:V66,X66:Z66,2,2) -> 0.06068965424
A67: >tr|L7I3A1|L7I3A1_MAGOY Uncharacterized protein OS=Magnaporthe oryzae (strain Y34) GN=OOU_Y34scaffold00594g15 PE=4 SV=1;>tr|G4MXJ0|G4MXJ0_MAGO7 Uncharacterized protein OS=Magnaporthe oryzae (strain 70-15 / ATCC MYA-4617 / FGSC 8958) GN=MGG_11259 PE=4 SV=1;>tr|L7J2Z0|L7J2Z0_MAGOP Uncharacterized protein OS=Magnaporthe oryzae (strain P131) GN=OOW_P131scaffold01065g10 PE=4 SV=1 | B67: 84;84;84 | C67: EAATETAAAETEEAKKEEKEVTPIEEGYLES | D67: >tr|L7I3A1|L7I3A1_MAGOY Uncharacterized protein OS=Magnaporthe oryzae (strain Y34) GN=OOU_Y34scaffold00594g15 PE=4 SV=1 | E67: >tr|L7I3A1|L7I3A1_MAGOY Uncharacterized protein OS=Magnaporthe oryzae (strain Y34) GN=OOU_Y34scaffold00594g15 PE=4 SV=1 | F67: >tr|L7I3A1|L7I3A1_MAGOY Uncharacterized protein OS=Magnaporthe oryzae (strain Y34) GN=OOU_Y34scaffold00594g15 PE=4 SV=1;>tr|G4MXJ0|G4MXJ0_MAGO7 Uncharacterized protein OS=Magnaporthe oryzae (strain 70-15 / ATCC MYA-4617 / FGSC 8958) GN=MGG_11259 PE=4 SV=1; | G67: + | H67: 1 | I67: K | J67: 180.88 | K67: _K(ac)EEKEVTPIEEGYLESK_ | L67: X;X;X;X;X;X;X;X;X;X;X;X;X;X;X;Acetyl (K);X;X;X;X;X;X;X;X;X;X;X;X;X;X;X | M67: K(1)EEKEVTPIEEGYLESK | N67: K(37.42)EEK(-37.42)EVTPIEEGYLESK(-180.88) | O67: 1 | P67: 2 | Q67: 1025.515 | R67: 0.51886 | T67: 98401000 | U67: 110260000 | V67: 82134000 | W67: 96931666.67 | X67: 69600000 | Y67: 77938000 | Z67: 76808000 | AA67: 74782000 | AB67: 1.296189814 | AC67: =_xlfn.T.TEST(T67:V67,X67:Z67,2,2) -> 0.06084867284
A68: >tr|L7HTF4|L7HTF4_MAGOY Fructose-bisphosphate aldolase OS=Magnaporthe oryzae (strain Y34) GN=OOU_Y34scaffold00782g1 PE=4 SV=1;>tr|L7JRU2|L7JRU2_MAGOP Fructose-bisphosphate aldolase OS=Magnaporthe oryzae (strain P131) GN=OOW_P131scaffold00057g1 PE=4 SV=1;>tr|G4NDL4|G4NDL4_MAGO7 Fructose-bisphosphate aldolase 1 OS=Magnaporthe oryzae (strain 70-15 / ATCC MYA-4617 / FGSC 8958) GN=MGG_00223 PE=4 SV=1 | B68: 326;326;308 | C68: LQWAYLSGIRDYVTSKIEYLNSQVGNPDGAD | D68: >tr|L7HTF4|L7HTF4_MAGOY Fructose-bisphosphate aldolase OS=Magnaporthe oryzae (strain Y34) GN=OOU_Y34scaffold00782g1 PE=4 SV=1 | E68: >tr|L7HTF4|L7HTF4_MAGOY Fructose-bisphosphate aldolase OS=Magnaporthe oryzae (strain Y34) GN=OOU_Y34scaffold00782g1 PE=4 SV=1 | F68: >tr|L7HTF4|L7HTF4_MAGOY Fructose-bisphosphate aldolase OS=Magnaporthe oryzae (strain Y34) GN=OOU_Y34scaffold00782g1 PE=4 SV=1;>tr|L7JRU2|L7JRU2_MAGOP Fructose-bisphosphate aldolase OS=Magnaporthe oryzae (strain P131) GN=OOW_P131scaffold00057g1 PE=4 SV=1;>t | G68: + | H68: 1 | I68: K | J68: 148.17 | K68: _DYVTSK(ac)IEYLNSQVGNPDGADKPNKK_ | L68: X;X;X;X;X;X;X;X;X;X;X;X;X;X;X;Acetyl (K);X;X;X;X;X;X;X;X;X;X;X;X;X;X;X | M68: DYVTSK(1)IEYLNSQVGNPDGADKPNKK | N68: DYVTSK(87.3)IEYLNSQVGNPDGADK(-87.3)PNK(-93.98)K(-124.86) | O68: 6 | P68: 3 | Q68: 974.82084 | R68: 0.10455 | T68: 19370000 | U68: 21732000 | W68: 20551000 | X68: 33013000 | Z68: 41448000 | AA68: 37230500 | AB68: 0.5519936611 | AC68: =_xlfn.T.TEST(T68:V68,X68:Z68,2,2) -> 0.06254970687
A69: >tr|G4NCV3|G4NCV3_MAGO7 C-1-tetrahydrofolate synthase OS=Magnaporthe oryzae (strain 70-15 / ATCC MYA-4617 / FGSC 8958) GN=MGG_01014 PE=3 SV=1;>tr|L7IAC0|L7IAC0_MAGOY C-1-tetrahydrofolate synthase OS=Magnaporthe oryzae (strain Y34) GN=OOU_Y34scaffold00462g64 PE=3 SV=1;>tr|L7J1G4|L7J1G4_MAGOP C-1-tetrahydrofolate synthase OS=Magnaporthe oryzae (strain P131) GN=OOW_P131scaffold01132g22 PE=3 SV=1 | B69: 682;670;670 | C69: DRHLRGITIGTAPTEKGQTRESGFDISVASE | D69: >tr|G4NCV3|G4NCV3_MAGO7 C-1-tetrahydrofolate synthase OS=Magnaporthe oryzae (strain 70-15 / ATCC MYA-4617 / FGSC 8958) GN=MGG_01014 PE=3 SV=1 | E69: >tr|G4NCV3|G4NCV3_MAGO7 C-1-tetrahydrofolate synthase OS=Magnaporthe oryzae (strain 70-15 / ATCC MYA-4617 / FGSC 8958) GN=MGG_01014 PE=3 SV=1 | F69: >tr|G4NCV3|G4NCV3_MAGO7 C-1-tetrahydrofolate synthase OS=Magnaporthe oryzae (strain 70-15 / ATCC MYA-4617 / FGSC 8958) GN=MGG_01014 PE=3 SV=1;>tr|L7IAC0|L7IAC0_MAGOY C-1-tetrahydrofolate synthase OS=Magnaporthe oryzae (strain Y34) GN=OOU_Y34scaffold00462g6 | G69: + | H69: 1 | I69: K | J69: 80.706 | K69: _GITIGTAPTEK(ac)GQTR_ | L69: X;X;X;X;X;X;X;X;X;X;X;X;X;X;X;Acetyl (K);X;X;X;X;X;X;X;X;X;X;X;X;X;X;X | M69: GITIGTAPTEK(1)GQTR | N69: GITIGTAPTEK(73.83)GQTR | O69: 11 | P69: 2 | Q69: 786.42302 | R69: -0.060501 | T69: 44871000 | U69: 57468000 | V69: 53025000 | W69: 51788000 | X69: 39642000 | Z69: 31708000 | AA69: 35675000 | AB69: 1.451660827 | AC69: =_xlfn.T.TEST(T69:V69,X69:Z69,2,2) -> 0.06381103801
A70: >sp|L7HZV6|H2A_MAGOY Histone H2A OS=Magnaporthe oryzae (strain Y34) GN=HTA1 PE=2 SV=1;>sp|P0CT12|H2A_MAGO7 Histone H2A OS=Magnaporthe oryzae (strain 70-15 / ATCC MYA-4617 / FGSC 8958) GN=HTA1 PE=3 SV=1;>tr|L7IUS0|L7IUS0_MAGOP Histone H2A OS=Magnaporthe oryzae (strain P131) GN=OOW_P131scaffold01337g48 PE=3 SV=1 | B70: 10;10;10 | C70: ______MTGGGKSGGKASGSKNAQSRSSKAG | D70: >sp|L7HZV6|H2A_MAGOY Histone H2A OS=Magnaporthe oryzae (strain Y34) GN=HTA1 PE=2 SV=1 | E70: >sp|L7HZV6|H2A_MAGOY Histone H2A OS=Magnaporthe oryzae (strain Y34) GN=HTA1 PE=2 SV=1 | F70: >sp|L7HZV6|H2A_MAGOY Histone H2A OS=Magnaporthe oryzae (strain Y34) GN=HTA1 PE=2 SV=1;>sp|P0CT12|H2A_MAGO7 Histone H2A OS=Magnaporthe oryzae (strain 70-15 / ATCC MYA-4617 / FGSC 8958) GN=HTA1 PE=3 SV=1;>tr|L7IUS0|L7IUS0_MAGOP Histone H2A OS=Magnaporthe ory | G70: + | H70: 2 | I70: K | J70: 140.27 | K70: _(ac)TGGGK(ac)SGGK(ac)ASGSK_ | L70: X;X;X;X;X;X;X;X;X;X;X;Acetyl (K);X;X;X;Acetyl (K);X;X;X;X;Acetyl (K);X;X;X;X;X;X;X;Acetyl (K);X;X | M70: TGGGK(1)SGGK(1)ASGSK | N70: TGGGK(76.57)SGGK(76.57)ASGSK(-76.57) | O70: 9 | P70: 2 | Q70: 652.82568 | R70: 0.067562 | T70: 465320000 | U70: 550330000 | V70: 878530000 | W70: 631393333.3 | X70: 239820000 | Y70: 239910000 | Z70: 401450000 | AA70: 293726666.7 | AB70: 2.149594861 | AC70: =_xlfn.T.TEST(T70:V70,X70:Z70,2,2) -> 0.06935561151
A71: >sp|L7HZV6|H2A_MAGOY Histone H2A OS=Magnaporthe oryzae (strain Y34) GN=HTA1 PE=2 SV=1;>sp|P0CT12|H2A_MAGO7 Histone H2A OS=Magnaporthe oryzae (strain 70-15 / ATCC MYA-4617 / FGSC 8958) GN=HTA1 PE=3 SV=1;>tr|L7IUS0|L7IUS0_MAGOP Histone H2A OS=Magnaporthe oryzae (strain P131) GN=OOW_P131scaffold01337g48 PE=3 SV=1 | B71: 6;6;6 | C71: __________MTGGGKSGGKASGSKNAQSRS | D71: >sp|L7HZV6|H2A_MAGOY Histone H2A OS=Magnaporthe oryzae (strain Y34) GN=HTA1 PE=2 SV=1 | E71: >sp|L7HZV6|H2A_MAGOY Histone H2A OS=Magnaporthe oryzae (strain Y34) GN=HTA1 PE=2 SV=1 | F71: >sp|L7HZV6|H2A_MAGOY Histone H2A OS=Magnaporthe oryzae (strain Y34) GN=HTA1 PE=2 SV=1;>sp|P0CT12|H2A_MAGO7 Histone H2A OS=Magnaporthe oryzae (strain 70-15 / ATCC MYA-4617 / FGSC 8958) GN=HTA1 PE=3 SV=1;>tr|L7IUS0|L7IUS0_MAGOP Histone H2A OS=Magnaporthe ory | G71: + | H71: 2 | I71: K | J71: 140.27 | K71: _(ac)TGGGK(ac)SGGK(ac)ASGSK_ | L71: X;X;X;X;X;X;X;X;X;X;X;X;X;X;X;Acetyl (K);X;X;X;Acetyl (K);X;X;X;X;Acetyl (K);X;X;X;X;X;X | M71: TGGGK(1)SGGK(1)ASGSK | N71: TGGGK(76.57)SGGK(76.57)ASGSK(-76.57) | O71: 5 | P71: 2 | Q71: 652.82568 | R71: 0.067562 | T71: 465320000 | U71: 550330000 | V71: 878530000 | W71: 631393333.3 | X71: 239820000 | Y71: 239910000 | Z71: 401450000 | AA71: 293726666.7 | AB71: 2.149594861 | AC71: =_xlfn.T.TEST(T71:V71,X71:Z71,2,2) -> 0.06935561151
A72: >tr|D4NXH9|D4NXH9_MAGOR Rpl11ap OS=Magnaporthe oryzae PE=2 SV=1;>tr|G4N0M8|G4N0M8_MAGO7 60S ribosomal protein L11 OS=Magnaporthe oryzae (strain 70-15 / ATCC MYA-4617 / FGSC 8958) GN=MGG_07753 PE=3 SV=1;>tr|L7IM72|L7IM72_MAGOY 60S ribosomal protein L11 OS=Magnaporthe oryzae (strain Y34) GN=OOU_Y34scaffold00090g18 PE=3 SV=1;>tr|L7IXC3|L7IXC3_MAGOP 60S ribosomal protein L11 OS=Magnaporthe oryzae (strain P131) GN=OOW_P131scaffold01278g18 PE=3 SV=1 | B72: 154;154;154;154 | C72: VSRRRRCKSRVGTSHKINRLETMKWFKSRFD | D72: >tr|D4NXH9|D4NXH9_MAGOR Rpl11ap OS=Magnaporthe oryzae PE=2 SV=1 | E72: >tr|D4NXH9|D4NXH9_MAGOR Rpl11ap OS=Magnaporthe oryzae PE=2 SV=1 | F72: >tr|D4NXH9|D4NXH9_MAGOR Rpl11ap OS=Magnaporthe oryzae PE=2 SV=1;>tr|G4N0M8|G4N0M8_MAGO7 60S ribosomal protein L11 OS=Magnaporthe oryzae (strain 70-15 / ATCC MYA-4617 / FGSC 8958) GN=MGG_07753 PE=3 SV=1;>tr|L7IM72|L7IM72_MAGOY 60S ribosomal protein L11 OS=M | G72: + | H72: 1 | I72: K | J72: 102.61 | K72: _VGTSHK(ac)INR_ | L72: X;X;X;X;X;X;X;X;X;X;X;X;X;X;X;Acetyl (K);X;X;X;X;X;X;X;X;X;X;X;X;X;X;X | M72: VGTSHK(1)INR | N72: VGTSHK(89.25)INR | O72: 6 | P72: 3 | Q72: 351.86484 | R72: 0.43746 | T72: 28417000 | U72: 31874000 | V72: 28296000 | W72: 29529000 | X72: 25644000 | Z72: 24992000 | AA72: 25318000 | AB72: 1.166324354 | AC72: =_xlfn.T.TEST(T72:V72,X72:Z72,2,2) -> 0.07100441444
A73: >sp|Q52B93|PACC_MAGO7 pH-response transcription factor pacC/RIM101 OS=Magnaporthe oryzae (strain 70-15 / ATCC MYA-4617 / FGSC 8958) GN=RIM101 PE=3 SV=2;>tr|G0Z5I9|G0Z5I9_MAGOR PacC OS=Magnaporthe oryzae PE=2 SV=1;>tr|L7IMI0|L7IMI0_MAGOY pH-response transcription factor pacC/RIM101 OS=Magnaporthe oryzae (strain Y34) GN=OOU_Y34scaffold00087g46 PE=4 SV=1;>tr|L7JG11|L7JG11_MAGOP pH-response transcription factor pacC/RIM101 OS=Magnaporthe oryzae (strain P131) GN=OOW_P131scaffold00353g7 PE=4 SV=1 | B73: 168;168;168;168 | C73: PNANLGPGAYRGHASKAPSSYYDHNGHVRTN | D73: >sp|Q52B93|PACC_MAGO7 pH-response transcription factor pacC/RIM101 OS=Magnaporthe oryzae (strain 70-15 / ATCC MYA-4617 / FGSC 8958) GN=RIM101 PE=3 SV=2 | E73: >sp|Q52B93|PACC_MAGO7 pH-response transcription factor pacC/RIM101 OS=Magnaporthe oryzae (strain 70-15 / ATCC MYA-4617 / FGSC 8958) GN=RIM101 PE=3 SV=2 | F73: >sp|Q52B93|PACC_MAGO7 pH-response transcription factor pacC/RIM101 OS=Magnaporthe oryzae (strain 70-15 / ATCC MYA-4617 / FGSC 8958) GN=RIM101 PE=3 SV=2;>tr|G0Z5I9|G0Z5I9_MAGOR PacC OS=Magnaporthe oryzae PE=2 SV=1;>tr|L7IMI0|L7IMI0_MAGOY pH-response transcr | G73: + | H73: 1 | I73: K | J73: 229.02 | K73: _GHASK(ac)APSSYYDHNGHVR_ | L73: X;X;X;X;X;X;X;X;X;X;X;X;X;X;X;Acetyl (K);X;X;X;X;X;X;X;X;X;X;X;X;X;X;X | M73: GHASK(1)APSSYYDHNGHVR | N73: GHASK(37.85)APSSYYDHNGHVR | O73: 5 | P73: 3 | Q73: 675.6489 | R73: -0.30411 | T73: 25951000 | U73: 82443000 | V73: 60617000 | W73: 56337000 | X73: 139900000 | Y73: 131330000 | Z73: 79797000 | AA73: 117009000 | AB73: 0.4814757839 | AC73: =_xlfn.T.TEST(T73:V73,X73:Z73,2,2) -> 0.07189501911
A74: >tr|G4N4Z8|G4N4Z8_MAGO7 Uncharacterized protein OS=Magnaporthe oryzae (strain 70-15 / ATCC MYA-4617 / FGSC 8958) GN=MGG_05177 PE=4 SV=1;>tr|L7I718|L7I718_MAGOY Uncharacterized protein OS=Magnaporthe oryzae (strain Y34) GN=OOU_Y34scaffold00516g64 PE=4 SV=1;>tr|L7J7I9|L7J7I9_MAGOP Uncharacterized protein OS=Magnaporthe oryzae (strain P131) GN=OOW_P131scaffold00982g68 PE=4 SV=1 | B74: 295;295;295 | C74: VEARLGDLDLKDQTTKLDYWRDMELELQEQG | D74: >tr|G4N4Z8|G4N4Z8_MAGO7 Uncharacterized protein OS=Magnaporthe oryzae (strain 70-15 / ATCC MYA-4617 / FGSC 8958) GN=MGG_05177 PE=4 SV=1 | E74: >tr|G4N4Z8|G4N4Z8_MAGO7 Uncharacterized protein OS=Magnaporthe oryzae (strain 70-15 / ATCC MYA-4617 / FGSC 8958) GN=MGG_05177 PE=4 SV=1 | F74: >tr|G4N4Z8|G4N4Z8_MAGO7 Uncharacterized protein OS=Magnaporthe oryzae (strain 70-15 / ATCC MYA-4617 / FGSC 8958) GN=MGG_05177 PE=4 SV=1;>tr|L7I718|L7I718_MAGOY Uncharacterized protein OS=Magnaporthe oryzae (strain Y34) GN=OOU_Y34scaffold00516g64 PE=4 SV=1; | G74: + | H74: 1 | I74: K | J74: 94.66 | K74: _DQTTK(ac)LDYWR_ | L74: X;X;X;X;X;X;X;X;X;X;X;X;X;X;X;Acetyl (K);X;X;X;X;X;X;X;X;X;X;X;X;X;X;X | M74: DQTTK(1)LDYWR | N74: DQTTK(94.66)LDYWR | O74: 5 | P74: 2 | Q74: 684.33314 | R74: -0.093851 | U74: 9615000 | V74: 10488000 | W74: 10051500 | X74: 23191000 | Y74: 16647000 | Z74: 15558000 | AA74: 18465333.33 | AB74: 0.544344357 | AC74: =_xlfn.T.TEST(T74:V74,X74:Z74,2,2) -> 0.07260936207
A75: >tr|L7JLQ6|L7JLQ6_MAGOP NADH-ubiquinone oxidoreductase 51 kDa subunit OS=Magnaporthe oryzae (strain P131) GN=OOW_P131scaffold00218g2 PE=4 SV=1;>tr|L7II08|L7II08_MAGOY NADH-ubiquinone oxidoreductase 51 kDa subunit OS=Magnaporthe oryzae (strain Y34) GN=OOU_Y34scaffold00226g2 PE=4 SV=1;>tr|G4NB24|G4NB24_MAGO7 Uncharacterized protein OS=Magnaporthe oryzae (strain 70-15 / ATCC MYA-4617 / FGSC 8958) GN=MGG_00647 PE=4 SV=1 | B75: 318;318;318 | C75: TVEEEMSIPMRELIEKHCGGVRGGWDNLLAV | D75: >tr|L7JLQ6|L7JLQ6_MAGOP NADH-ubiquinone oxidoreductase 51 kDa subunit OS=Magnaporthe oryzae (strain P131) GN=OOW_P131scaffold00218g2 PE=4 SV=1 | E75: >tr|L7JLQ6|L7JLQ6_MAGOP NADH-ubiquinone oxidoreductase 51 kDa subunit OS=Magnaporthe oryzae (strain P131) GN=OOW_P131scaffold00218g2 PE=4 SV=1 | F75: >tr|L7JLQ6|L7JLQ6_MAGOP NADH-ubiquinone oxidoreductase 51 kDa subunit OS=Magnaporthe oryzae (strain P131) GN=OOW_P131scaffold00218g2 PE=4 SV=1;>tr|L7II08|L7II08_MAGOY NADH-ubiquinone oxidoreductase 51 kDa subunit OS=Magnaporthe oryzae (strain Y34) GN=OOU_Y | G75: + | H75: 1 | I75: K | J75: 97.813 | K75: _ELIEK(ac)HCGGVR_ | L75: X;X;X;X;X;X;X;X;X;X;X;X;X;X;X;Acetyl (K);X;X;X;X;X;X;X;X;X;X;X;X;X;X;X | M75: ELIEK(1)HCGGVR | N75: ELIEK(97.81)HCGGVR | O75: 5 | P75: 2 | Q75: 670.34299 | R75: -2.7178 | U75: 6370600 | V75: 6069000 | W75: 6219800 | X75: 15615000 | Y75: 11368000 | AA75: 13491500 | AB75: 0.4610161954 | AC75: =_xlfn.T.TEST(T75:V75,X75:Z75,2,2) -> 0.07605797681
A76: >tr|L7IWV8|L7IWV8_MAGOP Choline monooxygenase OS=Magnaporthe oryzae (strain P131) GN=OOW_P131scaffold01316g11 PE=4 SV=1;>tr|G4MVI0|G4MVI0_MAGO7 Choline monooxygenase OS=Magnaporthe oryzae (strain 70-15 / ATCC MYA-4617 / FGSC 8958) GN=MGG_12423 PE=4 SV=1;>tr|L7IQR3|L7IQR3_MAGOY Choline monooxygenase OS=Magnaporthe oryzae (strain Y34) GN=OOU_Y34scaffold00034g7 PE=4 SV=1 | B76: 132;132;132 | C76: CKYHGWSYGLKGNLAKAPGYQEIPGFDRAQN | D76: >tr|L7IWV8|L7IWV8_MAGOP Choline monooxygenase OS=Magnaporthe oryzae (strain P131) GN=OOW_P131scaffold01316g11 PE=4 SV=1 | E76: >tr|L7IWV8|L7IWV8_MAGOP Choline monooxygenase OS=Magnaporthe oryzae (strain P131) GN=OOW_P131scaffold01316g11 PE=4 SV=1 | F76: >tr|L7IWV8|L7IWV8_MAGOP Choline monooxygenase OS=Magnaporthe oryzae (strain P131) GN=OOW_P131scaffold01316g11 PE=4 SV=1;>tr|G4MVI0|G4MVI0_MAGO7 Choline monooxygenase OS=Magnaporthe oryzae (strain 70-15 / ATCC MYA-4617 / FGSC 8958) GN=MGG_12423 PE=4 SV=1;>t | G76: + | H76: 1 | I76: K | J76: 113.47 | K76: _GNLAK(ac)APGYQEIPGFDR_ | L76: X;X;X;X;X;X;X;X;X;X;X;X;X;X;X;Acetyl (K);X;X;X;X;X;X;X;X;X;X;X;X;X;X;X | M76: GNLAK(1)APGYQEIPGFDR | N76: GNLAK(98.51)APGYQEIPGFDR | O76: 5 | P76: 2 | Q76: 937.97341 | R76: 0.73865 | T76: 18468000 | U76: 24410000 | V76: 29463000 | W76: 24113666.67 | X76: 16800000 | Y76: 15731000 | Z76: 17214000 | AA76: 16581666.67 | AB76: 1.454236607 | AC76: =_xlfn.T.TEST(T76:V76,X76:Z76,2,2) -> 0.07869787614
A77: >tr|G4NCY1|G4NCY1_MAGO7 Glucosamine-fructose-6-phosphate aminotransferase OS=Magnaporthe oryzae (strain 70-15 / ATCC MYA-4617 / FGSC 8958) GN=MGG_11597 PE=4 SV=1;>tr|L7I418|L7I418_MAGOY Glucosamine-fructose-6-phosphate aminotransferase OS=Magnaporthe oryzae (strain Y34) GN=OOU_Y34scaffold00608g34 PE=4 SV=1;>tr|L7JME2|L7JME2_MAGOP Glucosamine-fructose-6-phosphate aminotransferase OS=Magnaporthe oryzae (strain P131) GN=OOW_P131scaffold00220g63 PE=4 SV=1 | B77: 157;157;157 | C77: ECIAKLAKYLYDHNPKLGFTDLAKAVINELE | D77: >tr|G4NCY1|G4NCY1_MAGO7 Glucosamine-fructose-6-phosphate aminotransferase OS=Magnaporthe oryzae (strain 70-15 / ATCC MYA-4617 / FGSC 8958) GN=MGG_11597 PE=4 SV=1 | E77: >tr|G4NCY1|G4NCY1_MAGO7 Glucosamine-fructose-6-phosphate aminotransferase OS=Magnaporthe oryzae (strain 70-15 / ATCC MYA-4617 / FGSC 8958) GN=MGG_11597 PE=4 SV=1 | F77: >tr|G4NCY1|G4NCY1_MAGO7 Glucosamine-fructose-6-phosphate aminotransferase OS=Magnaporthe oryzae (strain 70-15 / ATCC MYA-4617 / FGSC 8958) GN=MGG_11597 PE=4 SV=1;>tr|L7I418|L7I418_MAGOY Glucosamine-fructose-6-phosphate aminotransferase OS=Magnaporthe oryza | G77: + | H77: 1 | I77: K | J77: 106.36 | K77: _YLYDHNPK(ac)LGFTDLAK_ | L77: X;X;X;X;Acetyl (K);X;X;X;X;X;X;X;X;X;X;Acetyl (K);X;X;X;X;X;X;X;X;X;X;X;X;X;X;X | M77: YLYDHNPK(1)LGFTDLAK | N77: YLYDHNPK(83.11)LGFTDLAK(-83.11) | O77: 8 | P77: 2 | Q77: 968.99381 | R77: 1.0834 | T77: 9294700 | U77: 10672000 | W77: 9983350 | X77: 44417000 | Y77: 20536000 | Z77: 35056000 | AA77: 33336333.33 | AB77: 0.2994735474 | AC77: =_xlfn.T.TEST(T77:V77,X77:Z77,2,2) -> 0.08040879469
A78: >tr|L7IL40|L7IL40_MAGOY C2 domain-containing protein OS=Magnaporthe oryzae (strain Y34) GN=OOU_Y34scaffold00162g1 PE=4 SV=1;>tr|L7JQS2|L7JQS2_MAGOP C2 domain-containing protein OS=Magnaporthe oryzae (strain P131) GN=OOW_P131scaffold00005g18 PE=4 SV=1;>tr|G4MTX9|G4MTX9_MAGO7 Inorganic pyrophosphatase OS=Magnaporthe oryzae (strain 70-15 / ATCC MYA-4617 / FGSC 8958) GN=MGG_15739 PE=4 SV=1 | B78: 1762;1762;76 | C78: EISKDELLNPIKQDIKKGKLRYVRNCFPHKG | D78: >tr|L7IL40|L7IL40_MAGOY C2 domain-containing protein OS=Magnaporthe oryzae (strain Y34) GN=OOU_Y34scaffold00162g1 PE=4 SV=1 | E78: >tr|L7IL40|L7IL40_MAGOY C2 domain-containing protein OS=Magnaporthe oryzae (strain Y34) GN=OOU_Y34scaffold00162g1 PE=4 SV=1 | F78: >tr|L7IL40|L7IL40_MAGOY C2 domain-containing protein OS=Magnaporthe oryzae (strain Y34) GN=OOU_Y34scaffold00162g1 PE=4 SV=1;>tr|L7JQS2|L7JQS2_MAGOP C2 domain-containing protein OS=Magnaporthe oryzae (strain P131) GN=OOW_P131scaffold00005g18 PE=4 SV=1;>tr|G | G78: + | H78: 1 | I78: K | J78: 232.54 | K78: _LEISKDELLNPIKQDIK(ac)K_ | L78: X;X;X;X;X;X;X;X;X;X;X;X;X;X;X;Acetyl (K);X;X;X;X;X;X;X;X;X;X;X;X;X;X;X | M78: LEISKDELLNPIKQDIK(1)K | N78: LEISK(-165.87)DELLNPIK(-65.97)QDIK(65.97)K(-232.54) | O78: 17 | P78: 3 | Q78: 722.75085 | R78: -0.034043 | T78: 84910000 | U78: 108160000 | V78: 63745000 | W78: 85605000 | X78: 124040000 | Y78: 110180000 | Z78: 116440000 | AA78: 116886666.7 | AB78: 0.7323760908 | AC78: =_xlfn.T.TEST(T78:V78,X78:Z78,2,2) -> 0.08043561746
A79: >tr|G4ND56|G4ND56_MAGO7 Mitochondrial outer membrane protein porin OS=Magnaporthe oryzae (strain 70-15 / ATCC MYA-4617 / FGSC 8958) GN=MGG_00968 PE=4 SV=1;>tr|L7I9Z0|L7I9Z0_MAGOY Outer mitochondrial membrane protein porin OS=Magnaporthe oryzae (strain Y34) GN=OOU_Y34scaffold00462g13 PE=4 SV=1;>tr|L7JP39|L7JP39_MAGOP Outer mitochondrial membrane protein porin OS=Magnaporthe oryzae (strain P131) GN=OOW_P131scaffold00114g16 PE=4 SV=1 | B79: 224;293;293 | C79: WNSKIGNSVGLEVATKYRIDPLSFVKGKIND | D79: >tr|G4ND56|G4ND56_MAGO7 Mitochondrial outer membrane protein porin OS=Magnaporthe oryzae (strain 70-15 / ATCC MYA-4617 / FGSC 8958) GN=MGG_00968 PE=4 SV=1;>tr|L7I9Z0|L7I9Z0_MAGOY Outer mitochondrial membrane protein porin OS=Magnaporthe oryzae (strain Y34) GN=OOU_Y34scaffold00462g13 PE=4 SV=1 | E79: >tr|G4ND56|G4ND56_MAGO7 Mitochondrial outer membrane protein porin OS=Magnaporthe oryzae (strain 70-15 / ATCC MYA-4617 / FGSC 8958) GN=MGG_00968 PE=4 SV=1 | F79: >tr|G4ND56|G4ND56_MAGO7 Mitochondrial outer membrane protein porin OS=Magnaporthe oryzae (strain 70-15 / ATCC MYA-4617 / FGSC 8958) GN=MGG_00968 PE=4 SV=1;>tr|L7I9Z0|L7I9Z0_MAGOY Outer mitochondrial membrane protein porin OS=Magnaporthe oryzae (strain Y34) | G79: + | H79: 1 | I79: K | J79: 116.96 | K79: _IGNSVGLEVATK(ac)YR_ | L79: X;X;X;X;X;X;X;X;X;X;X;X;X;X;X;Acetyl (K);X;X;X;X;X;X;X;X;X;X;X;X;X;X;X | M79: IGNSVGLEVATK(1)YR | N79: IGNSVGLEVATK(98.94)YR | O79: 12 | P79: 2 | Q79: 774.92265 | R79: 0.37081 | T79: 25356000 | U79: 28647000 | V79: 23706000 | W79: 25903000 | X79: 52404000 | Y79: 74317000 | Z79: 33648000 | AA79: 53456333.33 | AB79: 0.4845637249 | AC79: =_xlfn.T.TEST(T79:V79,X79:Z79,2,2) -> 0.0805268057
A80: >tr|G4N8I5|G4N8I5_MAGO7 Ribosome biogenesis protein Kri1 OS=Magnaporthe oryzae (strain 70-15 / ATCC MYA-4617 / FGSC 8958) GN=MGG_06242 PE=4 SV=1;>tr|L7HUN7|L7HUN7_MAGOY Ribosome biogenesis protein Kri1 OS=Magnaporthe oryzae (strain Y34) GN=OOU_Y34scaffold00748g7 PE=4 SV=1;>tr|L7JQJ5|L7JQJ5_MAGOP Ribosome biogenesis protein Kri1 OS=Magnaporthe oryzae (strain P131) GN=OOW_P131scaffold00027g13 PE=4 SV=1 | B80: 338;338;338 | C80: SNEVLQSYSRTLVAAKTVRREETKGRKRQRE | D80: >tr|G4N8I5|G4N8I5_MAGO7 Ribosome biogenesis protein Kri1 OS=Magnaporthe oryzae (strain 70-15 / ATCC MYA-4617 / FGSC 8958) GN=MGG_06242 PE=4 SV=1 | E80: >tr|G4N8I5|G4N8I5_MAGO7 Ribosome biogenesis protein Kri1 OS=Magnaporthe oryzae (strain 70-15 / ATCC MYA-4617 / FGSC 8958) GN=MGG_06242 PE=4 SV=1 | F80: >tr|G4N8I5|G4N8I5_MAGO7 Ribosome biogenesis protein Kri1 OS=Magnaporthe oryzae (strain 70-15 / ATCC MYA-4617 / FGSC 8958) GN=MGG_06242 PE=4 SV=1;>tr|L7HUN7|L7HUN7_MAGOY Ribosome biogenesis protein Kri1 OS=Magnaporthe oryzae (strain Y34) GN=OOU_Y34scaffold0 | G80: + | H80: 1 | I80: K | J80: 105.2 | K80: _TLVAAK(ac)TVR_ | L80: X;X;X;X;X;X;X;X;X;X;X;X;X;X;X;Acetyl (K);X;X;X;X;X;X;X;X;X;X;X;X;X;X;X | M80: TLVAAK(1)TVR | N80: TLVAAK(87.15)TVR | O80: 6 | P80: 2 | Q80: 500.81112 | R80: 0.24412 | T80: 56890000 | U80: 65229000 | V80: 56667000 | W80: 59595333.33 | X80: 50690000 | Y80: 47124000 | Z80: 27605000 | AA80: 41806333.33 | AB80: 1.425509692 | AC80: =_xlfn.T.TEST(T80:V80,X80:Z80,2,2) -> 0.0822332734
A81: >tr|G4MV25|G4MV25_MAGO7 1,3-beta-glucanosyltransferase OS=Magnaporthe oryzae (strain 70-15 / ATCC MYA-4617 / FGSC 8958) GN=MGG_07331 PE=3 SV=1;>tr|L7IC68|L7IC68_MAGOY 1,3-beta-glucanosyltransferase OS=Magnaporthe oryzae (strain Y34) GN=OOU_Y34scaffold00461g35 PE=3 SV=1;>tr|L7J0G6|L7J0G6_MAGOP 1,3-beta-glucanosyltransferase OS=Magnaporthe oryzae (strain P131) GN=OOW_P131scaffold01162g1 PE=3 SV=1 | B81: 67;67;67 | C81: WQPGASAGNKDPLADKKICMRDLEKFKKLGV | D81: >tr|G4MV25|G4MV25_MAGO7 1,3-beta-glucanosyltransferase OS=Magnaporthe oryzae (strain 70-15 / ATCC MYA-4617 / FGSC 8958) GN=MGG_07331 PE=3 SV=1 | E81: >tr|G4MV25|G4MV25_MAGO7 1,3-beta-glucanosyltransferase OS=Magnaporthe oryzae (strain 70-15 / ATCC MYA-4617 / FGSC 8958) GN=MGG_07331 PE=3 SV=1 | F81: >tr|G4MV25|G4MV25_MAGO7 1,3-beta-glucanosyltransferase OS=Magnaporthe oryzae (strain 70-15 / ATCC MYA-4617 / FGSC 8958) GN=MGG_07331 PE=3 SV=1;>tr|L7IC68|L7IC68_MAGOY 1,3-beta-glucanosyltransferase OS=Magnaporthe oryzae (strain Y34) GN=OOU_Y34scaffold00461 | G81: + | H81: 1 | I81: K | J81: 80.156 | K81: _GIAWQPGASAGNKDPLADK(ac)K_ | L81: X;X;X;X;X;X;X;X;X;X;X;X;X;X;X;Acetyl (K);X;X;X;X;X;X;X;X;X;X;X;X;X;X;X | M81: GIAWQPGASAGNKDPLADK(1)K | N81: GIAWQPGASAGNK(-37.52)DPLADK(37.52)K(-80.16) | O81: 19 | P81: 3 | Q81: 689.36036 | R81: 0.2066 | U81: 25908000 | V81: 19485000 | W81: 22696500 | X81: 12698000 | Z81: 10160000 | AA81: 11429000 | AB81: 1.98586928 | AC81: =_xlfn.T.TEST(T81:V81,X81:Z81,2,2) -> 0.08247043602
A82: >tr|G4MSC0|G4MSC0_MAGO7 60S ribosomal protein L6 OS=Magnaporthe oryzae (strain 70-15 / ATCC MYA-4617 / FGSC 8958) GN=MGG_04444 PE=3 SV=1;>tr|L7HX47|L7HX47_MAGOY 60S ribosomal protein L6 OS=Magnaporthe oryzae (strain Y34) GN=OOU_Y34scaffold00744g46 PE=3 SV=1;>tr|L7IUW5|L7IUW5_MAGOP 60S ribosomal protein L6 OS=Magnaporthe oryzae (strain P131) GN=OOW_P131scaffold01358g13 PE=3 SV=1 | B82: 28;28;28 | C82: GKASRTVPHHSQKASKWYPATDDNGPKAVRK | D82: >tr|G4MSC0|G4MSC0_MAGO7 60S ribosomal protein L6 OS=Magnaporthe oryzae (strain 70-15 / ATCC MYA-4617 / FGSC 8958) GN=MGG_04444 PE=3 SV=1 | E82: >tr|G4MSC0|G4MSC0_MAGO7 60S ribosomal protein L6 OS=Magnaporthe oryzae (strain 70-15 / ATCC MYA-4617 / FGSC 8958) GN=MGG_04444 PE=3 SV=1 | F82: >tr|G4MSC0|G4MSC0_MAGO7 60S ribosomal protein L6 OS=Magnaporthe oryzae (strain 70-15 / ATCC MYA-4617 / FGSC 8958) GN=MGG_04444 PE=3 SV=1;>tr|L7HX47|L7HX47_MAGOY 60S ribosomal protein L6 OS=Magnaporthe oryzae (strain Y34) GN=OOU_Y34scaffold00744g46 PE=3 SV= | G82: + | H82: 1 | I82: K | J82: 136.51 | K82: _ASK(ac)WYPATDDNGPK_ | L82: X;Acetyl (K);X;X;X;X;X;X;X;X;X;X;X;X;X;Acetyl (K);X;X;X;X;X;X;X;X;X;X;X;X;X;X;X | M82: ASK(1)WYPATDDNGPK | N82: ASK(122.78)WYPATDDNGPK(-122.78) | O82: 3 | P82: 2 | Q82: 796.37299 | R82: 0.084564 | T82: 1256000000 | U82: 1453200000 | V82: 1768400000 | W82: 1492533333 | X82: 979510000 | Y82: 1288800000 | Z82: 844890000 | AA82: 1037733333 | AB82: 1.438262881 | AC82: =_xlfn.T.TEST(T82:V82,X82:Z82,2,2) -> 0.08410399222
A83: >tr|G4MR70|G4MR70_MAGO7 ATP synthase subunit gamma OS=Magnaporthe oryzae (strain 70-15 / ATCC MYA-4617 / FGSC 8958) GN=MGG_09916 PE=3 SV=1;>tr|L7IJW6|L7IJW6_MAGOY ATP synthase subunit gamma OS=Magnaporthe oryzae (strain Y34) GN=OOU_Y34scaffold00145g17 PE=3 SV=1;>tr|L7IZS5|L7IZS5_MAGOP ATP synthase subunit gamma OS=Magnaporthe oryzae (strain P131) GN=OOW_P131scaffold01201g9 PE=3 SV=1 | B83: 60;60;60 | C83: NIEKITKTMKIVASTKLNRAQRAMTDSRSYG | D83: >tr|G4MR70|G4MR70_MAGO7 ATP synthase subunit gamma OS=Magnaporthe oryzae (strain 70-15 / ATCC MYA-4617 / FGSC 8958) GN=MGG_09916 PE=3 SV=1 | E83: >tr|G4MR70|G4MR70_MAGO7 ATP synthase subunit gamma OS=Magnaporthe oryzae (strain 70-15 / ATCC MYA-4617 / FGSC 8958) GN=MGG_09916 PE=3 SV=1 | F83: >tr|G4MR70|G4MR70_MAGO7 ATP synthase subunit gamma OS=Magnaporthe oryzae (strain 70-15 / ATCC MYA-4617 / FGSC 8958) GN=MGG_09916 PE=3 SV=1;>tr|L7IJW6|L7IJW6_MAGOY ATP synthase subunit gamma OS=Magnaporthe oryzae (strain Y34) GN=OOU_Y34scaffold00145g17 PE=3 | G83: + | H83: 1 | I83: K | J83: 134.77 | K83: _IVASTK(ac)LNR_ | L83: X;X;X;X;X;X;X;X;X;X;X;X;X;X;X;Acetyl (K);X;X;X;X;X;X;X;X;X;X;X;X;X;X;X | M83: IVASTK(1)LNR | N83: IVASTK(134.77)LNR | O83: 6 | P83: 2 | Q83: 522.31402 | R83: 0.061934 | T83: 14546000 | U83: 15030000 | V83: 13057000 | W83: 14211000 | X83: 34758000 | Y83: 21068000 | Z83: 19812000 | AA83: 25212666.67 | AB83: 0.5636452577 | AC83: =_xlfn.T.TEST(T83:V83,X83:Z83,2,2) -> 0.08468953885
A84: >tr|L7I5Z1|L7I5Z1_MAGOY 40S ribosomal protein S25 OS=Magnaporthe oryzae (strain Y34) GN=OOU_Y34scaffold00533g18 PE=4 SV=1;>tr|L7JHM6|L7JHM6_MAGOP 40S ribosomal protein S25 OS=Magnaporthe oryzae (strain P131) GN=OOW_P131scaffold00343g47 PE=4 SV=1;>tr|G4MKR2|G4MKR2_MAGO7 40S ribosomal protein S25 OS=Magnaporthe oryzae (strain 70-15 / ATCC MYA-4617 / FGSC 8958) GN=MGG_06657 PE=4 SV=1 | B84: 29;29;29 | C84: KGKVKDKAQHAVLLDKTTSDKLYKDVQSYRL | D84: >tr|L7I5Z1|L7I5Z1_MAGOY 40S ribosomal protein S25 OS=Magnaporthe oryzae (strain Y34) GN=OOU_Y34scaffold00533g18 PE=4 SV=1 | E84: >tr|L7I5Z1|L7I5Z1_MAGOY 40S ribosomal protein S25 OS=Magnaporthe oryzae (strain Y34) GN=OOU_Y34scaffold00533g18 PE=4 SV=1 | F84: >tr|L7I5Z1|L7I5Z1_MAGOY 40S ribosomal protein S25 OS=Magnaporthe oryzae (strain Y34) GN=OOU_Y34scaffold00533g18 PE=4 SV=1;>tr|L7JHM6|L7JHM6_MAGOP 40S ribosomal protein S25 OS=Magnaporthe oryzae (strain P131) GN=OOW_P131scaffold00343g47 PE=4 SV=1;>tr|G4MKR2 | G84: + | H84: 1 | I84: K | J84: 93.754 | K84: _AQHAVLLDK(ac)TTSDK_ | L84: X;X;X;X;X;X;X;X;X;X;X;X;X;X;X;Acetyl (K);X;X;X;X;Acetyl (K);X;X;Acetyl (K);X;X;X;X;X;X;X | M84: AQHAVLLDK(1)TTSDK | N84: AQHAVLLDK(50.08)TTSDK(-50.08) | O84: 9 | P84: 2 | Q84: 784.91757 | R84: 0.14505 | U84: 12486000 | V84: 18811000 | W84: 15648500 | X84: 5915400 | Z84: 5209500 | AA84: 5562450 | AB84: 2.813238771 | AC84: =_xlfn.T.TEST(T84:V84,X84:Z84,2,2) -> 0.08677844569
A85: >tr|G4MUN3|G4MUN3_MAGO7 60S ribosomal protein L23a OS=Magnaporthe oryzae (strain 70-15 / ATCC MYA-4617 / FGSC 8958) GN=MGG_10185 PE=3 SV=1;>tr|L7IMF9|L7IMF9_MAGOY 60S ribosomal protein L23a OS=Magnaporthe oryzae (strain Y34) GN=OOU_Y34scaffold00087g21 PE=3 SV=1;>tr|L7JMI5|L7JMI5_MAGOP 60S ribosomal protein L23a OS=Magnaporthe oryzae (strain P131) GN=OOW_P131scaffold00195g6 PE=3 SV=1 | B85: 36;36;36 | C85: AQAASKAALKGVHAHKRVKARYTTSFHRPKT | D85: >tr|G4MUN3|G4MUN3_MAGO7 60S ribosomal protein L23a OS=Magnaporthe oryzae (strain 70-15 / ATCC MYA-4617 / FGSC 8958) GN=MGG_10185 PE=3 SV=1 | E85: >tr|G4MUN3|G4MUN3_MAGO7 60S ribosomal protein L23a OS=Magnaporthe oryzae (strain 70-15 / ATCC MYA-4617 / FGSC 8958) GN=MGG_10185 PE=3 SV=1 | F85: >tr|G4MUN3|G4MUN3_MAGO7 60S ribosomal protein L23a OS=Magnaporthe oryzae (strain 70-15 / ATCC MYA-4617 / FGSC 8958) GN=MGG_10185 PE=3 SV=1;>tr|L7IMF9|L7IMF9_MAGOY 60S ribosomal protein L23a OS=Magnaporthe oryzae (strain Y34) GN=OOU_Y34scaffold00087g21 PE=3 | H85: 1 | I85: K | J85: 193.83 | K85: _GVHAHK(ac)R_ | L85: X;X;X;X;X;Acetyl (K);X;X;X;X;X;X;X;X;X;Acetyl (K);X;X;X;X;X;X;X;X;X;X;X;X;X;X;X | M85: GVHAHK(1)R | N85: GVHAHK(132.94)R | O85: 6 | P85: 2 | Q85: 423.73829 | R85: -0.18115 | T85: 21450000 | U85: 102310000 | V85: 122220000 | W85: 81993333.33 | X85: 237680000 | Y85: 174220000 | Z85: 129780000 | AA85: 180560000 | AB85: 0.4541057451 | AC85: =_xlfn.T.TEST(T85:V85,X85:Z85,2,2) -> 0.08824640738
A86: >sp|A4QVP2|IF4A_MAGO7 ATP-dependent RNA helicase eIF4A OS=Magnaporthe oryzae (strain 70-15 / ATCC MYA-4617 / FGSC 8958) GN=TIF1 PE=3 SV=1;>tr|L7INI3|L7INI3_MAGOY ATP-dependent RNA helicase eIF4A OS=Magnaporthe oryzae (strain Y34) GN=OOU_Y34scaffold00058g8 PE=3 SV=1;>tr|L7J1K6|L7J1K6_MAGOP ATP-dependent RNA helicase eIF4A OS=Magnaporthe oryzae (strain P131) GN=OOW_P131scaffold01159g25 PE=3 SV=1 | B86: 162;162;162 | C86: GTPGRVHDMIQRRFLKTDGMKMFVLDEADEM | D86: >sp|A4QVP2|IF4A_MAGO7 ATP-dependent RNA helicase eIF4A OS=Magnaporthe oryzae (strain 70-15 / ATCC MYA-4617 / FGSC 8958) GN=TIF1 PE=3 SV=1 | E86: >sp|A4QVP2|IF4A_MAGO7 ATP-dependent RNA helicase eIF4A OS=Magnaporthe oryzae (strain 70-15 / ATCC MYA-4617 / FGSC 8958) GN=TIF1 PE=3 SV=1 | F86: >sp|A4QVP2|IF4A_MAGO7 ATP-dependent RNA helicase eIF4A OS=Magnaporthe oryzae (strain 70-15 / ATCC MYA-4617 / FGSC 8958) GN=TIF1 PE=3 SV=1;>tr|L7INI3|L7INI3_MAGOY ATP-dependent RNA helicase eIF4A OS=Magnaporthe oryzae (strain Y34) GN=OOU_Y34scaffold00058g8 | G86: + | H86: 1 | I86: K | J86: 93.162 | K86: _FLK(ac)TDGMK_ | L86: X;X;X;X;X;X;X;X;X;X;X;X;X;X;X;Acetyl (K);X;X;X;X;X;Oxidation (M);X;X;X;X;X;X;X;X;Oxidation (M) | M86: FLK(1)TDGMK | N86: FLK(76.22)TDGMK(-76.22) | O86: 3 | P86: 2 | Q86: 491.25733 | R86: -0.62041 | T86: 14017000 | U86: 10756000 | V86: 8253100 | W86: 11008700 | X86: 7015100 | Y86: 6096100 | Z86: 8056200 | AA86: 7055800 | AB86: 1.560234134 | AC86: =_xlfn.T.TEST(T86:V86,X86:Z86,2,2) -> 0.08830261792
A87: >tr|G4NLV8|G4NLV8_MAGO7 Glucosamine 6-phosphate acetyltransferase OS=Magnaporthe oryzae (strain 70-15 / ATCC MYA-4617 / FGSC 8958) GN=MGG_02834 PE=4 SV=1 | B87: 126 | C87: HSLASVGHIEDIAVAKDQQGKKLGLRIIQAL | D87: >tr|G4NLV8|G4NLV8_MAGO7 Glucosamine 6-phosphate acetyltransferase OS=Magnaporthe oryzae (strain 70-15 / ATCC MYA-4617 / FGSC 8958) GN=MGG_02834 PE=4 SV=1 | E87: >tr|G4NLV8|G4NLV8_MAGO7 Glucosamine 6-phosphate acetyltransferase OS=Magnaporthe oryzae (strain 70-15 / ATCC MYA-4617 / FGSC 8958) GN=MGG_02834 PE=4 SV=1 | F87: >tr|G4NLV8|G4NLV8_MAGO7 Glucosamine 6-phosphate acetyltransferase OS=Magnaporthe oryzae (strain 70-15 / ATCC MYA-4617 / FGSC 8958) GN=MGG_02834 PE=4 SV=1 | G87: + | H87: 1 | I87: K | J87: 188.39 | K87: _KIIHSLASVGHIEDIAVAK(ac)DQQGK_ | L87: X;X;X;X;X;X;X;X;X;X;X;X;X;X;X;Acetyl (K);X;X;X;X;X;X;X;X;X;X;X;X;X;X;X | M87: KIIHSLASVGHIEDIAVAK(1)DQQGK | N87: K(-91.54)IIHSLASVGHIEDIAVAK(91.54)DQQGK(-104.41) | O87: 19 | P87: 3 | Q87: 867.14493 | R87: 0.4062 | T87: 84257000 | U87: 45346000 | V87: 70285000 | W87: 66629333.33 | X87: 165570000 | Y87: 87541000 | Z87: 117020000 | AA87: 123377000 | AB87: 0.5400466321 | AC87: =_xlfn.T.TEST(T87:V87,X87:Z87,2,2) -> 0.08951216447
A88: >tr|G4MS00|G4MS00_MAGO7 Uncharacterized protein OS=Magnaporthe oryzae (strain 70-15 / ATCC MYA-4617 / FGSC 8958) GN=MGG_02485 PE=4 SV=1;>tr|L7HW28|L7HW28_MAGOY Uncharacterized protein OS=Magnaporthe oryzae (strain Y34) GN=OOU_Y34scaffold00725g41 PE=4 SV=1;>tr|L7JBQ1|L7JBQ1_MAGOP Uncharacterized protein OS=Magnaporthe oryzae (strain P131) GN=OOW_P131scaffold00546g35 PE=4 SV=1 | B88: 437;437;437 | C88: WARVKGSIDTRSTSSKRPATPTSPHADAKRP | D88: >tr|G4MS00|G4MS00_MAGO7 Uncharacterized protein OS=Magnaporthe oryzae (strain 70-15 / ATCC MYA-4617 / FGSC 8958) GN=MGG_02485 PE=4 SV=1 | E88: >tr|G4MS00|G4MS00_MAGO7 Uncharacterized protein OS=Magnaporthe oryzae (strain 70-15 / ATCC MYA-4617 / FGSC 8958) GN=MGG_02485 PE=4 SV=1 | F88: >tr|G4MS00|G4MS00_MAGO7 Uncharacterized protein OS=Magnaporthe oryzae (strain 70-15 / ATCC MYA-4617 / FGSC 8958) GN=MGG_02485 PE=4 SV=1;>tr|L7HW28|L7HW28_MAGOY Uncharacterized protein OS=Magnaporthe oryzae (strain Y34) GN=OOU_Y34scaffold00725g41 PE=4 SV=1; | G88: + | H88: 1 | I88: K | J88: 141.07 | K88: _STSSK(ac)RPATPTSPHADAK_ | L88: X;X;X;X;X;X;X;X;X;X;X;X;X;X;X;Acetyl (K);X;X;X;X;X;X;X;X;X;X;X;X;X;X;X | M88: STSSK(1)RPATPTSPHADAK | N88: STSSK(47.09)RPATPTSPHADAK(-47.09) | O88: 5 | P88: 2 | Q88: 940.97668 | R88: -2.1045 | T88: 14882000 | U88: 17768000 | V88: 8547800 | W88: 13732600 | X88: 32848000 | Y88: 45383000 | Z88: 18288000 | AA88: 32173000 | AB88: 0.426836167 | AC88: =_xlfn.T.TEST(T88:V88,X88:Z88,2,2) -> 0.09014054063
A89: >tr|G4NLV8|G4NLV8_MAGO7 Glucosamine 6-phosphate acetyltransferase OS=Magnaporthe oryzae (strain 70-15 / ATCC MYA-4617 / FGSC 8958) GN=MGG_02834 PE=4 SV=1;>tr|L7IHR4|L7IHR4_MAGOY Glucosamine 6-phosphate N-acetyltransferase OS=Magnaporthe oryzae (strain Y34) GN=OOU_Y34scaffold00233g23 PE=4 SV=1;>tr|L7JQJ2|L7JQJ2_MAGOP Glucosamine 6-phosphate N-acetyltransferase OS=Magnaporthe oryzae (strain P131) GN=OOW_P131scaffold00043g2 PE=4 SV=1;>tr|Q2KFU6|Q2KFU6_MAGO7 Putative uncharacterized protein OS=Magnaporthe oryzae (strain 70-15 / ATCC MYA-4617 / FGSC 8958) GN=MGCH7_ch7g589 PE=4 SV=1 | B89: 147;144;144;144 | C89: KLGLRIIQALDYISEKVGCYKSILDCSEKNE | D89: >tr|G4NLV8|G4NLV8_MAGO7 Glucosamine 6-phosphate acetyltransferase OS=Magnaporthe oryzae (strain 70-15 / ATCC MYA-4617 / FGSC 8958) GN=MGG_02834 PE=4 SV=1 | E89: >tr|G4NLV8|G4NLV8_MAGO7 Glucosamine 6-phosphate acetyltransferase OS=Magnaporthe oryzae (strain 70-15 / ATCC MYA-4617 / FGSC 8958) GN=MGG_02834 PE=4 SV=1 | F89: >tr|G4NLV8|G4NLV8_MAGO7 Glucosamine 6-phosphate acetyltransferase OS=Magnaporthe oryzae (strain 70-15 / ATCC MYA-4617 / FGSC 8958) GN=MGG_02834 PE=4 SV=1;>tr|L7IHR4|L7IHR4_MAGOY Glucosamine 6-phosphate N-acetyltransferase OS=Magnaporthe oryzae (strain Y34) | G89: + | H89: 1 | I89: K | J89: 109.35 | K89: _IIQALDYISEK(ac)VGCYK_ | L89: X;X;X;X;X;X;X;X;X;X;X;X;X;X;X;Acetyl (K);X;X;X;X;X;X;X;X;X;X;X;X;Acetyl (K);X;X | M89: IIQALDYISEK(1)VGCYK | N89: IIQALDYISEK(107.34)VGCYK(-107.34) | O89: 11 | P89: 2 | Q89: 971.50315 | R89: 0.74891 | T89: 7969400 | U89: 13176000 | V89: 7593100 | W89: 9579500 | X89: 15664000 | Y89: 12158000 | Z89: 19760000 | AA89: 15860666.67 | AB89: 0.6039783952 | AC89: =_xlfn.T.TEST(T89:V89,X89:Z89,2,2) -> 0.09153099121
A90: >tr|G4NAE0|G4NAE0_MAGO7 ATP synthase subunit beta OS=Magnaporthe oryzae (strain 70-15 / ATCC MYA-4617 / FGSC 8958) GN=MGG_03185 PE=3 SV=1;>tr|L7IKD3|L7IKD3_MAGOY ATP synthase subunit beta OS=Magnaporthe oryzae (strain Y34) GN=OOU_Y34scaffold00155g10 PE=3 SV=1;>tr|L7IYY8|L7IYY8_MAGOP ATP synthase subunit beta OS=Magnaporthe oryzae (strain P131) GN=OOW_P131scaffold01199g38 PE=3 SV=1 | B90: 63;63;63 | C90: HQVIGAVVDVKFDTAKLPPILNALETTNNNQ | D90: >tr|G4NAE0|G4NAE0_MAGO7 ATP synthase subunit beta OS=Magnaporthe oryzae (strain 70-15 / ATCC MYA-4617 / FGSC 8958) GN=MGG_03185 PE=3 SV=1 | E90: >tr|G4NAE0|G4NAE0_MAGO7 ATP synthase subunit beta OS=Magnaporthe oryzae (strain 70-15 / ATCC MYA-4617 / FGSC 8958) GN=MGG_03185 PE=3 SV=1 | F90: >tr|G4NAE0|G4NAE0_MAGO7 ATP synthase subunit beta OS=Magnaporthe oryzae (strain 70-15 / ATCC MYA-4617 / FGSC 8958) GN=MGG_03185 PE=3 SV=1;>tr|L7IKD3|L7IKD3_MAGOY ATP synthase subunit beta OS=Magnaporthe oryzae (strain Y34) GN=OOU_Y34scaffold00155g10 PE=3 S | G90: + | H90: 1 | I90: K | J90: 135.81 | K90: _FDTAK(ac)LPPILNALETTNNNQK_ | L90: X;X;X;X;X;X;X;X;X;X;X;X;X;X;X;Acetyl (K);X;X;X;X;X;X;X;X;X;X;X;X;X;X;X | M90: FDTAK(1)LPPILNALETTNNNQK | N90: FDTAK(88.4)LPPILNALETTNNNQK(-88.4) | O90: 5 | P90: 2 | Q90: 1192.6264 | R90: -0.65486 | T90: 8875900 | U90: 18884000 | V90: 6523700 | W90: 11427866.67 | X90: 30261000 | Y90: 15819000 | Z90: 25800000 | AA90: 23960000 | AB90: 0.4769560378 | AC90: =_xlfn.T.TEST(T90:V90,X90:Z90,2,2) -> 0.09313453054
A91: >tr|G4MKR0|G4MKR0_MAGO7 ADP,ATP carrier protein OS=Magnaporthe oryzae (strain 70-15 / ATCC MYA-4617 / FGSC 8958) GN=MGG_16149 PE=3 SV=1;>tr|L7I7V3|L7I7V3_MAGOY ADP,ATP carrier protein OS=Magnaporthe oryzae (strain Y34) GN=OOU_Y34scaffold00533g16 PE=3 SV=1;>tr|L7JG25|L7JG25_MAGOP ADP,ATP carrier protein OS=Magnaporthe oryzae (strain P131) GN=OOW_P131scaffold00343g45 PE=3 SV=1 | B91: 40;40;40 | C91: SAAVSKTAAAPIERVKLLVQNQEEMIRAGRL | D91: >tr|G4MKR0|G4MKR0_MAGO7 ADP,ATP carrier protein OS=Magnaporthe oryzae (strain 70-15 / ATCC MYA-4617 / FGSC 8958) GN=MGG_16149 PE=3 SV=1 | E91: >tr|G4MKR0|G4MKR0_MAGO7 ADP,ATP carrier protein OS=Magnaporthe oryzae (strain 70-15 / ATCC MYA-4617 / FGSC 8958) GN=MGG_16149 PE=3 SV=1 | F91: >tr|G4MKR0|G4MKR0_MAGO7 ADP,ATP carrier protein OS=Magnaporthe oryzae (strain 70-15 / ATCC MYA-4617 / FGSC 8958) GN=MGG_16149 PE=3 SV=1;>tr|L7I7V3|L7I7V3_MAGOY ADP,ATP carrier protein OS=Magnaporthe oryzae (strain Y34) GN=OOU_Y34scaffold00533g16 PE=3 SV=1; | G91: + | H91: 1 | I91: K | J91: 139.89 | K91: _VK(ac)LLVQNQEEM(ox)IR_ | L91: X;X;X;X;X;X;X;X;X;X;X;X;X;X;X;Acetyl (K);X;X;X;X;X;X;X;X;Oxidation (M);X;X;X;X;X;X | M91: VK(1)LLVQNQEEMIR | N91: VK(69.6)LLVQNQEEMIR | O91: 2 | P91: 2 | Q91: 829.45072 | R91: -1.2863 | T91: 15468000 | U91: 17567000 | V91: 11570000 | W91: 14868333.33 | X91: 9056600 | Y91: 7201100 | Z91: 12682000 | AA91: 9646566.667 | AB91: 1.541308307 | AC91: =_xlfn.T.TEST(T91:V91,X91:Z91,2,2) -> 0.09353209527
A92: >sp|L7IM20|RS29_MAGOY 40S ribosomal protein S29 OS=Magnaporthe oryzae (strain Y34) GN=RPS29 PE=3 SV=1;>sp|P0CT15|RS29_MAGO7 40S ribosomal protein S29 OS=Magnaporthe oryzae (strain 70-15 / ATCC MYA-4617 / FGSC 8958) GN=RPS29 PE=3 SV=1;>tr|L7J010|L7J010_MAGOP Uncharacterized protein OS=Magnaporthe oryzae (strain P131) GN=OOW_P131scaffold01180g11 PE=4 SV=1 | B92: 54;54;54 | C92: CRQCFREKAADIGFVKHR_____________ | D92: >sp|L7IM20|RS29_MAGOY 40S ribosomal protein S29 OS=Magnaporthe oryzae (strain Y34) GN=RPS29 PE=3 SV=1 | E92: >sp|L7IM20|RS29_MAGOY 40S ribosomal protein S29 OS=Magnaporthe oryzae (strain Y34) GN=RPS29 PE=3 SV=1 | F92: >sp|L7IM20|RS29_MAGOY 40S ribosomal protein S29 OS=Magnaporthe oryzae (strain Y34) GN=RPS29 PE=3 SV=1;>sp|P0CT15|RS29_MAGO7 40S ribosomal protein S29 OS=Magnaporthe oryzae (strain 70-15 / ATCC MYA-4617 / FGSC 8958) GN=RPS29 PE=3 SV=1;>tr|L7J010|L7J010_MAGO | G92: + | H92: 1 | I92: K | J92: 132.78 | K92: _AADIGFVK(ac)HR_ | L92: X;X;X;X;X;X;X;X;X;X;X;X;X;X;X;Acetyl (K);X;X;X;X;X;X;X;X;X;X;X;X;X;X;X | M92: AADIGFVK(1)HR | N92: AADIGFVK(93.6)HR | O92: 8 | P92: 3 | Q92: 385.88049 | R92: -0.77596 | T92: 111510000 | U92: 63107000 | V92: 70018000 | W92: 81545000 | X92: 62789000 | Y92: 32215000 | Z92: 21513000 | AA92: 38839000 | AB92: 2.09956487 | AC92: =_xlfn.T.TEST(T92:V92,X92:Z92,2,2) -> 0.09403313705
A93: >tr|G4MYL3|G4MYL3_MAGO7 Uncharacterized protein OS=Magnaporthe oryzae (strain 70-15 / ATCC MYA-4617 / FGSC 8958) GN=MGG_15671 PE=4 SV=1;>tr|L7I1S6|L7I1S6_MAGOY UDP-N-acetylglucosamine pyrophosphorylase OS=Magnaporthe oryzae (strain Y34) GN=OOU_Y34scaffold00657g18 PE=4 SV=1;>tr|L7JN00|L7JN00_MAGOP UDP-N-acetylglucosamine pyrophosphorylase OS=Magnaporthe oryzae (strain P131) GN=OOW_P131scaffold00178g10 PE=4 SV=1 | B93: 433;433;433 | C93: FACMEVRREDEFSPLKNARGTGEDDPDTSKH | D93: >tr|G4MYL3|G4MYL3_MAGO7 Uncharacterized protein OS=Magnaporthe oryzae (strain 70-15 / ATCC MYA-4617 / FGSC 8958) GN=MGG_15671 PE=4 SV=1 | E93: >tr|G4MYL3|G4MYL3_MAGO7 Uncharacterized protein OS=Magnaporthe oryzae (strain 70-15 / ATCC MYA-4617 / FGSC 8958) GN=MGG_15671 PE=4 SV=1 | F93: >tr|G4MYL3|G4MYL3_MAGO7 Uncharacterized protein OS=Magnaporthe oryzae (strain 70-15 / ATCC MYA-4617 / FGSC 8958) GN=MGG_15671 PE=4 SV=1;>tr|L7I1S6|L7I1S6_MAGOY UDP-N-acetylglucosamine pyrophosphorylase OS=Magnaporthe oryzae (strain Y34) GN=OOU_Y34scaffold0 | G93: + | H93: 1 | I93: K | J93: 80.469 | K93: _REDEFSPLK(ac)NAR_ | L93: X;X;X;X;X;X;X;X;X;X;X;X;X;X;X;Acetyl (K);X;X;X;X;X;X;X;X;X;X;X;X;X;X;X | M93: REDEFSPLK(1)NAR | N93: REDEFSPLK(71.56)NAR | O93: 9 | P93: 3 | Q93: 501.92319 | R93: 0.40417 | T93: 15976000 | U93: 26303000 | V93: 28047000 | W93: 23442000 | X93: 46182000 | Y93: 26892000 | Z93: 49043000 | AA93: 40705666.67 | AB93: 0.5758903347 | AC93: =_xlfn.T.TEST(T93:V93,X93:Z93,2,2) -> 0.09449203082
A94: >tr|G4NGZ4|G4NGZ4_MAGO7 Actin OS=Magnaporthe oryzae (strain 70-15 / ATCC MYA-4617 / FGSC 8958) GN=MGG_03982 PE=3 SV=1;>tr|L7I788|L7I788_MAGOY Actin OS=Magnaporthe oryzae (strain Y34) GN=OOU_Y34scaffold00514g30 PE=3 SV=1;>tr|L7JLM6|L7JLM6_MAGOP Actin OS=Magnaporthe oryzae (strain P131) GN=OOW_P131scaffold00188g7 PE=3 SV=1;CON__P60712 | B94: 61;61;61;61 | C94: GMGQKDSYVGDEAQSKRGILTLKYPIEHGIV;GMGQKDSYVGDEAQSKRGILTLRYPIEHGVV | D94: >tr|G4NGZ4|G4NGZ4_MAGO7 Actin OS=Magnaporthe oryzae (strain 70-15 / ATCC MYA-4617 / FGSC 8958) GN=MGG_03982 PE=3 SV=1;CON__P60712 | E94: >tr|G4NGZ4|G4NGZ4_MAGO7 Actin OS=Magnaporthe oryzae (strain 70-15 / ATCC MYA-4617 / FGSC 8958) GN=MGG_03982 PE=3 SV=1 | F94: >tr|G4NGZ4|G4NGZ4_MAGO7 Actin OS=Magnaporthe oryzae (strain 70-15 / ATCC MYA-4617 / FGSC 8958) GN=MGG_03982 PE=3 SV=1;>tr|L7I788|L7I788_MAGOY Actin OS=Magnaporthe oryzae (strain Y34) GN=OOU_Y34scaffold00514g30 PE=3 SV=1;>tr|L7JLM6|L7JLM6_MAGOP Actin OS=Mag | G94: + | H94: 1 | I94: K | J94: 158.04 | K94: _DSYVGDEAQSK(ac)R_ | L94: X;Oxidation (M);X;X;X;X;X;X;X;X;X;X;X;X;X;Acetyl (K);X;X;X;X;X;X;X;X;X;X;X;X;X;X;X | M94: DSYVGDEAQSK(1)R | N94: DSYVGDEAQSK(158.04)R | O94: 11 | P94: 2 | Q94: 698.82059 | R94: 0.83014 | S94: + | T94: 38475000 | U94: 45271000 | V94: 45319000 | W94: 43021666.67 | X94: 40789000 | Y94: 32329000 | Z94: 32045000 | AA94: 35054333.33 | AB94: 1.227285262 | AC94: =_xlfn.T.TEST(T94:V94,X94:Z94,2,2) -> 0.09508521012
A95: >tr|G4MN52|G4MN52_MAGO7 Uncharacterized protein OS=Magnaporthe oryzae (strain 70-15 / ATCC MYA-4617 / FGSC 8958) GN=MGG_05597 PE=4 SV=1;>tr|L7I379|L7I379_MAGOY Uncharacterized protein OS=Magnaporthe oryzae (strain Y34) GN=OOU_Y34scaffold00624g98 PE=4 SV=1;>tr|L7JEH7|L7JEH7_MAGOP Uncharacterized protein OS=Magnaporthe oryzae (strain P131) GN=OOW_P131scaffold00440g4 PE=4 SV=1 | B95: 211;211;211 | C95: KGVHIGISGENTKVVKFYEKVGFRVQEGGER | D95: >tr|G4MN52|G4MN52_MAGO7 Uncharacterized protein OS=Magnaporthe oryzae (strain 70-15 / ATCC MYA-4617 / FGSC 8958) GN=MGG_05597 PE=4 SV=1 | E95: >tr|G4MN52|G4MN52_MAGO7 Uncharacterized protein OS=Magnaporthe oryzae (strain 70-15 / ATCC MYA-4617 / FGSC 8958) GN=MGG_05597 PE=4 SV=1 | F95: >tr|G4MN52|G4MN52_MAGO7 Uncharacterized protein OS=Magnaporthe oryzae (strain 70-15 / ATCC MYA-4617 / FGSC 8958) GN=MGG_05597 PE=4 SV=1;>tr|L7I379|L7I379_MAGOY Uncharacterized protein OS=Magnaporthe oryzae (strain Y34) GN=OOU_Y34scaffold00624g98 PE=4 SV=1; | G95: + | H95: 1 | I95: K | J95: 110.81 | K95: _VVK(ac)FYEK_ | L95: X;X;X;X;X;X;X;X;X;X;X;X;X;X;X;Acetyl (K);X;X;X;Acetyl (K);X;X;X;X;X;X;X;X;X;X;X | M95: VVK(1)FYEK | N95: VVK(110.81)FYEK(-110.81) | O95: 3 | P95: 2 | Q95: 477.76839 | R95: -0.71304 | U95: 133570000 | V95: 164630000 | W95: 149100000 | X95: 241820000 | Y95: 177570000 | Z95: 225690000 | AA95: 215026666.7 | AB95: 0.6934023687 | AC95: =_xlfn.T.TEST(T95:V95,X95:Z95,2,2) -> 0.09589351362
A96: >tr|G4MSV3|G4MSV3_MAGO7 Translation initiation factor RLI1 OS=Magnaporthe oryzae (strain 70-15 / ATCC MYA-4617 / FGSC 8958) GN=MGG_11382 PE=3 SV=1;>tr|L7I1N3|L7I1N3_MAGOY Uncharacterized protein OS=Magnaporthe oryzae (strain Y34) GN=OOU_Y34scaffold00619g54 PE=4 SV=1;>tr|L7IU43|L7IU43_MAGOP Uncharacterized protein OS=Magnaporthe oryzae (strain P131) GN=OOW_P131scaffold01358g92 PE=4 SV=1 | B96: 126;126;126 | C96: TNGIGKSTALKILSGKLKPNLGKFDNPPDWE | D96: >tr|G4MSV3|G4MSV3_MAGO7 Translation initiation factor RLI1 OS=Magnaporthe oryzae (strain 70-15 / ATCC MYA-4617 / FGSC 8958) GN=MGG_11382 PE=3 SV=1 | E96: >tr|G4MSV3|G4MSV3_MAGO7 Translation initiation factor RLI1 OS=Magnaporthe oryzae (strain 70-15 / ATCC MYA-4617 / FGSC 8958) GN=MGG_11382 PE=3 SV=1 | F96: >tr|G4MSV3|G4MSV3_MAGO7 Translation initiation factor RLI1 OS=Magnaporthe oryzae (strain 70-15 / ATCC MYA-4617 / FGSC 8958) GN=MGG_11382 PE=3 SV=1;>tr|L7I1N3|L7I1N3_MAGOY Uncharacterized protein OS=Magnaporthe oryzae (strain Y34) GN=OOU_Y34scaffold00619g54 | G96: + | H96: 1 | I96: K | J96: 119.39 | K96: _ILSGK(ac)LKPNLGK_ | L96: X;X;X;X;X;X;X;X;X;X;X;X;X;X;X;Acetyl (K);X;X;X;X;X;X;X;X;X;X;X;X;X;X;X | M96: ILSGK(0.998)LK(0.002)PNLGK | N96: ILSGK(26.04)LK(-26.04)PNLGK(-119.39) | O96: 5 | P96: 3 | Q96: 437.27825 | R96: -0.14836 | T96: 15947000 | U96: 21540000 | V96: 17403000 | W96: 18296666.67 | X96: 16558000 | Y96: 9638800 | Z96: 11353000 | AA96: 12516600 | AB96: 1.461792073 | AC96: =_xlfn.T.TEST(T96:V96,X96:Z96,2,2) -> 0.09646030167
A97: >tr|L7HQP2|L7HQP2_MAGOY Phosphoglucomutase OS=Magnaporthe oryzae (strain Y34) GN=OOU_Y34scaffold01005g62 PE=3 SV=1;>tr|G4MS90|G4MS90_MAGO7 Phosphoglucomutase OS=Magnaporthe oryzae (strain 70-15 / ATCC MYA-4617 / FGSC 8958) GN=MGG_04495 PE=3 SV=1;>tr|L7J246|L7J246_MAGOP Phosphoglucomutase OS=Magnaporthe oryzae (strain P131) GN=OOW_P131scaffold01138g17 PE=4 SV=1 | B97: 201;201;408 | C97: YTAMLKDIFDFDLIKKFFASNSDFKVLFDGL | D97: >tr|L7HQP2|L7HQP2_MAGOY Phosphoglucomutase OS=Magnaporthe oryzae (strain Y34) GN=OOU_Y34scaffold01005g62 PE=3 SV=1 | E97: >tr|L7HQP2|L7HQP2_MAGOY Phosphoglucomutase OS=Magnaporthe oryzae (strain Y34) GN=OOU_Y34scaffold01005g62 PE=3 SV=1 | F97: >tr|L7HQP2|L7HQP2_MAGOY Phosphoglucomutase OS=Magnaporthe oryzae (strain Y34) GN=OOU_Y34scaffold01005g62 PE=3 SV=1;>tr|G4MS90|G4MS90_MAGO7 Phosphoglucomutase OS=Magnaporthe oryzae (strain 70-15 / ATCC MYA-4617 / FGSC 8958) GN=MGG_04495 PE=3 SV=1;>tr|L7J246 | G97: + | H97: 1 | I97: K | J97: 128.51 | K97: _K(ac)FFASNSDFK_ | L97: X;X;X;X;X;X;X;X;X;X;X;X;X;X;X;Acetyl (K);X;X;X;X;X;X;X;X;X;X;X;X;X;X;X | M97: K(1)FFASNSDFK | N97: K(104.82)FFASNSDFK(-104.82) | O97: 1 | P97: 2 | Q97: 616.80095 | R97: -0.56215 | T97: 15193000 | U97: 14098000 | V97: 27746000 | W97: 19012333.33 | X97: 8254100 | Y97: 6105100 | Z97: 12147000 | AA97: 8835400 | AB97: 2.151836174 | AC97: =_xlfn.T.TEST(T97:V97,X97:Z97,2,2) -> 0.09740148579
A98: >tr|G4MZT1|G4MZT1_MAGO7 Arginyl-tRNA synthetase OS=Magnaporthe oryzae (strain 70-15 / ATCC MYA-4617 / FGSC 8958) GN=MGG_09080 PE=3 SV=1;>tr|L7HVH9|L7HVH9_MAGOY Arginyl-tRNA synthetase OS=Magnaporthe oryzae (strain Y34) GN=OOU_Y34scaffold00734g9 PE=3 SV=1;>tr|L7JDG4|L7JDG4_MAGOP Arginyl-tRNA synthetase OS=Magnaporthe oryzae (strain P131) GN=OOW_P131scaffold00449g11 PE=3 SV=1 | B98: 522;449;449 | C98: NFGMVLGMSTRKGTVKFLDDILRDVGDKMHE | D98: >tr|G4MZT1|G4MZT1_MAGO7 Arginyl-tRNA synthetase OS=Magnaporthe oryzae (strain 70-15 / ATCC MYA-4617 / FGSC 8958) GN=MGG_09080 PE=3 SV=1 | E98: >tr|G4MZT1|G4MZT1_MAGO7 Arginyl-tRNA synthetase OS=Magnaporthe oryzae (strain 70-15 / ATCC MYA-4617 / FGSC 8958) GN=MGG_09080 PE=3 SV=1 | F98: >tr|G4MZT1|G4MZT1_MAGO7 Arginyl-tRNA synthetase OS=Magnaporthe oryzae (strain 70-15 / ATCC MYA-4617 / FGSC 8958) GN=MGG_09080 PE=3 SV=1;>tr|L7HVH9|L7HVH9_MAGOY Arginyl-tRNA synthetase OS=Magnaporthe oryzae (strain Y34) GN=OOU_Y34scaffold00734g9 PE=3 SV=1;> | G98: + | H98: 1 | I98: K | J98: 104.94 | K98: _KGTVK(ac)FLDDILR_ | L98: X;X;X;X;X;X;X;X;X;X;X;X;X;X;X;Acetyl (K);X;X;X;X;X;X;X;X;X;X;X;X;X;X;X | M98: KGTVK(1)FLDDILR | N98: K(-38.6)GTVK(38.6)FLDDILR | O98: 5 | P98: 2 | Q98: 723.91938 | R98: -1.2652 | T98: 2972300 | U98: 8966200 | W98: 5969250 | X98: 21601000 | Y98: 11672000 | Z98: 15531000 | AA98: 16268000 | AB98: 0.3669320138 | AC98: =_xlfn.T.TEST(T98:V98,X98:Z98,2,2) -> 0.0986463651
A99: >tr|G4MR82|G4MR82_MAGO7 Glucose-6-phosphate 1-dehydrogenase OS=Magnaporthe oryzae (strain 70-15 / ATCC MYA-4617 / FGSC 8958) GN=MGG_09926 PE=3 SV=1;>tr|L7IJV6|L7IJV6_MAGOY Glucose-6-phosphate 1-dehydrogenase OS=Magnaporthe oryzae (strain Y34) GN=OOU_Y34scaffold00145g7 PE=3 SV=1;>tr|L7JCG5|L7JCG5_MAGOP Glucose-6-phosphate 1-dehydrogenase OS=Magnaporthe oryzae (strain P131) GN=OOW_P131scaffold00481g3 PE=3 SV=1 | B99: 30;30;30 | C99: DNTVIVVLGASGDLAKKKTYPALFGLYRNQF | D99: >tr|G4MR82|G4MR82_MAGO7 Glucose-6-phosphate 1-dehydrogenase OS=Magnaporthe oryzae (strain 70-15 / ATCC MYA-4617 / FGSC 8958) GN=MGG_09926 PE=3 SV=1 | E99: >tr|G4MR82|G4MR82_MAGO7 Glucose-6-phosphate 1-dehydrogenase OS=Magnaporthe oryzae (strain 70-15 / ATCC MYA-4617 / FGSC 8958) GN=MGG_09926 PE=3 SV=1 | F99: >tr|G4MR82|G4MR82_MAGO7 Glucose-6-phosphate 1-dehydrogenase OS=Magnaporthe oryzae (strain 70-15 / ATCC MYA-4617 / FGSC 8958) GN=MGG_09926 PE=3 SV=1;>tr|L7IJV6|L7IJV6_MAGOY Glucose-6-phosphate 1-dehydrogenase OS=Magnaporthe oryzae (strain Y34) GN=OOU_Y34sca | G99: + | H99: 1 | I99: K | J99: 126 | K99: _DNTVIVVLGASGDLAK(ac)K_ | L99: X;X;X;X;X;X;X;X;X;X;X;X;X;X;X;Acetyl (K);X;X;X;X;X;X;X;X;X;X;X;X;X;X;X | M99: DNTVIVVLGASGDLAK(1)K | N99: DNTVIVVLGASGDLAK(63.44)K(-63.44) | O99: 16 | P99: 2 | Q99: 871.48836 | R99: -0.43924 | U99: 2664300 | V99: 2106300 | W99: 2385300 | X99: 5493800 | Y99: 10303000 | Z99: 14039000 | AA99: 9945266.667 | AB99: 0.2398427393 | AC99: =_xlfn.T.TEST(T99:V99,X99:Z99,2,2) -> 0.0991582848
A100: >tr|G4MLM8|G4MLM8_MAGO7 Heat shock protein 90 OS=Magnaporthe oryzae (strain 70-15 / ATCC MYA-4617 / FGSC 8958) GN=MGG_06759 PE=3 SV=1;>tr|L7I7P6|L7I7P6_MAGOY Heat shock protein 80 OS=Magnaporthe oryzae (strain Y34) GN=OOU_Y34scaffold00534g52 PE=3 SV=1;>tr|L7JM28|L7JM28_MAGOP Heat shock protein 80 OS=Magnaporthe oryzae (strain P131) GN=OOW_P131scaffold00177g52 PE=3 SV=1 | B100: 538;538;538 | C100: LEETEEEKAIREKEEKEYEDLAKALKNVLGD | D100: >tr|G4MLM8|G4MLM8_MAGO7 Heat shock protein 90 OS=Magnaporthe oryzae (strain 70-15 / ATCC MYA-4617 / FGSC 8958) GN=MGG_06759 PE=3 SV=1 | E100: >tr|G4MLM8|G4MLM8_MAGO7 Heat shock protein 90 OS=Magnaporthe oryzae (strain 70-15 / ATCC MYA-4617 / FGSC 8958) GN=MGG_06759 PE=3 SV=1 | F100: >tr|G4MLM8|G4MLM8_MAGO7 Heat shock protein 90 OS=Magnaporthe oryzae (strain 70-15 / ATCC MYA-4617 / FGSC 8958) GN=MGG_06759 PE=3 SV=1;>tr|L7I7P6|L7I7P6_MAGOY Heat shock protein 80 OS=Magnaporthe oryzae (strain Y34) GN=OOU_Y34scaffold00534g52 PE=3 SV=1;>tr| | G100: + | H100: 1 | I100: K | J100: 206.18 | K100: _EKEEK(ac)EYEDLAK_ | L100: X;X;X;X;X;X;X;X;X;X;X;X;X;X;X;Acetyl (K);X;X;X;X;X;X;X;X;X;X;X;X;X;X;X | M100: EKEEK(1)EYEDLAK | N100: EK(-39.8)EEK(39.8)EYEDLAK(-206.18) | O100: 5 | P100: 2 | Q100: 776.87249 | R100: 0.23223 | U100: 17239000 | V100: 12197000 | W100: 14718000 | X100: 9475700 | Y100: 9610100 | Z100: 4259900 | AA100: 7781900 | AB100: 1.89131189 | AC100: =_xlfn.T.TEST(T100:V100,X100:Z100,2,2) -> 0.1001866593
A101: >tr|G4MRY4|G4MRY4_MAGO7 Transketolase OS=Magnaporthe oryzae (strain 70-15 / ATCC MYA-4617 / FGSC 8958) GN=MGG_02471 PE=3 SV=1;>tr|L7HW12|L7HW12_MAGOY Transketolase OS=Magnaporthe oryzae (strain Y34) GN=OOU_Y34scaffold00725g26 PE=3 SV=1;>tr|L7JDL7|L7JDL7_MAGOP Transketolase OS=Magnaporthe oryzae (strain P131) GN=OOW_P131scaffold00400g13 PE=3 SV=1 | B101: 233;233;233 | C101: VKDGDNDLEGIEAAIKKCQQVKDKPSLIQLR | D101: >tr|G4MRY4|G4MRY4_MAGO7 Transketolase OS=Magnaporthe oryzae (strain 70-15 / ATCC MYA-4617 / FGSC 8958) GN=MGG_02471 PE=3 SV=1 | E101: >tr|G4MRY4|G4MRY4_MAGO7 Transketolase OS=Magnaporthe oryzae (strain 70-15 / ATCC MYA-4617 / FGSC 8958) GN=MGG_02471 PE=3 SV=1 | F101: >tr|G4MRY4|G4MRY4_MAGO7 Transketolase OS=Magnaporthe oryzae (strain 70-15 / ATCC MYA-4617 / FGSC 8958) GN=MGG_02471 PE=3 SV=1;>tr|L7HW12|L7HW12_MAGOY Transketolase OS=Magnaporthe oryzae (strain Y34) GN=OOU_Y34scaffold00725g26 PE=3 SV=1;>tr|L7JDL7|L7JDL7_MA | G101: + | H101: 1 | I101: K | J101: 86.497 | K101: _DGDNDLEGIEAAIK(ac)K_ | L101: X;X;X;X;X;X;X;X;X;X;X;X;X;X;X;Acetyl (K);X;X;X;X;X;X;X;Acetyl (K);X;X;X;X;X;X;X | M101: DGDNDLEGIEAAIK(1)K | N101: DGDNDLEGIEAAIK(66.39)K(-66.39) | O101: 14 | P101: 2 | Q101: 815.40195 | R101: -0.38035 | T101: 11515000 | U101: 9575600 | V101: 9504400 | W101: 10198333.33 | X101: 17543000 | Y101: 10827000 | Z101: 19457000 | AA101: 15942333.33 | AB101: 0.6397014239 | AC101: =_xlfn.T.TEST(T101:V101,X101:Z101,2,2) -> 0.1003482418
A102: >tr|G4MVB0|G4MVB0_MAGO7 Elongation factor 2 OS=Magnaporthe oryzae (strain 70-15 / ATCC MYA-4617 / FGSC 8958) GN=MGG_01742 PE=4 SV=1;>tr|L7I6Y5|L7I6Y5_MAGOY Elongation factor 2 OS=Magnaporthe oryzae (strain Y34) GN=OOU_Y34scaffold00521g3 PE=4 SV=1;>tr|L7IWM0|L7IWM0_MAGOP Elongation factor 2 OS=Magnaporthe oryzae (strain P131) GN=OOW_P131scaffold01324g1 PE=4 SV=1 | B102: 430;430;430 | C102: QGPNYTPGKKEDLFIKAVQRTVLMMGGKVEP | D102: >tr|G4MVB0|G4MVB0_MAGO7 Elongation factor 2 OS=Magnaporthe oryzae (strain 70-15 / ATCC MYA-4617 / FGSC 8958) GN=MGG_01742 PE=4 SV=1 | E102: >tr|G4MVB0|G4MVB0_MAGO7 Elongation factor 2 OS=Magnaporthe oryzae (strain 70-15 / ATCC MYA-4617 / FGSC 8958) GN=MGG_01742 PE=4 SV=1 | F102: >tr|G4MVB0|G4MVB0_MAGO7 Elongation factor 2 OS=Magnaporthe oryzae (strain 70-15 / ATCC MYA-4617 / FGSC 8958) GN=MGG_01742 PE=4 SV=1;>tr|L7I6Y5|L7I6Y5_MAGOY Elongation factor 2 OS=Magnaporthe oryzae (strain Y34) GN=OOU_Y34scaffold00521g3 PE=4 SV=1;>tr|L7IWM | G102: + | H102: 1 | I102: K | J102: 140.11 | K102: _EDLFIK(ac)AVQR_ | L102: X;X;X;X;X;X;X;X;X;X;X;X;X;X;X;Acetyl (K);X;X;X;X;X;X;X;Oxidation (M);Oxidation (M);X;X;X;X;X;X | M102: EDLFIK(1)AVQR | N102: EDLFIK(128.6)AVQR | O102: 6 | P102: 2 | Q102: 630.85097 | R102: 0.1236 | T102: 10555000 | U102: 9981400 | V102: 10404000 | W102: 10313466.67 | X102: 8632900 | Y102: 9697500 | Z102: 6377200 | AA102: 8235866.667 | AB102: 1.252262462 | AC102: =_xlfn.T.TEST(T102:V102,X102:Z102,2,2) -> 0.1047563117
A103: >tr|G4NHW8|G4NHW8_MAGO7 Uncharacterized protein OS=Magnaporthe oryzae (strain 70-15 / ATCC MYA-4617 / FGSC 8958) GN=MGG_09412 PE=4 SV=1;>tr|L7IC31|L7IC31_MAGOY Uncharacterized protein OS=Magnaporthe oryzae (strain Y34) GN=OOU_Y34scaffold00432g6 PE=4 SV=1;>tr|L7JDX1|L7JDX1_MAGOP Uncharacterized protein OS=Magnaporthe oryzae (strain P131) GN=OOW_P131scaffold00434g4 PE=4 SV=1 | B103: 207;128;128 | C103: NGTLCIEKLQLPDGFKPKDGDRASIQVVTTD | D103: >tr|G4NHW8|G4NHW8_MAGO7 Uncharacterized protein OS=Magnaporthe oryzae (strain 70-15 / ATCC MYA-4617 / FGSC 8958) GN=MGG_09412 PE=4 SV=1 | E103: >tr|G4NHW8|G4NHW8_MAGO7 Uncharacterized protein OS=Magnaporthe oryzae (strain 70-15 / ATCC MYA-4617 / FGSC 8958) GN=MGG_09412 PE=4 SV=1 | F103: >tr|G4NHW8|G4NHW8_MAGO7 Uncharacterized protein OS=Magnaporthe oryzae (strain 70-15 / ATCC MYA-4617 / FGSC 8958) GN=MGG_09412 PE=4 SV=1;>tr|L7IC31|L7IC31_MAGOY Uncharacterized protein OS=Magnaporthe oryzae (strain Y34) GN=OOU_Y34scaffold00432g6 PE=4 SV=1;> | G103: + | H103: 1 | I103: K | J103: 119.16 | K103: _LQLPDGFK(ac)PK_ | L103: X;X;X;X;X;X;X;X;X;X;X;X;X;X;X;Acetyl (K);X;X;X;X;X;X;X;X;X;X;X;X;X;X;X | M103: LQLPDGFK(1)PK | N103: LQLPDGFK(54.58)PK(-54.58) | O103: 8 | P103: 2 | Q103: 592.83733 | R103: 0.76007 | T103: 101140000 | U103: 105470000 | V103: 90167000 | W103: 98925666.67 | X103: 224560000 | Y103: 117870000 | Z103: 152940000 | AA103: 165123333.3 | AB103: 0.5991016816 | AC103: =_xlfn.T.TEST(T103:V103,X103:Z103,2,2) -> 0.1052255478
A104: >tr|G4N9V2|G4N9V2_MAGO7 40S ribosomal protein S8 OS=Magnaporthe oryzae (strain 70-15 / ATCC MYA-4617 / FGSC 8958) GN=MGG_03251 PE=3 SV=1;>tr|L7HUA4|L7HUA4_MAGOY 40S ribosomal protein S8 OS=Magnaporthe oryzae (strain Y34) GN=OOU_Y34scaffold00765g71 PE=3 SV=1;>tr|L7IVZ6|L7IVZ6_MAGOP 40S ribosomal protein S8 OS=Magnaporthe oryzae (strain P131) GN=OOW_P131scaffold01311g28 PE=3 SV=1 | B104: 37;37;37 | C104: RQKRAWEAGRQPASTKIGAKRIHTVRVRGGN | D104: >tr|G4N9V2|G4N9V2_MAGO7 40S ribosomal protein S8 OS=Magnaporthe oryzae (strain 70-15 / ATCC MYA-4617 / FGSC 8958) GN=MGG_03251 PE=3 SV=1 | E104: >tr|G4N9V2|G4N9V2_MAGO7 40S ribosomal protein S8 OS=Magnaporthe oryzae (strain 70-15 / ATCC MYA-4617 / FGSC 8958) GN=MGG_03251 PE=3 SV=1 | F104: >tr|G4N9V2|G4N9V2_MAGO7 40S ribosomal protein S8 OS=Magnaporthe oryzae (strain 70-15 / ATCC MYA-4617 / FGSC 8958) GN=MGG_03251 PE=3 SV=1;>tr|L7HUA4|L7HUA4_MAGOY 40S ribosomal protein S8 OS=Magnaporthe oryzae (strain Y34) GN=OOU_Y34scaffold00765g71 PE=3 SV= | G104: + | H104: 1 | I104: K | J104: 138.57 | K104: _RAWEAGRQPASTK(ac)IGAK_ | L104: X;X;X;X;X;X;X;X;X;X;X;X;X;X;X;Acetyl (K);X;X;X;X;X;X;X;X;X;X;X;X;X;X;X | M104: RAWEAGRQPASTK(1)IGAK | N104: RAWEAGRQPASTK(44.39)IGAK(-44.39) | O104: 13 | P104: 3 | Q104: 623.6745 | R104: -0.056162 | T104: 79521000 | U104: 201090000 | V104: 148060000 | W104: 142890333.3 | X104: 257040000 | Y104: 225590000 | Z104: 193850000 | AA104: 225493333.3 | AB104: 0.6336787488 | AC104: =_xlfn.T.TEST(T104:V104,X104:Z104,2,2) -> 0.1055398643
A105: >tr|L7IKZ6|L7IKZ6_MAGOY Glyceraldehyde-3-phosphate dehydrogenase OS=Magnaporthe oryzae (strain Y34) GN=OOU_Y34scaffold00125g3 PE=3 SV=1;>tr|L7IWE7|L7IWE7_MAGOP Glyceraldehyde-3-phosphate dehydrogenase OS=Magnaporthe oryzae (strain P131) GN=OOW_P131scaffold01325g16 PE=3 SV=1;>tr|G4NCH2|G4NCH2_MAGO7 Glyceraldehyde-3-phosphate dehydrogenase OS=Magnaporthe oryzae (strain 70-15 / ATCC MYA-4617 / FGSC 8958) GN=MGG_01084 PE=3 SV=1 | B105: 233;233;213 | C105: RGAAQNIIPSSTGAAKAVGKVIPALNGKLTG | D105: >tr|L7IKZ6|L7IKZ6_MAGOY Glyceraldehyde-3-phosphate dehydrogenase OS=Magnaporthe oryzae (strain Y34) GN=OOU_Y34scaffold00125g3 PE=3 SV=1 | E105: >tr|L7IKZ6|L7IKZ6_MAGOY Glyceraldehyde-3-phosphate dehydrogenase OS=Magnaporthe oryzae (strain Y34) GN=OOU_Y34scaffold00125g3 PE=3 SV=1 | F105: >tr|L7IKZ6|L7IKZ6_MAGOY Glyceraldehyde-3-phosphate dehydrogenase OS=Magnaporthe oryzae (strain Y34) GN=OOU_Y34scaffold00125g3 PE=3 SV=1;>tr|L7IWE7|L7IWE7_MAGOP Glyceraldehyde-3-phosphate dehydrogenase OS=Magnaporthe oryzae (strain P131) GN=OOW_P131scaffold | G105: + | H105: 1 | I105: K | J105: 142.39 | K105: _GAAQNIIPSSTGAAK(ac)AVGK_ | L105: X;X;X;X;X;X;X;X;X;X;X;X;X;X;X;Acetyl (K);X;X;X;Acetyl (K);X;X;X;X;X;X;X;Acetyl (K);X;X;X | M105: GAAQNIIPSSTGAAK(1)AVGK | N105: GAAQNIIPSSTGAAK(47.62)AVGK(-47.62) | O105: 15 | P105: 3 | Q105: 594.99513 | R105: 0.15716 | T105: 231090000 | U105: 160400000 | V105: 154640000 | W105: 182043333.3 | X105: 143680000 | Y105: 103530000 | Z105: 129500000 | AA105: 125570000 | AB105: 1.449735871 | AC105: =_xlfn.T.TEST(T105:V105,X105:Z105,2,2) -> 0.1069020711
A106: >tr|G4MY97|G4MY97_MAGO7 Cell wall biogenesis protein phosphatase Ssd1 OS=Magnaporthe oryzae (strain 70-15 / ATCC MYA-4617 / FGSC 8958) GN=MGG_08084 PE=4 SV=1;>tr|L7I8L4|L7I8L4_MAGOY Uncharacterized protein OS=Magnaporthe oryzae (strain Y34) GN=OOU_Y34scaffold00492g8 PE=4 SV=1;>tr|L7JJE0|L7JJE0_MAGOP Uncharacterized protein OS=Magnaporthe oryzae (strain P131) GN=OOW_P131scaffold00264g8 PE=4 SV=1 | B106: 667;667;667 | C106: EKHMDYADRIFVACIKRWPITSLHPFGTLVE | D106: >tr|G4MY97|G4MY97_MAGO7 Cell wall biogenesis protein phosphatase Ssd1 OS=Magnaporthe oryzae (strain 70-15 / ATCC MYA-4617 / FGSC 8958) GN=MGG_08084 PE=4 SV=1 | E106: >tr|G4MY97|G4MY97_MAGO7 Cell wall biogenesis protein phosphatase Ssd1 OS=Magnaporthe oryzae (strain 70-15 / ATCC MYA-4617 / FGSC 8958) GN=MGG_08084 PE=4 SV=1 | F106: >tr|G4MY97|G4MY97_MAGO7 Cell wall biogenesis protein phosphatase Ssd1 OS=Magnaporthe oryzae (strain 70-15 / ATCC MYA-4617 / FGSC 8958) GN=MGG_08084 PE=4 SV=1;>tr|L7I8L4|L7I8L4_MAGOY Uncharacterized protein OS=Magnaporthe oryzae (strain Y34) GN=OOU_Y34scaff | G106: + | H106: 1 | I106: K | J106: 140.98 | K106: _IFVACIK(ac)R_ | L106: X;Acetyl (K);X;X;X;X;X;X;X;X;X;X;X;X;X;Acetyl (K);X;X;X;X;X;X;X;X;X;X;X;X;X;X;X | M106: IFVACIK(1)R | N106: IFVACIK(92.47)R | O106: 7 | P106: 2 | Q106: 524.80224 | R106: 0.10297 | T106: 110050000 | U106: 149750000 | V106: 151640000 | W106: 137146666.7 | X106: 272950000 | Y106: 161880000 | Z106: 195080000 | AA106: 209970000 | AB106: 0.6531726755 | AC106: =_xlfn.T.TEST(T106:V106,X106:Z106,2,2) -> 0.1102367346
A107: >tr|G4ML82|G4ML82_MAGO7 ATP-citrate synthase subunit 1 OS=Magnaporthe oryzae (strain 70-15 / ATCC MYA-4617 / FGSC 8958) GN=MGG_06719 PE=4 SV=1;>tr|L7JMC4|L7JMC4_MAGOP ATP-citrate synthase subunit 1 OS=Magnaporthe oryzae (strain P131) GN=OOW_P131scaffold00177g8 PE=4 SV=1;>tr|L7I5K1|L7I5K1_MAGOY ATP-citrate synthase subunit 1 OS=Magnaporthe oryzae (strain Y34) GN=OOU_Y34scaffold00534g8 PE=4 SV=1 | B107: 114;114;114 | C107: ETLLPVYQEVQKAVAKHPDVDTVVNFASSRS | D107: >tr|G4ML82|G4ML82_MAGO7 ATP-citrate synthase subunit 1 OS=Magnaporthe oryzae (strain 70-15 / ATCC MYA-4617 / FGSC 8958) GN=MGG_06719 PE=4 SV=1 | E107: >tr|G4ML82|G4ML82_MAGO7 ATP-citrate synthase subunit 1 OS=Magnaporthe oryzae (strain 70-15 / ATCC MYA-4617 / FGSC 8958) GN=MGG_06719 PE=4 SV=1 | F107: >tr|G4ML82|G4ML82_MAGO7 ATP-citrate synthase subunit 1 OS=Magnaporthe oryzae (strain 70-15 / ATCC MYA-4617 / FGSC 8958) GN=MGG_06719 PE=4 SV=1;>tr|L7JMC4|L7JMC4_MAGOP ATP-citrate synthase subunit 1 OS=Magnaporthe oryzae (strain P131) GN=OOW_P131scaffold001 | G107: + | H107: 1 | I107: K | J107: 113.53 | K107: _AVAK(ac)HPDVDTVVNFASSR_ | L107: X;X;X;X;X;X;X;X;X;X;X;X;X;X;X;Acetyl (K);X;X;X;X;X;X;X;X;X;X;X;X;X;X;X | M107: AVAK(1)HPDVDTVVNFASSR | N107: AVAK(56.82)HPDVDTVVNFASSR | O107: 4 | P107: 3 | Q107: 652.33756 | R107: -1.0946 | T107: 25720000 | U107: 34419000 | V107: 40790000 | W107: 33643000 | X107: 93757000 | Y107: 37291000 | Z107: 117260000 | AA107: 82769333.33 | AB107: 0.4064669684 | AC107: =_xlfn.T.TEST(T107:V107,X107:Z107,2,2) -> 0.1114442426
A108: >tr|G4N818|G4N818_MAGO7 Acyl carrier protein OS=Magnaporthe oryzae (strain 70-15 / ATCC MYA-4617 / FGSC 8958) GN=MGG_03484 PE=3 SV=1;>tr|L7IAU9|L7IAU9_MAGOY Acyl carrier protein OS=Magnaporthe oryzae (strain Y34) GN=OOU_Y34scaffold00448g49 PE=3 SV=1;>tr|L7JGA2|L7JGA2_MAGOP Acyl carrier protein OS=Magnaporthe oryzae (strain P131) GN=OOW_P131scaffold00333g15 PE=3 SV=1 | B108: 78;78;78 | C108: LDKPQVEGRIISLLQKFDKVNDPSKIQPSSH | D108: >tr|G4N818|G4N818_MAGO7 Acyl carrier protein OS=Magnaporthe oryzae (strain 70-15 / ATCC MYA-4617 / FGSC 8958) GN=MGG_03484 PE=3 SV=1 | E108: >tr|G4N818|G4N818_MAGO7 Acyl carrier protein OS=Magnaporthe oryzae (strain 70-15 / ATCC MYA-4617 / FGSC 8958) GN=MGG_03484 PE=3 SV=1 | F108: >tr|G4N818|G4N818_MAGO7 Acyl carrier protein OS=Magnaporthe oryzae (strain 70-15 / ATCC MYA-4617 / FGSC 8958) GN=MGG_03484 PE=3 SV=1;>tr|L7IAU9|L7IAU9_MAGOY Acyl carrier protein OS=Magnaporthe oryzae (strain Y34) GN=OOU_Y34scaffold00448g49 PE=3 SV=1;>tr|L7 | G108: + | H108: 1 | I108: K | J108: 237.59 | K108: _IISLLQK(ac)FDK_ | L108: X;X;X;X;X;X;X;X;X;X;X;X;X;X;X;Acetyl (K);X;X;Acetyl (K);X;X;X;X;X;X;X;X;X;X;X;X | M108: IISLLQK(1)FDK | N108: IISLLQK(77.64)FDK(-77.64) | O108: 7 | P108: 2 | Q108: 623.87391 | R108: -0.1676 | T108: 104010000 | U108: 87174000 | V108: 74692000 | W108: 88625333.33 | X108: 74093000 | Y108: 50156000 | Z108: 71998000 | AA108: 65415666.67 | AB108: 1.354802876 | AC108: =_xlfn.T.TEST(T108:V108,X108:Z108,2,2) -> 0.1122269295
A109: >tr|G4ND56|G4ND56_MAGO7 Mitochondrial outer membrane protein porin OS=Magnaporthe oryzae (strain 70-15 / ATCC MYA-4617 / FGSC 8958) GN=MGG_00968 PE=4 SV=1;>tr|L7I9Z0|L7I9Z0_MAGOY Outer mitochondrial membrane protein porin OS=Magnaporthe oryzae (strain Y34) GN=OOU_Y34scaffold00462g13 PE=4 SV=1;>tr|L7JP39|L7JP39_MAGOP Outer mitochondrial membrane protein porin OS=Magnaporthe oryzae (strain P131) GN=OOW_P131scaffold00114g16 PE=4 SV=1 | B109: 118;187;187 | C109: LPATSATAAKLNLHFKQSNVHGRAFFDLLKG | D109: >tr|G4ND56|G4ND56_MAGO7 Mitochondrial outer membrane protein porin OS=Magnaporthe oryzae (strain 70-15 / ATCC MYA-4617 / FGSC 8958) GN=MGG_00968 PE=4 SV=1;>tr|L7I9Z0|L7I9Z0_MAGOY Outer mitochondrial membrane protein porin OS=Magnaporthe oryzae (strain Y34) GN=OOU_Y34scaffold00462g13 PE=4 SV=1 | E109: >tr|G4ND56|G4ND56_MAGO7 Mitochondrial outer membrane protein porin OS=Magnaporthe oryzae (strain 70-15 / ATCC MYA-4617 / FGSC 8958) GN=MGG_00968 PE=4 SV=1 | F109: >tr|G4ND56|G4ND56_MAGO7 Mitochondrial outer membrane protein porin OS=Magnaporthe oryzae (strain 70-15 / ATCC MYA-4617 / FGSC 8958) GN=MGG_00968 PE=4 SV=1;>tr|L7I9Z0|L7I9Z0_MAGOY Outer mitochondrial membrane protein porin OS=Magnaporthe oryzae (strain Y34) | G109: + | H109: 1 | I109: K | J109: 158.86 | K109: _LNLHFK(ac)QSNVHGR_ | L109: X;X;X;X;X;X;X;X;X;X;X;X;X;X;X;Acetyl (K);X;X;X;X;X;X;X;X;X;X;X;X;X;X;X | M109: LNLHFK(1)QSNVHGR | N109: LNLHFK(83.88)QSNVHGR | O109: 6 | P109: 3 | Q109: 531.28658 | R109: 0.2425 | T109: 338490000 | U109: 277420000 | V109: 327540000 | W109: 314483333.3 | X109: 457180000 | Y109: 327070000 | Z109: 418570000 | AA109: 400940000 | AB109: 0.7843650754 | AC109: =_xlfn.T.TEST(T109:V109,X109:Z109,2,2) -> 0.1142079612
A110: >tr|G4N6D6|G4N6D6_MAGO7 Uncharacterized protein OS=Magnaporthe oryzae (strain 70-15 / ATCC MYA-4617 / FGSC 8958) GN=MGG_12797 PE=3 SV=1;>tr|L7INN7|L7INN7_MAGOY Uncharacterized protein OS=Magnaporthe oryzae (strain Y34) GN=OOU_Y34scaffold00037g5 PE=3 SV=1;>tr|L7J7Q3|L7J7Q3_MAGOP Uncharacterized protein OS=Magnaporthe oryzae (strain P131) GN=OOW_P131scaffold00753g6 PE=3 SV=1 | B110: 137;137;137 | C110: KKAAAPKEKEKDAAEKPAAPKKAAPKKPAAP | D110: >tr|G4N6D6|G4N6D6_MAGO7 Uncharacterized protein OS=Magnaporthe oryzae (strain 70-15 / ATCC MYA-4617 / FGSC 8958) GN=MGG_12797 PE=3 SV=1 | E110: >tr|G4N6D6|G4N6D6_MAGO7 Uncharacterized protein OS=Magnaporthe oryzae (strain 70-15 / ATCC MYA-4617 / FGSC 8958) GN=MGG_12797 PE=3 SV=1 | F110: >tr|G4N6D6|G4N6D6_MAGO7 Uncharacterized protein OS=Magnaporthe oryzae (strain 70-15 / ATCC MYA-4617 / FGSC 8958) GN=MGG_12797 PE=3 SV=1;>tr|L7INN7|L7INN7_MAGOY Uncharacterized protein OS=Magnaporthe oryzae (strain Y34) GN=OOU_Y34scaffold00037g5 PE=3 SV=1;> | G110: + | H110: 1 | I110: K | J110: 166.48 | K110: _EKDAAEK(ac)PAAPK_ | L110: X;X;X;X;X;X;X;X;X;X;X;X;X;X;X;Acetyl (K);X;X;X;X;X;X;X;X;X;X;X;X;X;X;X | M110: EKDAAEK(1)PAAPK | N110: EK(-94.19)DAAEK(94.19)PAAPK(-166.48) | O110: 7 | P110: 2 | Q110: 648.84334 | R110: 0.11233 | T110: 164360000 | U110: 243830000 | V110: 63694000 | W110: 157294666.7 | X110: 51541000 | Y110: 57192000 | Z110: 49856000 | AA110: 52863000 | AB110: 2.975515326 | AC110: =_xlfn.T.TEST(T110:V110,X110:Z110,2,2) -> 0.1158728286
A111: >tr|G4N9W9|G4N9W9_MAGO7 40S ribosomal protein S6 OS=Magnaporthe oryzae (strain 70-15 / ATCC MYA-4617 / FGSC 8958) GN=MGG_03236 PE=3 SV=1;>tr|L7HW16|L7HW16_MAGOY 40S ribosomal protein S6 OS=Magnaporthe oryzae (strain Y34) GN=OOU_Y34scaffold00765g53 PE=3 SV=1;>tr|L7IWY9|L7IWY9_MAGOP 40S ribosomal protein S6 OS=Magnaporthe oryzae (strain P131) GN=OOW_P131scaffold01311g10 PE=3 SV=1;>tr|D4NXH4|D4NXH4_MAGOR 40S ribosomal protein S6 OS=Magnaporthe oryzae PE=2 SV=1 | B111: 169;169;169;170 | C111: RKYVIRREVQPKGEGKKPYTKAPKIQRLVTP | D111: >tr|G4N9W9|G4N9W9_MAGO7 40S ribosomal protein S6 OS=Magnaporthe oryzae (strain 70-15 / ATCC MYA-4617 / FGSC 8958) GN=MGG_03236 PE=3 SV=1 | E111: >tr|G4N9W9|G4N9W9_MAGO7 40S ribosomal protein S6 OS=Magnaporthe oryzae (strain 70-15 / ATCC MYA-4617 / FGSC 8958) GN=MGG_03236 PE=3 SV=1 | F111: >tr|G4N9W9|G4N9W9_MAGO7 40S ribosomal protein S6 OS=Magnaporthe oryzae (strain 70-15 / ATCC MYA-4617 / FGSC 8958) GN=MGG_03236 PE=3 SV=1;>tr|L7HW16|L7HW16_MAGOY 40S ribosomal protein S6 OS=Magnaporthe oryzae (strain Y34) GN=OOU_Y34scaffold00765g53 PE=3 SV= | G111: + | H111: 1 | I111: K | J111: 115.7 | K111: _GEGK(ac)KPYTK_ | L111: X;X;X;X;X;X;X;X;X;X;X;X;X;X;X;Acetyl (K);X;X;X;X;X;X;X;X;X;X;X;X;X;X;X | M111: GEGK(0.999)K(0.001)PYTK | N111: GEGK(31.82)K(-31.82)PYTK(-115.7) | O111: 4 | P111: 2 | Q111: 525.28493 | R111: -0.92627 | T111: 4928000 | V111: 6682500 | W111: 5805250 | X111: 8407400 | Z111: 7987200 | AA111: 8197300 | AB111: 0.7081905018 | AC111: =_xlfn.T.TEST(T111:V111,X111:Z111,2,2) -> 0.1176383886
A112: >sp|A4R5S9|KATG1_MAGO7 Catalase-peroxidase 1 OS=Magnaporthe oryzae (strain 70-15 / ATCC MYA-4617 / FGSC 8958) GN=katG1 PE=1 SV=1;>tr|L7IF93|L7IF93_MAGOY Peroxidase/catalase 2 OS=Magnaporthe oryzae (strain Y34) GN=OOU_Y34scaffold00290g9 PE=3 SV=1;>tr|L7JNA5|L7JNA5_MAGOP Peroxidase/catalase 2 OS=Magnaporthe oryzae (strain P131) GN=OOW_P131scaffold00197g15 PE=3 SV=1 | B112: 60;60;60 | C112: FDYAEAFKSLDYEGLKKDLRALMTDSQEYWP | D112: >sp|A4R5S9|KATG1_MAGO7 Catalase-peroxidase 1 OS=Magnaporthe oryzae (strain 70-15 / ATCC MYA-4617 / FGSC 8958) GN=katG1 PE=1 SV=1 | E112: >sp|A4R5S9|KATG1_MAGO7 Catalase-peroxidase 1 OS=Magnaporthe oryzae (strain 70-15 / ATCC MYA-4617 / FGSC 8958) GN=katG1 PE=1 SV=1 | F112: >sp|A4R5S9|KATG1_MAGO7 Catalase-peroxidase 1 OS=Magnaporthe oryzae (strain 70-15 / ATCC MYA-4617 / FGSC 8958) GN=katG1 PE=1 SV=1;>tr|L7IF93|L7IF93_MAGOY Peroxidase/catalase 2 OS=Magnaporthe oryzae (strain Y34) GN=OOU_Y34scaffold00290g9 PE=3 SV=1;>tr|L7JNA5 | G112: + | H112: 1 | I112: K | J112: 101.11 | K112: _SLDYEGLK(ac)K_ | L112: X;X;X;X;X;X;X;X;X;X;X;X;X;X;X;Acetyl (K);X;X;X;X;X;X;X;X;X;X;X;X;X;X;X | M112: SLDYEGLK(1)K | N112: SLDYEGLK(94.69)K(-94.69) | O112: 8 | P112: 2 | Q112: 547.79005 | R112: 0.32984 | T112: 13522000 | U112: 9731800 | V112: 9281700 | W112: 10845166.67 | X112: 16988000 | Z112: 13816000 | AA112: 15402000 | AB112: 0.704140155 | AC112: =_xlfn.T.TEST(T112:V112,X112:Z112,2,2) -> 0.1184972029
A113: >tr|G4N701|G4N701_MAGO7 40S ribosomal protein S22 OS=Magnaporthe oryzae (strain 70-15 / ATCC MYA-4617 / FGSC 8958) GN=MGG_06479 PE=3 SV=1;>tr|L7IF76|L7IF76_MAGOY 40S ribosomal protein S22 OS=Magnaporthe oryzae (strain Y34) GN=OOU_Y34scaffold00247g52 PE=3 SV=1;>tr|L7IT48|L7IT48_MAGOP 40S ribosomal protein S22 OS=Magnaporthe oryzae (strain P131) GN=OOW_P131scaffold01381g21 PE=3 SV=1 | B113: 92;92;92 | C113: PRYNVRLADLEKWVVKLLPARQFGYVILTTS | D113: >tr|G4N701|G4N701_MAGO7 40S ribosomal protein S22 OS=Magnaporthe oryzae (strain 70-15 / ATCC MYA-4617 / FGSC 8958) GN=MGG_06479 PE=3 SV=1 | E113: >tr|G4N701|G4N701_MAGO7 40S ribosomal protein S22 OS=Magnaporthe oryzae (strain 70-15 / ATCC MYA-4617 / FGSC 8958) GN=MGG_06479 PE=3 SV=1 | F113: >tr|G4N701|G4N701_MAGO7 40S ribosomal protein S22 OS=Magnaporthe oryzae (strain 70-15 / ATCC MYA-4617 / FGSC 8958) GN=MGG_06479 PE=3 SV=1;>tr|L7IF76|L7IF76_MAGOY 40S ribosomal protein S22 OS=Magnaporthe oryzae (strain Y34) GN=OOU_Y34scaffold00247g52 PE=3 S | G113: + | H113: 1 | I113: K | J113: 114.89 | K113: _WVVK(ac)LLPAR_ | L113: X;X;X;X;X;X;X;X;X;X;X;X;X;X;X;Acetyl (K);X;X;X;X;X;X;X;X;X;X;X;X;X;X;X | M113: WVVK(1)LLPAR | N113: WVVK(67.56)LLPAR | O113: 4 | P113: 2 | Q113: 562.35295 | R113: -0.12033 | T113: 32902000 | U113: 26277000 | V113: 30209000 | W113: 29796000 | X113: 27925000 | Y113: 20043000 | Z113: 23705000 | AA113: 23891000 | AB113: 1.247164204 | AC113: =_xlfn.T.TEST(T113:V113,X113:Z113,2,2) -> 0.1186767782
A114: >tr|G4MUW4|G4MUW4_MAGO7 Uncharacterized protein OS=Magnaporthe oryzae (strain 70-15 / ATCC MYA-4617 / FGSC 8958) GN=MGG_01706 PE=4 SV=1 | B114: 60 | C114: TPPINAASSDEADFIKKFLDDNSGKGKSEGK | D114: >tr|G4MUW4|G4MUW4_MAGO7 Uncharacterized protein OS=Magnaporthe oryzae (strain 70-15 / ATCC MYA-4617 / FGSC 8958) GN=MGG_01706 PE=4 SV=1 | E114: >tr|G4MUW4|G4MUW4_MAGO7 Uncharacterized protein OS=Magnaporthe oryzae (strain 70-15 / ATCC MYA-4617 / FGSC 8958) GN=MGG_01706 PE=4 SV=1 | F114: >tr|G4MUW4|G4MUW4_MAGO7 Uncharacterized protein OS=Magnaporthe oryzae (strain 70-15 / ATCC MYA-4617 / FGSC 8958) GN=MGG_01706 PE=4 SV=1 | G114: + | H114: 1 | I114: K | J114: 83.213 | K114: _AGTTPPINAASSDEADFIK(ac)K_ | L114: X;X;X;X;X;X;X;X;X;X;X;X;X;X;X;Acetyl (K);X;X;X;X;X;X;X;X;X;X;X;X;X;X;X | M114: AGTTPPINAASSDEADFIK(1)K | N114: AGTTPPINAASSDEADFIK(83.21)K(-83.21) | O114: 19 | P114: 2 | Q114: 1038.0182 | R114: 0.68814 | T114: 10569000 | U114: 11666000 | V114: 14327000 | W114: 12187333.33 | X114: 14764000 | Y114: 13703000 | Z114: 15256000 | AA114: 14574333.33 | AB114: 0.8362189237 | AC114: =_xlfn.T.TEST(T114:V114,X114:Z114,2,2) -> 0.1189349858
A115: >tr|G4N184|G4N184_MAGO7 Cell division control protein 12 OS=Magnaporthe oryzae (strain 70-15 / ATCC MYA-4617 / FGSC 8958) GN=MGG_07466 PE=3 SV=1;>tr|L7I4H5|L7I4H5_MAGOY Cell division control protein 12 OS=Magnaporthe oryzae (strain Y34) GN=OOU_Y34scaffold00552g74 PE=3 SV=1;>tr|L7JCM1|L7JCM1_MAGOP Cell division control protein 12 OS=Magnaporthe oryzae (strain P131) GN=OOW_P131scaffold00472g7 PE=3 SV=1 | B115: 63;63;63 | C115: INTLFSTTIKNYADHKRRHQKQIDKTVEIEI | D115: >tr|G4N184|G4N184_MAGO7 Cell division control protein 12 OS=Magnaporthe oryzae (strain 70-15 / ATCC MYA-4617 / FGSC 8958) GN=MGG_07466 PE=3 SV=1 | E115: >tr|G4N184|G4N184_MAGO7 Cell division control protein 12 OS=Magnaporthe oryzae (strain 70-15 / ATCC MYA-4617 / FGSC 8958) GN=MGG_07466 PE=3 SV=1 | F115: >tr|G4N184|G4N184_MAGO7 Cell division control protein 12 OS=Magnaporthe oryzae (strain 70-15 / ATCC MYA-4617 / FGSC 8958) GN=MGG_07466 PE=3 SV=1;>tr|L7I4H5|L7I4H5_MAGOY Cell division control protein 12 OS=Magnaporthe oryzae (strain Y34) GN=OOU_Y34scaffold0 | G115: + | H115: 1 | I115: K | J115: 139.31 | K115: _NYADHK(ac)R_ | L115: X;X;X;X;X;X;X;X;X;X;X;X;X;X;X;Acetyl (K);X;X;X;X;X;X;X;X;X;X;X;X;X;X;X | M115: NYADHK(1)R | N115: NYADHK(105.04)R | O115: 6 | P115: 2 | Q115: 473.23049 | R115: 0.2774 | T115: 46114000 | U115: 50957000 | V115: 41046000 | W115: 46039000 | X115: 40328000 | Y115: 9550500 | Z115: 31511000 | AA115: 27129833.33 | AB115: 1.696987941 | AC115: =_xlfn.T.TEST(T115:V115,X115:Z115,2,2) -> 0.1198621624
A116: >tr|G5EH27|G5EH27_MAGO7 3-oxoacyl-[acyl-carrier-protein] reductase OS=Magnaporthe oryzae (strain 70-15 / ATCC MYA-4617 / FGSC 8958) GN=MGCH7_ch7g333 PE=3 SV=1;>tr|L7HZF1|L7HZF1_MAGOY 3-oxoacyl-[acyl-carrier-protein] reductase OS=Magnaporthe oryzae (strain Y34) GN=OOU_Y34scaffold00666g205 PE=3 SV=1;>tr|L7J5A4|L7J5A4_MAGOP 3-oxoacyl-[acyl-carrier-protein] reductase OS=Magnaporthe oryzae (strain P131) GN=OOW_P131scaffold01027g38 PE=3 SV=1 | B116: 64;64;64 | C116: DKVKSLVPGAQVETVKCDVSKEAEVKAMIEH | D116: >tr|G5EH27|G5EH27_MAGO7 3-oxoacyl-[acyl-carrier-protein] reductase OS=Magnaporthe oryzae (strain 70-15 / ATCC MYA-4617 / FGSC 8958) GN=MGCH7_ch7g333 PE=3 SV=1 | E116: >tr|G5EH27|G5EH27_MAGO7 3-oxoacyl-[acyl-carrier-protein] reductase OS=Magnaporthe oryzae (strain 70-15 / ATCC MYA-4617 / FGSC 8958) GN=MGCH7_ch7g333 PE=3 SV=1 | F116: >tr|G5EH27|G5EH27_MAGO7 3-oxoacyl-[acyl-carrier-protein] reductase OS=Magnaporthe oryzae (strain 70-15 / ATCC MYA-4617 / FGSC 8958) GN=MGCH7_ch7g333 PE=3 SV=1;>tr|L7HZF1|L7HZF1_MAGOY 3-oxoacyl-[acyl-carrier-protein] reductase OS=Magnaporthe oryzae (strain | G116: + | H116: 1 | I116: K | J116: 139.67 | K116: _SLVPGAQVETVK(ac)CDVSK_ | L116: X;X;X;X;X;X;X;X;X;X;X;X;X;X;X;Acetyl (K);X;X;X;X;X;X;X;X;X;X;X;X;X;X;X | M116: SLVPGAQVETVK(1)CDVSK | N116: SLVPGAQVETVK(74.79)CDVSK(-74.79) | O116: 12 | P116: 2 | Q116: 929.98258 | R116: 0.96115 | T116: 16671000 | U116: 14691000 | V116: 15276000 | W116: 15546000 | X116: 30893000 | Y116: 15553000 | Z116: 28277000 | AA116: 24907666.67 | AB116: 0.6241451762 | AC116: =_xlfn.T.TEST(T116:V116,X116:Z116,2,2) -> 0.1214291304
A117: >sp|A4QZL9|EIF3B_MAGO7 Eukaryotic translation initiation factor 3 subunit B OS=Magnaporthe oryzae (strain 70-15 / ATCC MYA-4617 / FGSC 8958) GN=PRT1 PE=3 SV=1;>tr|L7HTW5|L7HTW5_MAGOY Eukaryotic translation initiation factor 3 subunit B OS=Magnaporthe oryzae (strain Y34) GN=PRT1 PE=3 SV=1;>tr|L7J0J0|L7J0J0_MAGOP Eukaryotic translation initiation factor 3 subunit B OS=Magnaporthe oryzae (strain P131) GN=PRT1 PE=3 SV=1 | B117: 117;117;117 | C117: EAAAAVRQLDRVPLDKKHTLRVNKLMDVDRF | D117: >sp|A4QZL9|EIF3B_MAGO7 Eukaryotic translation initiation factor 3 subunit B OS=Magnaporthe oryzae (strain 70-15 / ATCC MYA-4617 / FGSC 8958) GN=PRT1 PE=3 SV=1 | E117: >sp|A4QZL9|EIF3B_MAGO7 Eukaryotic translation initiation factor 3 subunit B OS=Magnaporthe oryzae (strain 70-15 / ATCC MYA-4617 / FGSC 8958) GN=PRT1 PE=3 SV=1 | F117: >sp|A4QZL9|EIF3B_MAGO7 Eukaryotic translation initiation factor 3 subunit B OS=Magnaporthe oryzae (strain 70-15 / ATCC MYA-4617 / FGSC 8958) GN=PRT1 PE=3 SV=1;>tr|L7HTW5|L7HTW5_MAGOY Eukaryotic translation initiation factor 3 subunit B OS=Magnaporthe oryza | G117: + | H117: 1 | I117: K | J117: 193.3 | K117: _QLDRVPLDK(ac)K_ | L117: X;X;X;X;X;X;X;X;X;X;X;X;X;X;X;Acetyl (K);X;X;X;X;X;X;X;X;X;X;X;X;X;X;X | M117: QLDRVPLDK(1)K | N117: QLDRVPLDK(140.09)K(-140.09) | O117: 9 | P117: 2 | Q117: 627.36424 | R117: 0.56582 | T117: 33180000 | U117: 34229000 | V117: 20552000 | W117: 29320333.33 | X117: 19997000 | Y117: 23336000 | Z117: 15906000 | AA117: 19746333.33 | AB117: 1.484849508 | AC117: =_xlfn.T.TEST(T117:V117,X117:Z117,2,2) -> 0.1219466247
A118: >tr|G4MTZ2|G4MTZ2_MAGO7 Uncharacterized protein OS=Magnaporthe oryzae (strain 70-15 / ATCC MYA-4617 / FGSC 8958) GN=MGG_01609 PE=4 SV=1;>tr|L7IJ22|L7IJ22_MAGOY Uncharacterized protein OS=Magnaporthe oryzae (strain Y34) GN=OOU_Y34scaffold00162g12 PE=4 SV=1;>tr|L7IZ38|L7IZ38_MAGOP Uncharacterized protein OS=Magnaporthe oryzae (strain P131) GN=OOW_P131scaffold01287g72 PE=4 SV=1 | B118: 96;96;96 | C118: KQYGNGTEADNARFIKCSDDCINKNYWNPSS | D118: >tr|G4MTZ2|G4MTZ2_MAGO7 Uncharacterized protein OS=Magnaporthe oryzae (strain 70-15 / ATCC MYA-4617 / FGSC 8958) GN=MGG_01609 PE=4 SV=1 | E118: >tr|G4MTZ2|G4MTZ2_MAGO7 Uncharacterized protein OS=Magnaporthe oryzae (strain 70-15 / ATCC MYA-4617 / FGSC 8958) GN=MGG_01609 PE=4 SV=1 | F118: >tr|G4MTZ2|G4MTZ2_MAGO7 Uncharacterized protein OS=Magnaporthe oryzae (strain 70-15 / ATCC MYA-4617 / FGSC 8958) GN=MGG_01609 PE=4 SV=1;>tr|L7IJ22|L7IJ22_MAGOY Uncharacterized protein OS=Magnaporthe oryzae (strain Y34) GN=OOU_Y34scaffold00162g12 PE=4 SV=1; | G118: + | H118: 1 | I118: K | J118: 85.288 | K118: _FIK(ac)CSDDCINK_ | L118: X;X;X;X;X;X;X;X;X;X;X;X;X;X;X;Acetyl (K);X;X;X;X;X;X;X;X;X;X;X;X;X;X;X | M118: FIK(1)CSDDCINK | N118: FIK(85.29)CSDDCINK(-85.29) | O118: 3 | P118: 2 | Q118: 721.32614 | R118: 0.044285 | T118: 11690000 | U118: 8549800 | V118: 9955500 | W118: 10065100 | X118: 16223000 | Y118: 10358000 | Z118: 16435000 | AA118: 14338666.67 | AB118: 0.7019550865 | AC118: =_xlfn.T.TEST(T118:V118,X118:Z118,2,2) -> 0.1225823721
A119: >tr|G4MRY4|G4MRY4_MAGO7 Transketolase OS=Magnaporthe oryzae (strain 70-15 / ATCC MYA-4617 / FGSC 8958) GN=MGG_02471 PE=3 SV=1;>tr|L7HW12|L7HW12_MAGOY Transketolase OS=Magnaporthe oryzae (strain Y34) GN=OOU_Y34scaffold00725g26 PE=3 SV=1;>tr|L7JDL7|L7JDL7_MAGOP Transketolase OS=Magnaporthe oryzae (strain P131) GN=OOW_P131scaffold00400g13 PE=3 SV=1 | B119: 660;660;660 | C119: KDVYKKFEFTPEGIAKRAAATVDFWKDVPNV | D119: >tr|G4MRY4|G4MRY4_MAGO7 Transketolase OS=Magnaporthe oryzae (strain 70-15 / ATCC MYA-4617 / FGSC 8958) GN=MGG_02471 PE=3 SV=1 | E119: >tr|G4MRY4|G4MRY4_MAGO7 Transketolase OS=Magnaporthe oryzae (strain 70-15 / ATCC MYA-4617 / FGSC 8958) GN=MGG_02471 PE=3 SV=1 | F119: >tr|G4MRY4|G4MRY4_MAGO7 Transketolase OS=Magnaporthe oryzae (strain 70-15 / ATCC MYA-4617 / FGSC 8958) GN=MGG_02471 PE=3 SV=1;>tr|L7HW12|L7HW12_MAGOY Transketolase OS=Magnaporthe oryzae (strain Y34) GN=OOU_Y34scaffold00725g26 PE=3 SV=1;>tr|L7JDL7|L7JDL7_MA | G119: + | H119: 1 | I119: K | J119: 115.14 | K119: _KFEFTPEGIAK(ac)R_ | L119: Acetyl (K);X;X;X;X;X;X;X;X;X;X;X;X;X;X;Acetyl (K);X;X;X;X;X;X;X;X;X;X;X;X;X;X;X | M119: KFEFTPEGIAK(1)R | N119: K(-86.4)FEFTPEGIAK(86.4)R | O119: 11 | P119: 3 | Q119: 488.93303 | R119: 0.094327 | T119: 16852000 | U119: 10858000 | V119: 15957000 | W119: 14555666.67 | X119: 12014000 | Y119: 9170200 | Z119: 10587000 | AA119: 10590400 | AB119: 1.374420859 | AC119: =_xlfn.T.TEST(T119:V119,X119:Z119,2,2) -> 0.1237509547
A120: >tr|D4NXG1|D4NXG1_MAGOR 40S ribosomal protein S7 OS=Magnaporthe oryzae PE=2 SV=1;>tr|G4NDL6|G4NDL6_MAGO7 40S ribosomal protein S7 OS=Magnaporthe oryzae (strain 70-15 / ATCC MYA-4617 / FGSC 8958) GN=MGG_00221 PE=4 SV=1;>tr|L7HU82|L7HU82_MAGOY 40S ribosomal protein S7 OS=Magnaporthe oryzae (strain Y34) GN=OOU_Y34scaffold00782g3 PE=4 SV=1;>tr|L7JPX7|L7JPX7_MAGOP 40S ribosomal protein S7 OS=Magnaporthe oryzae (strain P131) GN=OOW_P131scaffold00057g3 PE=4 SV=1 | B120: 61;61;61;61 | C120: PLQFVSAREIEVGHGKKAIVIFVPVPSLQGF | D120: >tr|D4NXG1|D4NXG1_MAGOR 40S ribosomal protein S7 OS=Magnaporthe oryzae PE=2 SV=1 | E120: >tr|D4NXG1|D4NXG1_MAGOR 40S ribosomal protein S7 OS=Magnaporthe oryzae PE=2 SV=1 | F120: >tr|D4NXG1|D4NXG1_MAGOR 40S ribosomal protein S7 OS=Magnaporthe oryzae PE=2 SV=1;>tr|G4NDL6|G4NDL6_MAGO7 40S ribosomal protein S7 OS=Magnaporthe oryzae (strain 70-15 / ATCC MYA-4617 / FGSC 8958) GN=MGG_00221 PE=4 SV=1;>tr|L7HU82|L7HU82_MAGOY 40S ribosomal | G120: + | H120: 1 | I120: K | J120: 120.31 | K120: _EIEVGHGK(ac)K_ | L120: X;X;X;X;X;X;X;X;X;X;X;X;X;X;X;Acetyl (K);X;X;X;X;X;X;X;X;X;X;X;X;X;X;X | M120: EIEVGHGK(1)K | N120: EIEVGHGK(90.64)K(-90.64) | O120: 8 | P120: 2 | Q120: 519.78256 | R120: -0.50294 | T120: 96099000 | U120: 60416000 | V120: 84593000 | W120: 80369333.33 | X120: 69976000 | Y120: 35662000 | Z120: 51254000 | AA120: 52297333.33 | AB120: 1.536776891 | AC120: =_xlfn.T.TEST(T120:V120,X120:Z120,2,2) -> 0.124096145
A121: >tr|D4NXB6|D4NXB6_MAGOR Ribosomal protein OS=Magnaporthe oryzae PE=2 SV=1;>tr|G4MTC2|G4MTC2_MAGO7 Ribosomal protein OS=Magnaporthe oryzae (strain 70-15 / ATCC MYA-4617 / FGSC 8958) GN=MGG_04696 PE=3 SV=1;>tr|L7IHY8|L7IHY8_MAGOY Ribosomal protein OS=Magnaporthe oryzae (strain Y34) GN=OOU_Y34scaffold00194g98 PE=3 SV=1;>tr|L7JDN0|L7JDN0_MAGOP Ribosomal protein OS=Magnaporthe oryzae (strain P131) GN=OOW_P131scaffold00467g15 PE=3 SV=1 | B121: 91;91;91;91 | C121: RAKHGGIDSMSADDLKKLNKNKKLIKKLARK | D121: >tr|D4NXB6|D4NXB6_MAGOR Ribosomal protein OS=Magnaporthe oryzae PE=2 SV=1 | E121: >tr|D4NXB6|D4NXB6_MAGOR Ribosomal protein OS=Magnaporthe oryzae PE=2 SV=1 | F121: >tr|D4NXB6|D4NXB6_MAGOR Ribosomal protein OS=Magnaporthe oryzae PE=2 SV=1;>tr|G4MTC2|G4MTC2_MAGO7 Ribosomal protein OS=Magnaporthe oryzae (strain 70-15 / ATCC MYA-4617 / FGSC 8958) GN=MGG_04696 PE=3 SV=1;>tr|L7IHY8|L7IHY8_MAGOY Ribosomal protein OS=Magnapo | G121: + | H121: 1 | I121: K | J121: 150.05 | K121: _HGGIDSMSADDLK(ac)K_ | L121: X;X;X;X;X;X;X;X;X;X;X;X;X;X;X;Acetyl (K);X;X;X;X;X;X;X;X;X;X;X;X;X;X;X | M121: HGGIDSMSADDLK(1)K | N121: HGGIDSMSADDLK(106.42)K(-106.42) | O121: 13 | P121: 2 | Q121: 758.35903 | R121: 1.6001 | U121: 19407000 | V121: 34672000 | W121: 27039500 | X121: 13943000 | Y121: 17110000 | Z121: 8820700 | AA121: 13291233.33 | AB121: 2.034386074 | AC121: =_xlfn.T.TEST(T121:V121,X121:Z121,2,2) -> 0.1242676408
A122: >tr|G4MWF3|G4MWF3_MAGO7 Proteasome subunit alpha type OS=Magnaporthe oryzae (strain 70-15 / ATCC MYA-4617 / FGSC 8958) GN=MGG_08343 PE=3 SV=1;>tr|L7IKQ6|L7IKQ6_MAGOY Proteasome subunit alpha type OS=Magnaporthe oryzae (strain Y34) GN=OOU_Y34scaffold00148g14 PE=3 SV=1;>tr|L7JQH3|L7JQH3_MAGOP Proteasome subunit alpha type OS=Magnaporthe oryzae (strain P131) GN=OOW_P131scaffold00029g14 PE=3 SV=1 | B122: 176;176;176 | C122: ATSVGANNASAQSLLKQDYKEDCSLKEACGM | D122: >tr|G4MWF3|G4MWF3_MAGO7 Proteasome subunit alpha type OS=Magnaporthe oryzae (strain 70-15 / ATCC MYA-4617 / FGSC 8958) GN=MGG_08343 PE=3 SV=1 | E122: >tr|G4MWF3|G4MWF3_MAGO7 Proteasome subunit alpha type OS=Magnaporthe oryzae (strain 70-15 / ATCC MYA-4617 / FGSC 8958) GN=MGG_08343 PE=3 SV=1 | F122: >tr|G4MWF3|G4MWF3_MAGO7 Proteasome subunit alpha type OS=Magnaporthe oryzae (strain 70-15 / ATCC MYA-4617 / FGSC 8958) GN=MGG_08343 PE=3 SV=1;>tr|L7IKQ6|L7IKQ6_MAGOY Proteasome subunit alpha type OS=Magnaporthe oryzae (strain Y34) GN=OOU_Y34scaffold00148g1 | G122: + | H122: 1 | I122: K | J122: 203.66 | K122: _ATSVGANNASAQSLLK(ac)QDYK_ | L122: X;X;X;X;X;X;X;X;X;X;X;X;X;X;X;Acetyl (K);X;X;X;Acetyl (K);X;X;X;X;X;X;X;X;X;X;X | M122: ATSVGANNASAQSLLK(1)QDYK | N122: ATSVGANNASAQSLLK(45.84)QDYK(-45.84) | O122: 16 | P122: 3 | Q122: 703.3588 | R122: 0.96553 | T122: 224570000 | U122: 247390000 | V122: 252880000 | W122: 241613333.3 | X122: 427800000 | Y122: 290320000 | Z122: 283500000 | AA122: 333873333.3 | AB122: 0.7236676584 | AC122: =_xlfn.T.TEST(T122:V122,X122:Z122,2,2) -> 0.1257801943
A123: >tr|G4NDN8|G4NDN8_MAGO7 2,3-bisphosphoglycerate-independent phosphoglycerate mutase OS=Magnaporthe oryzae (strain 70-15 / ATCC MYA-4617 / FGSC 8958) GN=MGG_00901 PE=3 SV=1;>tr|L7IL20|L7IL20_MAGOY 2,3-bisphosphoglycerate-independent phosphoglycerate mutase OS=Magnaporthe oryzae (strain Y34) GN=OOU_Y34scaffold00126g88 PE=3 SV=1;>tr|L7JGE1|L7JGE1_MAGOP 2,3-bisphosphoglycerate-independent phosphoglycerate mutase OS=Magnaporthe oryzae (strain P131) GN=OOW_P131scaffold00345g57 PE=3 SV=1 | B123: 240;228;228 | C123: TVKERYEKGENDEFLKPIVVGGDEGRIKDGD | D123: >tr|G4NDN8|G4NDN8_MAGO7 2,3-bisphosphoglycerate-independent phosphoglycerate mutase OS=Magnaporthe oryzae (strain 70-15 / ATCC MYA-4617 / FGSC 8958) GN=MGG_00901 PE=3 SV=1 | E123: >tr|G4NDN8|G4NDN8_MAGO7 2,3-bisphosphoglycerate-independent phosphoglycerate mutase OS=Magnaporthe oryzae (strain 70-15 / ATCC MYA-4617 / FGSC 8958) GN=MGG_00901 PE=3 SV=1 | F123: >tr|G4NDN8|G4NDN8_MAGO7 2,3-bisphosphoglycerate-independent phosphoglycerate mutase OS=Magnaporthe oryzae (strain 70-15 / ATCC MYA-4617 / FGSC 8958) GN=MGG_00901 PE=3 SV=1;>tr|L7IL20|L7IL20_MAGOY 2,3-bisphosphoglycerate-independent phosphoglycerate mutase | G123: + | H123: 1 | I123: K | J123: 97.095 | K123: _GENDEFLK(ac)PIVVGGDEGR_ | L123: X;X;X;X;X;X;X;X;X;X;X;X;X;X;X;Acetyl (K);X;X;X;X;X;X;X;X;X;X;X;X;X;X;X | M123: GENDEFLK(1)PIVVGGDEGR | N123: GENDEFLK(58.49)PIVVGGDEGR | O123: 8 | P123: 2 | Q123: 986.98417 | R123: -2.189 | T123: 10276000 | U123: 24368000 | V123: 13857000 | W123: 16167000 | X123: 44403000 | Y123: 19222000 | Z123: 33485000 | AA123: 32370000 | AB123: 0.4994439296 | AC123: =_xlfn.T.TEST(T123:V123,X123:Z123,2,2) -> 0.1269079297
A124: >tr|D4NXB5|D4NXB5_MAGOR 60S ribosomal protein L17 OS=Magnaporthe oryzae PE=2 SV=1;>tr|G4MPE2|G4MPE2_MAGO7 60S ribosomal protein L17 OS=Magnaporthe oryzae (strain 70-15 / ATCC MYA-4617 / FGSC 8958) GN=MGG_09194 PE=3 SV=1;>tr|L7IDV3|L7IDV3_MAGOY 60S ribosomal protein L17 OS=Magnaporthe oryzae (strain Y34) GN=OOU_Y34scaffold00283g98 PE=3 SV=1;>tr|L7JJR4|L7JJR4_MAGOP 60S ribosomal protein L17 OS=Magnaporthe oryzae (strain P131) GN=OOW_P131scaffold00255g40 PE=3 SV=1 | B124: 80;80;80;80 | C124: GSTGRCAQGKQFGVSKARWPTKSAEFLLGLL | D124: >tr|D4NXB5|D4NXB5_MAGOR 60S ribosomal protein L17 OS=Magnaporthe oryzae PE=2 SV=1 | E124: >tr|D4NXB5|D4NXB5_MAGOR 60S ribosomal protein L17 OS=Magnaporthe oryzae PE=2 SV=1 | F124: >tr|D4NXB5|D4NXB5_MAGOR 60S ribosomal protein L17 OS=Magnaporthe oryzae PE=2 SV=1;>tr|G4MPE2|G4MPE2_MAGO7 60S ribosomal protein L17 OS=Magnaporthe oryzae (strain 70-15 / ATCC MYA-4617 / FGSC 8958) GN=MGG_09194 PE=3 SV=1;>tr|L7IDV3|L7IDV3_MAGOY 60S ribosoma | G124: + | H124: 1 | I124: K | J124: 124.74 | K124: _QFGVSK(ac)AR_ | L124: X;X;X;X;X;X;X;X;X;X;X;X;X;X;X;Acetyl (K);X;X;X;X;X;X;X;X;X;X;X;X;X;X;X | M124: QFGVSK(1)AR | N124: QFGVSK(90.6)AR | O124: 6 | P124: 2 | Q124: 467.75888 | R124: -0.49858 | T124: 103260000 | U124: 114070000 | V124: 136900000 | W124: 118076666.7 | X124: 261920000 | Y124: 149940000 | Z124: 157250000 | AA124: 189703333.3 | AB124: 0.6224280016 | AC124: =_xlfn.T.TEST(T124:V124,X124:Z124,2,2) -> 0.1287727933
A125: >tr|L7IFF6|L7IFF6_MAGOY Proteasome component PRE6 OS=Magnaporthe oryzae (strain Y34) GN=OOU_Y34scaffold00247g44 PE=3 SV=1;>tr|L7IU63|L7IU63_MAGOP Proteasome component PRE6 OS=Magnaporthe oryzae (strain P131) GN=OOW_P131scaffold01381g29 PE=3 SV=1;>tr|G4N763|G4N763_MAGO7 Proteasome subunit alpha type OS=Magnaporthe oryzae (strain 70-15 / ATCC MYA-4617 / FGSC 8958) GN=MGG_06472 PE=3 SV=1 | B125: 284;284;195 | C125: YKEDMDREQTIRLAIKSLLEVVQTGAKNIEI | D125: >tr|L7IFF6|L7IFF6_MAGOY Proteasome component PRE6 OS=Magnaporthe oryzae (strain Y34) GN=OOU_Y34scaffold00247g44 PE=3 SV=1 | E125: >tr|L7IFF6|L7IFF6_MAGOY Proteasome component PRE6 OS=Magnaporthe oryzae (strain Y34) GN=OOU_Y34scaffold00247g44 PE=3 SV=1 | F125: >tr|L7IFF6|L7IFF6_MAGOY Proteasome component PRE6 OS=Magnaporthe oryzae (strain Y34) GN=OOU_Y34scaffold00247g44 PE=3 SV=1;>tr|L7IU63|L7IU63_MAGOP Proteasome component PRE6 OS=Magnaporthe oryzae (strain P131) GN=OOW_P131scaffold01381g29 PE=3 SV=1;>tr|G4N763 | G125: + | H125: 1 | I125: K | J125: 79.771 | K125: _LAIK(ac)SLLEVVQTGAK_ | L125: X;Acetyl (K);X;X;X;X;X;X;X;X;X;X;X;X;X;Acetyl (K);X;X;X;X;X;X;X;X;X;X;X;X;X;X;X | M125: LAIK(1)SLLEVVQTGAK | N125: LAIK(79.77)SLLEVVQTGAK(-79.77) | O125: 4 | P125: 2 | Q125: 806.48763 | R125: 0.42175 | U125: 2800200 | V125: 1894400 | W125: 2347300 | X125: 4065000 | Z125: 3419800 | AA125: 3742400 | AB125: 0.6272178281 | AC125: =_xlfn.T.TEST(T125:V125,X125:Z125,2,2) -> 0.1288588134
A126: >tr|G4MN52|G4MN52_MAGO7 Uncharacterized protein OS=Magnaporthe oryzae (strain 70-15 / ATCC MYA-4617 / FGSC 8958) GN=MGG_05597 PE=4 SV=1;>tr|L7I379|L7I379_MAGOY Uncharacterized protein OS=Magnaporthe oryzae (strain Y34) GN=OOU_Y34scaffold00624g98 PE=4 SV=1;>tr|L7JEH7|L7JEH7_MAGOP Uncharacterized protein OS=Magnaporthe oryzae (strain P131) GN=OOW_P131scaffold00440g4 PE=4 SV=1 | B126: 215;215;215 | C126: IGISGENTKVVKFYEKVGFRVQEGGEREGGV | D126: >tr|G4MN52|G4MN52_MAGO7 Uncharacterized protein OS=Magnaporthe oryzae (strain 70-15 / ATCC MYA-4617 / FGSC 8958) GN=MGG_05597 PE=4 SV=1 | E126: >tr|G4MN52|G4MN52_MAGO7 Uncharacterized protein OS=Magnaporthe oryzae (strain 70-15 / ATCC MYA-4617 / FGSC 8958) GN=MGG_05597 PE=4 SV=1 | F126: >tr|G4MN52|G4MN52_MAGO7 Uncharacterized protein OS=Magnaporthe oryzae (strain 70-15 / ATCC MYA-4617 / FGSC 8958) GN=MGG_05597 PE=4 SV=1;>tr|L7I379|L7I379_MAGOY Uncharacterized protein OS=Magnaporthe oryzae (strain Y34) GN=OOU_Y34scaffold00624g98 PE=4 SV=1; | G126: + | H126: 1 | I126: K | J126: 102.51 | K126: _FYEK(ac)VGFR_ | L126: X;X;X;X;X;X;X;X;Acetyl (K);X;X;X;X;X;X;Acetyl (K);X;X;X;X;X;X;X;X;X;X;X;X;X;X;X | M126: FYEK(1)VGFR | N126: FYEK(88.92)VGFR | O126: 4 | P126: 2 | Q126: 544.28219 | R126: 0.28052 | T126: 27117000 | U126: 26688000 | V126: 33075000 | W126: 28960000 | X126: 53890000 | Y126: 34232000 | Z126: 36226000 | AA126: 41449333.33 | AB126: 0.6986843375 | AC126: =_xlfn.T.TEST(T126:V126,X126:Z126,2,2) -> 0.1304495818
A127: >tr|G4MRA6|G4MRA6_MAGO7 Glucan 1,3-beta-glucosidase OS=Magnaporthe oryzae (strain 70-15 / ATCC MYA-4617 / FGSC 8958) GN=MGG_04689 PE=3 SV=1;>tr|L7I8C3|L7I8C3_MAGOY Glucan 1,3-beta-glucosidase OS=Magnaporthe oryzae (strain Y34) GN=OOU_Y34scaffold00500g52 PE=3 SV=1;>tr|L7IYI2|L7IYI2_MAGOP Glucan 1,3-beta-glucosidase OS=Magnaporthe oryzae (strain P131) GN=OOW_P131scaffold01211g29 PE=3 SV=1 | B127: 161;161;161 | C127: VGAQPDQLVAFIGDFKKAFKDTPLGKTPVGH | D127: >tr|G4MRA6|G4MRA6_MAGO7 Glucan 1,3-beta-glucosidase OS=Magnaporthe oryzae (strain 70-15 / ATCC MYA-4617 / FGSC 8958) GN=MGG_04689 PE=3 SV=1 | E127: >tr|G4MRA6|G4MRA6_MAGO7 Glucan 1,3-beta-glucosidase OS=Magnaporthe oryzae (strain 70-15 / ATCC MYA-4617 / FGSC 8958) GN=MGG_04689 PE=3 SV=1 | F127: >tr|G4MRA6|G4MRA6_MAGO7 Glucan 1,3-beta-glucosidase OS=Magnaporthe oryzae (strain 70-15 / ATCC MYA-4617 / FGSC 8958) GN=MGG_04689 PE=3 SV=1;>tr|L7I8C3|L7I8C3_MAGOY Glucan 1,3-beta-glucosidase OS=Magnaporthe oryzae (strain Y34) GN=OOU_Y34scaffold00500g52 PE | G127: + | H127: 1 | I127: K | J127: 81.51 | K127: _AGVGAQPDQLVAFIGDFK(ac)K_ | L127: X;X;X;X;X;X;X;X;X;X;X;X;X;X;X;Acetyl (K);X;X;X;Acetyl (K);X;X;X;X;X;X;X;X;X;X;X | M127: AGVGAQPDQLVAFIGDFK(1)K | N127: AGVGAQPDQLVAFIGDFK(61.65)K(-61.65) | O127: 18 | P127: 2 | Q127: 1002.0335 | R127: -0.36424 | U127: 6460200 | V127: 3025300 | W127: 4742750 | X127: 8915100 | Z127: 9089900 | AA127: 9002500 | AB127: 0.5268258817 | AC127: =_xlfn.T.TEST(T127:V127,X127:Z127,2,2) -> 0.1315673353
A128: >tr|D4NXD9|D4NXD9_MAGOR Poly-ubiquitin OS=Magnaporthe oryzae PE=2 SV=1;>tr|G4N2G1|G4N2G1_MAGO7 Ubiquitin-40S ribosomal protein S27a OS=Magnaporthe oryzae (strain 70-15 / ATCC MYA-4617 / FGSC 8958) GN=MGG_07928 PE=4 SV=1;>tr|L7HXM0|L7HXM0_MAGOY Ubiquitin OS=Magnaporthe oryzae (strain Y34) GN=OOU_Y34scaffold00692g17 PE=4 SV=1;>tr|L7JJ55|L7JJ55_MAGOP Ubiquitin OS=Magnaporthe oryzae (strain P131) GN=OOW_P131scaffold00279g8 PE=4 SV=1 | B128: 99;99;99;99 | C128: VYTTPKKIKHKRKKTKLAVLKYYKVDGDGKI | D128: >tr|D4NXD9|D4NXD9_MAGOR Poly-ubiquitin OS=Magnaporthe oryzae PE=2 SV=1 | E128: >tr|D4NXD9|D4NXD9_MAGOR Poly-ubiquitin OS=Magnaporthe oryzae PE=2 SV=1 | F128: >tr|D4NXD9|D4NXD9_MAGOR Poly-ubiquitin OS=Magnaporthe oryzae PE=2 SV=1;>tr|G4N2G1|G4N2G1_MAGO7 Ubiquitin-40S ribosomal protein S27a OS=Magnaporthe oryzae (strain 70-15 / ATCC MYA-4617 / FGSC 8958) GN=MGG_07928 PE=4 SV=1;>tr|L7HXM0|L7HXM0_MAGOY Ubiquitin OS | G128: + | H128: 1 | I128: K | J128: 117.4 | K128: _TK(ac)LAVLK_ | L128: X;X;X;X;X;X;X;X;X;X;X;X;X;X;X;Acetyl (K);X;X;X;X;X;X;X;Acetyl (K);X;X;X;X;X;X;X | M128: TK(1)LAVLK | N128: TK(87.7)LAVLK(-87.7) | O128: 2 | P128: 2 | Q128: 407.77347 | R128: -0.085126 | T128: 44671000 | U128: 41716000 | V128: 50373000 | W128: 45586666.67 | X128: 43806000 | Y128: 28011000 | Z128: 35376000 | AA128: 35731000 | AB128: 1.275829578 | AC128: =_xlfn.T.TEST(T128:V128,X128:Z128,2,2) -> 0.1321950947
A129: >tr|G4N3A3|G4N3A3_MAGO7 Peptidase OS=Magnaporthe oryzae (strain 70-15 / ATCC MYA-4617 / FGSC 8958) GN=MGG_10942 PE=4 SV=1 | B129: 590 | C129: FIVVQMDGMGTANRDKAFHDVAWKNLADSGF | D129: >tr|G4N3A3|G4N3A3_MAGO7 Peptidase OS=Magnaporthe oryzae (strain 70-15 / ATCC MYA-4617 / FGSC 8958) GN=MGG_10942 PE=4 SV=1 | E129: >tr|G4N3A3|G4N3A3_MAGO7 Peptidase OS=Magnaporthe oryzae (strain 70-15 / ATCC MYA-4617 / FGSC 8958) GN=MGG_10942 PE=4 SV=1 | F129: >tr|G4N3A3|G4N3A3_MAGO7 Peptidase OS=Magnaporthe oryzae (strain 70-15 / ATCC MYA-4617 / FGSC 8958) GN=MGG_10942 PE=4 SV=1 | G129: + | H129: 1 | I129: K | J129: 111.94 | K129: _DK(ac)AFHDVAWK_ | L129: X;X;X;X;X;X;X;X;X;X;X;X;X;X;X;Acetyl (K);X;X;X;X;X;X;X;X;X;X;X;X;X;X;X | M129: DK(1)AFHDVAWK | N129: DK(101.39)AFHDVAWK(-101.39) | O129: 2 | P129: 2 | Q129: 629.81439 | R129: -0.11822 | T129: 14259000 | U129: 4486600 | V129: 6212400 | W129: 8319333.333 | X129: 15892000 | Z129: 16755000 | AA129: 16323500 | AB129: 0.5096537711 | AC129: =_xlfn.T.TEST(T129:V129,X129:Z129,2,2) -> 0.1325243566
A130: >tr|G4MRG5|G4MRG5_MAGO7 Vesicular-fusion protein SEC18 OS=Magnaporthe oryzae (strain 70-15 / ATCC MYA-4617 / FGSC 8958) GN=MGG_02418 PE=3 SV=1;>tr|L7ILM1|L7ILM1_MAGOY Vesicular-fusion protein SEC18 OS=Magnaporthe oryzae (strain Y34) GN=OOU_Y34scaffold00151g10 PE=3 SV=1;>tr|L7JN22|L7JN22_MAGOP Vesicular-fusion protein SEC18 OS=Magnaporthe oryzae (strain P131) GN=OOW_P131scaffold00135g10 PE=3 SV=1 | B130: 193;193;193 | C130: YLGAIDVEVGFASKAKFAEEAYDQDELQRMM | D130: >tr|G4MRG5|G4MRG5_MAGO7 Vesicular-fusion protein SEC18 OS=Magnaporthe oryzae (strain 70-15 / ATCC MYA-4617 / FGSC 8958) GN=MGG_02418 PE=3 SV=1 | E130: >tr|G4MRG5|G4MRG5_MAGO7 Vesicular-fusion protein SEC18 OS=Magnaporthe oryzae (strain 70-15 / ATCC MYA-4617 / FGSC 8958) GN=MGG_02418 PE=3 SV=1 | F130: >tr|G4MRG5|G4MRG5_MAGO7 Vesicular-fusion protein SEC18 OS=Magnaporthe oryzae (strain 70-15 / ATCC MYA-4617 / FGSC 8958) GN=MGG_02418 PE=3 SV=1;>tr|L7ILM1|L7ILM1_MAGOY Vesicular-fusion protein SEC18 OS=Magnaporthe oryzae (strain Y34) GN=OOU_Y34scaffold00151 | G130: + | H130: 1 | I130: K | J130: 166.9 | K130: _AK(ac)FAEEAYDQDELQR_ | L130: X;X;X;X;X;X;X;X;X;X;X;X;X;X;X;Acetyl (K);X;X;X;X;X;X;X;X;X;X;X;X;X;X;X | M130: AK(1)FAEEAYDQDELQR | N130: AK(164.09)FAEEAYDQDELQR | O130: 2 | P130: 2 | Q130: 927.92886 | R130: 0.042222 | T130: 24182000 | U130: 46154000 | V130: 43397000 | W130: =AVERAGE(T130:V130) -> 37911000 | X130: 28834000 | Y130: 21308000 | Z130: 22613000 | AA130: =AVERAGE(X130:Z130) -> 24251666.67 | AB130: =W130/AA130 -> 1.563232768 | AC130: =_xlfn.T.TEST(T130:V130,X130:Z130,2,2) -> 0.1342597055
A131: >tr|G4NBY3|G4NBY3_MAGO7 Proteasome subunit alpha type OS=Magnaporthe oryzae (strain 70-15 / ATCC MYA-4617 / FGSC 8958) GN=MGG_01153 PE=3 SV=1;>tr|L7IE38|L7IE38_MAGOY Proteasome subunit alpha type OS=Magnaporthe oryzae (strain Y34) GN=OOU_Y34scaffold00359g9 PE=3 SV=1;>tr|L7JDA8|L7JDA8_MAGOP Proteasome subunit alpha type OS=Magnaporthe oryzae (strain P131) GN=OOW_P131scaffold00483g4 PE=3 SV=1 | B131: 102;102;102 | C131: AFAQRAQGEAAEFRYKYGYEMPCDALAKRLA | D131: >tr|G4NBY3|G4NBY3_MAGO7 Proteasome subunit alpha type OS=Magnaporthe oryzae (strain 70-15 / ATCC MYA-4617 / FGSC 8958) GN=MGG_01153 PE=3 SV=1 | E131: >tr|G4NBY3|G4NBY3_MAGO7 Proteasome subunit alpha type OS=Magnaporthe oryzae (strain 70-15 / ATCC MYA-4617 / FGSC 8958) GN=MGG_01153 PE=3 SV=1 | F131: >tr|G4NBY3|G4NBY3_MAGO7 Proteasome subunit alpha type OS=Magnaporthe oryzae (strain 70-15 / ATCC MYA-4617 / FGSC 8958) GN=MGG_01153 PE=3 SV=1;>tr|L7IE38|L7IE38_MAGOY Proteasome subunit alpha type OS=Magnaporthe oryzae (strain Y34) GN=OOU_Y34scaffold00359g9 | G131: + | H131: 1 | I131: K | J131: 127.18 | K131: _YK(ac)YGYEMPCDALAKR_ | L131: X;X;X;X;X;X;X;X;X;X;X;X;X;X;X;Acetyl (K);X;X;X;X;Oxidation (M);X;X;X;X;X;X;Acetyl (K);X;X;X | M131: YK(1)YGYEMPCDALAKR | N131: YK(75.68)YGYEMPCDALAK(-75.68)R | O131: 2 | P131: 2 | Q131: 953.94495 | R131: 0.40542 | T131: 196260000 | U131: 259980000 | V131: 267390000 | W131: 241210000 | X131: 439760000 | Y131: 271430000 | Z131: 320440000 | AA131: 343876666.7 | AB131: 0.7014433469 | AC131: =_xlfn.T.TEST(T131:V131,X131:Z131,2,2) -> 0.1345428987
A132: >tr|G4N745|G4N745_MAGO7 Acetyl-CoA acetyltransferase OS=Magnaporthe oryzae (strain 70-15 / ATCC MYA-4617 / FGSC 8958) GN=MGG_13499 PE=3 SV=1;>tr|L7I081|L7I081_MAGOY Acetyl-CoA acetyltransferase OS=Magnaporthe oryzae (strain Y34) GN=OOU_Y34scaffold00654g21 PE=3 SV=1;>tr|L7IXP2|L7IXP2_MAGOP Acetyl-CoA acetyltransferase OS=Magnaporthe oryzae (strain P131) GN=OOW_P131scaffold01320g21 PE=3 SV=1 | B132: 374;370;370 | C132: GCSGARIVTTLTTVLKEKKGKIGCAGICNGG | D132: >tr|G4N745|G4N745_MAGO7 Acetyl-CoA acetyltransferase OS=Magnaporthe oryzae (strain 70-15 / ATCC MYA-4617 / FGSC 8958) GN=MGG_13499 PE=3 SV=1 | E132: >tr|G4N745|G4N745_MAGO7 Acetyl-CoA acetyltransferase OS=Magnaporthe oryzae (strain 70-15 / ATCC MYA-4617 / FGSC 8958) GN=MGG_13499 PE=3 SV=1 | F132: >tr|G4N745|G4N745_MAGO7 Acetyl-CoA acetyltransferase OS=Magnaporthe oryzae (strain 70-15 / ATCC MYA-4617 / FGSC 8958) GN=MGG_13499 PE=3 SV=1;>tr|L7I081|L7I081_MAGOY Acetyl-CoA acetyltransferase OS=Magnaporthe oryzae (strain Y34) GN=OOU_Y34scaffold00654g21 | G132: + | H132: 1 | I132: K | J132: 123.64 | K132: _IVTTLTTVLK(ac)EK_ | L132: X;X;X;X;X;X;X;X;X;X;X;X;X;X;X;Acetyl (K);X;X;X;X;X;X;X;X;X;X;X;X;X;X;X | M132: IVTTLTTVLK(1)EK | N132: IVTTLTTVLK(79.63)EK(-79.63) | O132: 10 | P132: 2 | Q132: 694.42397 | R132: -0.29935 | U132: 21335000 | V132: 17333000 | W132: 19334000 | X132: 22584000 | Y132: 36454000 | Z132: 36379000 | AA132: 31805666.67 | AB132: 0.6078790991 | AC132: =_xlfn.T.TEST(T132:V132,X132:Z132,2,2) -> 0.135040093
A133: >tr|L7IHJ6|L7IHJ6_MAGOY Hydrophobin OS=Magnaporthe oryzae (strain Y34) GN=OOU_Y34scaffold00213g2 PE=4 SV=1;>tr|L7J2H5|L7J2H5_MAGOP Hydrophobin OS=Magnaporthe oryzae (strain P131) GN=OOW_P131scaffold01128g4 PE=4 SV=1;>sp|P52751|MPG1_MAGO7 Hydrophobin-like protein MPG1 OS=Magnaporthe oryzae (strain 70-15 / ATCC MYA-4617 / FGSC 8958) GN=MPG1 PE=3 SV=1;>tr|D4NXF2|D4NXF2_MAGOR MPG1 OS=Magnaporthe oryzae PE=2 SV=1;>tr|V5RCZ0|V5RCZ0_MAGOR Hydrophobin-like protein (Fragment) OS=Magnaporthe oryzae GN=MPG1 PE=4 SV=1;>tr|V5RDW0|V5RDW0_MAGOR Hydrophobin-like protein (Fragment) OS=Magnaporthe oryzae GN=MPG1 PE=4 SV=1 | B133: 40;40;40;40;40;40 | C133: EGPSVSMAQQKCGAEKVVSCCNSKELKNSKS | D133: >tr|L7IHJ6|L7IHJ6_MAGOY Hydrophobin OS=Magnaporthe oryzae (strain Y34) GN=OOU_Y34scaffold00213g2 PE=4 SV=1 | E133: >tr|L7IHJ6|L7IHJ6_MAGOY Hydrophobin OS=Magnaporthe oryzae (strain Y34) GN=OOU_Y34scaffold00213g2 PE=4 SV=1 | F133: >tr|L7IHJ6|L7IHJ6_MAGOY Hydrophobin OS=Magnaporthe oryzae (strain Y34) GN=OOU_Y34scaffold00213g2 PE=4 SV=1;>tr|L7J2H5|L7J2H5_MAGOP Hydrophobin OS=Magnaporthe oryzae (strain P131) GN=OOW_P131scaffold01128g4 PE=4 SV=1;>sp|P52751|MPG1_MAGO7 Hydrophobin-like p | G133: + | H133: 1 | I133: K | J133: 151.44 | K133: _CGAEK(ac)VVSCCNSK_ | L133: X;X;X;X;X;X;X;X;X;X;X;X;X;X;X;Acetyl (K);X;X;X;X;X;X;X;Acetyl (K);X;X;X;X;X;X;X | M133: CGAEK(1)VVSCCNSK | N133: CGAEK(116.19)VVSCCNSK(-116.19) | O133: 5 | P133: 2 | Q133: 770.83127 | R133: -0.39051 | T133: 25330000 | U133: 36010000 | V133: 40405000 | W133: 33915000 | X133: 161370000 | Y133: 60880000 | Z133: 65095000 | AA133: 95781666.67 | AB133: 0.354086551 | AC133: =_xlfn.T.TEST(T133:V133,X133:Z133,2,2) -> 0.1351556177
A134: >tr|G4N5C4|G4N5C4_MAGO7 Uncharacterized protein OS=Magnaporthe oryzae (strain 70-15 / ATCC MYA-4617 / FGSC 8958) GN=MGG_05234 PE=4 SV=1;>tr|L7I6G1|L7I6G1_MAGOY Uncharacterized protein OS=Magnaporthe oryzae (strain Y34) GN=OOU_Y34scaffold00526g26 PE=4 SV=1;>tr|L7JMC6|L7JMC6_MAGOP Uncharacterized protein OS=Magnaporthe oryzae (strain P131) GN=OOW_P131scaffold00159g16 PE=4 SV=1 | B134: 40;40;40 | C134: TQTPFLLAAAEGRLSKELLGRWLANDKLYIQ | D134: >tr|G4N5C4|G4N5C4_MAGO7 Uncharacterized protein OS=Magnaporthe oryzae (strain 70-15 / ATCC MYA-4617 / FGSC 8958) GN=MGG_05234 PE=4 SV=1 | E134: >tr|G4N5C4|G4N5C4_MAGO7 Uncharacterized protein OS=Magnaporthe oryzae (strain 70-15 / ATCC MYA-4617 / FGSC 8958) GN=MGG_05234 PE=4 SV=1 | F134: >tr|G4N5C4|G4N5C4_MAGO7 Uncharacterized protein OS=Magnaporthe oryzae (strain 70-15 / ATCC MYA-4617 / FGSC 8958) GN=MGG_05234 PE=4 SV=1;>tr|L7I6G1|L7I6G1_MAGOY Uncharacterized protein OS=Magnaporthe oryzae (strain Y34) GN=OOU_Y34scaffold00526g26 PE=4 SV=1; | G134: + | H134: 1 | I134: K | J134: 106.04 | K134: _LSK(ac)ELLGR_ | L134: X;X;X;X;X;X;X;X;X;X;X;X;X;X;X;Acetyl (K);X;X;X;X;X;X;X;X;X;X;X;X;X;X;X | M134: LSK(1)ELLGR | N134: LSK(106.04)ELLGR | O134: 3 | P134: 1 | Q134: 957.57276 | R134: -0.41457 | U134: 13409000 | V134: 17613000 | W134: 15511000 | X134: 18828000 | Y134: 29456000 | Z134: 23996000 | AA134: 24093333.33 | AB134: 0.6437880465 | AC134: =_xlfn.T.TEST(T134:V134,X134:Z134,2,2) -> 0.1373603074
A135: >tr|G4NJH5|G4NJH5_MAGO7 Uncharacterized protein OS=Magnaporthe oryzae (strain 70-15 / ATCC MYA-4617 / FGSC 8958) GN=MGG_02651 PE=4 SV=1;>tr|L7HZ92|L7HZ92_MAGOY Uncharacterized protein OS=Magnaporthe oryzae (strain Y34) GN=OOU_Y34scaffold00666g159 PE=4 SV=1;>tr|L7JLA1|L7JLA1_MAGOP Uncharacterized protein OS=Magnaporthe oryzae (strain P131) GN=OOW_P131scaffold00198g12 PE=4 SV=1;>tr|Q2KGF7|Q2KGF7_MAGO7 Putative uncharacterized protein OS=Magnaporthe oryzae (strain 70-15 / ATCC MYA-4617 / FGSC 8958) GN=MGCH7_ch7g378 PE=4 SV=1 | B135: 79;32;32;32 | C135: PEDQQKLLAAYEQLAKTQSKDGKPYILSLCA | D135: >tr|G4NJH5|G4NJH5_MAGO7 Uncharacterized protein OS=Magnaporthe oryzae (strain 70-15 / ATCC MYA-4617 / FGSC 8958) GN=MGG_02651 PE=4 SV=1 | E135: >tr|G4NJH5|G4NJH5_MAGO7 Uncharacterized protein OS=Magnaporthe oryzae (strain 70-15 / ATCC MYA-4617 / FGSC 8958) GN=MGG_02651 PE=4 SV=1 | F135: >tr|G4NJH5|G4NJH5_MAGO7 Uncharacterized protein OS=Magnaporthe oryzae (strain 70-15 / ATCC MYA-4617 / FGSC 8958) GN=MGG_02651 PE=4 SV=1;>tr|L7HZ92|L7HZ92_MAGOY Uncharacterized protein OS=Magnaporthe oryzae (strain Y34) GN=OOU_Y34scaffold00666g159 PE=4 SV=1 | G135: + | H135: 1 | I135: K | J135: 135.37 | K135: _LLAAYEQLAK(ac)TQSK_ | L135: X;X;X;X;X;X;X;X;X;X;X;X;X;X;X;Acetyl (K);X;X;X;X;X;X;X;X;X;X;X;X;X;X;X | M135: LLAAYEQLAK(1)TQSK | N135: LLAAYEQLAK(135.37)TQSK(-135.37) | O135: 10 | P135: 2 | Q135: 803.44596 | R135: 0.20943 | T135: 5959700 | U135: 4850900 | V135: 9050500 | W135: 6620366.667 | X135: 16953000 | Y135: 8260500 | Z135: 10584000 | AA135: 11932500 | AB135: 0.5548180739 | AC135: =_xlfn.T.TEST(T135:V135,X135:Z135,2,2) -> 0.1395116958
A136: >tr|G4MNH0|G4MNH0_MAGO7 Ribosomal protein L38e OS=Magnaporthe oryzae (strain 70-15 / ATCC MYA-4617 / FGSC 8958) GN=MGG_06952 PE=3 SV=1;>tr|L7HY27|L7HY27_MAGOY Uncharacterized protein OS=Magnaporthe oryzae (strain Y34) GN=OOU_Y34scaffold00684g14 PE=3 SV=1;>tr|L7JN60|L7JN60_MAGOP Uncharacterized protein OS=Magnaporthe oryzae (strain P131) GN=OOW_P131scaffold00199g2 PE=3 SV=1 | B136: 10;10;10 | C136: ______MPREVADIKKFIEICRRKDASSARI | D136: >tr|G4MNH0|G4MNH0_MAGO7 Ribosomal protein L38e OS=Magnaporthe oryzae (strain 70-15 / ATCC MYA-4617 / FGSC 8958) GN=MGG_06952 PE=3 SV=1 | E136: >tr|G4MNH0|G4MNH0_MAGO7 Ribosomal protein L38e OS=Magnaporthe oryzae (strain 70-15 / ATCC MYA-4617 / FGSC 8958) GN=MGG_06952 PE=3 SV=1 | F136: >tr|G4MNH0|G4MNH0_MAGO7 Ribosomal protein L38e OS=Magnaporthe oryzae (strain 70-15 / ATCC MYA-4617 / FGSC 8958) GN=MGG_06952 PE=3 SV=1;>tr|L7HY27|L7HY27_MAGOY Uncharacterized protein OS=Magnaporthe oryzae (strain Y34) GN=OOU_Y34scaffold00684g14 PE=3 SV=1;> | G136: + | H136: 1 | I136: K | J136: 162.31 | K136: _K(ac)FIEICR_ | L136: X;X;X;X;X;X;X;X;X;X;X;X;X;X;X;Acetyl (K);X;X;X;X;X;X;X;X;X;X;X;X;X;X;X | M136: K(1)FIEICR | N136: K(154.01)FIEICR | O136: 1 | P136: 2 | Q136: 504.27077 | R136: -1.4519 | T136: 35287000 | U136: 38758000 | V136: 21435000 | W136: 31826666.67 | X136: 14899000 | Y136: 15315000 | Z136: 27913000 | AA136: 19375666.67 | AB136: 1.642610147 | AC136: =_xlfn.T.TEST(T136:V136,X136:Z136,2,2) -> 0.1410479219
A137: >sp|L7I1W3|H2B_MAGOY Histone H2B OS=Magnaporthe oryzae (strain Y34) GN=HTB1 PE=2 SV=1;>sp|P0CT13|H2B_MAGO7 Histone H2B OS=Magnaporthe oryzae (strain 70-15 / ATCC MYA-4617 / FGSC 8958) GN=HTB1 PE=3 SV=1;>tr|L7IUS7|L7IUS7_MAGOP Histone H2B OS=Magnaporthe oryzae (strain P131) GN=OOW_P131scaffold01337g49 PE=3 SV=1 | B137: 90;90;90 | C137: SFVNDIFERVATEASKLAAYNKKSTISSREI | D137: >sp|L7I1W3|H2B_MAGOY Histone H2B OS=Magnaporthe oryzae (strain Y34) GN=HTB1 PE=2 SV=1 | E137: >sp|L7I1W3|H2B_MAGOY Histone H2B OS=Magnaporthe oryzae (strain Y34) GN=HTB1 PE=2 SV=1 | F137: >sp|L7I1W3|H2B_MAGOY Histone H2B OS=Magnaporthe oryzae (strain Y34) GN=HTB1 PE=2 SV=1;>sp|P0CT13|H2B_MAGO7 Histone H2B OS=Magnaporthe oryzae (strain 70-15 / ATCC MYA-4617 / FGSC 8958) GN=HTB1 PE=3 SV=1;>tr|L7IUS7|L7IUS7_MAGOP Histone H2B OS=Magnaporthe ory | G137: + | H137: 1 | I137: K | J137: 114.7 | K137: _VATEASK(ac)LAAYNK_ | L137: X;X;X;X;X;X;X;X;X;X;X;X;X;X;X;Acetyl (K);X;X;X;X;X;X;X;X;X;X;X;X;X;X;X | M137: VATEASK(1)LAAYNK | N137: VATEASK(75.89)LAAYNK(-75.89) | O137: 7 | P137: 2 | Q137: 704.37755 | R137: 0.010015 | U137: 15729000 | V137: 9024700 | W137: 12376850 | X137: 47158000 | Y137: 19862000 | Z137: 32043000 | AA137: 33021000 | AB137: 0.3748175404 | AC137: =_xlfn.T.TEST(T137:V137,X137:Z137,2,2) -> 0.1438332446
A138: >tr|G4MZF7|G4MZF7_MAGO7 Endoribonuclease L-PSP OS=Magnaporthe oryzae (strain 70-15 / ATCC MYA-4617 / FGSC 8958) GN=MGG_04426 PE=4 SV=1;>tr|L7HVA9|L7HVA9_MAGOY Uncharacterized protein OS=Magnaporthe oryzae (strain Y34) GN=OOU_Y34scaffold00744g24 PE=4 SV=1;>tr|L7J0G3|L7J0G3_MAGOP Uncharacterized protein OS=Magnaporthe oryzae (strain P131) GN=OOW_P131scaffold01166g24 PE=4 SV=1 | B138: 100;65;65 | C138: QQKTEACIKNLAAVLKEAGSSIEKVVKVNIF | D138: >tr|G4MZF7|G4MZF7_MAGO7 Endoribonuclease L-PSP OS=Magnaporthe oryzae (strain 70-15 / ATCC MYA-4617 / FGSC 8958) GN=MGG_04426 PE=4 SV=1 | E138: >tr|G4MZF7|G4MZF7_MAGO7 Endoribonuclease L-PSP OS=Magnaporthe oryzae (strain 70-15 / ATCC MYA-4617 / FGSC 8958) GN=MGG_04426 PE=4 SV=1 | F138: >tr|G4MZF7|G4MZF7_MAGO7 Endoribonuclease L-PSP OS=Magnaporthe oryzae (strain 70-15 / ATCC MYA-4617 / FGSC 8958) GN=MGG_04426 PE=4 SV=1;>tr|L7HVA9|L7HVA9_MAGOY Uncharacterized protein OS=Magnaporthe oryzae (strain Y34) GN=OOU_Y34scaffold00744g24 PE=4 SV=1;> | G138: + | H138: 1 | I138: K | J138: 98.694 | K138: _NLAAVLK(ac)EAGSSIEK_ | L138: X;X;X;X;X;X;X;X;X;X;X;X;X;X;X;Acetyl (K);X;X;X;X;X;X;X;X;X;X;X;X;X;X;X | M138: NLAAVLK(1)EAGSSIEK | N138: NLAAVLK(87.93)EAGSSIEK(-87.93) | O138: 7 | P138: 2 | Q138: 786.43559 | R138: 0.94299 | T138: 2375900 | U138: 4556700 | W138: 3466300 | Y138: 5830700 | Z138: 7438000 | AA138: 6634350 | AB138: 0.5224777107 | AC138: =_xlfn.T.TEST(T138:V138,X138:Z138,2,2) -> 0.1442761719
A139: >tr|G4NAD7|G4NAD7_MAGO7 Cytochrome c oxidase polypeptide 5 OS=Magnaporthe oryzae (strain 70-15 / ATCC MYA-4617 / FGSC 8958) GN=MGG_03188 PE=4 SV=1;>tr|L7IJC1|L7IJC1_MAGOY Cytochrome c oxidase polypeptide V OS=Magnaporthe oryzae (strain Y34) GN=OOU_Y34scaffold00155g7 PE=4 SV=1;>tr|L7J0V4|L7J0V4_MAGOP Cytochrome c oxidase polypeptide V OS=Magnaporthe oryzae (strain P131) GN=OOW_P131scaffold01199g41 PE=4 SV=1 | B139: 71;71;71 | C139: RERMKENWNELTLHEKKAAYWVSFGPHGPRA | D139: >tr|G4NAD7|G4NAD7_MAGO7 Cytochrome c oxidase polypeptide 5 OS=Magnaporthe oryzae (strain 70-15 / ATCC MYA-4617 / FGSC 8958) GN=MGG_03188 PE=4 SV=1 | E139: >tr|G4NAD7|G4NAD7_MAGO7 Cytochrome c oxidase polypeptide 5 OS=Magnaporthe oryzae (strain 70-15 / ATCC MYA-4617 / FGSC 8958) GN=MGG_03188 PE=4 SV=1 | F139: >tr|G4NAD7|G4NAD7_MAGO7 Cytochrome c oxidase polypeptide 5 OS=Magnaporthe oryzae (strain 70-15 / ATCC MYA-4617 / FGSC 8958) GN=MGG_03188 PE=4 SV=1;>tr|L7IJC1|L7IJC1_MAGOY Cytochrome c oxidase polypeptide V OS=Magnaporthe oryzae (strain Y34) GN=OOU_Y34scaff | G139: + | H139: 1 | I139: K | J139: 100.45 | K139: _MKENWNELTLHEK(ac)K_ | L139: X;X;X;X;X;X;X;X;X;X;X;X;X;X;X;Acetyl (K);X;X;X;X;X;X;X;X;X;X;X;X;X;X;X | M139: MKENWNELTLHEK(1)K | N139: MK(-79.28)ENWNELTLHEK(79.28)K(-79.81) | O139: 13 | P139: 3 | Q139: 614.64533 | R139: -0.79587 | T139: 12427000 | U139: 13191000 | V139: 14001000 | W139: 13206333.33 | X139: 12013000 | Z139: 7621100 | AA139: 9817050 | AB139: 1.345244583 | AC139: =_xlfn.T.TEST(T139:V139,X139:Z139,2,2) -> 0.1463761579
A140: >tr|L7IP35|L7IP35_MAGOY Integral membrane protein OS=Magnaporthe oryzae (strain Y34) GN=OOU_Y34scaffold00033g5 PE=4 SV=1;>tr|L7JP88|L7JP88_MAGOP Integral membrane protein OS=Magnaporthe oryzae (strain P131) GN=OOW_P131scaffold00095g53 PE=4 SV=1;>tr|G4N5Q6|G4N5Q6_MAGO7 Integral membrane protein OS=Magnaporthe oryzae (strain 70-15 / ATCC MYA-4617 / FGSC 8958) GN=MGG_05292 PE=4 SV=1 | B140: 71;71;27 | C140: TGTSTAAKVAEQVSSKLSEARDAPLPGTSGK | D140: >tr|L7IP35|L7IP35_MAGOY Integral membrane protein OS=Magnaporthe oryzae (strain Y34) GN=OOU_Y34scaffold00033g5 PE=4 SV=1 | E140: >tr|L7IP35|L7IP35_MAGOY Integral membrane protein OS=Magnaporthe oryzae (strain Y34) GN=OOU_Y34scaffold00033g5 PE=4 SV=1 | F140: >tr|L7IP35|L7IP35_MAGOY Integral membrane protein OS=Magnaporthe oryzae (strain Y34) GN=OOU_Y34scaffold00033g5 PE=4 SV=1;>tr|L7JP88|L7JP88_MAGOP Integral membrane protein OS=Magnaporthe oryzae (strain P131) GN=OOW_P131scaffold00095g53 PE=4 SV=1;>tr|G4N5Q6| | G140: + | H140: 1 | I140: K | J140: 131.35 | K140: _VAEQVSSK(ac)LSEAR_ | L140: X;X;X;X;X;X;X;X;X;X;X;X;X;X;X;Acetyl (K);X;X;X;X;X;X;X;X;X;X;X;X;X;X;Acetyl (K) | M140: VAEQVSSK(1)LSEAR | N140: VAEQVSSK(105.19)LSEAR | O140: 8 | P140: 2 | Q140: 723.38336 | R140: 0.096676 | T140: 25105000 | U140: 32906000 | V140: 24335000 | W140: 27448666.67 | X140: 17993000 | Y140: 24980000 | Z140: 21160000 | AA140: 21377666.67 | AB140: 1.283987963 | AC140: =_xlfn.T.TEST(T140:V140,X140:Z140,2,2) -> 0.1489142035
A141: >tr|G5EI15|G5EI15_MAGO7 Transaldolase OS=Magnaporthe oryzae (strain 70-15 / ATCC MYA-4617 / FGSC 8958) GN=MGCH7_ch7g347 PE=3 SV=1;>tr|L7HZD7|L7HZD7_MAGOY Transaldolase OS=Magnaporthe oryzae (strain Y34) GN=OOU_Y34scaffold00666g190 PE=3 SV=1;>tr|L7J589|L7J589_MAGOP Transaldolase OS=Magnaporthe oryzae (strain P131) GN=OOW_P131scaffold01027g23 PE=3 SV=1 | B141: 112;112;112 | C141: EVDARFSFDTKASVDKALHIIKLYEAEGISK | D141: >tr|G5EI15|G5EI15_MAGO7 Transaldolase OS=Magnaporthe oryzae (strain 70-15 / ATCC MYA-4617 / FGSC 8958) GN=MGCH7_ch7g347 PE=3 SV=1 | E141: >tr|G5EI15|G5EI15_MAGO7 Transaldolase OS=Magnaporthe oryzae (strain 70-15 / ATCC MYA-4617 / FGSC 8958) GN=MGCH7_ch7g347 PE=3 SV=1 | F141: >tr|G5EI15|G5EI15_MAGO7 Transaldolase OS=Magnaporthe oryzae (strain 70-15 / ATCC MYA-4617 / FGSC 8958) GN=MGCH7_ch7g347 PE=3 SV=1;>tr|L7HZD7|L7HZD7_MAGOY Transaldolase OS=Magnaporthe oryzae (strain Y34) GN=OOU_Y34scaffold00666g190 PE=3 SV=1;>tr|L7J589|L7J5 | G141: + | H141: 1 | I141: K | J141: 105.17 | K141: _ASVDK(ac)ALHIIK_ | L141: X;X;X;X;X;X;X;X;X;X;X;X;X;X;X;Acetyl (K);X;X;X;X;X;X;X;X;X;X;X;X;X;X;X | M141: ASVDK(1)ALHIIK | N141: ASVDK(70.73)ALHIIK(-70.73) | O141: 5 | P141: 2 | Q141: 618.86916 | R141: 0.32624 | T141: 86864000 | U141: 34271000 | V141: 70545000 | W141: 63893333.33 | X141: 43920000 | Y141: 31793000 | Z141: 30114000 | AA141: 35275666.67 | AB141: 1.811257997 | AC141: =_xlfn.T.TEST(T141:V141,X141:Z141,2,2) -> 0.1508827107
A142: >tr|G4NFQ1|G4NFQ1_MAGO7 Peptide hydrolase OS=Magnaporthe oryzae (strain 70-15 / ATCC MYA-4617 / FGSC 8958) GN=MGG_08758 PE=3 SV=1;>tr|L7HPK3|L7HPK3_MAGOY Peptide hydrolase OS=Magnaporthe oryzae (strain Y34) GN=OOU_Y34scaffold01075g7 PE=3 SV=1;>tr|L7ISZ4|L7ISZ4_MAGOP Peptide hydrolase OS=Magnaporthe oryzae (strain P131) GN=OOW_P131scaffold01623g7 PE=3 SV=1 | B142: 78;78;78 | C142: ASSDYVMERAQTRFYKQMDTYKQYFNHTFEQ | D142: >tr|G4NFQ1|G4NFQ1_MAGO7 Peptide hydrolase OS=Magnaporthe oryzae (strain 70-15 / ATCC MYA-4617 / FGSC 8958) GN=MGG_08758 PE=3 SV=1 | E142: >tr|G4NFQ1|G4NFQ1_MAGO7 Peptide hydrolase OS=Magnaporthe oryzae (strain 70-15 / ATCC MYA-4617 / FGSC 8958) GN=MGG_08758 PE=3 SV=1 | F142: >tr|G4NFQ1|G4NFQ1_MAGO7 Peptide hydrolase OS=Magnaporthe oryzae (strain 70-15 / ATCC MYA-4617 / FGSC 8958) GN=MGG_08758 PE=3 SV=1;>tr|L7HPK3|L7HPK3_MAGOY Peptide hydrolase OS=Magnaporthe oryzae (strain Y34) GN=OOU_Y34scaffold01075g7 PE=3 SV=1;>tr|L7ISZ4|L7 | G142: + | H142: 1 | I142: K | J142: 98.048 | K142: _FYK(ac)QMDTYK_ | L142: X;X;X;X;X;X;Oxidation (M);X;X;X;X;X;X;X;X;Acetyl (K);X;X;X;X;X;X;X;X;X;X;X;X;X;X;X | M142: FYK(1)QMDTYK | N142: FYK(95.64)QMDTYK(-95.64) | O142: 3 | P142: 2 | Q142: 633.29718 | R142: -0.13257 | T142: 8221000 | U142: 8479200 | V142: 9053700 | W142: 8584633.333 | X142: 8696100 | Y142: 6399600 | Z142: 6274800 | AA142: 7123500 | AB142: 1.205114527 | AC142: =_xlfn.T.TEST(T142:V142,X142:Z142,2,2) -> 0.1511363237
A143: >tr|G4N2J5|G4N2J5_MAGO7 Uncharacterized protein OS=Magnaporthe oryzae (strain 70-15 / ATCC MYA-4617 / FGSC 8958) GN=MGG_07594 PE=4 SV=1;>tr|L7HR37|L7HR37_MAGOY Ubiquinone/menaquinone biosynthesis methyltransferase OS=Magnaporthe oryzae (strain Y34) GN=OOU_Y34scaffold01054g1 PE=4 SV=1;>tr|L7ITR4|L7ITR4_MAGOP Ubiquinone/menaquinone biosynthesis methyltransferase OS=Magnaporthe oryzae (strain P131) GN=OOW_P131scaffold01451g1 PE=4 SV=1 | B143: 206;206;206 | C143: AAGFGSRSFAINPIFKSTKNGDEMISWLESS | D143: >tr|G4N2J5|G4N2J5_MAGO7 Uncharacterized protein OS=Magnaporthe oryzae (strain 70-15 / ATCC MYA-4617 / FGSC 8958) GN=MGG_07594 PE=4 SV=1 | E143: >tr|G4N2J5|G4N2J5_MAGO7 Uncharacterized protein OS=Magnaporthe oryzae (strain 70-15 / ATCC MYA-4617 / FGSC 8958) GN=MGG_07594 PE=4 SV=1 | F143: >tr|G4N2J5|G4N2J5_MAGO7 Uncharacterized protein OS=Magnaporthe oryzae (strain 70-15 / ATCC MYA-4617 / FGSC 8958) GN=MGG_07594 PE=4 SV=1;>tr|L7HR37|L7HR37_MAGOY Ubiquinone/menaquinone biosynthesis methyltransferase OS=Magnaporthe oryzae (strain Y34) GN=OOU_ | G143: + | H143: 1 | I143: K | J143: 88.087 | K143: _SFAINPIFK(ac)STK_ | L143: X;X;X;X;X;X;X;X;X;X;X;X;X;X;X;Acetyl (K);X;X;X;X;X;X;X;X;X;X;X;X;X;X;X | M143: SFAINPIFK(1)STK | N143: SFAINPIFK(88.09)STK(-88.09) | O143: 9 | P143: 2 | Q143: 697.88755 | R143: 0.040609 | T143: 28988000 | U143: 25789000 | V143: 25588000 | W143: 26788333.33 | X143: 47692000 | Y143: 28390000 | Z143: 34932000 | AA143: 37004666.67 | AB143: 0.7239177041 | AC143: =_xlfn.T.TEST(T143:V143,X143:Z143,2,2) -> 0.1515285639
A144: >tr|G4N065|G4N065_MAGO7 Carboxypeptidase A OS=Magnaporthe oryzae (strain 70-15 / ATCC MYA-4617 / FGSC 8958) GN=MGG_07704 PE=4 SV=1;>tr|L7IGL2|L7IGL2_MAGOY Carboxypeptidase A OS=Magnaporthe oryzae (strain Y34) GN=OOU_Y34scaffold00257g2 PE=4 SV=1;>tr|L7JLH8|L7JLH8_MAGOP Carboxypeptidase A OS=Magnaporthe oryzae (strain P131) GN=OOW_P131scaffold00193g7 PE=4 SV=1 | B144: 342;342;342 | C144: EYTPAGEDSVNQGAAKRMGNAMSAANGRTYT | D144: >tr|G4N065|G4N065_MAGO7 Carboxypeptidase A OS=Magnaporthe oryzae (strain 70-15 / ATCC MYA-4617 / FGSC 8958) GN=MGG_07704 PE=4 SV=1 | E144: >tr|G4N065|G4N065_MAGO7 Carboxypeptidase A OS=Magnaporthe oryzae (strain 70-15 / ATCC MYA-4617 / FGSC 8958) GN=MGG_07704 PE=4 SV=1 | F144: >tr|G4N065|G4N065_MAGO7 Carboxypeptidase A OS=Magnaporthe oryzae (strain 70-15 / ATCC MYA-4617 / FGSC 8958) GN=MGG_07704 PE=4 SV=1;>tr|L7IGL2|L7IGL2_MAGOY Carboxypeptidase A OS=Magnaporthe oryzae (strain Y34) GN=OOU_Y34scaffold00257g2 PE=4 SV=1;>tr|L7JLH8| | H144: 1 | I144: K | J144: 116.82 | K144: _GYGEYTPAGEDSVNQGAAK(ac)R_ | L144: X;X;X;X;X;X;X;X;X;X;X;X;X;X;X;Acetyl (K);X;X;X;X;X;X;X;X;X;X;X;X;X;X;X | M144: GYGEYTPAGEDSVNQGAAK(1)R | N144: GYGEYTPAGEDSVNQGAAK(76.77)R | O144: 19 | P144: 2 | Q144: 1056.4851 | R144: -0.18528 | T144: 7490100 | U144: 4207500 | W144: 5848800 | X144: 10492000 | Z144: 9196500 | AA144: 9844250 | AB144: 0.5941336313 | AC144: =_xlfn.T.TEST(T144:V144,X144:Z144,2,2) -> 0.1518317001
A145: >tr|G4N9W9|G4N9W9_MAGO7 40S ribosomal protein S6 OS=Magnaporthe oryzae (strain 70-15 / ATCC MYA-4617 / FGSC 8958) GN=MGG_03236 PE=3 SV=1;>tr|L7HW16|L7HW16_MAGOY 40S ribosomal protein S6 OS=Magnaporthe oryzae (strain Y34) GN=OOU_Y34scaffold00765g53 PE=3 SV=1;>tr|L7IWY9|L7IWY9_MAGOP 40S ribosomal protein S6 OS=Magnaporthe oryzae (strain P131) GN=OOW_P131scaffold01311g10 PE=3 SV=1;>tr|D4NXH4|D4NXH4_MAGOR 40S ribosomal protein S6 OS=Magnaporthe oryzae PE=2 SV=1 | B145: 217;217;217;218 | C145: EKVKDAANEYAQILAKRVAEAKATKADARKR | D145: >tr|G4N9W9|G4N9W9_MAGO7 40S ribosomal protein S6 OS=Magnaporthe oryzae (strain 70-15 / ATCC MYA-4617 / FGSC 8958) GN=MGG_03236 PE=3 SV=1 | E145: >tr|G4N9W9|G4N9W9_MAGO7 40S ribosomal protein S6 OS=Magnaporthe oryzae (strain 70-15 / ATCC MYA-4617 / FGSC 8958) GN=MGG_03236 PE=3 SV=1 | F145: >tr|G4N9W9|G4N9W9_MAGO7 40S ribosomal protein S6 OS=Magnaporthe oryzae (strain 70-15 / ATCC MYA-4617 / FGSC 8958) GN=MGG_03236 PE=3 SV=1;>tr|L7HW16|L7HW16_MAGOY 40S ribosomal protein S6 OS=Magnaporthe oryzae (strain Y34) GN=OOU_Y34scaffold00765g53 PE=3 SV= | G145: + | H145: 1 | I145: K | J145: 88.087 | K145: _DAANEYAQILAK(ac)R_ | L145: X;X;X;X;X;X;X;X;X;X;X;X;X;X;X;Acetyl (K);X;X;X;X;X;X;X;X;X;X;X;X;X;X;X | M145: DAANEYAQILAK(1)R | N145: DAANEYAQILAK(78.76)R | O145: 12 | P145: 2 | Q145: 752.89135 | R145: 0.20423 | T145: 3016500 | U145: 3704200 | V145: 4240800 | W145: 3653833.333 | X145: 7061900 | Y145: 4839400 | Z145: 4113000 | AA145: 5338100 | AB145: 0.6844819942 | AC145: =_xlfn.T.TEST(T145:V145,X145:Z145,2,2) -> 0.1526313361
A146: >tr|G4MS79|G4MS79_MAGO7 26S proteasome non-ATPase regulatory subunit 4 OS=Magnaporthe oryzae (strain 70-15 / ATCC MYA-4617 / FGSC 8958) GN=MGG_04506 PE=4 SV=1;>tr|L7HPZ1|L7HPZ1_MAGOY 26S proteasome non-ATPase regulatory subunit 4 OS=Magnaporthe oryzae (strain Y34) GN=OOU_Y34scaffold01005g51 PE=4 SV=1;>tr|L7J258|L7J258_MAGOP 26S proteasome non-ATPase regulatory subunit 4 OS=Magnaporthe oryzae (strain P131) GN=OOW_P131scaffold01138g27 PE=4 SV=1 | B146: 133;133;133 | C146: SPVSDEQKALVQLAGKLKKNNVTVDFVLFGD | D146: >tr|G4MS79|G4MS79_MAGO7 26S proteasome non-ATPase regulatory subunit 4 OS=Magnaporthe oryzae (strain 70-15 / ATCC MYA-4617 / FGSC 8958) GN=MGG_04506 PE=4 SV=1 | E146: >tr|G4MS79|G4MS79_MAGO7 26S proteasome non-ATPase regulatory subunit 4 OS=Magnaporthe oryzae (strain 70-15 / ATCC MYA-4617 / FGSC 8958) GN=MGG_04506 PE=4 SV=1 | F146: >tr|G4MS79|G4MS79_MAGO7 26S proteasome non-ATPase regulatory subunit 4 OS=Magnaporthe oryzae (strain 70-15 / ATCC MYA-4617 / FGSC 8958) GN=MGG_04506 PE=4 SV=1;>tr|L7HPZ1|L7HPZ1_MAGOY 26S proteasome non-ATPase regulatory subunit 4 OS=Magnaporthe oryzae (str | G146: + | H146: 1 | I146: K | J146: 110.14 | K146: _ALVQLAGK(ac)LK_ | L146: X;X;X;X;X;X;X;X;X;X;X;X;X;X;X;Acetyl (K);X;X;X;X;X;X;X;X;X;X;X;X;X;X;X | M146: ALVQLAGK(1)LK | N146: ALVQLAGK(110.14)LK(-110.14) | O146: 8 | P146: 2 | Q146: 541.85024 | R146: 0.37088 | T146: 63373000 | U146: 70050000 | V146: 60740000 | W146: 64721000 | X146: 90672000 | Y146: 70199000 | Z146: 71305000 | AA146: 77392000 | AB146: 0.8362750672 | AC146: =_xlfn.T.TEST(T146:V146,X146:Z146,2,2) -> 0.1533291412
A147: >tr|L7HTF4|L7HTF4_MAGOY Fructose-bisphosphate aldolase OS=Magnaporthe oryzae (strain Y34) GN=OOU_Y34scaffold00782g1 PE=4 SV=1;>tr|L7JRU2|L7JRU2_MAGOP Fructose-bisphosphate aldolase OS=Magnaporthe oryzae (strain P131) GN=OOW_P131scaffold00057g1 PE=4 SV=1;>tr|G4NDL4|G4NDL4_MAGO7 Fructose-bisphosphate aldolase 1 OS=Magnaporthe oryzae (strain 70-15 / ATCC MYA-4617 / FGSC 8958) GN=MGG_00223 PE=4 SV=1 | B147: 270;270;252 | C147: LHPELLDKHQKYVIEKLGCEEKKPIFFVFHG | D147: >tr|L7HTF4|L7HTF4_MAGOY Fructose-bisphosphate aldolase OS=Magnaporthe oryzae (strain Y34) GN=OOU_Y34scaffold00782g1 PE=4 SV=1 | E147: >tr|L7HTF4|L7HTF4_MAGOY Fructose-bisphosphate aldolase OS=Magnaporthe oryzae (strain Y34) GN=OOU_Y34scaffold00782g1 PE=4 SV=1 | F147: >tr|L7HTF4|L7HTF4_MAGOY Fructose-bisphosphate aldolase OS=Magnaporthe oryzae (strain Y34) GN=OOU_Y34scaffold00782g1 PE=4 SV=1;>tr|L7JRU2|L7JRU2_MAGOP Fructose-bisphosphate aldolase OS=Magnaporthe oryzae (strain P131) GN=OOW_P131scaffold00057g1 PE=4 SV=1;>t | G147: + | H147: 1 | I147: K | J147: 140.14 | K147: _YVIEK(ac)LGCEEK_ | L147: X;X;X;X;X;X;X;Acetyl (K);X;X;X;X;X;X;X;Acetyl (K);X;X;X;X;X;X;X;X;X;X;X;X;X;X;X | M147: YVIEK(1)LGCEEK | N147: YVIEK(140.14)LGCEEK(-140.14) | O147: 5 | P147: 2 | Q147: 705.35268 | R147: -0.31314 | T147: 125720000 | U147: 125480000 | V147: 170720000 | W147: 140640000 | X147: 222720000 | Y147: 147730000 | Z147: 189940000 | AA147: 186796666.7 | AB147: 0.7529042274 | AC147: =_xlfn.T.TEST(T147:V147,X147:Z147,2,2) -> 0.1553914159
A148: >tr|G4MSB1|G4MSB1_MAGO7 Bifunctional purine biosynthesis protein ADE17 OS=Magnaporthe oryzae (strain 70-15 / ATCC MYA-4617 / FGSC 8958) GN=MGG_04435 PE=3 SV=1;>tr|L7HV62|L7HV62_MAGOY Bifunctional purine biosynthesis protein ADE17 OS=Magnaporthe oryzae (strain Y34) GN=OOU_Y34scaffold00744g37 PE=3 SV=1;>tr|L7IVN7|L7IVN7_MAGOP Bifunctional purine biosynthesis protein ADE17 OS=Magnaporthe oryzae (strain P131) GN=OOW_P131scaffold01358g4 PE=3 SV=1 | B148: 40;40;40 | C148: LIKNNVRILASGGTSKMIRESGFPVEDISAI | D148: >tr|G4MSB1|G4MSB1_MAGO7 Bifunctional purine biosynthesis protein ADE17 OS=Magnaporthe oryzae (strain 70-15 / ATCC MYA-4617 / FGSC 8958) GN=MGG_04435 PE=3 SV=1 | E148: >tr|G4MSB1|G4MSB1_MAGO7 Bifunctional purine biosynthesis protein ADE17 OS=Magnaporthe oryzae (strain 70-15 / ATCC MYA-4617 / FGSC 8958) GN=MGG_04435 PE=3 SV=1 | F148: >tr|G4MSB1|G4MSB1_MAGO7 Bifunctional purine biosynthesis protein ADE17 OS=Magnaporthe oryzae (strain 70-15 / ATCC MYA-4617 / FGSC 8958) GN=MGG_04435 PE=3 SV=1;>tr|L7HV62|L7HV62_MAGOY Bifunctional purine biosynthesis protein ADE17 OS=Magnaporthe oryzae (str | G148: + | H148: 1 | I148: K | J148: 118.48 | K148: _ILASGGTSK(ac)MIR_ | L148: X;X;X;X;X;X;X;X;X;X;X;X;X;X;X;Acetyl (K);X;X;X;X;X;X;X;X;X;X;X;X;X;X;X | M148: ILASGGTSK(1)MIR | N148: ILASGGTSK(94.19)MIR | O148: 9 | P148: 2 | Q148: 638.3581 | R148: 0.51741 | T148: 5527700 | U148: 6880100 | W148: 6203900 | X148: 11392000 | Z148: 8378900 | AA148: 9885450 | AB148: 0.6275789165 | AC148: =_xlfn.T.TEST(T148:V148,X148:Z148,2,2) -> 0.1555653543
A149: >tr|G4NG12|G4NG12_MAGO7 Glutamine synthetase OS=Magnaporthe oryzae (strain 70-15 / ATCC MYA-4617 / FGSC 8958) GN=MGG_14279 PE=3 SV=1;>tr|L7HXU4|L7HXU4_MAGOY Glutamine synthetase OS=Magnaporthe oryzae (strain Y34) GN=OOU_Y34scaffold00706g25 PE=3 SV=1;>tr|L7JJ38|L7JJ38_MAGOP Glutamine synthetase OS=Magnaporthe oryzae (strain P131) GN=OOW_P131scaffold00280g7 PE=3 SV=1 | B149: 17;17;17 | C149: ATANVTYVENLQKYLKLDQRGAVIAEYVWID | D149: >tr|G4NG12|G4NG12_MAGO7 Glutamine synthetase OS=Magnaporthe oryzae (strain 70-15 / ATCC MYA-4617 / FGSC 8958) GN=MGG_14279 PE=3 SV=1 | E149: >tr|G4NG12|G4NG12_MAGO7 Glutamine synthetase OS=Magnaporthe oryzae (strain 70-15 / ATCC MYA-4617 / FGSC 8958) GN=MGG_14279 PE=3 SV=1 | F149: >tr|G4NG12|G4NG12_MAGO7 Glutamine synthetase OS=Magnaporthe oryzae (strain 70-15 / ATCC MYA-4617 / FGSC 8958) GN=MGG_14279 PE=3 SV=1;>tr|L7HXU4|L7HXU4_MAGOY Glutamine synthetase OS=Magnaporthe oryzae (strain Y34) GN=OOU_Y34scaffold00706g25 PE=3 SV=1;>tr|L7 | G149: + | H149: 1 | I149: K | J149: 108.09 | K149: _YLK(ac)LDQR_ | L149: X;X;X;X;X;X;X;X;X;X;X;X;X;X;X;Acetyl (K);X;X;X;X;X;X;X;X;X;X;X;X;X;X;X | M149: YLK(1)LDQR | N149: YLK(108.09)LDQR | O149: 3 | P149: 2 | Q149: 489.27437 | R149: -0.1902 | T149: 78911000 | U149: 57326000 | V149: 41723000 | W149: 59320000 | X149: 43660000 | Y149: 34475000 | Z149: 41593000 | AA149: 39909333.33 | AB149: 1.486369103 | AC149: =_xlfn.T.TEST(T149:V149,X149:Z149,2,2) -> 0.1562381081
A150: >sp|A4RC23|NACB_MAGO7 Nascent polypeptide-associated complex subunit beta OS=Magnaporthe oryzae (strain 70-15 / ATCC MYA-4617 / FGSC 8958) GN=EGD1 PE=3 SV=2;>tr|L7HYY9|L7HYY9_MAGOY Nascent polypeptide-associated complex subunit beta OS=Magnaporthe oryzae (strain Y34) GN=OOU_Y34scaffold00666g74 PE=3 SV=1;>tr|L7J8T4|L7J8T4_MAGOP Nascent polypeptide-associated complex subunit beta OS=Magnaporthe oryzae (strain P131) GN=OOW_P131scaffold00596g9 PE=3 SV=1 | B150: 65;46;46 | C150: PARSGGDDKKLQQTLKKLNVQPIQAIEEVNM | D150: >sp|A4RC23|NACB_MAGO7 Nascent polypeptide-associated complex subunit beta OS=Magnaporthe oryzae (strain 70-15 / ATCC MYA-4617 / FGSC 8958) GN=EGD1 PE=3 SV=2 | E150: >sp|A4RC23|NACB_MAGO7 Nascent polypeptide-associated complex subunit beta OS=Magnaporthe oryzae (strain 70-15 / ATCC MYA-4617 / FGSC 8958) GN=EGD1 PE=3 SV=2 | F150: >sp|A4RC23|NACB_MAGO7 Nascent polypeptide-associated complex subunit beta OS=Magnaporthe oryzae (strain 70-15 / ATCC MYA-4617 / FGSC 8958) GN=EGD1 PE=3 SV=2;>tr|L7HYY9|L7HYY9_MAGOY Nascent polypeptide-associated complex subunit beta OS=Magnaporthe oryzae ( | G150: + | H150: 1 | I150: K | J150: 114.6 | K150: _LQQTLK(ac)K_ | L150: X;X;X;X;X;X;X;X;X;X;X;X;X;X;X;Acetyl (K);X;X;X;X;X;X;X;X;X;X;X;X;X;X;X | M150: LQQTLK(1)K | N150: LQQTLK(114.6)K(-114.6) | O150: 6 | P150: 2 | Q150: 450.77928 | R150: 0.73529 | U150: 24337000 | V150: 26309000 | W150: 25323000 | X150: 43938000 | Y150: 29839000 | Z150: 33357000 | AA150: 35711333.33 | AB150: 0.7091026191 | AC150: =_xlfn.T.TEST(T150:V150,X150:Z150,2,2) -> 0.1563360192
A151: >tr|G4N449|G4N449_MAGO7 Phosphoglycerate kinase OS=Magnaporthe oryzae (strain 70-15 / ATCC MYA-4617 / FGSC 8958) GN=MGG_05063 PE=3 SV=1;>tr|L7IIL5|L7IIL5_MAGOY Phosphoglycerate kinase OS=Magnaporthe oryzae (strain Y34) GN=OOU_Y34scaffold00174g78 PE=3 SV=1;>tr|L7JJ64|L7JJ64_MAGOP Phosphoglycerate kinase OS=Magnaporthe oryzae (strain P131) GN=OOW_P131scaffold00266g14 PE=3 SV=1 | B151: 277;227;227 | C151: KRPFLAILGGAKVSDKIQLIDNLLDKVNTLI | D151: >tr|G4N449|G4N449_MAGO7 Phosphoglycerate kinase OS=Magnaporthe oryzae (strain 70-15 / ATCC MYA-4617 / FGSC 8958) GN=MGG_05063 PE=3 SV=1 | E151: >tr|G4N449|G4N449_MAGO7 Phosphoglycerate kinase OS=Magnaporthe oryzae (strain 70-15 / ATCC MYA-4617 / FGSC 8958) GN=MGG_05063 PE=3 SV=1 | F151: >tr|G4N449|G4N449_MAGO7 Phosphoglycerate kinase OS=Magnaporthe oryzae (strain 70-15 / ATCC MYA-4617 / FGSC 8958) GN=MGG_05063 PE=3 SV=1;>tr|L7IIL5|L7IIL5_MAGOY Phosphoglycerate kinase OS=Magnaporthe oryzae (strain Y34) GN=OOU_Y34scaffold00174g78 PE=3 SV=1; | G151: + | H151: 1 | I151: K | J151: 88.73 | K151: _VSDK(ac)IQLIDNLLDK_ | L151: X;X;X;X;X;X;X;X;X;X;X;X;X;X;X;Acetyl (K);X;X;X;X;X;X;X;X;X;X;X;X;X;X;X | M151: VSDK(1)IQLIDNLLDK | N151: VSDK(88.73)IQLIDNLLDK(-88.73) | O151: 4 | P151: 2 | Q151: 828.46435 | R151: -0.6559 | T151: 40858000 | U151: 16324000 | V151: 17019000 | W151: 24733666.67 | X151: 7951700 | Y151: 11220000 | Z151: 12367000 | AA151: 10512900 | AB151: 2.352696845 | AC151: =_xlfn.T.TEST(T151:V151,X151:Z151,2,2) -> 0.1568208597
A152: >tr|G4MKK4|G4MKK4_MAGO7 Chaperone dnaJ 2 OS=Magnaporthe oryzae (strain 70-15 / ATCC MYA-4617 / FGSC 8958) GN=MGG_04462 PE=3 SV=1;>tr|L7HQ45|L7HQ45_MAGOY Chaperone protein dnaJ 2 OS=Magnaporthe oryzae (strain Y34) GN=OOU_Y34scaffold01005g101 PE=3 SV=1;>tr|L7J2E2|L7J2E2_MAGOP Chaperone protein dnaJ 2 OS=Magnaporthe oryzae (strain P131) GN=OOW_P131scaffold01159g11 PE=3 SV=1 | B152: 23;23;23 | C152: YETLGVAPDATEQQLKKAYKVNALKFHPDKN | D152: >tr|G4MKK4|G4MKK4_MAGO7 Chaperone dnaJ 2 OS=Magnaporthe oryzae (strain 70-15 / ATCC MYA-4617 / FGSC 8958) GN=MGG_04462 PE=3 SV=1 | E152: >tr|G4MKK4|G4MKK4_MAGO7 Chaperone dnaJ 2 OS=Magnaporthe oryzae (strain 70-15 / ATCC MYA-4617 / FGSC 8958) GN=MGG_04462 PE=3 SV=1 | F152: >tr|G4MKK4|G4MKK4_MAGO7 Chaperone dnaJ 2 OS=Magnaporthe oryzae (strain 70-15 / ATCC MYA-4617 / FGSC 8958) GN=MGG_04462 PE=3 SV=1;>tr|L7HQ45|L7HQ45_MAGOY Chaperone protein dnaJ 2 OS=Magnaporthe oryzae (strain Y34) GN=OOU_Y34scaffold01005g101 PE=3 SV=1;>tr|L | G152: + | H152: 1 | I152: K | J152: 112.3 | K152: _LYETLGVAPDATEQQLK(ac)K_ | L152: X;X;X;X;X;X;X;X;X;X;X;X;X;X;X;Acetyl (K);X;X;X;Acetyl (K);X;X;X;X;X;X;X;X;X;X;X | M152: LYETLGVAPDATEQQLK(1)K | N152: LYETLGVAPDATEQQLK(74.79)K(-74.79) | O152: 17 | P152: 2 | Q152: 1023.5413 | R152: 0.24305 | T152: 8727000 | U152: 12172000 | W152: 10449500 | X152: 17397000 | Z152: 14057000 | AA152: 15727000 | AB152: 0.6644305971 | AC152: =_xlfn.T.TEST(T152:V152,X152:Z152,2,2) -> 0.1588380284
A153: >tr|G4MMD8|G4MMD8_MAGO7 Isocitrate dehydrogenase [NAD] subunit, mitochondrial OS=Magnaporthe oryzae (strain 70-15 / ATCC MYA-4617 / FGSC 8958) GN=MGG_01995 PE=3 SV=1;>tr|L7I3Y0|L7I3Y0_MAGOY Isocitrate dehydrogenase [NAD] subunit, mitochondrial OS=Magnaporthe oryzae (strain Y34) GN=OOU_Y34scaffold00565g9 PE=3 SV=1;>tr|L7J0L1|L7J0L1_MAGOP Isocitrate dehydrogenase [NAD] subunit, mitochondrial OS=Magnaporthe oryzae (strain P131) GN=OOW_P131scaffold01155g33 PE=3 SV=1 | B153: 226;226;226 | C153: NNRKKVTCIHKANIMKLADGLFRSTFHQTAK | D153: >tr|G4MMD8|G4MMD8_MAGO7 Isocitrate dehydrogenase [NAD] subunit, mitochondrial OS=Magnaporthe oryzae (strain 70-15 / ATCC MYA-4617 / FGSC 8958) GN=MGG_01995 PE=3 SV=1 | E153: >tr|G4MMD8|G4MMD8_MAGO7 Isocitrate dehydrogenase [NAD] subunit, mitochondrial OS=Magnaporthe oryzae (strain 70-15 / ATCC MYA-4617 / FGSC 8958) GN=MGG_01995 PE=3 SV=1 | F153: >tr|G4MMD8|G4MMD8_MAGO7 Isocitrate dehydrogenase [NAD] subunit, mitochondrial OS=Magnaporthe oryzae (strain 70-15 / ATCC MYA-4617 / FGSC 8958) GN=MGG_01995 PE=3 SV=1;>tr|L7I3Y0|L7I3Y0_MAGOY Isocitrate dehydrogenase [NAD] subunit, mitochondrial OS=Magnaport | G153: + | H153: 1 | I153: K | J153: 195.85 | K153: _ANIMK(ac)LADGLFR_ | L153: X;X;X;X;X;X;X;X;X;X;X;X;X;X;X;Acetyl (K);X;X;X;X;X;X;X;X;X;X;X;X;X;X;X | M153: ANIMK(1)LADGLFR | N153: ANIMK(168.85)LADGLFR | O153: 5 | P153: 2 | Q153: 695.8792 | R153: 2.0734 | T153: 21731000 | U153: 33076000 | V153: 21452000 | W153: 25419666.67 | X153: 45645000 | Y153: 29198000 | Z153: 33684000 | AA153: 36175666.67 | AB153: 0.7026730675 | AC153: =_xlfn.T.TEST(T153:V153,X153:Z153,2,2) -> 0.1590980662
A154: >tr|G4N4N6|G4N4N6_MAGO7 S-(hydroxymethyl)glutathione dehydrogenase OS=Magnaporthe oryzae (strain 70-15 / ATCC MYA-4617 / FGSC 8958) GN=MGG_06011 PE=3 SV=1;>tr|L7I9U8|L7I9U8_MAGOY S-(hydroxymethyl)glutathione dehydrogenase OS=Magnaporthe oryzae (strain Y34) GN=OOU_Y34scaffold00464g17 PE=3 SV=1;>tr|L7JBT2|L7JBT2_MAGOP S-(hydroxymethyl)glutathione dehydrogenase OS=Magnaporthe oryzae (strain P131) GN=OOW_P131scaffold00463g17 PE=3 SV=1 | B154: 115;115;115 | C154: KECKFCKSGKTNLCGKIRATQGKGLMPDGTS | D154: >tr|G4N4N6|G4N4N6_MAGO7 S-(hydroxymethyl)glutathione dehydrogenase OS=Magnaporthe oryzae (strain 70-15 / ATCC MYA-4617 / FGSC 8958) GN=MGG_06011 PE=3 SV=1 | E154: >tr|G4N4N6|G4N4N6_MAGO7 S-(hydroxymethyl)glutathione dehydrogenase OS=Magnaporthe oryzae (strain 70-15 / ATCC MYA-4617 / FGSC 8958) GN=MGG_06011 PE=3 SV=1 | F154: >tr|G4N4N6|G4N4N6_MAGO7 S-(hydroxymethyl)glutathione dehydrogenase OS=Magnaporthe oryzae (strain 70-15 / ATCC MYA-4617 / FGSC 8958) GN=MGG_06011 PE=3 SV=1;>tr|L7I9U8|L7I9U8_MAGOY S-(hydroxymethyl)glutathione dehydrogenase OS=Magnaporthe oryzae (strain Y34) | G154: + | H154: 1 | I154: K | J154: 98.933 | K154: _TNLCGK(ac)IR_ | L154: X;X;X;X;X;X;X;X;X;X;X;X;X;X;X;Acetyl (K);X;X;X;X;X;X;X;X;X;X;X;X;X;X;X | M154: TNLCGK(1)IR | N154: TNLCGK(91.78)IR | O154: 6 | P154: 2 | Q154: 502.2713 | R154: -0.12993 | U154: 51417000 | V154: 54177000 | W154: 52797000 | X154: 48644000 | Y154: 32654000 | Z154: 42855000 | AA154: 41384333.33 | AB154: 1.275772635 | AC154: =_xlfn.T.TEST(T154:V154,X154:Z154,2,2) -> 0.1591311256
A155: >tr|G4MQ03|G4MQ03_MAGO7 Enolase OS=Magnaporthe oryzae (strain 70-15 / ATCC MYA-4617 / FGSC 8958) GN=MGG_10607 PE=3 SV=1;>tr|L7HNX5|L7HNX5_MAGOY Enolase OS=Magnaporthe oryzae (strain Y34) GN=OOU_Y34scaffold01082g4 PE=3 SV=1;>tr|L7JPA8|L7JPA8_MAGOP Enolase OS=Magnaporthe oryzae (strain P131) GN=OOW_P131scaffold00089g2 PE=3 SV=1 | B155: 347;334;334 | C155: IKKAIDQKAANALLLKVNQIGTLTESIQAAK | D155: >tr|G4MQ03|G4MQ03_MAGO7 Enolase OS=Magnaporthe oryzae (strain 70-15 / ATCC MYA-4617 / FGSC 8958) GN=MGG_10607 PE=3 SV=1 | E155: >tr|G4MQ03|G4MQ03_MAGO7 Enolase OS=Magnaporthe oryzae (strain 70-15 / ATCC MYA-4617 / FGSC 8958) GN=MGG_10607 PE=3 SV=1 | F155: >tr|G4MQ03|G4MQ03_MAGO7 Enolase OS=Magnaporthe oryzae (strain 70-15 / ATCC MYA-4617 / FGSC 8958) GN=MGG_10607 PE=3 SV=1;>tr|L7HNX5|L7HNX5_MAGOY Enolase OS=Magnaporthe oryzae (strain Y34) GN=OOU_Y34scaffold01082g4 PE=3 SV=1;>tr|L7JPA8|L7JPA8_MAGOP Enolase O | G155: + | H155: 1 | I155: K | J155: 330.68 | K155: _AANALLLK(ac)VNQIGTLTESIQAAK_ | L155: X;X;X;X;X;X;X;X;X;X;X;X;X;X;X;Acetyl (K);X;X;X;X;X;X;X;X;X;X;X;X;X;X;X | M155: AANALLLK(1)VNQIGTLTESIQAAK | N155: AANALLLK(252.55)VNQIGTLTESIQAAK(-252.55) | O155: 8 | P155: 3 | Q155: 803.79523 | R155: -0.43748 | T155: 2448700000 | U155: 1353500000 | V155: 172810000 | W155: 1325003333 | X155: 2270900000 | Y155: 2601800000 | Z155: 2527200000 | AA155: 2466633333 | AB155: 0.5371707726 | AC155: =_xlfn.T.TEST(T155:V155,X155:Z155,2,2) -> 0.1610396465
A156: >tr|L7I2M0|L7I2M0_MAGOY Alpha-1,4 glucan phosphorylase OS=Magnaporthe oryzae (strain Y34) GN=OOU_Y34scaffold00641g56 PE=3 SV=1;>tr|L7JJE8|L7JJE8_MAGOP Alpha-1,4 glucan phosphorylase OS=Magnaporthe oryzae (strain P131) GN=OOW_P131scaffold00254g11 PE=3 SV=1;>tr|G4MW66|G4MW66_MAGO7 Alpha-1,4 glucan phosphorylase OS=Magnaporthe oryzae (strain 70-15 / ATCC MYA-4617 / FGSC 8958) GN=MGG_01819 PE=3 SV=1 | B156: 187;187;77 | C156: QRAAWSKHQAKPFQDKEEFENEVVRHIETTL | D156: >tr|L7I2M0|L7I2M0_MAGOY Alpha-1,4 glucan phosphorylase OS=Magnaporthe oryzae (strain Y34) GN=OOU_Y34scaffold00641g56 PE=3 SV=1 | E156: >tr|L7I2M0|L7I2M0_MAGOY Alpha-1,4 glucan phosphorylase OS=Magnaporthe oryzae (strain Y34) GN=OOU_Y34scaffold00641g56 PE=3 SV=1 | F156: >tr|L7I2M0|L7I2M0_MAGOY Alpha-1,4 glucan phosphorylase OS=Magnaporthe oryzae (strain Y34) GN=OOU_Y34scaffold00641g56 PE=3 SV=1;>tr|L7JJE8|L7JJE8_MAGOP Alpha-1,4 glucan phosphorylase OS=Magnaporthe oryzae (strain P131) GN=OOW_P131scaffold00254g11 PE=3 SV=1; | G156: + | H156: 1 | I156: K | J156: 145.88 | K156: _HQAKPFQDK(ac)EEFENEVVR_ | L156: X;X;X;X;X;X;X;X;X;X;X;X;X;X;X;Acetyl (K);X;X;X;X;X;X;X;X;X;X;X;X;X;X;X | M156: HQAKPFQDK(1)EEFENEVVR | N156: HQAK(-52.5)PFQDK(52.5)EEFENEVVR | O156: 9 | P156: 3 | Q156: 758.03795 | R156: -0.26342 | U156: 11648000 | V156: 21374000 | W156: 16511000 | X156: 49148000 | Y156: 21957000 | Z156: 38584000 | AA156: 36563000 | AB156: 0.4515767306 | AC156: =_xlfn.T.TEST(T156:V156,X156:Z156,2,2) -> 0.1614820775
A157: >tr|G4N745|G4N745_MAGO7 Acetyl-CoA acetyltransferase OS=Magnaporthe oryzae (strain 70-15 / ATCC MYA-4617 / FGSC 8958) GN=MGG_13499 PE=3 SV=1;>tr|L7I081|L7I081_MAGOY Acetyl-CoA acetyltransferase OS=Magnaporthe oryzae (strain Y34) GN=OOU_Y34scaffold00654g21 PE=3 SV=1;>tr|L7IXP2|L7IXP2_MAGOP Acetyl-CoA acetyltransferase OS=Magnaporthe oryzae (strain P131) GN=OOW_P131scaffold01320g21 PE=3 SV=1 | B157: 138;134;134 | C157: MSNTPHYLATSRSGTKYGDQTLIDGIQKDGL | D157: >tr|G4N745|G4N745_MAGO7 Acetyl-CoA acetyltransferase OS=Magnaporthe oryzae (strain 70-15 / ATCC MYA-4617 / FGSC 8958) GN=MGG_13499 PE=3 SV=1 | E157: >tr|G4N745|G4N745_MAGO7 Acetyl-CoA acetyltransferase OS=Magnaporthe oryzae (strain 70-15 / ATCC MYA-4617 / FGSC 8958) GN=MGG_13499 PE=3 SV=1 | F157: >tr|G4N745|G4N745_MAGO7 Acetyl-CoA acetyltransferase OS=Magnaporthe oryzae (strain 70-15 / ATCC MYA-4617 / FGSC 8958) GN=MGG_13499 PE=3 SV=1;>tr|L7I081|L7I081_MAGOY Acetyl-CoA acetyltransferase OS=Magnaporthe oryzae (strain Y34) GN=OOU_Y34scaffold00654g21 | G157: + | H157: 1 | I157: K | J157: 113.59 | K157: _SGTK(ac)YGDQTLIDGIQK_ | L157: X;X;X;X;X;X;X;X;X;X;X;X;X;X;X;Acetyl (K);X;X;X;X;X;X;X;X;X;X;X;Acetyl (K);X;X;X | M157: SGTK(1)YGDQTLIDGIQK | N157: SGTK(89.48)YGDQTLIDGIQK(-89.48) | O157: 4 | P157: 2 | Q157: 883.45197 | R157: -3.4911 | T157: 313300000 | U157: 414100000 | V157: 358090000 | W157: 361830000 | X157: 540410000 | Y157: 425720000 | Z157: 392650000 | AA157: 452926666.7 | AB157: 0.7988710461 | AC157: =_xlfn.T.TEST(T157:V157,X157:Z157,2,2) -> 0.163395678
A158: >tr|G4N2E5|G4N2E5_MAGO7 Uncharacterized protein OS=Magnaporthe oryzae (strain 70-15 / ATCC MYA-4617 / FGSC 8958) GN=MGG_07915 PE=4 SV=1;>tr|L7HXM3|L7HXM3_MAGOY Uncharacterized protein OS=Magnaporthe oryzae (strain Y34) GN=OOU_Y34scaffold00692g31 PE=4 SV=1;>tr|L7JIH4|L7JIH4_MAGOP Uncharacterized protein OS=Magnaporthe oryzae (strain P131) GN=OOW_P131scaffold00279g22 PE=4 SV=1 | B158: 140;140;140 | C158: EVVADLLRGIRTHAEKLLKSLHEGDILRGSL | D158: >tr|G4N2E5|G4N2E5_MAGO7 Uncharacterized protein OS=Magnaporthe oryzae (strain 70-15 / ATCC MYA-4617 / FGSC 8958) GN=MGG_07915 PE=4 SV=1 | E158: >tr|G4N2E5|G4N2E5_MAGO7 Uncharacterized protein OS=Magnaporthe oryzae (strain 70-15 / ATCC MYA-4617 / FGSC 8958) GN=MGG_07915 PE=4 SV=1 | F158: >tr|G4N2E5|G4N2E5_MAGO7 Uncharacterized protein OS=Magnaporthe oryzae (strain 70-15 / ATCC MYA-4617 / FGSC 8958) GN=MGG_07915 PE=4 SV=1;>tr|L7HXM3|L7HXM3_MAGOY Uncharacterized protein OS=Magnaporthe oryzae (strain Y34) GN=OOU_Y34scaffold00692g31 PE=4 SV=1; | G158: + | H158: 1 | I158: K | J158: 120.33 | K158: _THAEK(ac)LLK_ | L158: X;X;X;X;X;X;X;X;X;X;X;X;X;X;X;Acetyl (K);X;X;X;X;X;X;X;X;X;X;X;X;X;X;X | M158: THAEK(1)LLK | N158: THAEK(106.18)LLK(-106.18) | O158: 5 | P158: 2 | Q158: 491.29002 | R158: 1.3797 | T158: 24286000 | U158: 19820000 | V158: 11966000 | W158: 18690666.67 | X158: 11846000 | Y158: 4576700 | Z158: 15285000 | AA158: 10569233.33 | AB158: 1.768403259 | AC158: =_xlfn.T.TEST(T158:V158,X158:Z158,2,2) -> 0.1651276012
A159: >tr|G4N716|G4N716_MAGO7 Elongation factor 1-alpha OS=Magnaporthe oryzae (strain 70-15 / ATCC MYA-4617 / FGSC 8958) GN=MGG_03641 PE=3 SV=1;>tr|L7IN78|L7IN78_MAGOY Elongation factor 1-alpha OS=Magnaporthe oryzae (strain Y34) GN=OOU_Y34scaffold00108g10 PE=3 SV=1;>tr|L7JCY9|L7JCY9_MAGOP Elongation factor 1-alpha OS=Magnaporthe oryzae (strain P131) GN=OOW_P131scaffold00429g15 PE=3 SV=1 | B159: 455;455;455 | C159: DMRQTVAVGVIKSVDKSQGTQGKVTKSAAKA | D159: >tr|G4N716|G4N716_MAGO7 Elongation factor 1-alpha OS=Magnaporthe oryzae (strain 70-15 / ATCC MYA-4617 / FGSC 8958) GN=MGG_03641 PE=3 SV=1 | E159: >tr|G4N716|G4N716_MAGO7 Elongation factor 1-alpha OS=Magnaporthe oryzae (strain 70-15 / ATCC MYA-4617 / FGSC 8958) GN=MGG_03641 PE=3 SV=1 | F159: >tr|G4N716|G4N716_MAGO7 Elongation factor 1-alpha OS=Magnaporthe oryzae (strain 70-15 / ATCC MYA-4617 / FGSC 8958) GN=MGG_03641 PE=3 SV=1;>tr|L7IN78|L7IN78_MAGOY Elongation factor 1-alpha OS=Magnaporthe oryzae (strain Y34) GN=OOU_Y34scaffold00108g10 PE=3 S | G159: + | H159: 1 | I159: K | J159: 160.52 | K159: _SVDK(ac)SQGTQGK_ | L159: X;X;X;X;X;X;X;X;X;X;X;X;X;X;X;Acetyl (K);X;X;X;X;X;X;X;X;X;X;X;X;X;X;X | M159: SVDK(1)SQGTQGK | N159: SVDK(145.14)SQGTQGK(-145.14) | O159: 4 | P159: 2 | Q159: 588.79639 | R159: 0.95844 | T159: 33065000 | U159: 27093000 | V159: 46386000 | W159: 35514666.67 | X159: 19456000 | Y159: 22542000 | Z159: 30826000 | AA159: 24274666.67 | AB159: 1.463034165 | AC159: =_xlfn.T.TEST(T159:V159,X159:Z159,2,2) -> 0.165576407
A160: >tr|G5EI58|G5EI58_MAGO7 CK1/CK1/CK1-D protein kinase OS=Magnaporthe oryzae (strain 70-15 / ATCC MYA-4617 / FGSC 8958) GN=MGCH7_ch7g585 PE=3 SV=1;>tr|L7ID36|L7ID36_MAGOY Casein kinase I OS=Magnaporthe oryzae (strain Y34) GN=OOU_Y34scaffold00301g60 PE=3 SV=1;>tr|L7IU27|L7IU27_MAGOP Casein kinase I OS=Magnaporthe oryzae (strain P131) GN=OOW_P131scaffold01387g1 PE=3 SV=1 | B160: 143;143;143 | C160: IHRDIKPDNFLMGIGKRGNQVNVIDFGLAKK | D160: >tr|G5EI58|G5EI58_MAGO7 CK1/CK1/CK1-D protein kinase OS=Magnaporthe oryzae (strain 70-15 / ATCC MYA-4617 / FGSC 8958) GN=MGCH7_ch7g585 PE=3 SV=1 | E160: >tr|G5EI58|G5EI58_MAGO7 CK1/CK1/CK1-D protein kinase OS=Magnaporthe oryzae (strain 70-15 / ATCC MYA-4617 / FGSC 8958) GN=MGCH7_ch7g585 PE=3 SV=1 | F160: >tr|G5EI58|G5EI58_MAGO7 CK1/CK1/CK1-D protein kinase OS=Magnaporthe oryzae (strain 70-15 / ATCC MYA-4617 / FGSC 8958) GN=MGCH7_ch7g585 PE=3 SV=1;>tr|L7ID36|L7ID36_MAGOY Casein kinase I OS=Magnaporthe oryzae (strain Y34) GN=OOU_Y34scaffold00301g60 PE=3 SV=1 | G160: + | H160: 1 | I160: K | J160: 89.507 | K160: _DIKPDNFLMGIGK(ac)R_ | L160: X;X;X;X;X;X;X;X;X;X;X;X;X;X;X;Acetyl (K);X;X;X;X;X;X;X;X;X;X;X;X;X;Acetyl (K);X | M160: DIKPDNFLMGIGK(1)R | N160: DIK(-73.24)PDNFLMGIGK(73.24)R | O160: 13 | P160: 3 | Q160: 549.29586 | R160: 0.091516 | T160: 23524000 | U160: 15357000 | V160: 18176000 | W160: 19019000 | X160: 10760000 | Y160: 8833500 | Z160: 18349000 | AA160: 12647500 | AB160: 1.50377545 | AC160: =_xlfn.T.TEST(T160:V160,X160:Z160,2,2) -> 0.1658086339
A161: >sp|L7I1W3|H2B_MAGOY Histone H2B OS=Magnaporthe oryzae (strain Y34) GN=HTB1 PE=2 SV=1;>sp|P0CT13|H2B_MAGO7 Histone H2B OS=Magnaporthe oryzae (strain 70-15 / ATCC MYA-4617 / FGSC 8958) GN=HTB1 PE=3 SV=1;>tr|L7IUS7|L7IUS7_MAGOP Histone H2B OS=Magnaporthe oryzae (strain P131) GN=OOW_P131scaffold01337g49 PE=3 SV=1 | B161: 127;127;127 | C161: ILPGELAKHAVSEGTKAVTKYSSSTK_____ | D161: >sp|L7I1W3|H2B_MAGOY Histone H2B OS=Magnaporthe oryzae (strain Y34) GN=HTB1 PE=2 SV=1 | E161: >sp|L7I1W3|H2B_MAGOY Histone H2B OS=Magnaporthe oryzae (strain Y34) GN=HTB1 PE=2 SV=1 | F161: >sp|L7I1W3|H2B_MAGOY Histone H2B OS=Magnaporthe oryzae (strain Y34) GN=HTB1 PE=2 SV=1;>sp|P0CT13|H2B_MAGO7 Histone H2B OS=Magnaporthe oryzae (strain 70-15 / ATCC MYA-4617 / FGSC 8958) GN=HTB1 PE=3 SV=1;>tr|L7IUS7|L7IUS7_MAGOP Histone H2B OS=Magnaporthe ory | G161: + | H161: 1 | I161: K | J161: 208.51 | K161: _HAVSEGTK(ac)AVTK_ | L161: X;X;X;X;X;X;X;X;X;X;X;X;X;X;X;Acetyl (K);X;X;X;Acetyl (K);X;X;X;X;X;X;X;X;X;X;X | M161: HAVSEGTK(1)AVTK | N161: HAVSEGTK(208.51)AVTK(-208.51) | O161: 8 | P161: 2 | Q161: 635.34351 | R161: 0.12269 | T161: 35502000 | U161: 21626000 | V161: 32681000 | W161: 29936333.33 | X161: 39696000 | Y161: 33694000 | Z161: 40464000 | AA161: 37951333.33 | AB161: 0.788808474 | AC161: =_xlfn.T.TEST(T161:V161,X161:Z161,2,2) -> 0.1664149607
A162: >tr|G4MTI8|G4MTI8_MAGO7 Minor allergen Alt a 7 OS=Magnaporthe oryzae (strain 70-15 / ATCC MYA-4617 / FGSC 8958) GN=MGG_01569 PE=4 SV=1;>tr|L7I937|L7I937_MAGOY Uncharacterized protein OS=Magnaporthe oryzae (strain Y34) GN=OOU_Y34scaffold00497g19 PE=4 SV=1;>tr|L7ISK3|L7ISK3_MAGOP Uncharacterized protein OS=Magnaporthe oryzae (strain P131) GN=OOW_P131scaffold01457g26 PE=4 SV=1 | B162: 183;183;183 | C162: AGTFAGGDGSRQPSEKELELARIQGEEFYNH | D162: >tr|G4MTI8|G4MTI8_MAGO7 Minor allergen Alt a 7 OS=Magnaporthe oryzae (strain 70-15 / ATCC MYA-4617 / FGSC 8958) GN=MGG_01569 PE=4 SV=1 | E162: >tr|G4MTI8|G4MTI8_MAGO7 Minor allergen Alt a 7 OS=Magnaporthe oryzae (strain 70-15 / ATCC MYA-4617 / FGSC 8958) GN=MGG_01569 PE=4 SV=1 | F162: >tr|G4MTI8|G4MTI8_MAGO7 Minor allergen Alt a 7 OS=Magnaporthe oryzae (strain 70-15 / ATCC MYA-4617 / FGSC 8958) GN=MGG_01569 PE=4 SV=1;>tr|L7I937|L7I937_MAGOY Uncharacterized protein OS=Magnaporthe oryzae (strain Y34) GN=OOU_Y34scaffold00497g19 PE=4 SV=1;> | G162: + | H162: 1 | I162: K | J162: 99.215 | K162: _QPSEK(ac)ELELAR_ | L162: X;X;X;X;X;X;X;X;X;X;X;X;X;X;X;Acetyl (K);X;X;X;X;X;X;X;X;X;X;X;X;X;X;X | M162: QPSEK(1)ELELAR | N162: QPSEK(95.4)ELELAR | O162: 5 | P162: 2 | Q162: 671.35407 | R162: 0.44309 | U162: 21025000 | V162: 22995000 | W162: 22010000 | X162: 39541000 | Y162: 23835000 | Z162: 38098000 | AA162: 33824666.67 | AB162: 0.6507085559 | AC162: =_xlfn.T.TEST(T162:V162,X162:Z162,2,2) -> 0.1672810876
A163: >tr|L7IA01|L7IA01_MAGOY Heat shock protein Hsp88 OS=Magnaporthe oryzae (strain Y34) GN=OOU_Y34scaffold00464g77 PE=3 SV=1;>tr|L7JIG2|L7JIG2_MAGOP Heat shock protein Hsp88 OS=Magnaporthe oryzae (strain P131) GN=OOW_P131scaffold00270g11 PE=3 SV=1;>tr|G4N554|G4N554_MAGO7 Hsp88-like protein OS=Magnaporthe oryzae (strain 70-15 / ATCC MYA-4617 / FGSC 8958) GN=MGG_06065 PE=3 SV=1 | B163: 271;271;271 | C163: FSNPRATSRVFAAAEKLKKILSANQQAPLNI | D163: >tr|L7IA01|L7IA01_MAGOY Heat shock protein Hsp88 OS=Magnaporthe oryzae (strain Y34) GN=OOU_Y34scaffold00464g77 PE=3 SV=1 | E163: >tr|L7IA01|L7IA01_MAGOY Heat shock protein Hsp88 OS=Magnaporthe oryzae (strain Y34) GN=OOU_Y34scaffold00464g77 PE=3 SV=1 | F163: >tr|L7IA01|L7IA01_MAGOY Heat shock protein Hsp88 OS=Magnaporthe oryzae (strain Y34) GN=OOU_Y34scaffold00464g77 PE=3 SV=1;>tr|L7JIG2|L7JIG2_MAGOP Heat shock protein Hsp88 OS=Magnaporthe oryzae (strain P131) GN=OOW_P131scaffold00270g11 PE=3 SV=1;>tr|G4N554|G | G163: + | H163: 1 | I163: K | J163: 91.095 | K163: _VFAAAEK(ac)LK_ | L163: X;X;X;X;X;X;X;X;X;X;X;X;X;X;X;Acetyl (K);X;X;X;X;X;X;X;X;X;X;X;X;X;X;X | M163: VFAAAEK(1)LK | N163: VFAAAEK(86.62)LK(-86.62) | O163: 7 | P163: 2 | Q163: 509.80022 | R163: 0.76015 | T163: 46030000 | U163: 27819000 | V163: 8783600 | W163: 27544200 | X163: 50295000 | Y163: 41544000 | Z163: 46269000 | AA163: 46036000 | AB163: 0.5983187071 | AC163: =_xlfn.T.TEST(T163:V163,X163:Z163,2,2) -> 0.1694401223
A164: >tr|G4NBF2|G4NBF2_MAGO7 Uncharacterized protein OS=Magnaporthe oryzae (strain 70-15 / ATCC MYA-4617 / FGSC 8958) GN=MGG_00556 PE=4 SV=1;>tr|L7I6X1|L7I6X1_MAGOY Uncharacterized protein OS=Magnaporthe oryzae (strain Y34) GN=OOU_Y34scaffold00522g60 PE=4 SV=1;>tr|L7IR57|L7IR57_MAGOP Uncharacterized protein OS=Magnaporthe oryzae (strain P131) GN=OOW_P131scaffold01708g23 PE=4 SV=1 | B164: 92;92;92 | C164: TAGSKVKAAVNKVEAKVKGKTAPKDKV____ | D164: >tr|G4NBF2|G4NBF2_MAGO7 Uncharacterized protein OS=Magnaporthe oryzae (strain 70-15 / ATCC MYA-4617 / FGSC 8958) GN=MGG_00556 PE=4 SV=1 | E164: >tr|G4NBF2|G4NBF2_MAGO7 Uncharacterized protein OS=Magnaporthe oryzae (strain 70-15 / ATCC MYA-4617 / FGSC 8958) GN=MGG_00556 PE=4 SV=1 | F164: >tr|G4NBF2|G4NBF2_MAGO7 Uncharacterized protein OS=Magnaporthe oryzae (strain 70-15 / ATCC MYA-4617 / FGSC 8958) GN=MGG_00556 PE=4 SV=1;>tr|L7I6X1|L7I6X1_MAGOY Uncharacterized protein OS=Magnaporthe oryzae (strain Y34) GN=OOU_Y34scaffold00522g60 PE=4 SV=1; | G164: + | H164: 1 | I164: K | J164: 218.62 | K164: _AAVNKVEAK(ac)VK_ | L164: X;X;X;X;Acetyl (K);X;X;X;X;X;X;X;X;X;X;Acetyl (K);X;X;X;X;X;X;X;X;X;X;X;X;X;X;X | M164: AAVNKVEAK(1)VK | N164: AAVNK(-123.16)VEAK(123.16)VK(-216.03) | O164: 9 | P164: 2 | Q164: 599.86134 | R164: 0.49948 | T164: 59488000 | U164: 131670000 | V164: 86579000 | W164: 92579000 | X164: 211930000 | Y164: 208260000 | Z164: 87624000 | AA164: 169271333.3 | AB164: 0.5469266306 | AC164: =_xlfn.T.TEST(T164:V164,X164:Z164,2,2) -> 0.1703921417
A165: >tr|G4NCJ2|G4NCJ2_MAGO7 40S ribosomal protein S23 OS=Magnaporthe oryzae (strain 70-15 / ATCC MYA-4617 / FGSC 8958) GN=MGG_01066 PE=3 SV=1;>tr|L7IAD8|L7IAD8_MAGOY 40S ribosomal protein S23 OS=Magnaporthe oryzae (strain Y34) GN=OOU_Y34scaffold00496g48 PE=3 SV=1;>tr|L7IXA3|L7IXA3_MAGOP 40S ribosomal protein S23 OS=Magnaporthe oryzae (strain P131) GN=OOW_P131scaffold01325g37 PE=3 SV=1 | B165: 56;56;56 | C165: SPFGGSSHAKGIVLEKVGVEAKQPNSAIRKC | D165: >tr|G4NCJ2|G4NCJ2_MAGO7 40S ribosomal protein S23 OS=Magnaporthe oryzae (strain 70-15 / ATCC MYA-4617 / FGSC 8958) GN=MGG_01066 PE=3 SV=1 | E165: >tr|G4NCJ2|G4NCJ2_MAGO7 40S ribosomal protein S23 OS=Magnaporthe oryzae (strain 70-15 / ATCC MYA-4617 / FGSC 8958) GN=MGG_01066 PE=3 SV=1 | F165: >tr|G4NCJ2|G4NCJ2_MAGO7 40S ribosomal protein S23 OS=Magnaporthe oryzae (strain 70-15 / ATCC MYA-4617 / FGSC 8958) GN=MGG_01066 PE=3 SV=1;>tr|L7IAD8|L7IAD8_MAGOY 40S ribosomal protein S23 OS=Magnaporthe oryzae (strain Y34) GN=OOU_Y34scaffold00496g48 PE=3 S | G165: + | H165: 1 | I165: K | J165: 93.011 | K165: _GIVLEK(ac)VGVEAK_ | L165: X;X;X;X;X;X;X;X;X;X;X;X;X;X;X;Acetyl (K);X;X;X;X;X;X;X;X;X;X;X;X;X;X;X | M165: GIVLEK(1)VGVEAK | N165: GIVLEK(73.47)VGVEAK(-73.47) | O165: 6 | P165: 2 | Q165: 642.3821 | R165: -0.27456 | T165: 9864700 | U165: 7010500 | V165: 8630300 | W165: 8501833.333 | X165: 13877000 | Y165: 8440200 | Z165: 12225000 | AA165: 11514066.67 | AB165: 0.7383866691 | AC165: =_xlfn.T.TEST(T165:V165,X165:Z165,2,2) -> 0.1712213386
A166: >tr|G4NJB0|G4NJB0_MAGO7 Woronin body major protein OS=Magnaporthe oryzae (strain 70-15 / ATCC MYA-4617 / FGSC 8958) GN=MGG_02696 PE=4 SV=1;>tr|L7HZD1|L7HZD1_MAGOY Woronin body major protein OS=Magnaporthe oryzae (strain Y34) GN=OOU_Y34scaffold00666g96 PE=4 SV=1;>tr|L7JEJ0|L7JEJ0_MAGOP Woronin body major protein OS=Magnaporthe oryzae (strain P131) GN=OOW_P131scaffold00372g11 PE=4 SV=1;>tr|Q2KGA0|Q2KGA0_MAGO7 Putative uncharacterized protein OS=Magnaporthe oryzae (strain 70-15 / ATCC MYA-4617 / FGSC 8958) GN=MGCH7_ch7g435 PE=4 SV=1 | B166: 318;369;370;351 | C166: AATGQHRYLGVDLFTKELREESSSISTPSPS | D166: >tr|G4NJB0|G4NJB0_MAGO7 Woronin body major protein OS=Magnaporthe oryzae (strain 70-15 / ATCC MYA-4617 / FGSC 8958) GN=MGG_02696 PE=4 SV=1;>tr|L7HZD1|L7HZD1_MAGOY Woronin body major protein OS=Magnaporthe oryzae (strain Y34) GN=OOU_Y34scaffold00666g96 PE=4 SV=1 | E166: >tr|L7HZD1|L7HZD1_MAGOY Woronin body major protein OS=Magnaporthe oryzae (strain Y34) GN=OOU_Y34scaffold00666g96 PE=4 SV=1 | F166: >tr|G4NJB0|G4NJB0_MAGO7 Woronin body major protein OS=Magnaporthe oryzae (strain 70-15 / ATCC MYA-4617 / FGSC 8958) GN=MGG_02696 PE=4 SV=1;>tr|L7HZD1|L7HZD1_MAGOY Woronin body major protein OS=Magnaporthe oryzae (strain Y34) GN=OOU_Y34scaffold00666g96 PE=4 | G166: + | H166: 1 | I166: K | J166: 113.24 | K166: _YLGVDLFTK(ac)ELR_ | L166: X;X;X;X;X;X;X;X;X;X;X;X;X;X;X;Acetyl (K);X;X;X;X;X;X;X;X;X;X;X;X;X;X;X | M166: YLGVDLFTK(1)ELR | N166: YLGVDLFTK(113.24)ELR | O166: 9 | P166: 2 | Q166: 748.41139 | R166: 2.8978 | T166: 14098000 | U166: 9127400 | V166: 10930000 | W166: 11385133.33 | X166: 39504000 | Y166: 16631000 | Z166: 16704000 | AA166: 24279666.67 | AB166: 0.4689163772 | AC166: =_xlfn.T.TEST(T166:V166,X166:Z166,2,2) -> 0.1714653214
A167: >tr|G4N8F6|G4N8F6_MAGO7 60S ribosomal protein L2 OS=Magnaporthe oryzae (strain 70-15 / ATCC MYA-4617 / FGSC 8958) GN=MGG_06269 PE=4 SV=1;>tr|L7HWM6|L7HWM6_MAGOY 60S ribosomal protein L2 OS=Magnaporthe oryzae (strain Y34) GN=OOU_Y34scaffold00748g36 PE=4 SV=1;>tr|L7IZM9|L7IZM9_MAGOP 60S ribosomal protein L2 OS=Magnaporthe oryzae (strain P131) GN=OOW_P131scaffold01189g8 PE=4 SV=1 | B167: 161;161;161 | C167: TRIKLPSGAKKVVSSKARGMIGLVAGGGRTD | D167: >tr|G4N8F6|G4N8F6_MAGO7 60S ribosomal protein L2 OS=Magnaporthe oryzae (strain 70-15 / ATCC MYA-4617 / FGSC 8958) GN=MGG_06269 PE=4 SV=1 | E167: >tr|G4N8F6|G4N8F6_MAGO7 60S ribosomal protein L2 OS=Magnaporthe oryzae (strain 70-15 / ATCC MYA-4617 / FGSC 8958) GN=MGG_06269 PE=4 SV=1 | F167: >tr|G4N8F6|G4N8F6_MAGO7 60S ribosomal protein L2 OS=Magnaporthe oryzae (strain 70-15 / ATCC MYA-4617 / FGSC 8958) GN=MGG_06269 PE=4 SV=1;>tr|L7HWM6|L7HWM6_MAGOY 60S ribosomal protein L2 OS=Magnaporthe oryzae (strain Y34) GN=OOU_Y34scaffold00748g36 PE=4 SV= | G167: + | H167: 1 | I167: K | J167: 174.16 | K167: _VVSSK(ac)AR_ | L167: X;X;X;X;X;X;X;X;X;Acetyl (K);X;X;X;X;X;Acetyl (K);X;X;X;X;X;X;X;X;X;X;X;X;X;X;X | M167: VVSSK(1)AR | N167: VVSSK(95.54)AR | O167: 5 | P167: 2 | Q167: 394.73488 | R167: -0.611 | T167: 80058000 | U167: 259750000 | V167: 283810000 | W167: 207872666.7 | X167: 411250000 | Y167: 254730000 | Z167: 350940000 | AA167: 338973333.3 | AB167: 0.6132419463 | AC167: =_xlfn.T.TEST(T167:V167,X167:Z167,2,2) -> 0.1715101565
A168: >tr|L7IAP6|L7IAP6_MAGOY tRNA (Cytosine-5-)-methyltransferase NCL1 OS=Magnaporthe oryzae (strain Y34) GN=OOU_Y34scaffold00464g98 PE=4 SV=1;>tr|L7JBH1|L7JBH1_MAGOP tRNA (Cytosine-5-)-methyltransferase NCL1 OS=Magnaporthe oryzae (strain P131) GN=OOW_P131scaffold00550g7 PE=4 SV=1;>tr|G4N577|G4N577_MAGO7 tRNA (Cytosine-5-)-methyltransferase NCL1 OS=Magnaporthe oryzae (strain 70-15 / ATCC MYA-4617 / FGSC 8958) GN=MGG_13217 PE=4 SV=1 | B168: 767;767;514 | C168: KRPREDEDIEGQAASKKPKTEASEQPAASED | D168: >tr|L7IAP6|L7IAP6_MAGOY tRNA (Cytosine-5-)-methyltransferase NCL1 OS=Magnaporthe oryzae (strain Y34) GN=OOU_Y34scaffold00464g98 PE=4 SV=1 | E168: >tr|L7IAP6|L7IAP6_MAGOY tRNA (Cytosine-5-)-methyltransferase NCL1 OS=Magnaporthe oryzae (strain Y34) GN=OOU_Y34scaffold00464g98 PE=4 SV=1 | F168: >tr|L7IAP6|L7IAP6_MAGOY tRNA (Cytosine-5-)-methyltransferase NCL1 OS=Magnaporthe oryzae (strain Y34) GN=OOU_Y34scaffold00464g98 PE=4 SV=1;>tr|L7JBH1|L7JBH1_MAGOP tRNA (Cytosine-5-)-methyltransferase NCL1 OS=Magnaporthe oryzae (strain P131) GN=OOW_P131scaff | G168: + | H168: 1 | I168: K | J168: 170.74 | K168: _EDEDIEGQAASK(ac)KPK_ | L168: X;X;X;X;X;X;X;X;X;X;X;X;X;X;X;Acetyl (K);X;X;X;X;X;X;X;X;X;X;X;X;X;X;X | M168: EDEDIEGQAASK(0.876)K(0.124)PK | N168: EDEDIEGQAASK(8.5)K(-8.5)PK(-114.64) | O168: 12 | P168: 2 | Q168: 843.91268 | R168: 0.40612 | T168: 29520000 | U168: 16117000 | V168: 13445000 | W168: 19694000 | X168: 14657000 | Y168: 10392000 | Z168: 6673100 | AA168: 10574033.33 | AB168: 1.862487036 | AC168: =_xlfn.T.TEST(T168:V168,X168:Z168,2,2) -> 0.1715233302
A169: >tr|G4MLE5|G4MLE5_MAGO7 Microtubule-associated protein RP/EB family member 1 OS=Magnaporthe oryzae (strain 70-15 / ATCC MYA-4617 / FGSC 8958) GN=MGG_05427 PE=4 SV=1;>tr|L7HX49|L7HX49_MAGOY Microtubule integrity protein mal3 OS=Magnaporthe oryzae (strain Y34) GN=OOU_Y34scaffold00702g3 PE=4 SV=1 | B169: 76;67 | C169: NFKVLQNTFTKHQVDKPIPVAGLVKCKMQDN | D169: >tr|G4MLE5|G4MLE5_MAGO7 Microtubule-associated protein RP/EB family member 1 OS=Magnaporthe oryzae (strain 70-15 / ATCC MYA-4617 / FGSC 8958) GN=MGG_05427 PE=4 SV=1 | E169: >tr|G4MLE5|G4MLE5_MAGO7 Microtubule-associated protein RP/EB family member 1 OS=Magnaporthe oryzae (strain 70-15 / ATCC MYA-4617 / FGSC 8958) GN=MGG_05427 PE=4 SV=1 | F169: >tr|G4MLE5|G4MLE5_MAGO7 Microtubule-associated protein RP/EB family member 1 OS=Magnaporthe oryzae (strain 70-15 / ATCC MYA-4617 / FGSC 8958) GN=MGG_05427 PE=4 SV=1;>tr|L7HX49|L7HX49_MAGOY Microtubule integrity protein mal3 OS=Magnaporthe oryzae (strain Y3 | G169: + | H169: 1 | I169: K | J169: 144.12 | K169: _HQVDK(ac)PIPVAGLVK_ | L169: X;X;X;X;X;X;X;X;X;X;X;X;X;X;X;Acetyl (K);X;X;X;X;X;X;X;X;X;X;X;X;X;X;X | M169: HQVDK(1)PIPVAGLVK | N169: HQVDK(134.88)PIPVAGLVK(-134.88) | O169: 5 | P169: 2 | Q169: 771.95376 | R169: 0.19699 | T169: 23842000 | U169: 27708000 | V169: 38715000 | W169: 30088333.33 | X169: 22813000 | Y169: 9222000 | Z169: 25246000 | AA169: 19093666.67 | AB169: 1.575827936 | AC169: =_xlfn.T.TEST(T169:V169,X169:Z169,2,2) -> 0.1754455637
A170: >tr|G4N4I8|G4N4I8_MAGO7 Uncharacterized protein OS=Magnaporthe oryzae (strain 70-15 / ATCC MYA-4617 / FGSC 8958) GN=MGG_05969 PE=4 SV=1;>tr|L7HQA7|L7HQA7_MAGOY Uncharacterized protein OS=Magnaporthe oryzae (strain Y34) GN=OOU_Y34scaffold00995g12 PE=4 SV=1;>tr|L7IVJ7|L7IVJ7_MAGOP Uncharacterized protein OS=Magnaporthe oryzae (strain P131) GN=OOW_P131scaffold01322g26 PE=4 SV=1 | B170: 290;283;283 | C170: WVPPRCLIAHYPDDPKSRFRDELDLEADDGK | D170: >tr|G4N4I8|G4N4I8_MAGO7 Uncharacterized protein OS=Magnaporthe oryzae (strain 70-15 / ATCC MYA-4617 / FGSC 8958) GN=MGG_05969 PE=4 SV=1 | E170: >tr|G4N4I8|G4N4I8_MAGO7 Uncharacterized protein OS=Magnaporthe oryzae (strain 70-15 / ATCC MYA-4617 / FGSC 8958) GN=MGG_05969 PE=4 SV=1 | F170: >tr|G4N4I8|G4N4I8_MAGO7 Uncharacterized protein OS=Magnaporthe oryzae (strain 70-15 / ATCC MYA-4617 / FGSC 8958) GN=MGG_05969 PE=4 SV=1;>tr|L7HQA7|L7HQA7_MAGOY Uncharacterized protein OS=Magnaporthe oryzae (strain Y34) GN=OOU_Y34scaffold00995g12 PE=4 SV=1; | G170: + | H170: 1 | I170: K | J170: 128.21 | K170: _CLIAHYPDDPK(ac)SR_ | L170: X;X;X;X;X;X;X;X;X;X;X;X;X;X;X;Acetyl (K);X;X;X;X;X;X;X;X;X;X;X;X;X;X;X | M170: CLIAHYPDDPK(1)SR | N170: CLIAHYPDDPK(77.91)SR | O170: 11 | P170: 3 | Q170: 538.5962 | R170: -0.16377 | T170: 1026800000 | U170: 449880000 | V170: 630550000 | W170: 702410000 | X170: 548150000 | Y170: 197720000 | Z170: 385540000 | AA170: 377136666.7 | AB170: 1.862481329 | AC170: =_xlfn.T.TEST(T170:V170,X170:Z170,2,2) -> 0.1760923313
A171: >tr|G4MZT1|G4MZT1_MAGO7 Arginyl-tRNA synthetase OS=Magnaporthe oryzae (strain 70-15 / ATCC MYA-4617 / FGSC 8958) GN=MGG_09080 PE=3 SV=1;>tr|L7HVH9|L7HVH9_MAGOY Arginyl-tRNA synthetase OS=Magnaporthe oryzae (strain Y34) GN=OOU_Y34scaffold00734g9 PE=3 SV=1;>tr|L7JDG4|L7JDG4_MAGOP Arginyl-tRNA synthetase OS=Magnaporthe oryzae (strain P131) GN=OOW_P131scaffold00449g11 PE=3 SV=1 | B171: 323;250;250 | C171: LFQLYVKINSEMSEEKEQIESKKKAGEDVTQ | D171: >tr|G4MZT1|G4MZT1_MAGO7 Arginyl-tRNA synthetase OS=Magnaporthe oryzae (strain 70-15 / ATCC MYA-4617 / FGSC 8958) GN=MGG_09080 PE=3 SV=1 | E171: >tr|G4MZT1|G4MZT1_MAGO7 Arginyl-tRNA synthetase OS=Magnaporthe oryzae (strain 70-15 / ATCC MYA-4617 / FGSC 8958) GN=MGG_09080 PE=3 SV=1 | F171: >tr|G4MZT1|G4MZT1_MAGO7 Arginyl-tRNA synthetase OS=Magnaporthe oryzae (strain 70-15 / ATCC MYA-4617 / FGSC 8958) GN=MGG_09080 PE=3 SV=1;>tr|L7HVH9|L7HVH9_MAGOY Arginyl-tRNA synthetase OS=Magnaporthe oryzae (strain Y34) GN=OOU_Y34scaffold00734g9 PE=3 SV=1;> | G171: + | H171: 1 | I171: K | J171: 133.66 | K171: _INSEMSEEK(ac)EQIESK_ | L171: X;X;X;X;X;X;X;X;X;X;X;X;X;X;X;Acetyl (K);X;X;X;X;X;X;X;X;X;X;X;X;X;X;X | M171: INSEMSEEK(1)EQIESK | N171: INSEMSEEK(102.38)EQIESK(-102.38) | O171: 9 | P171: 2 | Q171: 911.92239 | R171: -1.2457 | U171: 6173900 | V171: 5612400 | W171: 5893150 | X171: 17708000 | Y171: 8134800 | Z171: 11156000 | AA171: 12332933.33 | AB171: 0.4778384704 | AC171: =_xlfn.T.TEST(T171:V171,X171:Z171,2,2) -> 0.176185474
A172: >tr|L7I1S5|L7I1S5_MAGOY Ubiquitin carboxyl-terminal hydrolase 15 OS=Magnaporthe oryzae (strain Y34) GN=OOU_Y34scaffold00624g12 PE=3 SV=1;>tr|L7IZA3|L7IZA3_MAGOP Ubiquitin carboxyl-terminal hydrolase 15 OS=Magnaporthe oryzae (strain P131) GN=OOW_P131scaffold01194g10 PE=3 SV=1;>tr|G4MP03|G4MP03_MAGO7 A-factor-processing enzyme OS=Magnaporthe oryzae (strain 70-15 / ATCC MYA-4617 / FGSC 8958) GN=MGG_13149 PE=3 SV=1 | B172: 230;230;219 | C172: KKNLQSDVWRFHQLVKSLSNPKHPYCHFSTG | D172: >tr|L7I1S5|L7I1S5_MAGOY Ubiquitin carboxyl-terminal hydrolase 15 OS=Magnaporthe oryzae (strain Y34) GN=OOU_Y34scaffold00624g12 PE=3 SV=1 | E172: >tr|L7I1S5|L7I1S5_MAGOY Ubiquitin carboxyl-terminal hydrolase 15 OS=Magnaporthe oryzae (strain Y34) GN=OOU_Y34scaffold00624g12 PE=3 SV=1 | F172: >tr|L7I1S5|L7I1S5_MAGOY Ubiquitin carboxyl-terminal hydrolase 15 OS=Magnaporthe oryzae (strain Y34) GN=OOU_Y34scaffold00624g12 PE=3 SV=1;>tr|L7IZA3|L7IZA3_MAGOP Ubiquitin carboxyl-terminal hydrolase 15 OS=Magnaporthe oryzae (strain P131) GN=OOW_P131scaffol | G172: + | H172: 1 | I172: K | J172: 182.07 | K172: _FHQLVK(ac)SLSNPK_ | L172: X;X;X;X;X;X;X;X;X;X;X;X;X;X;X;Acetyl (K);X;X;X;X;X;X;X;X;X;X;X;X;X;X;X | M172: FHQLVK(1)SLSNPK | N172: FHQLVK(182.07)SLSNPK(-182.07) | O172: 6 | P172: 2 | Q172: 720.4039 | R172: 0.49041 | T172: 8643100 | U172: 16136000 | V172: 10328000 | W172: 11702366.67 | X172: 36804000 | Y172: 17100000 | Z172: 15924000 | AA172: 23276000 | AB172: 0.5027653663 | AC172: =_xlfn.T.TEST(T172:V172,X172:Z172,2,2) -> 0.1804725432
A173: >tr|G5EGY9|G5EGY9_MAGO7 Sterol 24-C-methyltransferase OS=Magnaporthe oryzae (strain 70-15 / ATCC MYA-4617 / FGSC 8958) GN=MGCH7_ch7g116 PE=3 SV=1;>tr|L7INB3|L7INB3_MAGOY Sterol 24-C-methyltransferase OS=Magnaporthe oryzae (strain Y34) GN=OOU_Y34scaffold00066g7 PE=3 SV=1;>tr|L7J8R7|L7J8R7_MAGOP Sterol 24-C-methyltransferase OS=Magnaporthe oryzae (strain P131) GN=OOW_P131scaffold00689g5 PE=3 SV=1 | B173: 176;176;176 | C173: NDYQIDRATHYAKQEKLDSQLQFVKGDFMQM | D173: >tr|G5EGY9|G5EGY9_MAGO7 Sterol 24-C-methyltransferase OS=Magnaporthe oryzae (strain 70-15 / ATCC MYA-4617 / FGSC 8958) GN=MGCH7_ch7g116 PE=3 SV=1 | E173: >tr|G5EGY9|G5EGY9_MAGO7 Sterol 24-C-methyltransferase OS=Magnaporthe oryzae (strain 70-15 / ATCC MYA-4617 / FGSC 8958) GN=MGCH7_ch7g116 PE=3 SV=1 | F173: >tr|G5EGY9|G5EGY9_MAGO7 Sterol 24-C-methyltransferase OS=Magnaporthe oryzae (strain 70-15 / ATCC MYA-4617 / FGSC 8958) GN=MGCH7_ch7g116 PE=3 SV=1;>tr|L7INB3|L7INB3_MAGOY Sterol 24-C-methyltransferase OS=Magnaporthe oryzae (strain Y34) GN=OOU_Y34scaffold000 | G173: + | H173: 1 | I173: K | J173: 90.614 | K173: _QEK(ac)LDSQLQFVK_ | L173: X;X;X;X;X;X;X;X;X;X;X;X;X;X;X;Acetyl (K);X;X;X;X;X;X;X;X;X;X;X;X;X;X;X | M173: QEK(1)LDSQLQFVK | N173: QEK(52.13)LDSQLQFVK(-52.13) | O173: 3 | P173: 2 | Q173: 752.90393 | R173: 0.011408 | T173: 9698500 | U173: 12675000 | V173: 9128700 | W173: 10500733.33 | X173: 8781000 | Z173: 6424000 | AA173: 7602500 | AB173: 1.38122109 | AC173: =_xlfn.T.TEST(T173:V173,X173:Z173,2,2) -> 0.1809234907
A174: >tr|G4N745|G4N745_MAGO7 Acetyl-CoA acetyltransferase OS=Magnaporthe oryzae (strain 70-15 / ATCC MYA-4617 / FGSC 8958) GN=MGG_13499 PE=3 SV=1;>tr|L7I081|L7I081_MAGOY Acetyl-CoA acetyltransferase OS=Magnaporthe oryzae (strain Y34) GN=OOU_Y34scaffold00654g21 PE=3 SV=1;>tr|L7IXP2|L7IXP2_MAGOP Acetyl-CoA acetyltransferase OS=Magnaporthe oryzae (strain P131) GN=OOW_P131scaffold01320g21 PE=3 SV=1 | B174: 234;230;230 | C174: VTVDRDEEVKNLNIEKLKSARPAFQTTGGTV | D174: >tr|G4N745|G4N745_MAGO7 Acetyl-CoA acetyltransferase OS=Magnaporthe oryzae (strain 70-15 / ATCC MYA-4617 / FGSC 8958) GN=MGG_13499 PE=3 SV=1 | E174: >tr|G4N745|G4N745_MAGO7 Acetyl-CoA acetyltransferase OS=Magnaporthe oryzae (strain 70-15 / ATCC MYA-4617 / FGSC 8958) GN=MGG_13499 PE=3 SV=1 | F174: >tr|G4N745|G4N745_MAGO7 Acetyl-CoA acetyltransferase OS=Magnaporthe oryzae (strain 70-15 / ATCC MYA-4617 / FGSC 8958) GN=MGG_13499 PE=3 SV=1;>tr|L7I081|L7I081_MAGOY Acetyl-CoA acetyltransferase OS=Magnaporthe oryzae (strain Y34) GN=OOU_Y34scaffold00654g21 | G174: + | H174: 1 | I174: K | J174: 88.37 | K174: _NLNIEK(ac)LK_ | L174: X;X;X;X;X;X;X;X;X;X;X;X;X;X;X;Acetyl (K);X;X;X;X;X;X;X;X;X;X;X;X;X;X;X | M174: NLNIEK(1)LK | N174: NLNIEK(74.46)LK(-74.46) | O174: 6 | P174: 2 | Q174: 507.30312 | R174: 0.17347 | T174: 81844000 | U174: 113860000 | V174: 128890000 | W174: 108198000 | X174: 169120000 | Y174: 134730000 | Z174: 119070000 | AA174: 140973333.3 | AB174: 0.7675068571 | AC174: =_xlfn.T.TEST(T174:V174,X174:Z174,2,2) -> 0.1812325995
A175: >tr|L7HNP9|L7HNP9_MAGOY 6-phosphogluconate dehydrogenase, decarboxylating OS=Magnaporthe oryzae (strain Y34) GN=OOU_Y34scaffold01085g13 PE=3 SV=1;>tr|L7J3F9|L7J3F9_MAGOP 6-phosphogluconate dehydrogenase, decarboxylating OS=Magnaporthe oryzae (strain P131) GN=OOW_P131scaffold01123g13 PE=3 SV=1;>tr|G4NDY5|G4NDY5_MAGO7 6-phosphogluconate dehydrogenase, decarboxylating OS=Magnaporthe oryzae (strain 70-15 / ATCC MYA-4617 / FGSC 8958) GN=MGG_00175 PE=3 SV=1 | B175: 499;499;467 | C175: FGAHTFRIKPEFANAKYPEGQDIHVNWTGRG | D175: >tr|L7HNP9|L7HNP9_MAGOY 6-phosphogluconate dehydrogenase, decarboxylating OS=Magnaporthe oryzae (strain Y34) GN=OOU_Y34scaffold01085g13 PE=3 SV=1 | E175: >tr|L7HNP9|L7HNP9_MAGOY 6-phosphogluconate dehydrogenase, decarboxylating OS=Magnaporthe oryzae (strain Y34) GN=OOU_Y34scaffold01085g13 PE=3 SV=1 | F175: >tr|L7HNP9|L7HNP9_MAGOY 6-phosphogluconate dehydrogenase, decarboxylating OS=Magnaporthe oryzae (strain Y34) GN=OOU_Y34scaffold01085g13 PE=3 SV=1;>tr|L7J3F9|L7J3F9_MAGOP 6-phosphogluconate dehydrogenase, decarboxylating OS=Magnaporthe oryzae (strain P131) | G175: + | H175: 1 | I175: K | J175: 116.94 | K175: _IKPEFANAK(ac)YPEGQDIHVNWTGR_ | L175: X;X;X;X;X;X;X;X;X;X;X;X;X;X;X;Acetyl (K);X;X;X;X;X;X;X;X;X;X;X;X;X;X;X | M175: IKPEFANAK(1)YPEGQDIHVNWTGR | N175: IK(-41.82)PEFANAK(41.82)YPEGQDIHVNWTGR | O175: 9 | P175: 3 | Q175: 904.78914 | R175: 0.11492 | U175: 10197000 | V175: 11212000 | W175: 10704500 | X175: 27272000 | Y175: 12344000 | Z175: 21676000 | AA175: 20430666.67 | AB175: 0.5239427658 | AC175: =_xlfn.T.TEST(T175:V175,X175:Z175,2,2) -> 0.1827343151
A176: >tr|G4N6D6|G4N6D6_MAGO7 Uncharacterized protein OS=Magnaporthe oryzae (strain 70-15 / ATCC MYA-4617 / FGSC 8958) GN=MGG_12797 PE=3 SV=1;>tr|L7INN7|L7INN7_MAGOY Uncharacterized protein OS=Magnaporthe oryzae (strain Y34) GN=OOU_Y34scaffold00037g5 PE=3 SV=1;>tr|L7J7Q3|L7J7Q3_MAGOP Uncharacterized protein OS=Magnaporthe oryzae (strain P131) GN=OOW_P131scaffold00753g6 PE=3 SV=1 | B176: 191;191;191 | C176: SKTKTGRVSKTAAPAKPAAAKKAAPKKATAP | D176: >tr|G4N6D6|G4N6D6_MAGO7 Uncharacterized protein OS=Magnaporthe oryzae (strain 70-15 / ATCC MYA-4617 / FGSC 8958) GN=MGG_12797 PE=3 SV=1 | E176: >tr|G4N6D6|G4N6D6_MAGO7 Uncharacterized protein OS=Magnaporthe oryzae (strain 70-15 / ATCC MYA-4617 / FGSC 8958) GN=MGG_12797 PE=3 SV=1 | F176: >tr|G4N6D6|G4N6D6_MAGO7 Uncharacterized protein OS=Magnaporthe oryzae (strain 70-15 / ATCC MYA-4617 / FGSC 8958) GN=MGG_12797 PE=3 SV=1;>tr|L7INN7|L7INN7_MAGOY Uncharacterized protein OS=Magnaporthe oryzae (strain Y34) GN=OOU_Y34scaffold00037g5 PE=3 SV=1;> | G176: + | H176: 1 | I176: K | J176: 67.153 | K176: _TAAPAK(ac)PAAAK_ | L176: X;X;X;X;X;X;X;X;X;X;X;X;X;X;X;Acetyl (K);X;X;X;X;X;X;X;X;X;X;X;X;X;X;X | M176: TAAPAK(1)PAAAK | N176: TAAPAK(67.15)PAAAK(-67.15) | O176: 6 | P176: 2 | Q176: 519.80075 | R176: 0.22255 | U176: 205460000 | V176: 150300000 | W176: 177880000 | X176: 148160000 | Y176: 138600000 | Z176: 92899000 | AA176: 126553000 | AB176: 1.40557711 | AC176: =_xlfn.T.TEST(T176:V176,X176:Z176,2,2) -> 0.186910003
A177: >tr|G4MT27|G4MT27_MAGO7 Uncharacterized protein OS=Magnaporthe oryzae (strain 70-15 / ATCC MYA-4617 / FGSC 8958) GN=MGG_01519 PE=4 SV=1;>tr|L7IP53|L7IP53_MAGOY Uncharacterized protein OS=Magnaporthe oryzae (strain Y34) GN=OOU_Y34scaffold00022g12 PE=4 SV=1;>tr|L7JKL3|L7JKL3_MAGOP Uncharacterized protein OS=Magnaporthe oryzae (strain P131) GN=OOW_P131scaffold00219g24 PE=4 SV=1 | B177: 285;285;285 | C177: DHDLKIMSKIAYCEEKNEQIRAGVIKPSERQ | D177: >tr|G4MT27|G4MT27_MAGO7 Uncharacterized protein OS=Magnaporthe oryzae (strain 70-15 / ATCC MYA-4617 / FGSC 8958) GN=MGG_01519 PE=4 SV=1 | E177: >tr|G4MT27|G4MT27_MAGO7 Uncharacterized protein OS=Magnaporthe oryzae (strain 70-15 / ATCC MYA-4617 / FGSC 8958) GN=MGG_01519 PE=4 SV=1 | F177: >tr|G4MT27|G4MT27_MAGO7 Uncharacterized protein OS=Magnaporthe oryzae (strain 70-15 / ATCC MYA-4617 / FGSC 8958) GN=MGG_01519 PE=4 SV=1;>tr|L7IP53|L7IP53_MAGOY Uncharacterized protein OS=Magnaporthe oryzae (strain Y34) GN=OOU_Y34scaffold00022g12 PE=4 SV=1; | G177: + | H177: 1 | I177: K | J177: 188.06 | K177: _IAYCEEK(ac)NEQIR_ | L177: X;X;X;X;Acetyl (K);X;X;X;X;X;X;X;X;X;X;Acetyl (K);X;X;X;X;X;X;X;X;X;X;X;X;X;X;X | M177: IAYCEEK(1)NEQIR | N177: IAYCEEK(186.46)NEQIR | O177: 7 | P177: 2 | Q177: 797.88013 | R177: 0.076121 | T177: 63200000 | U177: 73292000 | V177: 95258000 | W177: 77250000 | X177: 112360000 | Y177: 76628000 | Z177: 125800000 | AA177: 104929333.3 | AB177: 0.7362097666 | AC177: =_xlfn.T.TEST(T177:V177,X177:Z177,2,2) -> 0.1880800516
A178: >tr|G4MRA1|G4MRA1_MAGO7 WD repeat-containing protein 57 OS=Magnaporthe oryzae (strain 70-15 / ATCC MYA-4617 / FGSC 8958) GN=MGG_04693 PE=4 SV=1;>tr|L7I8C8|L7I8C8_MAGOY WD repeat-containing protein 57 OS=Magnaporthe oryzae (strain Y34) GN=OOU_Y34scaffold00500g58 PE=4 SV=1;>tr|L7IYI6|L7IYI6_MAGOP WD repeat-containing protein 57 OS=Magnaporthe oryzae (strain P131) GN=OOW_P131scaffold01211g35 PE=4 SV=1 | B178: 5;5;5 | C178: ___________MSAEKRPASDDPGSSQLVKR | D178: >tr|G4MRA1|G4MRA1_MAGO7 WD repeat-containing protein 57 OS=Magnaporthe oryzae (strain 70-15 / ATCC MYA-4617 / FGSC 8958) GN=MGG_04693 PE=4 SV=1 | E178: >tr|G4MRA1|G4MRA1_MAGO7 WD repeat-containing protein 57 OS=Magnaporthe oryzae (strain 70-15 / ATCC MYA-4617 / FGSC 8958) GN=MGG_04693 PE=4 SV=1 | F178: >tr|G4MRA1|G4MRA1_MAGO7 WD repeat-containing protein 57 OS=Magnaporthe oryzae (strain 70-15 / ATCC MYA-4617 / FGSC 8958) GN=MGG_04693 PE=4 SV=1;>tr|L7I8C8|L7I8C8_MAGOY WD repeat-containing protein 57 OS=Magnaporthe oryzae (strain Y34) GN=OOU_Y34scaffold005 | G178: + | H178: 1 | I178: K | J178: 158.65 | K178: _(ac)SAEK(ac)RPASDDPGSSQLVK_ | L178: X;X;X;X;X;X;X;X;X;X;X;X;X;X;X;Acetyl (K);X;X;X;X;X;X;X;X;X;X;X;X;X;X;X | M178: SAEK(1)RPASDDPGSSQLVK | N178: SAEK(86.73)RPASDDPGSSQLVK(-86.73) | O178: 4 | P178: 2 | Q178: 978.48708 | R178: 0.2908 | T178: 60403000 | U178: 76927000 | V178: 48833000 | W178: 62054333.33 | X178: 45704000 | Y178: 56644000 | Z178: 35295000 | AA178: 45881000 | AB178: 1.352506121 | AC178: =_xlfn.T.TEST(T178:V178,X178:Z178,2,2) -> 0.1886891331
A179: >tr|G5EHX7|G5EHX7_MAGO7 40S ribosomal protein S4 OS=Magnaporthe oryzae (strain 70-15 / ATCC MYA-4617 / FGSC 8958) GN=MGCH7_ch7g494 PE=3 SV=1;>tr|L7HZM7|L7HZM7_MAGOY 40S ribosomal protein S4-A OS=Magnaporthe oryzae (strain Y34) GN=OOU_Y34scaffold00666g37 PE=3 SV=1;>tr|L7IUD7|L7IUD7_MAGOP 40S ribosomal protein S4-A OS=Magnaporthe oryzae (strain P131) GN=OOW_P131scaffold01340g8 PE=3 SV=1 | B179: 37;37;37 | C179: KLSGTYAPKPSPGPHKQRECLPLIVFIRNRL | D179: >tr|G5EHX7|G5EHX7_MAGO7 40S ribosomal protein S4 OS=Magnaporthe oryzae (strain 70-15 / ATCC MYA-4617 / FGSC 8958) GN=MGCH7_ch7g494 PE=3 SV=1 | E179: >tr|G5EHX7|G5EHX7_MAGO7 40S ribosomal protein S4 OS=Magnaporthe oryzae (strain 70-15 / ATCC MYA-4617 / FGSC 8958) GN=MGCH7_ch7g494 PE=3 SV=1 | F179: >tr|G5EHX7|G5EHX7_MAGO7 40S ribosomal protein S4 OS=Magnaporthe oryzae (strain 70-15 / ATCC MYA-4617 / FGSC 8958) GN=MGCH7_ch7g494 PE=3 SV=1;>tr|L7HZM7|L7HZM7_MAGOY 40S ribosomal protein S4-A OS=Magnaporthe oryzae (strain Y34) GN=OOU_Y34scaffold00666g37 PE | G179: + | H179: 1 | I179: K | J179: 129.05 | K179: _LSGTYAPKPSPGPHK(ac)QR_ | L179: X;X;X;X;X;X;X;X;X;X;X;X;X;X;X;Acetyl (K);X;X;X;X;X;X;X;X;X;X;X;X;X;X;X | M179: LSGTYAPKPSPGPHK(1)QR | N179: LSGTYAPK(-62.23)PSPGPHK(62.23)QR | O179: 15 | P179: 3 | Q179: 621.66724 | R179: -0.51272 | T179: 27218000 | U179: 26948000 | V179: 26140000 | W179: 26768666.67 | X179: 52624000 | Y179: 22232000 | Z179: 58910000 | AA179: 44588666.67 | AB179: 0.6003468744 | AC179: =_xlfn.T.TEST(T179:V179,X179:Z179,2,2) -> 0.190845403
A180: >tr|L7IF18|L7IF18_MAGOY Fatty acid synthase subunit alpha reductase OS=Magnaporthe oryzae (strain Y34) GN=OOU_Y34scaffold00255g48 PE=3 SV=1;>tr|L7J9L1|L7J9L1_MAGOP Fatty acid synthase subunit alpha reductase OS=Magnaporthe oryzae (strain P131) GN=OOW_P131scaffold00606g1 PE=3 SV=1;>tr|G4NIU0|G4NIU0_MAGO7 Fatty acid synthase subunit alpha OS=Magnaporthe oryzae (strain 70-15 / ATCC MYA-4617 / FGSC 8958) GN=MGG_12154 PE=3 SV=1 | B180: 505;505;505 | C180: IPTAPQTTIDNRGNLKYQEVPRASCRKLEHY | D180: >tr|L7IF18|L7IF18_MAGOY Fatty acid synthase subunit alpha reductase OS=Magnaporthe oryzae (strain Y34) GN=OOU_Y34scaffold00255g48 PE=3 SV=1 | E180: >tr|L7IF18|L7IF18_MAGOY Fatty acid synthase subunit alpha reductase OS=Magnaporthe oryzae (strain Y34) GN=OOU_Y34scaffold00255g48 PE=3 SV=1 | F180: >tr|L7IF18|L7IF18_MAGOY Fatty acid synthase subunit alpha reductase OS=Magnaporthe oryzae (strain Y34) GN=OOU_Y34scaffold00255g48 PE=3 SV=1;>tr|L7J9L1|L7J9L1_MAGOP Fatty acid synthase subunit alpha reductase OS=Magnaporthe oryzae (strain P131) GN=OOW_P131s | G180: + | H180: 1 | I180: K | J180: 117.02 | K180: _GNLK(ac)YQEVPR_ | L180: X;X;X;X;X;X;X;X;X;X;X;X;X;X;X;Acetyl (K);X;X;X;X;X;X;X;X;X;X;X;X;X;X;X | M180: GNLK(1)YQEVPR | N180: GNLK(116.13)YQEVPR | O180: 4 | P180: 2 | Q180: 623.33294 | R180: 1.1686 | T180: 31031000 | U180: 45929000 | V180: 28865000 | W180: 35275000 | X180: 32384000 | Y180: 18140000 | Z180: 23334000 | AA180: 24619333.33 | AB180: 1.432817027 | AC180: =_xlfn.T.TEST(T180:V180,X180:Z180,2,2) -> 0.191596653
A181: >tr|G4ML82|G4ML82_MAGO7 ATP-citrate synthase subunit 1 OS=Magnaporthe oryzae (strain 70-15 / ATCC MYA-4617 / FGSC 8958) GN=MGG_06719 PE=4 SV=1;>tr|L7JMC4|L7JMC4_MAGOP ATP-citrate synthase subunit 1 OS=Magnaporthe oryzae (strain P131) GN=OOW_P131scaffold00177g8 PE=4 SV=1;>tr|L7I5K1|L7I5K1_MAGOY ATP-citrate synthase subunit 1 OS=Magnaporthe oryzae (strain Y34) GN=OOU_Y34scaffold00534g8 PE=4 SV=1 | B181: 629;629;629 | C181: VLGRSIGLIAHYLDQKRLRTGLYRHPWDDIT | D181: >tr|G4ML82|G4ML82_MAGO7 ATP-citrate synthase subunit 1 OS=Magnaporthe oryzae (strain 70-15 / ATCC MYA-4617 / FGSC 8958) GN=MGG_06719 PE=4 SV=1 | E181: >tr|G4ML82|G4ML82_MAGO7 ATP-citrate synthase subunit 1 OS=Magnaporthe oryzae (strain 70-15 / ATCC MYA-4617 / FGSC 8958) GN=MGG_06719 PE=4 SV=1 | F181: >tr|G4ML82|G4ML82_MAGO7 ATP-citrate synthase subunit 1 OS=Magnaporthe oryzae (strain 70-15 / ATCC MYA-4617 / FGSC 8958) GN=MGG_06719 PE=4 SV=1;>tr|L7JMC4|L7JMC4_MAGOP ATP-citrate synthase subunit 1 OS=Magnaporthe oryzae (strain P131) GN=OOW_P131scaffold001 | G181: + | H181: 1 | I181: K | J181: 178.58 | K181: _SIGLIAHYLDQK(ac)R_ | L181: X;X;X;X;X;X;X;X;X;X;X;X;X;X;X;Acetyl (K);X;X;X;X;X;X;X;X;X;X;X;X;X;X;X | M181: SIGLIAHYLDQK(1)R | N181: SIGLIAHYLDQK(116.84)R | O181: 12 | P181: 2 | Q181: 778.43319 | R181: -0.081401 | T181: 37896000 | U181: 21892000 | V181: 84243000 | W181: 48010333.33 | X181: 23215000 | Y181: 15893000 | Z181: 16286000 | AA181: 18464666.67 | AB181: 2.600119146 | AC181: =_xlfn.T.TEST(T181:V181,X181:Z181,2,2) -> 0.1920270299
A182: >tr|L7HTF4|L7HTF4_MAGOY Fructose-bisphosphate aldolase OS=Magnaporthe oryzae (strain Y34) GN=OOU_Y34scaffold00782g1 PE=4 SV=1;>tr|L7JRU2|L7JRU2_MAGOP Fructose-bisphosphate aldolase OS=Magnaporthe oryzae (strain P131) GN=OOW_P131scaffold00057g1 PE=4 SV=1;>tr|G4NDL4|G4NDL4_MAGO7 Fructose-bisphosphate aldolase 1 OS=Magnaporthe oryzae (strain 70-15 / ATCC MYA-4617 / FGSC 8958) GN=MGG_00223 PE=4 SV=1 | B182: 342;342;324 | C182: IEYLNSQVGNPDGADKPNKKYYDPRVWVREG | D182: >tr|L7HTF4|L7HTF4_MAGOY Fructose-bisphosphate aldolase OS=Magnaporthe oryzae (strain Y34) GN=OOU_Y34scaffold00782g1 PE=4 SV=1 | E182: >tr|L7HTF4|L7HTF4_MAGOY Fructose-bisphosphate aldolase OS=Magnaporthe oryzae (strain Y34) GN=OOU_Y34scaffold00782g1 PE=4 SV=1 | F182: >tr|L7HTF4|L7HTF4_MAGOY Fructose-bisphosphate aldolase OS=Magnaporthe oryzae (strain Y34) GN=OOU_Y34scaffold00782g1 PE=4 SV=1;>tr|L7JRU2|L7JRU2_MAGOP Fructose-bisphosphate aldolase OS=Magnaporthe oryzae (strain P131) GN=OOW_P131scaffold00057g1 PE=4 SV=1;>t | G182: + | H182: 1 | I182: K | J182: 278.08 | K182: _IEYLNSQVGNPDGADK(ac)PNK_ | L182: X;X;X;X;X;X;X;X;X;X;X;X;X;X;X;Acetyl (K);X;X;X;X;X;X;X;X;X;X;X;X;X;X;X | M182: IEYLNSQVGNPDGADK(1)PNK | N182: IEYLNSQVGNPDGADK(96.92)PNK(-96.92) | O182: 16 | P182: 2 | Q182: 1051.0135 | R182: 1.6136 | T182: 149820000 | U182: 777390000 | V182: 703390000 | W182: 543533333.3 | X182: 1158000000 | Y182: 719070000 | Z182: 864320000 | AA182: 913796666.7 | AB182: 0.5948077435 | AC182: =_xlfn.T.TEST(T182:V182,X182:Z182,2,2) -> 0.1923203886
A183: >tr|G4N0M7|G4N0M7_MAGO7 ATP synthase subunit alpha OS=Magnaporthe oryzae (strain 70-15 / ATCC MYA-4617 / FGSC 8958) GN=MGG_07752 PE=3 SV=1;>tr|L7IMB0|L7IMB0_MAGOY ATP synthase subunit alpha OS=Magnaporthe oryzae (strain Y34) GN=OOU_Y34scaffold00090g19 PE=3 SV=1;>tr|L7IXE0|L7IXE0_MAGOP ATP synthase subunit alpha OS=Magnaporthe oryzae (strain P131) GN=OOW_P131scaffold01278g19 PE=3 SV=1 | B183: 422;422;422 | C183: NVGLSVSRVGSAAQLKAMKQVAGSLKLFLAQ | D183: >tr|G4N0M7|G4N0M7_MAGO7 ATP synthase subunit alpha OS=Magnaporthe oryzae (strain 70-15 / ATCC MYA-4617 / FGSC 8958) GN=MGG_07752 PE=3 SV=1 | E183: >tr|G4N0M7|G4N0M7_MAGO7 ATP synthase subunit alpha OS=Magnaporthe oryzae (strain 70-15 / ATCC MYA-4617 / FGSC 8958) GN=MGG_07752 PE=3 SV=1 | F183: >tr|G4N0M7|G4N0M7_MAGO7 ATP synthase subunit alpha OS=Magnaporthe oryzae (strain 70-15 / ATCC MYA-4617 / FGSC 8958) GN=MGG_07752 PE=3 SV=1;>tr|L7IMB0|L7IMB0_MAGOY ATP synthase subunit alpha OS=Magnaporthe oryzae (strain Y34) GN=OOU_Y34scaffold00090g19 PE=3 | G183: + | H183: 1 | I183: K | J183: 121.36 | K183: _VGSAAQLK(ac)AMK_ | L183: X;X;X;X;X;X;X;X;X;X;X;X;X;X;X;Acetyl (K);X;X;Acetyl (K);X;X;X;X;X;X;X;X;X;X;X;X | M183: VGSAAQLK(1)AMK | N183: VGSAAQLK(114.89)AMK(-114.89) | O183: 8 | P183: 2 | Q183: 573.32099 | R183: -0.38856 | T183: 56029000 | V183: 79529000 | W183: 67779000 | X183: 60906000 | Y183: 32515000 | Z183: 38756000 | AA183: 44059000 | AB183: 1.538369005 | AC183: =_xlfn.T.TEST(T183:V183,X183:Z183,2,2) -> 0.1923888463
A184: >tr|G4ML83|G4ML83_MAGO7 ATP-citrate synthase subunit 2 OS=Magnaporthe oryzae (strain 70-15 / ATCC MYA-4617 / FGSC 8958) GN=MGG_06720 PE=4 SV=1;>tr|L7I5N9|L7I5N9_MAGOY ATP citrate lyase OS=Magnaporthe oryzae (strain Y34) GN=OOU_Y34scaffold00534g9 PE=4 SV=1;>tr|L7JN13|L7JN13_MAGOP ATP citrate lyase OS=Magnaporthe oryzae (strain P131) GN=OOW_P131scaffold00177g9 PE=4 SV=1 | B184: 95;95;95 | C184: QLIKRRGKSGLLALNKTWAEAKAWVAERAGK | D184: >tr|G4ML83|G4ML83_MAGO7 ATP-citrate synthase subunit 2 OS=Magnaporthe oryzae (strain 70-15 / ATCC MYA-4617 / FGSC 8958) GN=MGG_06720 PE=4 SV=1 | E184: >tr|G4ML83|G4ML83_MAGO7 ATP-citrate synthase subunit 2 OS=Magnaporthe oryzae (strain 70-15 / ATCC MYA-4617 / FGSC 8958) GN=MGG_06720 PE=4 SV=1 | F184: >tr|G4ML83|G4ML83_MAGO7 ATP-citrate synthase subunit 2 OS=Magnaporthe oryzae (strain 70-15 / ATCC MYA-4617 / FGSC 8958) GN=MGG_06720 PE=4 SV=1;>tr|L7I5N9|L7I5N9_MAGOY ATP citrate lyase OS=Magnaporthe oryzae (strain Y34) GN=OOU_Y34scaffold00534g9 PE=4 SV=1; | G184: + | H184: 1 | I184: K | J184: 90.966 | K184: _SGLLALNK(ac)TWAEAK_ | L184: X;X;X;Acetyl (K);X;X;X;X;X;X;X;X;X;X;X;Acetyl (K);X;X;X;X;X;X;X;X;X;X;X;X;X;X;X | M184: SGLLALNK(1)TWAEAK | N184: SGLLALNK(90.97)TWAEAK(-90.97) | O184: 8 | P184: 2 | Q184: 772.42757 | R184: 0.40003 | T184: 11143000 | U184: 10176000 | V184: 9901300 | W184: 10406766.67 | X184: 17326000 | Y184: 9826500 | Z184: 14477000 | AA184: 13876500 | AB184: 0.7499561609 | AC184: =_xlfn.T.TEST(T184:V184,X184:Z184,2,2) -> 0.192756889
A185: >tr|G5EHV3|G5EHV3_MAGO7 V-type proton ATPase subunit E OS=Magnaporthe oryzae (strain 70-15 / ATCC MYA-4617 / FGSC 8958) GN=MGCH7_ch7g520 PE=3 SV=1;>tr|L7I0Q7|L7I0Q7_MAGOY Vacuolar ATP synthase subunit E OS=Magnaporthe oryzae (strain Y34) GN=OOU_Y34scaffold00666g7 PE=3 SV=1;>tr|L7J499|L7J499_MAGOP Vacuolar ATP synthase subunit E OS=Magnaporthe oryzae (strain P131) GN=OOW_P131scaffold01054g22 PE=3 SV=1 | B185: 104;104;104 | C185: GARQELLDDIFDAAQKRLAEGTKDKKKYQEI | D185: >tr|G5EHV3|G5EHV3_MAGO7 V-type proton ATPase subunit E OS=Magnaporthe oryzae (strain 70-15 / ATCC MYA-4617 / FGSC 8958) GN=MGCH7_ch7g520 PE=3 SV=1 | E185: >tr|G5EHV3|G5EHV3_MAGO7 V-type proton ATPase subunit E OS=Magnaporthe oryzae (strain 70-15 / ATCC MYA-4617 / FGSC 8958) GN=MGCH7_ch7g520 PE=3 SV=1 | F185: >tr|G5EHV3|G5EHV3_MAGO7 V-type proton ATPase subunit E OS=Magnaporthe oryzae (strain 70-15 / ATCC MYA-4617 / FGSC 8958) GN=MGCH7_ch7g520 PE=3 SV=1;>tr|L7I0Q7|L7I0Q7_MAGOY Vacuolar ATP synthase subunit E OS=Magnaporthe oryzae (strain Y34) GN=OOU_Y34scaffold | G185: + | H185: 1 | I185: K | J185: 209.11 | K185: _QELLDDIFDAAQK(ac)R_ | L185: X;X;X;X;X;X;X;X;X;X;X;X;X;X;X;Acetyl (K);X;X;X;X;X;X;X;X;X;X;X;X;X;X;X | M185: QELLDDIFDAAQK(1)R | N185: QELLDDIFDAAQK(209.11)R | O185: 13 | P185: 2 | Q185: 852.43358 | R185: -1.5374 | U185: 13809000 | V185: 4988100 | W185: 9398550 | X185: 21809000 | Z185: 16701000 | AA185: 19255000 | AB185: 0.4881095819 | AC185: =_xlfn.T.TEST(T185:V185,X185:Z185,2,2) -> 0.1927978361
A186: >tr|G4MZY1|G4MZY1_MAGO7 Peroxisomal hydratase-dehydrogenase-epimerase OS=Magnaporthe oryzae (strain 70-15 / ATCC MYA-4617 / FGSC 8958) GN=MGG_06148 PE=4 SV=1;>tr|L7IHX3|L7IHX3_MAGOY Peroxisomal hydratase-dehydrogenase-epimerase OS=Magnaporthe oryzae (strain Y34) GN=OOU_Y34scaffold00192g3 PE=4 SV=1;>tr|L7JD50|L7JD50_MAGOP Peroxisomal hydratase-dehydrogenase-epimerase OS=Magnaporthe oryzae (strain P131) GN=OOW_P131scaffold00455g5 PE=4 SV=1 | B186: 725;725;725 | C186: SAKLKSYGKLLEVVDKGNAAVLRNGVTTVHA | D186: >tr|G4MZY1|G4MZY1_MAGO7 Peroxisomal hydratase-dehydrogenase-epimerase OS=Magnaporthe oryzae (strain 70-15 / ATCC MYA-4617 / FGSC 8958) GN=MGG_06148 PE=4 SV=1 | E186: >tr|G4MZY1|G4MZY1_MAGO7 Peroxisomal hydratase-dehydrogenase-epimerase OS=Magnaporthe oryzae (strain 70-15 / ATCC MYA-4617 / FGSC 8958) GN=MGG_06148 PE=4 SV=1 | F186: >tr|G4MZY1|G4MZY1_MAGO7 Peroxisomal hydratase-dehydrogenase-epimerase OS=Magnaporthe oryzae (strain 70-15 / ATCC MYA-4617 / FGSC 8958) GN=MGG_06148 PE=4 SV=1;>tr|L7IHX3|L7IHX3_MAGOY Peroxisomal hydratase-dehydrogenase-epimerase OS=Magnaporthe oryzae (strai | G186: + | H186: 1 | I186: K | J186: 156.8 | K186: _LLEVVDK(ac)GNAAVLR_ | L186: X;X;X;X;X;X;X;X;X;X;X;X;X;X;X;Acetyl (K);X;X;X;X;X;X;X;X;X;X;X;X;X;X;X | M186: LLEVVDK(1)GNAAVLR | N186: LLEVVDK(120.14)GNAAVLR | O186: 7 | P186: 2 | Q186: 769.94867 | R186: -0.54246 | T186: 18237000 | U186: 14611000 | V186: 16351000 | W186: 16399666.67 | X186: 34572000 | Y186: 16585000 | Z186: 23063000 | AA186: 24740000 | AB186: 0.6628806252 | AC186: =_xlfn.T.TEST(T186:V186,X186:Z186,2,2) -> 0.1948749129
A187: >tr|D4NXC3|D4NXC3_MAGOR 60S ribosomal protein L22 OS=Magnaporthe oryzae PE=2 SV=1;>tr|G4NGK1|G4NGK1_MAGO7 60S ribosomal protein L22 OS=Magnaporthe oryzae (strain 70-15 / ATCC MYA-4617 / FGSC 8958) GN=MGG_04104 PE=4 SV=1;>tr|L7IFV4|L7IFV4_MAGOY 60S ribosomal protein L22 OS=Magnaporthe oryzae (strain Y34) GN=OOU_Y34scaffold00255g64 PE=4 SV=1;>tr|L7IW68|L7IW68_MAGOP 60S ribosomal protein L22 OS=Magnaporthe oryzae (strain P131) GN=OOW_P131scaffold01349g16 PE=4 SV=1 | B187: 18;18;18;18 | C187: PPQTKKTGKSSKTTKKFVINASQPVNDKIFD | D187: >tr|D4NXC3|D4NXC3_MAGOR 60S ribosomal protein L22 OS=Magnaporthe oryzae PE=2 SV=1 | E187: >tr|D4NXC3|D4NXC3_MAGOR 60S ribosomal protein L22 OS=Magnaporthe oryzae PE=2 SV=1 | F187: >tr|D4NXC3|D4NXC3_MAGOR 60S ribosomal protein L22 OS=Magnaporthe oryzae PE=2 SV=1;>tr|G4NGK1|G4NGK1_MAGO7 60S ribosomal protein L22 OS=Magnaporthe oryzae (strain 70-15 / ATCC MYA-4617 / FGSC 8958) GN=MGG_04104 PE=4 SV=1;>tr|L7IFV4|L7IFV4_MAGOY 60S ribosoma | G187: + | H187: 1 | I187: K | J187: 145.71 | K187: _K(ac)FVINASQPVNDK_ | L187: X;X;X;X;X;X;X;X;X;X;X;X;X;X;X;Acetyl (K);X;X;X;X;X;X;X;X;X;X;X;Acetyl (K);X;X;X | M187: K(1)FVINASQPVNDK | N187: K(100.55)FVINASQPVNDK(-100.55) | O187: 1 | P187: 2 | Q187: 751.4041 | R187: -0.19179 | T187: 19377000 | U187: 34334000 | V187: 28875000 | W187: 27528666.67 | X187: 17921000 | Y187: 21892000 | Z187: 21621000 | AA187: 20478000 | AB187: 1.344304457 | AC187: =_xlfn.T.TEST(T187:V187,X187:Z187,2,2) -> 0.1964620413
A188: >tr|D4NXD2|D4NXD2_MAGOR Peroxisomal membrane PMP20 OS=Magnaporthe oryzae PE=2 SV=1;>tr|G5EHR9|G5EHR9_MAGO7 Peroxiredoxin type-2 OS=Magnaporthe oryzae (strain 70-15 / ATCC MYA-4617 / FGSC 8958) GN=MGCH7_ch7g455 PE=4 SV=1;>tr|L7HZS5|L7HZS5_MAGOY Peroxiredoxin type-2 OS=Magnaporthe oryzae (strain Y34) GN=OOU_Y34scaffold00666g77 PE=4 SV=1;>tr|L7JAQ7|L7JAQ7_MAGOP Peroxiredoxin type-2 OS=Magnaporthe oryzae (strain P131) GN=OOW_P131scaffold00596g12 PE=4 SV=1 | B188: 150;150;150;150 | C188: RYAIVVDHGKVTYAEKEEAGGIAVSGAEAVL | D188: >tr|D4NXD2|D4NXD2_MAGOR Peroxisomal membrane PMP20 OS=Magnaporthe oryzae PE=2 SV=1 | E188: >tr|D4NXD2|D4NXD2_MAGOR Peroxisomal membrane PMP20 OS=Magnaporthe oryzae PE=2 SV=1 | F188: >tr|D4NXD2|D4NXD2_MAGOR Peroxisomal membrane PMP20 OS=Magnaporthe oryzae PE=2 SV=1;>tr|G5EHR9|G5EHR9_MAGO7 Peroxiredoxin type-2 OS=Magnaporthe oryzae (strain 70-15 / ATCC MYA-4617 / FGSC 8958) GN=MGCH7_ch7g455 PE=4 SV=1;>tr|L7HZS5|L7HZS5_MAGOY Peroxiredoxi | G188: + | H188: 1 | I188: K | J188: 176.65 | K188: _VTYAEK(ac)EEAGGIAVSGAEAVLAKL_ | L188: X;X;X;X;X;X;X;X;X;X;X;X;X;X;X;Acetyl (K);X;X;X;X;X;X;X;X;X;X;X;X;X;X;X | M188: VTYAEK(1)EEAGGIAVSGAEAVLAKL | N188: VTYAEK(120.75)EEAGGIAVSGAEAVLAK(-120.75)L | O188: 6 | P188: 3 | Q188: 806.7636 | R188: -1.7376 | T188: 18750000 | U188: 21010000 | V188: 30464000 | W188: 23408000 | Y188: 10064000 | Z188: 18349000 | AA188: 14206500 | AB188: 1.647696477 | AC188: =_xlfn.T.TEST(T188:V188,X188:Z188,2,2) -> 0.1969072529
A189: >tr|G4MLM8|G4MLM8_MAGO7 Heat shock protein 90 OS=Magnaporthe oryzae (strain 70-15 / ATCC MYA-4617 / FGSC 8958) GN=MGG_06759 PE=3 SV=1;>tr|L7I7P6|L7I7P6_MAGOY Heat shock protein 80 OS=Magnaporthe oryzae (strain Y34) GN=OOU_Y34scaffold00534g52 PE=3 SV=1;>tr|L7JM28|L7JM28_MAGOP Heat shock protein 80 OS=Magnaporthe oryzae (strain P131) GN=OOW_P131scaffold00177g52 PE=3 SV=1 | B189: 477;477;477 | C189: KNIYYITGESLKAVQKSPFLDSLKEKNFEVL | D189: >tr|G4MLM8|G4MLM8_MAGO7 Heat shock protein 90 OS=Magnaporthe oryzae (strain 70-15 / ATCC MYA-4617 / FGSC 8958) GN=MGG_06759 PE=3 SV=1 | E189: >tr|G4MLM8|G4MLM8_MAGO7 Heat shock protein 90 OS=Magnaporthe oryzae (strain 70-15 / ATCC MYA-4617 / FGSC 8958) GN=MGG_06759 PE=3 SV=1 | F189: >tr|G4MLM8|G4MLM8_MAGO7 Heat shock protein 90 OS=Magnaporthe oryzae (strain 70-15 / ATCC MYA-4617 / FGSC 8958) GN=MGG_06759 PE=3 SV=1;>tr|L7I7P6|L7I7P6_MAGOY Heat shock protein 80 OS=Magnaporthe oryzae (strain Y34) GN=OOU_Y34scaffold00534g52 PE=3 SV=1;>tr| | G189: + | H189: 1 | I189: K | J189: 105.65 | K189: _AVQK(ac)SPFLDSLK_ | L189: X;X;X;X;X;X;X;X;X;X;X;X;X;X;X;Acetyl (K);X;X;X;X;X;X;X;Acetyl (K);X;X;X;X;X;X;X | M189: AVQK(1)SPFLDSLK | N189: AVQK(105.65)SPFLDSLK(-105.65) | O189: 4 | P189: 2 | Q189: 687.88501 | R189: 1.9425 | T189: 15661000 | U189: 12712000 | V189: 16829000 | W189: 15067333.33 | X189: 15032000 | Y189: 10005000 | Z189: 11160000 | AA189: 12065666.67 | AB189: 1.248777523 | AC189: =_xlfn.T.TEST(T189:V189,X189:Z189,2,2) -> 0.1989909756
A190: >tr|G4N0T6|G4N0T6_MAGO7 Uncharacterized protein OS=Magnaporthe oryzae (strain 70-15 / ATCC MYA-4617 / FGSC 8958) GN=MGG_16629 PE=4 SV=1;>tr|L7I4L2|L7I4L2_MAGOY 3-hydroxybutyryl-CoA dehydrogenase OS=Magnaporthe oryzae (strain Y34) GN=OOU_Y34scaffold00552g109 PE=4 SV=1;>tr|L7IV97|L7IV97_MAGOP 3-hydroxybutyryl-CoA dehydrogenase OS=Magnaporthe oryzae (strain P131) GN=OOW_P131scaffold01326g21 PE=4 SV=1 | B190: 18;18;18 | C190: SFRMPMPKGVPAYKSKFGPNYHLQPNVHGTT | D190: >tr|G4N0T6|G4N0T6_MAGO7 Uncharacterized protein OS=Magnaporthe oryzae (strain 70-15 / ATCC MYA-4617 / FGSC 8958) GN=MGG_16629 PE=4 SV=1;>tr|L7I4L2|L7I4L2_MAGOY 3-hydroxybutyryl-CoA dehydrogenase OS=Magnaporthe oryzae (strain Y34) GN=OOU_Y34scaffold00552g109 PE=4 SV=1 | E190: >tr|L7I4L2|L7I4L2_MAGOY 3-hydroxybutyryl-CoA dehydrogenase OS=Magnaporthe oryzae (strain Y34) GN=OOU_Y34scaffold00552g109 PE=4 SV=1 | F190: >tr|G4N0T6|G4N0T6_MAGO7 Uncharacterized protein OS=Magnaporthe oryzae (strain 70-15 / ATCC MYA-4617 / FGSC 8958) GN=MGG_16629 PE=4 SV=1;>tr|L7I4L2|L7I4L2_MAGOY 3-hydroxybutyryl-CoA dehydrogenase OS=Magnaporthe oryzae (strain Y34) GN=OOU_Y34scaffold00552g10 | G190: + | H190: 1 | I190: K | J190: 87.49 | K190: _SK(ac)FGPNYHLQPNVHGTTLK_ | L190: X;X;X;X;X;X;X;X;X;X;X;X;X;X;X;Acetyl (K);X;X;X;X;X;X;X;X;X;X;X;X;X;X;X | M190: SK(1)FGPNYHLQPNVHGTTLK | N190: SK(52.87)FGPNYHLQPNVHGTTLK(-52.87) | O190: 2 | P190: 4 | Q190: 545.78664 | R190: -0.55047 | T190: 42532000 | U190: 57383000 | V190: 55121000 | W190: 51678666.67 | X190: 49446000 | Y190: 37568000 | Z190: 41268000 | AA190: 42760666.67 | AB190: 1.20855615 | AC190: =_xlfn.T.TEST(T190:V190,X190:Z190,2,2) -> 0.1990544661
A191: >tr|G5EHV3|G5EHV3_MAGO7 V-type proton ATPase subunit E OS=Magnaporthe oryzae (strain 70-15 / ATCC MYA-4617 / FGSC 8958) GN=MGCH7_ch7g520 PE=3 SV=1;>tr|L7I0Q7|L7I0Q7_MAGOY Vacuolar ATP synthase subunit E OS=Magnaporthe oryzae (strain Y34) GN=OOU_Y34scaffold00666g7 PE=3 SV=1;>tr|L7J499|L7J499_MAGOP Vacuolar ATP synthase subunit E OS=Magnaporthe oryzae (strain P131) GN=OOW_P131scaffold01054g22 PE=3 SV=1 | B191: 149;149;149 | C191: PQMQVRARKADYDIVKSAIDAAAKEYKQKVG | D191: >tr|G5EHV3|G5EHV3_MAGO7 V-type proton ATPase subunit E OS=Magnaporthe oryzae (strain 70-15 / ATCC MYA-4617 / FGSC 8958) GN=MGCH7_ch7g520 PE=3 SV=1 | E191: >tr|G5EHV3|G5EHV3_MAGO7 V-type proton ATPase subunit E OS=Magnaporthe oryzae (strain 70-15 / ATCC MYA-4617 / FGSC 8958) GN=MGCH7_ch7g520 PE=3 SV=1 | F191: >tr|G5EHV3|G5EHV3_MAGO7 V-type proton ATPase subunit E OS=Magnaporthe oryzae (strain 70-15 / ATCC MYA-4617 / FGSC 8958) GN=MGCH7_ch7g520 PE=3 SV=1;>tr|L7I0Q7|L7I0Q7_MAGOY Vacuolar ATP synthase subunit E OS=Magnaporthe oryzae (strain Y34) GN=OOU_Y34scaffold | G191: + | H191: 1 | I191: K | J191: 101.15 | K191: _ADYDIVK(ac)SAIDAAAK_ | L191: X;X;X;X;X;X;X;X;X;X;X;X;X;X;X;Acetyl (K);X;X;X;X;X;X;X;Acetyl (K);X;X;X;X;X;X;X | M191: ADYDIVK(1)SAIDAAAK | N191: ADYDIVK(46.89)SAIDAAAK(-46.89) | O191: 7 | P191: 2 | Q191: 796.91195 | R191: -2.1012 | T191: 4417500 | U191: 4359700 | W191: 4388600 | X191: 9770800 | Y191: 5178300 | Z191: 6774400 | AA191: 7241166.667 | AB191: 0.606062559 | AC191: =_xlfn.T.TEST(T191:V191,X191:Z191,2,2) -> 0.1992695846
A192: >tr|G4NBG4|G4NBG4_MAGO7 60S ribosomal protein L44 OS=Magnaporthe oryzae (strain 70-15 / ATCC MYA-4617 / FGSC 8958) GN=MGG_00546 PE=3 SV=1;>tr|L7I6L9|L7I6L9_MAGOY 60S ribosomal protein L44 OS=Magnaporthe oryzae (strain Y34) GN=OOU_Y34scaffold00522g48 PE=3 SV=1;>tr|L7IQ69|L7IQ69_MAGOP 60S ribosomal protein L44 OS=Magnaporthe oryzae (strain P131) GN=OOW_P131scaffold01708g12 PE=3 SV=1 | B192: 15;15;15 | C192: _MVNIPKTRRTYCAGKECKKHTNHRVTQYKA | D192: >tr|G4NBG4|G4NBG4_MAGO7 60S ribosomal protein L44 OS=Magnaporthe oryzae (strain 70-15 / ATCC MYA-4617 / FGSC 8958) GN=MGG_00546 PE=3 SV=1 | E192: >tr|G4NBG4|G4NBG4_MAGO7 60S ribosomal protein L44 OS=Magnaporthe oryzae (strain 70-15 / ATCC MYA-4617 / FGSC 8958) GN=MGG_00546 PE=3 SV=1 | F192: >tr|G4NBG4|G4NBG4_MAGO7 60S ribosomal protein L44 OS=Magnaporthe oryzae (strain 70-15 / ATCC MYA-4617 / FGSC 8958) GN=MGG_00546 PE=3 SV=1;>tr|L7I6L9|L7I6L9_MAGOY 60S ribosomal protein L44 OS=Magnaporthe oryzae (strain Y34) GN=OOU_Y34scaffold00522g48 PE=3 S | G192: + | H192: 1 | I192: K | J192: 105.2 | K192: _TYCAGK(ac)ECK_ | L192: X;X;X;X;X;X;X;X;X;X;X;X;X;X;X;Acetyl (K);X;X;X;X;X;X;X;X;X;X;X;X;X;X;X | M192: TYCAGK(1)ECK | N192: TYCAGK(94.31)ECK(-94.31) | O192: 6 | P192: 2 | Q192: 579.74954 | R192: -0.077205 | T192: 49083000 | U192: 51052000 | V192: 43626000 | W192: 47920333.33 | X192: 44596000 | Y192: 30925000 | Z192: 44801000 | AA192: 40107333.33 | AB192: 1.194802281 | AC192: =_xlfn.T.TEST(T192:V192,X192:Z192,2,2) -> 0.2003341418
A193: >tr|G4MPX2|G4MPX2_MAGO7 Protein disulfide-isomerase OS=Magnaporthe oryzae (strain 70-15 / ATCC MYA-4617 / FGSC 8958) GN=MGG_05753 PE=3 SV=1;>tr|L7I5V2|L7I5V2_MAGOY Protein disulfide-isomerase OS=Magnaporthe oryzae (strain Y34) GN=OOU_Y34scaffold00567g64 PE=3 SV=1;>tr|L7IUJ2|L7IUJ2_MAGOP Protein disulfide-isomerase OS=Magnaporthe oryzae (strain P131) GN=OOW_P131scaffold01338g22 PE=3 SV=1 | B193: 276;276;276 | C193: EERTTLSEALKSIAEKHRGAINFATIDAKAF | D193: >tr|G4MPX2|G4MPX2_MAGO7 Protein disulfide-isomerase OS=Magnaporthe oryzae (strain 70-15 / ATCC MYA-4617 / FGSC 8958) GN=MGG_05753 PE=3 SV=1 | E193: >tr|G4MPX2|G4MPX2_MAGO7 Protein disulfide-isomerase OS=Magnaporthe oryzae (strain 70-15 / ATCC MYA-4617 / FGSC 8958) GN=MGG_05753 PE=3 SV=1 | F193: >tr|G4MPX2|G4MPX2_MAGO7 Protein disulfide-isomerase OS=Magnaporthe oryzae (strain 70-15 / ATCC MYA-4617 / FGSC 8958) GN=MGG_05753 PE=3 SV=1;>tr|L7I5V2|L7I5V2_MAGOY Protein disulfide-isomerase OS=Magnaporthe oryzae (strain Y34) GN=OOU_Y34scaffold00567g64 PE | G193: + | H193: 1 | I193: K | J193: 141.39 | K193: _SIAEK(ac)HR_ | L193: X;X;X;X;X;X;X;X;X;X;X;X;X;X;X;Acetyl (K);X;X;X;X;X;X;X;X;X;X;X;X;X;X;X | M193: SIAEK(1)HR | N193: SIAEK(140.98)HR | O193: 5 | P193: 2 | Q193: 441.74323 | R193: -0.15768 | T193: 202100000 | U193: 277090000 | V193: 327040000 | W193: 268743333.3 | X193: 196360000 | Y193: 242540000 | Z193: 180700000 | AA193: 206533333.3 | AB193: 1.301210458 | AC193: =_xlfn.T.TEST(T193:V193,X193:Z193,2,2) -> 0.2018054816
A194: >tr|G4MKR0|G4MKR0_MAGO7 ADP,ATP carrier protein OS=Magnaporthe oryzae (strain 70-15 / ATCC MYA-4617 / FGSC 8958) GN=MGG_16149 PE=3 SV=1;>tr|L7I7V3|L7I7V3_MAGOY ADP,ATP carrier protein OS=Magnaporthe oryzae (strain Y34) GN=OOU_Y34scaffold00533g16 PE=3 SV=1;>tr|L7JG25|L7JG25_MAGOP ADP,ATP carrier protein OS=Magnaporthe oryzae (strain P131) GN=OOW_P131scaffold00343g45 PE=3 SV=1 | B194: 266;266;266 | C194: TSGEAVKYSSSFDAFKQIVAKEGVKSLFRGA | D194: >tr|G4MKR0|G4MKR0_MAGO7 ADP,ATP carrier protein OS=Magnaporthe oryzae (strain 70-15 / ATCC MYA-4617 / FGSC 8958) GN=MGG_16149 PE=3 SV=1 | E194: >tr|G4MKR0|G4MKR0_MAGO7 ADP,ATP carrier protein OS=Magnaporthe oryzae (strain 70-15 / ATCC MYA-4617 / FGSC 8958) GN=MGG_16149 PE=3 SV=1 | F194: >tr|G4MKR0|G4MKR0_MAGO7 ADP,ATP carrier protein OS=Magnaporthe oryzae (strain 70-15 / ATCC MYA-4617 / FGSC 8958) GN=MGG_16149 PE=3 SV=1;>tr|L7I7V3|L7I7V3_MAGOY ADP,ATP carrier protein OS=Magnaporthe oryzae (strain Y34) GN=OOU_Y34scaffold00533g16 PE=3 SV=1; | G194: + | H194: 1 | I194: K | J194: 121.45 | K194: _YSSSFDAFK(ac)QIVAK_ | L194: X;X;X;X;X;X;X;X;X;X;X;X;X;X;X;Acetyl (K);X;X;X;X;X;X;X;X;Acetyl (K);X;X;X;X;X;X | M194: YSSSFDAFK(1)QIVAK | N194: YSSSFDAFK(103.76)QIVAK(-103.76) | O194: 9 | P194: 2 | Q194: 816.91704 | R194: 0.71223 | T194: 83362000 | U194: 40428000 | V194: 50673000 | W194: =AVERAGE(T194:V194) -> 58154333.33 | X194: 46056000 | Y194: 31584000 | Z194: 34224000 | AA194: =AVERAGE(X194:Z194) -> 37288000 | AB194: =W194/AA194 -> 1.559599156 | AC194: =_xlfn.T.TEST(T194:V194,X194:Z194,2,2) -> 0.2021254508
A195: >tr|L7I2M0|L7I2M0_MAGOY Alpha-1,4 glucan phosphorylase OS=Magnaporthe oryzae (strain Y34) GN=OOU_Y34scaffold00641g56 PE=3 SV=1;>tr|L7JJE8|L7JJE8_MAGOP Alpha-1,4 glucan phosphorylase OS=Magnaporthe oryzae (strain P131) GN=OOW_P131scaffold00254g11 PE=3 SV=1;>tr|G4MW66|G4MW66_MAGO7 Alpha-1,4 glucan phosphorylase OS=Magnaporthe oryzae (strain 70-15 / ATCC MYA-4617 / FGSC 8958) GN=MGG_01819 PE=3 SV=1 | B195: 914;914;804 | C195: IDPELLKVFDAIQAGKFGEPQNFGSLIAAIK | D195: >tr|L7I2M0|L7I2M0_MAGOY Alpha-1,4 glucan phosphorylase OS=Magnaporthe oryzae (strain Y34) GN=OOU_Y34scaffold00641g56 PE=3 SV=1 | E195: >tr|L7I2M0|L7I2M0_MAGOY Alpha-1,4 glucan phosphorylase OS=Magnaporthe oryzae (strain Y34) GN=OOU_Y34scaffold00641g56 PE=3 SV=1 | F195: >tr|L7I2M0|L7I2M0_MAGOY Alpha-1,4 glucan phosphorylase OS=Magnaporthe oryzae (strain Y34) GN=OOU_Y34scaffold00641g56 PE=3 SV=1;>tr|L7JJE8|L7JJE8_MAGOP Alpha-1,4 glucan phosphorylase OS=Magnaporthe oryzae (strain P131) GN=OOW_P131scaffold00254g11 PE=3 SV=1; | G195: + | H195: 1 | I195: K | J195: 79.237 | K195: _VFDAIQAGK(ac)FGEPQNFGSLIAAIK_ | L195: X;X;X;X;X;X;X;X;X;X;X;X;X;X;X;Acetyl (K);X;X;X;X;X;X;X;X;X;X;X;X;X;X;X | M195: VFDAIQAGK(1)FGEPQNFGSLIAAIK | N195: VFDAIQAGK(79.24)FGEPQNFGSLIAAIK(-79.24) | O195: 9 | P195: 2 | Q195: 1282.1814 | R195: -0.6849 | T195: 4814200 | U195: 12874000 | W195: 8844100 | X195: 17794000 | Y195: 13453000 | Z195: 12884000 | AA195: 14710333.33 | AB195: 0.6012168317 | AC195: =_xlfn.T.TEST(T195:V195,X195:Z195,2,2) -> 0.2025956676
A196: >tr|L7I7T1|L7I7T1_MAGOY NAP family protein OS=Magnaporthe oryzae (strain Y34) GN=OOU_Y34scaffold00508g1 PE=4 SV=1;>tr|L7JIU0|L7JIU0_MAGOP NAP family protein OS=Magnaporthe oryzae (strain P131) GN=OOW_P131scaffold00271g2 PE=4 SV=1 | B196: 184;184 | C196: AAYNLWVAQKGNAAQKLDAVLDKDARKARDA | D196: >tr|L7I7T1|L7I7T1_MAGOY NAP family protein OS=Magnaporthe oryzae (strain Y34) GN=OOU_Y34scaffold00508g1 PE=4 SV=1 | E196: >tr|L7I7T1|L7I7T1_MAGOY NAP family protein OS=Magnaporthe oryzae (strain Y34) GN=OOU_Y34scaffold00508g1 PE=4 SV=1 | F196: >tr|L7I7T1|L7I7T1_MAGOY NAP family protein OS=Magnaporthe oryzae (strain Y34) GN=OOU_Y34scaffold00508g1 PE=4 SV=1;>tr|L7JIU0|L7JIU0_MAGOP NAP family protein OS=Magnaporthe oryzae (strain P131) GN=OOW_P131scaffold00271g2 PE=4 SV=1 | G196: + | H196: 1 | I196: K | J196: 107.34 | K196: _GNAAQK(ac)LDAVLDKDAR_ | L196: X;X;X;X;X;X;X;X;X;X;X;X;X;X;X;Acetyl (K);X;X;X;X;X;X;X;X;X;X;X;X;X;X;X | M196: GNAAQK(1)LDAVLDKDAR | N196: GNAAQK(75.46)LDAVLDK(-75.46)DAR | O196: 6 | P196: 3 | Q196: 576.3076 | R196: -1.0217 | T196: 14145000 | U196: 11579000 | V196: 14511000 | W196: 13411666.67 | X196: 10242000 | Y196: 9673000 | Z196: 13481000 | AA196: 11132000 | AB196: 1.204785004 | AC196: =_xlfn.T.TEST(T196:V196,X196:Z196,2,2) -> 0.2037845844
A197: >tr|G4NA37|G4NA37_MAGO7 Diphosphomevalonate decarboxylase OS=Magnaporthe oryzae (strain 70-15 / ATCC MYA-4617 / FGSC 8958) GN=MGG_09750 PE=4 SV=1;>tr|L7HW92|L7HW92_MAGOY Diphosphomevalonate decarboxylase OS=Magnaporthe oryzae (strain Y34) GN=OOU_Y34scaffold00720g27 PE=4 SV=1;>tr|L7JAE4|L7JAE4_MAGOP Diphosphomevalonate decarboxylase OS=Magnaporthe oryzae (strain P131) GN=OOW_P131scaffold00517g5 PE=4 SV=1 | B197: 209;209;209 | C197: HWPEMRAIVLVASAMKKGVSSTSGMQQTVAT | D197: >tr|G4NA37|G4NA37_MAGO7 Diphosphomevalonate decarboxylase OS=Magnaporthe oryzae (strain 70-15 / ATCC MYA-4617 / FGSC 8958) GN=MGG_09750 PE=4 SV=1 | E197: >tr|G4NA37|G4NA37_MAGO7 Diphosphomevalonate decarboxylase OS=Magnaporthe oryzae (strain 70-15 / ATCC MYA-4617 / FGSC 8958) GN=MGG_09750 PE=4 SV=1 | F197: >tr|G4NA37|G4NA37_MAGO7 Diphosphomevalonate decarboxylase OS=Magnaporthe oryzae (strain 70-15 / ATCC MYA-4617 / FGSC 8958) GN=MGG_09750 PE=4 SV=1;>tr|L7HW92|L7HW92_MAGOY Diphosphomevalonate decarboxylase OS=Magnaporthe oryzae (strain Y34) GN=OOU_Y34scaffol | G197: + | H197: 1 | I197: K | J197: 100.72 | K197: _AIVLVASAMK(ac)K_ | L197: X;X;X;X;X;X;X;X;X;X;X;X;X;X;X;Acetyl (K);X;X;X;X;X;X;X;X;X;X;X;X;X;X;X | M197: AIVLVASAMK(1)K | N197: AIVLVASAMK(100.72)K(-100.72) | O197: 10 | P197: 2 | Q197: 586.85721 | R197: -0.30166 | T197: 22485000 | U197: 24597000 | V197: 17550000 | W197: 21544000 | X197: 74229000 | Y197: 26762000 | Z197: 32143000 | AA197: 44378000 | AB197: 0.4854657713 | AC197: =_xlfn.T.TEST(T197:V197,X197:Z197,2,2) -> 0.2062560001
A198: >tr|G4NCU0|G4NCU0_MAGO7 Hydroxymethylglutaryl-CoA synthase OS=Magnaporthe oryzae (strain 70-15 / ATCC MYA-4617 / FGSC 8958) GN=MGG_01026 PE=4 SV=1;>tr|L7IA98|L7IA98_MAGOY Hydroxymethylglutaryl-CoA synthase OS=Magnaporthe oryzae (strain Y34) GN=OOU_Y34scaffold00496g8 PE=4 SV=1;>tr|L7J8P6|L7J8P6_MAGOP Hydroxymethylglutaryl-CoA synthase OS=Magnaporthe oryzae (strain P131) GN=OOW_P131scaffold00713g8 PE=4 SV=1 | B198: 91;91;91 | C198: NSVGRLEVGTETLLDKSKSVKSVLMQLFGDN | D198: >tr|G4NCU0|G4NCU0_MAGO7 Hydroxymethylglutaryl-CoA synthase OS=Magnaporthe oryzae (strain 70-15 / ATCC MYA-4617 / FGSC 8958) GN=MGG_01026 PE=4 SV=1 | E198: >tr|G4NCU0|G4NCU0_MAGO7 Hydroxymethylglutaryl-CoA synthase OS=Magnaporthe oryzae (strain 70-15 / ATCC MYA-4617 / FGSC 8958) GN=MGG_01026 PE=4 SV=1 | F198: >tr|G4NCU0|G4NCU0_MAGO7 Hydroxymethylglutaryl-CoA synthase OS=Magnaporthe oryzae (strain 70-15 / ATCC MYA-4617 / FGSC 8958) GN=MGG_01026 PE=4 SV=1;>tr|L7IA98|L7IA98_MAGOY Hydroxymethylglutaryl-CoA synthase OS=Magnaporthe oryzae (strain Y34) GN=OOU_Y34scaff | G198: + | H198: 1 | I198: K | J198: 123.02 | K198: _LEVGTETLLDK(ac)SK_ | L198: X;X;X;X;X;X;X;X;X;X;X;X;X;X;X;Acetyl (K);X;X;X;X;X;X;X;X;X;X;X;X;X;X;X | M198: LEVGTETLLDK(1)SK | N198: LEVGTETLLDK(73.02)SK(-73.02) | O198: 11 | P198: 2 | Q198: 737.9036 | R198: 0.37383 | U198: 35124000 | V198: 49732000 | W198: 42428000 | X198: 16359000 | Y198: 38685000 | Z198: 23598000 | AA198: 26214000 | AB198: 1.618524453 | AC198: =_xlfn.T.TEST(T198:V198,X198:Z198,2,2) -> 0.2062760302
A199: >tr|G4NCV8|G4NCV8_MAGO7 Uncharacterized protein OS=Magnaporthe oryzae (strain 70-15 / ATCC MYA-4617 / FGSC 8958) GN=MGG_01009 PE=4 SV=1;>tr|L7IAB5|L7IAB5_MAGOY Uncharacterized protein OS=Magnaporthe oryzae (strain Y34) GN=OOU_Y34scaffold00462g59 PE=4 SV=1;>tr|L7J1F8|L7J1F8_MAGOP Uncharacterized protein OS=Magnaporthe oryzae (strain P131) GN=OOW_P131scaffold01132g17 PE=4 SV=1 | B199: 39;39;39 | C199: GATYIVDACLTGEKAKFNACEDKDWGCKCAS | D199: >tr|G4NCV8|G4NCV8_MAGO7 Uncharacterized protein OS=Magnaporthe oryzae (strain 70-15 / ATCC MYA-4617 / FGSC 8958) GN=MGG_01009 PE=4 SV=1 | E199: >tr|G4NCV8|G4NCV8_MAGO7 Uncharacterized protein OS=Magnaporthe oryzae (strain 70-15 / ATCC MYA-4617 / FGSC 8958) GN=MGG_01009 PE=4 SV=1 | F199: >tr|G4NCV8|G4NCV8_MAGO7 Uncharacterized protein OS=Magnaporthe oryzae (strain 70-15 / ATCC MYA-4617 / FGSC 8958) GN=MGG_01009 PE=4 SV=1;>tr|L7IAB5|L7IAB5_MAGOY Uncharacterized protein OS=Magnaporthe oryzae (strain Y34) GN=OOU_Y34scaffold00462g59 PE=4 SV=1; | G199: + | H199: 1 | I199: K | J199: 140.1 | K199: _AK(ac)FNACEDKDWGCK_ | L199: X;X;X;X;X;X;X;X;X;X;X;X;X;X;X;Acetyl (K);X;X;X;X;X;X;Acetyl (K);X;X;X;X;X;X;X;X | M199: AK(1)FNACEDKDWGCK | N199: AK(82.33)FNACEDK(-82.33)DWGCK(-106.52) | O199: 2 | P199: 2 | Q199: 885.88235 | R199: 1.0126 | T199: 34729000 | U199: 38536000 | V199: 44750000 | W199: 39338333.33 | X199: 40184000 | Y199: 27005000 | Z199: 13005000 | AA199: 26731333.33 | AB199: 1.471618824 | AC199: =_xlfn.T.TEST(T199:V199,X199:Z199,2,2) -> 0.2066081011
A200: >tr|L7ILJ8|L7ILJ8_MAGOY Uncharacterized protein OS=Magnaporthe oryzae (strain Y34) GN=OOU_Y34scaffold00133g3 PE=4 SV=1;>tr|L7JLN7|L7JLN7_MAGOP Uncharacterized protein OS=Magnaporthe oryzae (strain P131) GN=OOW_P131scaffold00182g3 PE=4 SV=1;>tr|Q2KHF8|Q2KHF8_MAGO7 Putative uncharacterized protein OS=Magnaporthe oryzae (strain 70-15 / ATCC MYA-4617 / FGSC 8958) GN=MGCH7_ch7g27 PE=4 SV=1;>tr|G4NLA1|G4NLA1_MAGO7 Lipase 5 OS=Magnaporthe oryzae (strain 70-15 / ATCC MYA-4617 / FGSC 8958) GN=MGG_14057 PE=4 SV=1 | B200: 1155;1155;1137;352 | C200: GGHEDEAISGGRRALKWLSDALDGRQLEPAN | D200: >tr|L7ILJ8|L7ILJ8_MAGOY Uncharacterized protein OS=Magnaporthe oryzae (strain Y34) GN=OOU_Y34scaffold00133g3 PE=4 SV=1 | E200: >tr|L7ILJ8|L7ILJ8_MAGOY Uncharacterized protein OS=Magnaporthe oryzae (strain Y34) GN=OOU_Y34scaffold00133g3 PE=4 SV=1 | F200: >tr|L7ILJ8|L7ILJ8_MAGOY Uncharacterized protein OS=Magnaporthe oryzae (strain Y34) GN=OOU_Y34scaffold00133g3 PE=4 SV=1;>tr|L7JLN7|L7JLN7_MAGOP Uncharacterized protein OS=Magnaporthe oryzae (strain P131) GN=OOW_P131scaffold00182g3 PE=4 SV=1;>tr|Q2KHF8|Q2KHF | G200: + | H200: 1 | I200: K | J200: 124.86 | K200: _ALK(ac)WLSDALDGR_ | L200: X;X;X;X;X;X;X;X;X;X;X;X;X;X;X;Acetyl (K);X;X;X;X;X;X;X;X;X;X;X;X;X;X;X | M200: ALK(1)WLSDALDGR | N200: ALK(124.86)WLSDALDGR | O200: 3 | P200: 2 | Q200: 693.87243 | R200: -0.63855 | U200: 63029000 | V200: 59510000 | W200: 61269500 | X200: 105630000 | Y200: 63096000 | Z200: 94132000 | AA200: 87619333.33 | AB200: 0.6992691872 | AC200: =_xlfn.T.TEST(T200:V200,X200:Z200,2,2) -> 0.207554873
... 603 more rows

Sheet OX vs delta acetyl or none
A1: Proteins | B1: Positions within proteins | C1: Sequence window | D1: Leading proteins | E1: Protein | F1: Fasta headers | G1: Diagnostic peak | H1: Number of Acetyl (K) | I1: Amino acid | J1: Score | K1: Modified sequence | L1: Modification window | M1: Acetyl (K) Probabilities | N1: Acetyl (K) Score diffs | O1: Position in peptide | P1: Charge | Q1: m/z | R1: Mass error [ppm] | S1: Contaminant | T1: Intensity OX-1 | U1: Intensity OX-2 | V1: Intensity OX-3 | W1: Intensity WT-1 | X1: Intensity WT-2 | Y1: Intensity WT-3
A2: >tr|G4MKR5|G4MKR5_MAGO7 3-oxoacyl-[acyl-carrier-protein] reductase OS=Magnaporthe oryzae (strain 70-15 / ATCC MYA-4617 / FGSC 8958) GN=MGG_06660 PE=4 SV=1;>tr|L7I7V8|L7I7V8_MAGOY 3-oxoacyl-[acyl-carrier-protein] reductase OS=Magnaporthe oryzae (strain Y34) GN=OOU_Y34scaffold00533g21 PE=4 SV=1;>tr|L7JG30|L7JG30_MAGOP 3-oxoacyl-[acyl-carrier-protein] reductase OS=Magnaporthe oryzae (strain P131) GN=OOW_P131scaffold00343g50 PE=4 SV=1 | B2: 46;46;46 | C2: SHGSSLALTYWSSREKIDALVAELEKSSTRS | D2: >tr|G4MKR5|G4MKR5_MAGO7 3-oxoacyl-[acyl-carrier-protein] reductase OS=Magnaporthe oryzae (strain 70-15 / ATCC MYA-4617 / FGSC 8958) GN=MGG_06660 PE=4 SV=1 | E2: >tr|G4MKR5|G4MKR5_MAGO7 3-oxoacyl-[acyl-carrier-protein] reductase OS=Magnaporthe oryzae (strain 70-15 / ATCC MYA-4617 / FGSC 8958) GN=MGG_06660 PE=4 SV=1 | F2: >tr|G4MKR5|G4MKR5_MAGO7 3-oxoacyl-[acyl-carrier-protein] reductase OS=Magnaporthe oryzae (strain 70-15 / ATCC MYA-4617 / FGSC 8958) GN=MGG_06660 PE=4 SV=1;>tr|L7I7V8|L7I7V8_MAGOY 3-oxoacyl-[acyl-carrier-protein] reductase OS=Magnaporthe oryzae (strain Y34) | G2: + | H2: 1 | I2: K | J2: 103.85 | K2: _EK(ac)IDALVAELEK_ | L2: X;X;X;X;X;X;X;X;X;X;X;X;X;X;X;Acetyl (K);X;X;X;X;X;X;X;X;X;X;X;X;X;X;X | M2: EK(1)IDALVAELEK | N2: EK(103.85)IDALVAELEK(-103.85) | O2: 2 | P2: 2 | Q2: 700.38758 | R2: 0.2614 | T2: 1597600 | U2: 3211100 | V2: 3048400
